{"text_format":"1","workbook":"xlsx","n_sheets":18,"sheets":["Biztosítási termékismertető","Ajánlat1","Tevékenység lista","Tarifa táblák","Vagyonbiztosítási adatközlő","Gép,berendezés","Géplista","Munka10","GéptörésELBER","Kiegészítők","Összesítő","Kockázatfelmérő","Díjszámítás","Nyilatkozat","Zálogkötelezetti nyilatkozat","Munka8","Társbiztosítotti nyilatkozat","Fedezeti limittábla"],"not_rendered":{"charts":0,"images":20,"macros":1,"external_links":0,"defined_names":88,"comments":2,"pivot_tables":0},"unopened":[],"bounds":{"document_bytes":16777216,"sheet_cells":100000,"rows_first":2000,"rows_last":500,"rows_between":2000,"halvings":0,"cell_chars":16384,"cell_head_chars":4096},"cells_cut":0,"cells_raw":0,"read":"whole","date_system":"1900"}

{"sheet":"Biztosítási termékismertető","index":0,"n_rows":0,"n_cols":0,"rows_kept":0,"cut":false,"hidden":false,"merged":[]}

{"sheet":"Ajánlat1","index":1,"n_rows":137,"n_cols":15,"rows_kept":137,"cut":false,"hidden":false,"merged":[[55,1,55,10],[3,0,3,2],[120,2,120,3],[119,2,119,3],[25,3,25,4],[46,4,46,5],[36,4,36,6],[30,6,30,7],[37,1,37,10],[113,1,113,3],[114,5,114,6],[111,4,111,5],[51,1,51,10],[50,1,50,10],[46,7,46,8],[53,1,53,3],[52,6,52,7],[52,8,52,10],[1,1,1,3],[6,1,6,2],[15,4,15,10],[5,3,5,4],[8,2,8,3],[7,7,7,8],[7,5,7,6],[3,8,3,10],[13,1,13,10],[6,7,6,8],[7,1,7,2],[12,1,12,10],[7,3,7,4],[6,3,6,5],[2,7,2,10],[10,9,10,10],[24,2,24,3],[17,8,17,10],[20,1,20,10],[17,3,17,4],[21,6,21,7],[19,6,19,7],[18,1,18,10],[19,3,19,4],[21,3,21,4],[24,5,24,6],[24,8,24,10],[57,1,70,4],[57,8,70,10],[57,5,70,6],[25,8,25,10],[26,1,26,10],[27,3,27,4],[53,7,53,10],[27,6,27,7],[29,1,29,10],[48,4,48,8],[32,3,32,4],[42,4,42,6],[40,8,40,9],[32,6,32,7],[44,5,44,10],[30,3,30,4]]}
[]
[]
[null,null,null,null,null,null,null,"UNION-Business Class"]
[null,null,null,null,null,null,null,null,"Biztosítási ajánlat"]
[]
[null,"Módozat:",null,7910,null,null,null,null,null,"Beérkezett:"]
[null,"Üzletkötő neve:",null,null,null,null,"Üzletkötő kódja:"]
[null,"Átdolgozás:  ",null,"nem",null,"Előzmény kötv.száma:"]
[null,"Készítette:",null,null,{"$f":"CONCATENATE(\"    Tel: \",IFERROR(VLOOKUP(C9,B128:H142,7,FALSE),\"\"),\"     E-mail: \",IFERROR(VLOOKUP(C9,B128:H142,4,FALSE),\"\"))","v":"    Tel:      E-mail: "},null,null,null,null,"Hiv.szám:"]
[]
[null,"Adóigazgatási szám: 1049 1984-2-44   ",null,null,null,null,null,"Ajánlat azonosító:"]
[]
[]
[null,"SZERZŐDŐ/BIZTOSÍTOTT NEVE:"]
[]
[null,"Szerződő / Biztosított neve:"]
[]
[null,"Adószáma:",null,null,null,"Tel.:",null,"E-mail:"]
[null,"Székhelye:"]
[null,null,"ir.sz.",null,null,"helység",null,null,"közterület",null,"hsz.em.ajtó"]
[null,"Levelezési címe: (amennyiben eltér a székhelye címétől)"]
[null,null,"ir.sz.",null,null,"helység",null,null,"közterület",null,"hsz.em.ajtó"]
[]
[null,"Egyéni vállalkozó / Adószámos természetes személy esetén:"]
[null,"Szül. ideje:",null,null," Születési helye: ",null,null,"Anyja neve: "]
[null,"Adószáma:",null,null,null,"Tel:",null,"E-mail:"]
[null,"Székhelye:"]
[null,null,"ir.sz.",null,null,"helység",null,null,"utca",null,"hsz.em.ajtó"]
[]
[null,"Levelezési címe:"]
[null,null,"ir.sz.",null,null,"helység",null,null,"utca",null,"hsz.em.ajtó"]
[null,"Kockázatviselés helye: vagyonbiztosítási adatközlő szerint"]
[null,null,"ir.sz.",null,null,"helység",null,null,"utca",null,"hsz.em.ajtó"]
[]
[null,"Kockázatviselés kezdete:",null,null,{"$f":"TODAY()+1","v":"2021-07-06"},null,null,null,"Forgalom:",null,"M Ft"]
[]
[null,"Kockázatviselés vége:",null,null,"határozatlan",null,null,null,"Lejárata:",null,null,null,null,{"$f":"IF(OR(MOD(YEAR(E35)-2000,4)=0,J37=\"\"),365,IF(J37-E35=364,365,J37-E35+1))","v":365},{"$f":"DATEVALUE(CONCATENATE(YEAR(E35)+1,\".\",MONTH(E35),\".\",DAY(E35),\".\"))","v":"2022-07-06"}]
[null,{"$f":"IF(E37=0,0,IF(AND(E37=\"határozatlan\",J37=0),0,IF(AND(E37=\"1 évnél rövidebb\",J37=0),\"Kérjük töltse ki a lejárat dátumát\",IF(AND(E37=\"1 évnél rövidebb\",J37>0),0,))))","v":0},null,null,null,null,null,null,null,null,null,null,null,{"$f":"IF(IF(DAY(E35)<3,DAY(E35),DAY(E35-1))<16,E35-DAY(E35)+1,DATEVALUE(CONCATENATE(YEAR(E35),\".\",IF(MONTH(E35)=12,\"01\",MONTH(E35)+1),\".01\")))","v":"2021-07-01"}]
[null,"Díjfizetés kezdete:  ",null,null,{"$f":"E35","v":"2021-07-06"},null,null,null,"Évforduló:",{"$f":"IF(E37=\"1 évnél rövidebb\",\"\",IF(DAY(E35)=1,O37,IF(DAY(E35)>1,N41)))","v":"2022-08-01"}]
[]
[null,"Díjfizetés gyakorisága: ",null,null,{"$f":"Díjszámítás!H113","v":"éves"},null,"Díjfizetés módja:            ",null,"banki átutalás",null,null,null,null,{"$f":"IF(E37=\"1 évnél rövidebb\",0,IF(OR(J37=\"\",N37>364),DATEVALUE(CONCATENATE(YEAR(E39)+1,\".\",IF(MONTH(E39)=12,\"01\",MONTH(E39)+1),\".01\")),\"\"))","v":"2022-08-01"}]
[]
[null,"Átutalási számlaszáma:"]
[null,"Hitelbiztosítéki/társbiztosítotti záradék bejegyzése csak zálogkötelezetti/társbiztosítotti nyilatkozat csatolása esetén történik."]
[null,"Hitelt nyújtó pénzintézet neve, címe:"]
[]
[null,"Hitelszerződés száma:",null,null,null,null,"Kezdete:",null,null,"Lejárata:"]
[]
[null,"Hitelfedezet tárgya",null,null,null,null,null,null,null,"Hitel összege"]
[]
[null,"Záradékok"]
[null,{"$f":"IF(E37=\"Felmondási jog 3 évre kizárva\",B125,0)","v":0}]
[]
[null,null,null,null,{"$f":"Díjszámítás!C106","v":0},null,null,{"$f":"IF(AND(Díjszámítás!C12=\"8411 Általános közigazgatás\",Díjszámítás!I95>0),\"A biztosítás a 6-7-es számú záradékkal érvényes\",0)","v":0}]
[]
[]
[]
[null,null,null,null,null,null,null,null,"Gyakoriság engedmény:  5%\n"]
[]
[]
[]
[]
[]
[]
[]
[]
[]
[]
[]
[]
[]
[]
[]
[]
[]
[]
[]
[]
[]
[]
[null,"00:00:00"]
[]
[]
[]
[]
[]
[]
[]
[]
[]
[]
[]
[]
[]
[null,null,null,"határozatlan",null,"igen"]
[null,null,null,"1 évnél rövidebb",null,"nem"]
[null,null,null,"Felmondási jog 3 évre kizárva"]
[]
[]
[null,null,null,"csekk"]
[null,null,null,"csoportos beszedés (GIRO)"]
[null,null,null,"banki átutalás"]
[null,null,null,"egyéb"]
[]
[null,null,null,"1. havi"]
[null,null,null,"2. negyedéves"]
[null,null,null,"3. féléves"]
[null,null,null,"4. éves "]
[]
[null,"Ajánlatkészítés dátuma:",null,null,{"$f":"TODAY()","v":"2021-07-05"}]
[]
[null,"Aláírás helye, dátuma",null,null,{"$f":"hely1","v":0}]
[]
[]
[null,null,"biztosításközvetítő aláírása",null,null,"szerződő aláírása"]
[null,{"$f":"\"Verzió: \"&lejar.verzio","v":"Verzió: 1.19"}]
[null,"UNION-Business Class Érvényes: 2021.12.31.-ig "]
[]
[]
[null,null,"Lejárat dátuma",null,"Verzió","lejárati jelszó"]
[null,null,"2021-12-31",null,"1.19","Bukta"]
[]
[]
[]
[null,"A biztosított/szerződő vállalja, hogy jelen szerződést 3 évig nem mondja fel, ezért a biztosító a biztosítás éves díjából 10% engedményt nyújt. Amennyiben a szerződő/biztosított a 3 év lejárata előtt felmondja a szerződést, a tartamengedmény címén nyújtott kedvezményt meg kell fizetnie."]
[]
[]
[null,"Ambrus Péter",null,null,"ambrus.peter@unionbiztosito.hu",null,null,"666-7656"]
[null,"Árokszállási Zoltán",null,null,"ajanlatkeres@unionbiztosito.hu",null,null,"486-4366"]
[null,"Csanádi Zoltán",null,null,"csanadi.zoltan@unionbiztosito.hu",null,null,"486-4235"]
[null,"Dobi László",null,null,"dobi.laszlogabor@unionbiztosito.hu",null,null,"486-4346"]
[null,"Hajdók Viktória",null,null,"hajdok.viktoria@unionbiztosito.hu",null,null,"486-4213"]
[null,"Klinger József",null,null,"klinger.jozsef@unionbiztosito.hu",null,null,"486-4232"]
[null,"Utry Oszkár",null,null,"ajanlatkeres@unionbiztosito.hu",null,null,"486-4215"]
[]
[false]
[false,"Hitelfedezeti"]

{"sheet":"Tevékenység lista","index":2,"n_rows":302,"n_cols":28,"rows_kept":302,"cut":false,"hidden":true,"merged":[]}
["Tevkor","Vagyon","Felelosseg","Betores","Üzemszünet","Géptörés","Elber",null,null,null,{"$f":"COUNTIF(L2:L302,\"?*\")","v":301},null,null,null,null,null,null,null,null,null,null,null,null,null,null,null,"Újraindít Akció lista"]
["1011 Húsfeldolgozás, -tartósítás",3,3,1,3,2,2,null,{"$f":"IF(ISNUMBER(SEARCH($H$2,'Tevékenység lista'!A2)),MAX($I$1:I1)+1,0)","v":1},"ABC, élelmiszer jellegű vegyeskereskedés",{"$f":"OFFSET($L$2,,,COUNTIF($L$2:$L$302,\"?*\"))","v":"ABC, élelmiszer jellegű vegyeskereskedés"},{"$f":"IFERROR(VLOOKUP(ROWS($L$2:L2),I2:$J$302,2,FALSE),\"\")","v":"ABC, élelmiszer jellegű vegyeskereskedés"},null,null,null,null,{"$f":"IF(--ISNUMBER(SEARCH(Díjszámítás!$C$12,A2)),MAX($Q$1:Q1)+1,\"\")","v":1},{"$f":"IFERROR(INDEX($A$2:$A$302,MATCH(ROWS($Q$2:Q2),$Q$2:$Q$302,0)),\"\")","v":"1011 Húsfeldolgozás, -tartósítás"},null,null,{"$f":"$R$2:INDEX($R$2:$R$302,COUNTIF($R$2:$R$302,\"?*\"))","v":"1011 Húsfeldolgozás, -tartósítás"},null,null,null,null,null,"4743 Audio-, videoberendezés kiskereskedelme",{"$f":"IFERROR(VLOOKUP(Díjszámítás!C12,'Tevékenység lista'!AA2:AA34,1,FALSE),0)","v":0}]
["1012 Baromfihús feldolgozása, tartósítása",3,3,1,3,2,2,null,{"$f":"IF(ISNUMBER(SEARCH($H$2,'Tevékenység lista'!A3)),MAX($I$1:I2)+1,0)","v":2},"Acélkereskedelem",null,{"$f":"IFERROR(VLOOKUP(ROWS($L$2:L3),I3:$J$302,2,FALSE),\"\")","v":"Acélkereskedelem"},null,null,null,null,{"$f":"IF(--ISNUMBER(SEARCH(Díjszámítás!$C$12,A3)),MAX($Q$1:Q2)+1,\"\")","v":2},{"$f":"IFERROR(INDEX($A$2:$A$302,MATCH(ROWS($Q$2:Q3),$Q$2:$Q$302,0)),\"\")","v":"1012 Baromfihús feldolgozása, tartósítása"},null,null,null,null,null,null,null,null,"4751 Textil-kiskereskedelem"]
["1013 Hús-, baromfihús-készítmény gyártása",3,3,1,3,2,2,null,{"$f":"IF(ISNUMBER(SEARCH($H$2,'Tevékenység lista'!A4)),MAX($I$1:I3)+1,0)","v":3},"Acélszerkezetépítés",null,{"$f":"IFERROR(VLOOKUP(ROWS($L$2:L4),I4:$J$302,2,FALSE),\"\")","v":"Acélszerkezetépítés"},null,null,null,null,{"$f":"IF(--ISNUMBER(SEARCH(Díjszámítás!$C$12,A4)),MAX($Q$1:Q3)+1,\"\")","v":3},{"$f":"IFERROR(INDEX($A$2:$A$302,MATCH(ROWS($Q$2:Q4),$Q$2:$Q$302,0)),\"\")","v":"1013 Hús-, baromfihús-készítmény gyártása"},null,null,null,null,null,null,null,null,"4754 Villamos háztartási készülék kiskereskedelme"]
["1020 Halfeldolgozás, -tartósítás",3,3,1,3,2,2,null,{"$f":"IF(ISNUMBER(SEARCH($H$2,'Tevékenység lista'!A5)),MAX($I$1:I4)+1,0)","v":4},"Ács, állványozó",null,{"$f":"IFERROR(VLOOKUP(ROWS($L$2:L5),I5:$J$302,2,FALSE),\"\")","v":"Ács, állványozó"},null,null,null,null,{"$f":"IF(--ISNUMBER(SEARCH(Díjszámítás!$C$12,A5)),MAX($Q$1:Q4)+1,\"\")","v":4},{"$f":"IFERROR(INDEX($A$2:$A$302,MATCH(ROWS($Q$2:Q5),$Q$2:$Q$302,0)),\"\")","v":"1020 Halfeldolgozás, -tartósítás"},null,null,null,null,null,null,null,null,"4759 Bútor, világítási eszköz, egyéb háztartási cikk kiskereskedelme"]
["1031 Burgonyafeldolgozás, -tartósítás",3,3,1,3,2,1,null,{"$f":"IF(ISNUMBER(SEARCH($H$2,'Tevékenység lista'!A6)),MAX($I$1:I5)+1,0)","v":5},"Ajándék, bizsu kereskedés",null,{"$f":"IFERROR(VLOOKUP(ROWS($L$2:L6),I6:$J$302,2,FALSE),\"\")","v":"Ajándék, bizsu kereskedés"},null,null,null,null,{"$f":"IF(--ISNUMBER(SEARCH(Díjszámítás!$C$12,A6)),MAX($Q$1:Q5)+1,\"\")","v":5},{"$f":"IFERROR(INDEX($A$2:$A$302,MATCH(ROWS($Q$2:Q6),$Q$2:$Q$302,0)),\"\")","v":"1031 Burgonyafeldolgozás, -tartósítás"},null,null,null,null,null,null,null,null,"4761 Könyv-kiskereskedelem"]
["1032 Gyümölcs-, zöldséglé gyártása",3,3,1,3,2,1,null,{"$f":"IF(ISNUMBER(SEARCH($H$2,'Tevékenység lista'!A7)),MAX($I$1:I6)+1,0)","v":6},"Akkumulátor kereskedelem",null,{"$f":"IFERROR(VLOOKUP(ROWS($L$2:L7),I7:$J$302,2,FALSE),\"\")","v":"Akkumulátor kereskedelem"},null,null,null,null,{"$f":"IF(--ISNUMBER(SEARCH(Díjszámítás!$C$12,A7)),MAX($Q$1:Q6)+1,\"\")","v":6},{"$f":"IFERROR(INDEX($A$2:$A$302,MATCH(ROWS($Q$2:Q7),$Q$2:$Q$302,0)),\"\")","v":"1032 Gyümölcs-, zöldséglé gyártása"},null,null,null,null,null,null,null,null,"4763 Zene-, videofelvétel kiskereskedelme"]
["1039 Egyéb gyümölcs-, zöldségfeldolgozás, -tartósítás",3,3,1,3,2,1,null,{"$f":"IF(ISNUMBER(SEARCH($H$2,'Tevékenység lista'!A8)),MAX($I$1:I7)+1,0)","v":7},"Akkumulátor, szárazelemgyártás",null,{"$f":"IFERROR(VLOOKUP(ROWS($L$2:L8),I8:$J$302,2,FALSE),\"\")","v":"Akkumulátor, szárazelemgyártás"},null,null,null,null,{"$f":"IF(--ISNUMBER(SEARCH(Díjszámítás!$C$12,A8)),MAX($Q$1:Q7)+1,\"\")","v":7},{"$f":"IFERROR(INDEX($A$2:$A$302,MATCH(ROWS($Q$2:Q8),$Q$2:$Q$302,0)),\"\")","v":"1039 Egyéb gyümölcs-, zöldségfeldolgozás, -tartósítás"},null,null,null,null,null,null,null,null,"4764 Sportszer-kiskereskedelem"]
["1041 Olaj gyártása",5,3,2,5,3,2,null,{"$f":"IF(ISNUMBER(SEARCH($H$2,'Tevékenység lista'!A9)),MAX($I$1:I8)+1,0)","v":8},"Alapfokú általános oktatás",null,{"$f":"IFERROR(VLOOKUP(ROWS($L$2:L9),I9:$J$302,2,FALSE),\"\")","v":"Alapfokú általános oktatás"},null,null,null,null,{"$f":"IF(--ISNUMBER(SEARCH(Díjszámítás!$C$12,A9)),MAX($Q$1:Q8)+1,\"\")","v":8},{"$f":"IFERROR(INDEX($A$2:$A$302,MATCH(ROWS($Q$2:Q9),$Q$2:$Q$302,0)),\"\")","v":"1041 Olaj gyártása"},null,null,null,null,null,null,null,null,"4765 Játék-kiskereskedelem"]
["1042 Margarin gyártása",5,3,2,5,3,2,null,{"$f":"IF(ISNUMBER(SEARCH($H$2,'Tevékenység lista'!A10)),MAX($I$1:I9)+1,0)","v":9},"Állategészségügyi tevékenység",null,{"$f":"IFERROR(VLOOKUP(ROWS($L$2:L10),I10:$J$302,2,FALSE),\"\")","v":"Állategészségügyi tevékenység"},null,null,null,null,{"$f":"IF(--ISNUMBER(SEARCH(Díjszámítás!$C$12,A10)),MAX($Q$1:Q9)+1,\"\")","v":9},{"$f":"IFERROR(INDEX($A$2:$A$302,MATCH(ROWS($Q$2:Q10),$Q$2:$Q$302,0)),\"\")","v":"1042 Margarin gyártása"},null,null,null,null,null,null,null,null,"4771 Ruházat kiskereskedelem"]
["1051 Tejtermék gyártása",3,3,1,3,3,1,null,{"$f":"IF(ISNUMBER(SEARCH($H$2,'Tevékenység lista'!A11)),MAX($I$1:I10)+1,0)","v":10},"Állateledel kereskedés",null,{"$f":"IFERROR(VLOOKUP(ROWS($L$2:L11),I11:$J$302,2,FALSE),\"\")","v":"Állateledel kereskedés"},null,null,null,null,{"$f":"IF(--ISNUMBER(SEARCH(Díjszámítás!$C$12,A11)),MAX($Q$1:Q10)+1,\"\")","v":10},{"$f":"IFERROR(INDEX($A$2:$A$302,MATCH(ROWS($Q$2:Q11),$Q$2:$Q$302,0)),\"\")","v":"1051 Tejtermék gyártása"},null,null,null,null,null,null,null,null,"4772 Lábbeli-, bőráru-kiskereskedelem"]
["1052 Jégkrém gyártása",3,3,1,3,3,1,null,{"$f":"IF(ISNUMBER(SEARCH($H$2,'Tevékenység lista'!A12)),MAX($I$1:I11)+1,0)","v":11},"Általános rendeltetésű gépek és berendezések gyártása",null,{"$f":"IFERROR(VLOOKUP(ROWS($L$2:L12),I12:$J$302,2,FALSE),\"\")","v":"Általános rendeltetésű gépek és berendezések gyártása"},null,null,null,null,{"$f":"IF(--ISNUMBER(SEARCH(Díjszámítás!$C$12,A12)),MAX($Q$1:Q11)+1,\"\")","v":11},{"$f":"IFERROR(INDEX($A$2:$A$302,MATCH(ROWS($Q$2:Q12),$Q$2:$Q$302,0)),\"\")","v":"1052 Jégkrém gyártása"},null,null,null,null,null,null,null,null,"5510 Szállodai szolgáltatás"]
["1071 Kenyér; friss pékáru gyártása",3,3,1,3,3,2,null,{"$f":"IF(ISNUMBER(SEARCH($H$2,'Tevékenység lista'!A13)),MAX($I$1:I12)+1,0)","v":12},"Antikvárium",null,{"$f":"IFERROR(VLOOKUP(ROWS($L$2:L13),I13:$J$302,2,FALSE),\"\")","v":"Antikvárium"},null,null,null,null,{"$f":"IF(--ISNUMBER(SEARCH(Díjszámítás!$C$12,A13)),MAX($Q$1:Q12)+1,\"\")","v":12},{"$f":"IFERROR(INDEX($A$2:$A$302,MATCH(ROWS($Q$2:Q13),$Q$2:$Q$302,0)),\"\")","v":"1071 Kenyér; friss pékáru gyártása"},null,null,null,null,null,null,null,null,"5520 Üdülési, egyéb átmeneti szálláshely-szolgáltatás"]
["1072 Tartósított lisztes áru gyártása",4,3,1,4,2,1,null,{"$f":"IF(ISNUMBER(SEARCH($H$2,'Tevékenység lista'!A14)),MAX($I$1:I13)+1,0)","v":13},"Árnyékolástechnikai berendezések kereskedelme és telepítése",null,{"$f":"IFERROR(VLOOKUP(ROWS($L$2:L14),I14:$J$302,2,FALSE),\"\")","v":"Árnyékolástechnikai berendezések kereskedelme és telepítése"},null,null,null,null,{"$f":"IF(--ISNUMBER(SEARCH(Díjszámítás!$C$12,A14)),MAX($Q$1:Q13)+1,\"\")","v":13},{"$f":"IFERROR(INDEX($A$2:$A$302,MATCH(ROWS($Q$2:Q14),$Q$2:$Q$302,0)),\"\")","v":"1072 Tartósított lisztes áru gyártása"},null,null,null,null,null,null,null,null,"5590 Egyéb szálláshely-szolgáltatás"]
["1073 Tésztafélék gyártása",4,3,1,4,2,1,null,{"$f":"IF(ISNUMBER(SEARCH($H$2,'Tevékenység lista'!A15)),MAX($I$1:I14)+1,0)","v":14},"Asztalosműhely",null,{"$f":"IFERROR(VLOOKUP(ROWS($L$2:L15),I15:$J$302,2,FALSE),\"\")","v":"Asztalosműhely"},null,null,null,null,{"$f":"IF(--ISNUMBER(SEARCH(Díjszámítás!$C$12,A15)),MAX($Q$1:Q14)+1,\"\")","v":14},{"$f":"IFERROR(INDEX($A$2:$A$302,MATCH(ROWS($Q$2:Q15),$Q$2:$Q$302,0)),\"\")","v":"1073 Tésztafélék gyártása"},null,null,null,null,null,null,null,null,"5610 Éttermi, mozgó vendéglátás"]
["1081 Cukorgyártás",4,3,2,4,3,2,null,{"$f":"IF(ISNUMBER(SEARCH($H$2,'Tevékenység lista'!A16)),MAX($I$1:I15)+1,0)","v":15},"Autógumi kereskedelem",null,{"$f":"IFERROR(VLOOKUP(ROWS($L$2:L16),I16:$J$302,2,FALSE),\"\")","v":"Autógumi kereskedelem"},null,null,null,null,{"$f":"IF(--ISNUMBER(SEARCH(Díjszámítás!$C$12,A16)),MAX($Q$1:Q15)+1,\"\")","v":15},{"$f":"IFERROR(INDEX($A$2:$A$302,MATCH(ROWS($Q$2:Q16),$Q$2:$Q$302,0)),\"\")","v":"1081 Cukorgyártás"},null,null,null,null,null,null,null,null,"5621 Rendezvényi étkeztetés"]
["1082 Édesség gyártása",4,3,2,4,3,2,null,{"$f":"IF(ISNUMBER(SEARCH($H$2,'Tevékenység lista'!A17)),MAX($I$1:I16)+1,0)","v":16},"Automatika és robotok gyártása",null,{"$f":"IFERROR(VLOOKUP(ROWS($L$2:L17),I17:$J$302,2,FALSE),\"\")","v":"Automatika és robotok gyártása"},null,null,null,null,{"$f":"IF(--ISNUMBER(SEARCH(Díjszámítás!$C$12,A17)),MAX($Q$1:Q16)+1,\"\")","v":16},{"$f":"IFERROR(INDEX($A$2:$A$302,MATCH(ROWS($Q$2:Q17),$Q$2:$Q$302,0)),\"\")","v":"1082 Édesség gyártása"},null,null,null,null,null,null,null,null,"5629 Egyéb vendéglátás"]
["1083 Tea, kávé feldolgozása",6,3,3,6,2,2,null,{"$f":"IF(ISNUMBER(SEARCH($H$2,'Tevékenység lista'!A18)),MAX($I$1:I17)+1,0)","v":17},"Automatika és robotok kereskedelme",null,{"$f":"IFERROR(VLOOKUP(ROWS($L$2:L18),I18:$J$302,2,FALSE),\"\")","v":"Automatika és robotok kereskedelme"},null,null,null,null,{"$f":"IF(--ISNUMBER(SEARCH(Díjszámítás!$C$12,A18)),MAX($Q$1:Q17)+1,\"\")","v":17},{"$f":"IFERROR(INDEX($A$2:$A$302,MATCH(ROWS($Q$2:Q18),$Q$2:$Q$302,0)),\"\")","v":"1083 Tea, kávé feldolgozása"},null,null,null,null,null,null,null,null,"5630 Italszolgáltatás"]
["1084 Fűszer, ételízesítő gyártása",6,3,1,6,2,2,null,{"$f":"IF(ISNUMBER(SEARCH($H$2,'Tevékenység lista'!A19)),MAX($I$1:I18)+1,0)","v":18},"Bababolt",null,{"$f":"IFERROR(VLOOKUP(ROWS($L$2:L19),I19:$J$302,2,FALSE),\"\")","v":"Bababolt"},null,null,null,null,{"$f":"IF(--ISNUMBER(SEARCH(Díjszámítás!$C$12,A19)),MAX($Q$1:Q18)+1,\"\")","v":18},{"$f":"IFERROR(INDEX($A$2:$A$302,MATCH(ROWS($Q$2:Q19),$Q$2:$Q$302,0)),\"\")","v":"1084 Fűszer, ételízesítő gyártása"},null,null,null,null,null,null,null,null,"5914 Filmvetítés"]
["1085 Készétel gyártása",3,3,1,3,3,3,null,{"$f":"IF(ISNUMBER(SEARCH($H$2,'Tevékenység lista'!A20)),MAX($I$1:I19)+1,0)","v":19},"Bádogos",null,{"$f":"IFERROR(VLOOKUP(ROWS($L$2:L20),I20:$J$302,2,FALSE),\"\")","v":"Bádogos"},null,null,null,null,{"$f":"IF(--ISNUMBER(SEARCH(Díjszámítás!$C$12,A20)),MAX($Q$1:Q19)+1,\"\")","v":19},{"$f":"IFERROR(INDEX($A$2:$A$302,MATCH(ROWS($Q$2:Q20),$Q$2:$Q$302,0)),\"\")","v":"1085 Készétel gyártása"},null,null,null,null,null,null,null,null,"7722 Videokazetta, lemez kölcsönzése"]
["1086 Homogenizált, diétás étel gyártása",3,3,1,3,3,3,null,{"$f":"IF(ISNUMBER(SEARCH($H$2,'Tevékenység lista'!A21)),MAX($I$1:I20)+1,0)","v":20},"Bankok",null,{"$f":"IFERROR(VLOOKUP(ROWS($L$2:L21),I21:$J$302,2,FALSE),\"\")","v":"Bankok"},null,null,null,null,{"$f":"IF(--ISNUMBER(SEARCH(Díjszámítás!$C$12,A21)),MAX($Q$1:Q20)+1,\"\")","v":20},{"$f":"IFERROR(INDEX($A$2:$A$302,MATCH(ROWS($Q$2:Q21),$Q$2:$Q$302,0)),\"\")","v":"1086 Homogenizált, diétás étel gyártása"},null,null,null,null,null,null,null,null,"7911 Utazásközvetítés"]
["1089 M.n.s. egyéb élelmiszer gyártása",3,3,1,3,3,3,null,{"$f":"IF(ISNUMBER(SEARCH($H$2,'Tevékenység lista'!A22)),MAX($I$1:I21)+1,0)","v":21},"Barkács-műszaki áru kereskedelem (faáruk nélkül)",null,{"$f":"IFERROR(VLOOKUP(ROWS($L$2:L22),I22:$J$302,2,FALSE),\"\")","v":"Barkács-műszaki áru kereskedelem (faáruk nélkül)"},null,null,null,null,{"$f":"IF(--ISNUMBER(SEARCH(Díjszámítás!$C$12,A22)),MAX($Q$1:Q21)+1,\"\")","v":21},{"$f":"IFERROR(INDEX($A$2:$A$302,MATCH(ROWS($Q$2:Q22),$Q$2:$Q$302,0)),\"\")","v":"1089 M.n.s. egyéb élelmiszer gyártása"},null,null,null,null,null,null,null,null,"7912 Utazásszervezés"]
["1091 Haszonállat-eledel gyártása",3,3,1,3,3,3,null,{"$f":"IF(ISNUMBER(SEARCH($H$2,'Tevékenység lista'!A23)),MAX($I$1:I22)+1,0)","v":22},"Barkácsgépek gyártása",null,{"$f":"IFERROR(VLOOKUP(ROWS($L$2:L23),I23:$J$302,2,FALSE),\"\")","v":"Barkácsgépek gyártása"},null,null,null,null,{"$f":"IF(--ISNUMBER(SEARCH(Díjszámítás!$C$12,A23)),MAX($Q$1:Q22)+1,\"\")","v":22},{"$f":"IFERROR(INDEX($A$2:$A$302,MATCH(ROWS($Q$2:Q23),$Q$2:$Q$302,0)),\"\")","v":"1091 Haszonállat-eledel gyártása"},null,null,null,null,null,null,null,null,"8551 Sport, szabadidős képzés"]
["1092 Hobbiállat-eledel gyártása",3,3,1,3,3,3,null,{"$f":"IF(ISNUMBER(SEARCH($H$2,'Tevékenység lista'!A24)),MAX($I$1:I23)+1,0)","v":23},"Baromfi-feldolgozás",null,{"$f":"IFERROR(VLOOKUP(ROWS($L$2:L24),I24:$J$302,2,FALSE),\"\")","v":"Baromfi-feldolgozás"},null,null,null,null,{"$f":"IF(--ISNUMBER(SEARCH(Díjszámítás!$C$12,A24)),MAX($Q$1:Q23)+1,\"\")","v":23},{"$f":"IFERROR(INDEX($A$2:$A$302,MATCH(ROWS($Q$2:Q24),$Q$2:$Q$302,0)),\"\")","v":"1092 Hobbiállat-eledel gyártása"},null,null,null,null,null,null,null,null,"8553 Járművezető-oktatás"]
["1101 Desztillált szeszes ital gyártása",6,3,2,6,3,1,null,{"$f":"IF(ISNUMBER(SEARCH($H$2,'Tevékenység lista'!A25)),MAX($I$1:I24)+1,0)","v":24},"Beton-, cement- és gipsztermékek gyártása",null,{"$f":"IFERROR(VLOOKUP(ROWS($L$2:L25),I25:$J$302,2,FALSE),\"\")","v":"Beton-, cement- és gipsztermékek gyártása"},null,null,null,null,{"$f":"IF(--ISNUMBER(SEARCH(Díjszámítás!$C$12,A25)),MAX($Q$1:Q24)+1,\"\")","v":24},{"$f":"IFERROR(INDEX($A$2:$A$302,MATCH(ROWS($Q$2:Q25),$Q$2:$Q$302,0)),\"\")","v":"1101 Desztillált szeszes ital gyártása"},null,null,null,null,null,null,null,null,"8559 M.n.s. egyéb oktatás"]
["1102 Szőlőbor termelése ",2,3,1,2,3,1,null,{"$f":"IF(ISNUMBER(SEARCH($H$2,'Tevékenység lista'!A26)),MAX($I$1:I25)+1,0)","v":25},"Biztonságtechnikai berendezések gyártása",null,{"$f":"IFERROR(VLOOKUP(ROWS($L$2:L26),I26:$J$302,2,FALSE),\"\")","v":"Biztonságtechnikai berendezések gyártása"},null,null,null,null,{"$f":"IF(--ISNUMBER(SEARCH(Díjszámítás!$C$12,A26)),MAX($Q$1:Q25)+1,\"\")","v":25},{"$f":"IFERROR(INDEX($A$2:$A$302,MATCH(ROWS($Q$2:Q26),$Q$2:$Q$302,0)),\"\")","v":"1102 Szőlőbor termelése "},null,null,null,null,null,null,null,null,"8560 Oktatást kiegészítő tevékenység"]
["1103 Gyümölcsbor termelése",2,3,1,2,3,1,null,{"$f":"IF(ISNUMBER(SEARCH($H$2,'Tevékenység lista'!A27)),MAX($I$1:I26)+1,0)","v":26},"Biztonságtechnikai berendezések kereskedelme",null,{"$f":"IFERROR(VLOOKUP(ROWS($L$2:L27),I27:$J$302,2,FALSE),\"\")","v":"Biztonságtechnikai berendezések kereskedelme"},null,null,null,null,{"$f":"IF(--ISNUMBER(SEARCH(Díjszámítás!$C$12,A27)),MAX($Q$1:Q26)+1,\"\")","v":26},{"$f":"IFERROR(INDEX($A$2:$A$302,MATCH(ROWS($Q$2:Q27),$Q$2:$Q$302,0)),\"\")","v":"1103 Gyümölcsbor termelése"},null,null,null,null,null,null,null,null,"9004 Művészeti létesítmények működtetése"]
["1104 Egyéb nem desztillált, erjesztett ital gyártása",2,3,1,2,3,1,null,{"$f":"IF(ISNUMBER(SEARCH($H$2,'Tevékenység lista'!A28)),MAX($I$1:I27)+1,0)","v":27},"Borfeldolgozás, pezsgőgyártás, palackozás",null,{"$f":"IFERROR(VLOOKUP(ROWS($L$2:L28),I28:$J$302,2,FALSE),\"\")","v":"Borfeldolgozás, pezsgőgyártás, palackozás"},null,null,null,null,{"$f":"IF(--ISNUMBER(SEARCH(Díjszámítás!$C$12,A28)),MAX($Q$1:Q27)+1,\"\")","v":27},{"$f":"IFERROR(INDEX($A$2:$A$302,MATCH(ROWS($Q$2:Q28),$Q$2:$Q$302,0)),\"\")","v":"1104 Egyéb nem desztillált, erjesztett ital gyártása"},null,null,null,null,null,null,null,null,"9311 Sportlétesítmény működtetése"]
["1105 Sörgyártás",6,3,2,6,3,1,null,{"$f":"IF(ISNUMBER(SEARCH($H$2,'Tevékenység lista'!A29)),MAX($I$1:I28)+1,0)","v":28},"Borozó, söröző, italbolt, büfé, bisztró, kávézó, eszpresszó",null,{"$f":"IFERROR(VLOOKUP(ROWS($L$2:L29),I29:$J$302,2,FALSE),\"\")","v":"Borozó, söröző, italbolt, büfé, bisztró, kávézó, eszpresszó"},null,null,null,null,{"$f":"IF(--ISNUMBER(SEARCH(Díjszámítás!$C$12,A29)),MAX($Q$1:Q28)+1,\"\")","v":28},{"$f":"IFERROR(INDEX($A$2:$A$302,MATCH(ROWS($Q$2:Q29),$Q$2:$Q$302,0)),\"\")","v":"1105 Sörgyártás"},null,null,null,null,null,null,null,null,"9312 Sportegyesületi tevékenység"]
["1107 Üdítőital, ásványvíz gyártása",3,3,1,3,3,2,null,{"$f":"IF(ISNUMBER(SEARCH($H$2,'Tevékenység lista'!A30)),MAX($I$1:I29)+1,0)","v":29},"Bölcsőde",null,{"$f":"IFERROR(VLOOKUP(ROWS($L$2:L30),I30:$J$302,2,FALSE),\"\")","v":"Bölcsőde"},null,null,null,null,{"$f":"IF(--ISNUMBER(SEARCH(Díjszámítás!$C$12,A30)),MAX($Q$1:Q29)+1,\"\")","v":29},{"$f":"IFERROR(INDEX($A$2:$A$302,MATCH(ROWS($Q$2:Q30),$Q$2:$Q$302,0)),\"\")","v":"1107 Üdítőital, ásványvíz gyártása"},null,null,null,null,null,null,null,null,"9313 Testedzési szolgáltatás"]
["1411 Bőrruházat gyártása",4,3,3,4,2,1,null,{"$f":"IF(ISNUMBER(SEARCH($H$2,'Tevékenység lista'!A31)),MAX($I$1:I30)+1,0)","v":30},"Bőr konfekcionált termékek javítása",null,{"$f":"IFERROR(VLOOKUP(ROWS($L$2:L31),I31:$J$302,2,FALSE),\"\")","v":"Bőr konfekcionált termékek javítása"},null,null,null,null,{"$f":"IF(--ISNUMBER(SEARCH(Díjszámítás!$C$12,A31)),MAX($Q$1:Q30)+1,\"\")","v":30},{"$f":"IFERROR(INDEX($A$2:$A$302,MATCH(ROWS($Q$2:Q31),$Q$2:$Q$302,0)),\"\")","v":"1411 Bőrruházat gyártása"},null,null,null,null,null,null,null,null,"9319 Egyéb sporttevékenység"]
["1412 Munkaruházat gyártása",4,3,2,4,4,2,null,{"$f":"IF(ISNUMBER(SEARCH($H$2,'Tevékenység lista'!A32)),MAX($I$1:I31)+1,0)","v":31},"Bőr, bőrdíszmű kereskedelem",null,{"$f":"IFERROR(VLOOKUP(ROWS($L$2:L32),I32:$J$302,2,FALSE),\"\")","v":"Bőr, bőrdíszmű kereskedelem"},null,null,null,null,{"$f":"IF(--ISNUMBER(SEARCH(Díjszámítás!$C$12,A32)),MAX($Q$1:Q31)+1,\"\")","v":31},{"$f":"IFERROR(INDEX($A$2:$A$302,MATCH(ROWS($Q$2:Q32),$Q$2:$Q$302,0)),\"\")","v":"1412 Munkaruházat gyártása"},null,null,null,null,null,null,null,null,"9329 M.n.s. egyéb szórakoztatás, szabadidős tevékenység"]
["1413 Felsőruházat gyártása (kivéve: munkaruházat)",4,3,2,4,4,2,null,{"$f":"IF(ISNUMBER(SEARCH($H$2,'Tevékenység lista'!A33)),MAX($I$1:I32)+1,0)","v":32},"Bőrkikészítés, bőrtermékek gyártása",null,{"$f":"IFERROR(VLOOKUP(ROWS($L$2:L33),I33:$J$302,2,FALSE),\"\")","v":"Bőrkikészítés, bőrtermékek gyártása"},null,null,null,null,{"$f":"IF(--ISNUMBER(SEARCH(Díjszámítás!$C$12,A33)),MAX($Q$1:Q32)+1,\"\")","v":32},{"$f":"IFERROR(INDEX($A$2:$A$302,MATCH(ROWS($Q$2:Q33),$Q$2:$Q$302,0)),\"\")","v":"1413 Felsőruházat gyártása (kivéve: munkaruházat)"},null,null,null,null,null,null,null,null,"9524 Bútor, lakberendezési tárgy javítása"]
["1414 Alsóruházat gyártása",4,3,2,4,4,2,null,{"$f":"IF(ISNUMBER(SEARCH($H$2,'Tevékenység lista'!A34)),MAX($I$1:I33)+1,0)","v":33},"Bőrruházat gyártása",null,{"$f":"IFERROR(VLOOKUP(ROWS($L$2:L34),I34:$J$302,2,FALSE),\"\")","v":"Bőrruházat gyártása"},null,null,null,null,{"$f":"IF(--ISNUMBER(SEARCH(Díjszámítás!$C$12,A34)),MAX($Q$1:Q33)+1,\"\")","v":33},{"$f":"IFERROR(INDEX($A$2:$A$302,MATCH(ROWS($Q$2:Q34),$Q$2:$Q$302,0)),\"\")","v":"1414 Alsóruházat gyártása"},null,null,null,null,null,null,null,null,"9602 Fodrászat, szépségápolás"]
["1419 Egyéb ruházat, kiegészítők gyártása",4,3,2,4,4,2,null,{"$f":"IF(ISNUMBER(SEARCH($H$2,'Tevékenység lista'!A35)),MAX($I$1:I34)+1,0)","v":34},"Bőrruházati kereskedelem",null,{"$f":"IFERROR(VLOOKUP(ROWS($L$2:L35),I35:$J$302,2,FALSE),\"\")","v":"Bőrruházati kereskedelem"},null,null,null,null,{"$f":"IF(--ISNUMBER(SEARCH(Díjszámítás!$C$12,A35)),MAX($Q$1:Q34)+1,\"\")","v":34},{"$f":"IFERROR(INDEX($A$2:$A$302,MATCH(ROWS($Q$2:Q35),$Q$2:$Q$302,0)),\"\")","v":"1419 Egyéb ruházat, kiegészítők gyártása"}]
["1431 Kötött, hurkolt harisnyafélék gyártása",4,3,2,4,4,2,null,{"$f":"IF(ISNUMBER(SEARCH($H$2,'Tevékenység lista'!A36)),MAX($I$1:I35)+1,0)","v":35},"Brókercégek (biztosítási, befektetési)",null,{"$f":"IFERROR(VLOOKUP(ROWS($L$2:L36),I36:$J$302,2,FALSE),\"\")","v":"Brókercégek (biztosítási, befektetési)"},null,null,null,null,{"$f":"IF(--ISNUMBER(SEARCH(Díjszámítás!$C$12,A36)),MAX($Q$1:Q35)+1,\"\")","v":35},{"$f":"IFERROR(INDEX($A$2:$A$302,MATCH(ROWS($Q$2:Q36),$Q$2:$Q$302,0)),\"\")","v":"1431 Kötött, hurkolt harisnyafélék gyártása"}]
["1439 Egyéb kötött, hurkolt ruházati termék gyártása ",4,3,2,4,4,2,null,{"$f":"IF(ISNUMBER(SEARCH($H$2,'Tevékenység lista'!A37)),MAX($I$1:I36)+1,0)","v":36},"Bútor (fa alapanyagú, illetve kárpitozott) kereskedelem",null,{"$f":"IFERROR(VLOOKUP(ROWS($L$2:L37),I37:$J$302,2,FALSE),\"\")","v":"Bútor (fa alapanyagú, illetve kárpitozott) kereskedelem"},null,null,null,null,{"$f":"IF(--ISNUMBER(SEARCH(Díjszámítás!$C$12,A37)),MAX($Q$1:Q36)+1,\"\")","v":36},{"$f":"IFERROR(INDEX($A$2:$A$302,MATCH(ROWS($Q$2:Q37),$Q$2:$Q$302,0)),\"\")","v":"1439 Egyéb kötött, hurkolt ruházati termék gyártása "}]
["1520 Lábbeligyártás",4,3,2,4,2,1,null,{"$f":"IF(ISNUMBER(SEARCH($H$2,'Tevékenység lista'!A38)),MAX($I$1:I37)+1,0)","v":37},"Bútorgyártás egyéb anyagok felhasználásával (fém, műanyag)",null,{"$f":"IFERROR(VLOOKUP(ROWS($L$2:L38),I38:$J$302,2,FALSE),\"\")","v":"Bútorgyártás egyéb anyagok felhasználásával (fém, műanyag)"},null,null,null,null,{"$f":"IF(--ISNUMBER(SEARCH(Díjszámítás!$C$12,A38)),MAX($Q$1:Q37)+1,\"\")","v":37},{"$f":"IFERROR(INDEX($A$2:$A$302,MATCH(ROWS($Q$2:Q38),$Q$2:$Q$302,0)),\"\")","v":"1520 Lábbeligyártás"}]
["1610 Fűrészárugyártás",8,4,2,8,4,3,null,{"$f":"IF(ISNUMBER(SEARCH($H$2,'Tevékenység lista'!A39)),MAX($I$1:I38)+1,0)","v":38},"Bútorgyártás, egyéb feldolgozóipari termékek gyártása",null,{"$f":"IFERROR(VLOOKUP(ROWS($L$2:L39),I39:$J$302,2,FALSE),\"\")","v":"Bútorgyártás, egyéb feldolgozóipari termékek gyártása"},null,null,null,null,{"$f":"IF(--ISNUMBER(SEARCH(Díjszámítás!$C$12,A39)),MAX($Q$1:Q38)+1,\"\")","v":38},{"$f":"IFERROR(INDEX($A$2:$A$302,MATCH(ROWS($Q$2:Q39),$Q$2:$Q$302,0)),\"\")","v":"1610 Fűrészárugyártás"}]
["1621 Falemezgyártás",6,4,2,6,1,1,null,{"$f":"IF(ISNUMBER(SEARCH($H$2,'Tevékenység lista'!A40)),MAX($I$1:I39)+1,0)","v":39},"Bútorjavítás (fa anyagok felhasználásával)",null,{"$f":"IFERROR(VLOOKUP(ROWS($L$2:L40),I40:$J$302,2,FALSE),\"\")","v":"Bútorjavítás (fa anyagok felhasználásával)"},null,null,null,null,{"$f":"IF(--ISNUMBER(SEARCH(Díjszámítás!$C$12,A40)),MAX($Q$1:Q39)+1,\"\")","v":39},{"$f":"IFERROR(INDEX($A$2:$A$302,MATCH(ROWS($Q$2:Q40),$Q$2:$Q$302,0)),\"\")","v":"1621 Falemezgyártás"}]
["1622 Parkettagyártás",6,4,2,6,1,1,null,{"$f":"IF(ISNUMBER(SEARCH($H$2,'Tevékenység lista'!A41)),MAX($I$1:I40)+1,0)","v":40},"Bútorkereskedelem",null,{"$f":"IFERROR(VLOOKUP(ROWS($L$2:L41),I41:$J$302,2,FALSE),\"\")","v":"Bútorkereskedelem"},null,null,null,null,{"$f":"IF(--ISNUMBER(SEARCH(Díjszámítás!$C$12,A41)),MAX($Q$1:Q40)+1,\"\")","v":40},{"$f":"IFERROR(INDEX($A$2:$A$302,MATCH(ROWS($Q$2:Q41),$Q$2:$Q$302,0)),\"\")","v":"1622 Parkettagyártás"}]
["1623 Épületasztalos-ipari termék gyártása",5,4,3,5,3,1,null,{"$f":"IF(ISNUMBER(SEARCH($H$2,'Tevékenység lista'!A42)),MAX($I$1:I41)+1,0)","v":41},"Camping",null,{"$f":"IFERROR(VLOOKUP(ROWS($L$2:L42),I42:$J$302,2,FALSE),\"\")","v":"Camping"},null,null,null,null,{"$f":"IF(--ISNUMBER(SEARCH(Díjszámítás!$C$12,A42)),MAX($Q$1:Q41)+1,\"\")","v":41},{"$f":"IFERROR(INDEX($A$2:$A$302,MATCH(ROWS($Q$2:Q42),$Q$2:$Q$302,0)),\"\")","v":"1623 Épületasztalos-ipari termék gyártása"}]
["1624 Tároló fatermék gyártása",6,4,2,6,3,2,null,{"$f":"IF(ISNUMBER(SEARCH($H$2,'Tevékenység lista'!A43)),MAX($I$1:I42)+1,0)","v":42},"Címfestő, vésnök",null,{"$f":"IFERROR(VLOOKUP(ROWS($L$2:L43),I43:$J$302,2,FALSE),\"\")","v":"Címfestő, vésnök"},null,null,null,null,{"$f":"IF(--ISNUMBER(SEARCH(Díjszámítás!$C$12,A43)),MAX($Q$1:Q42)+1,\"\")","v":42},{"$f":"IFERROR(INDEX($A$2:$A$302,MATCH(ROWS($Q$2:Q43),$Q$2:$Q$302,0)),\"\")","v":"1624 Tároló fatermék gyártása"}]
["1629 Egyéb fa-, parafatermék, fonottáru gyártása",5,4,2,5,2,2,null,{"$f":"IF(ISNUMBER(SEARCH($H$2,'Tevékenység lista'!A44)),MAX($I$1:I43)+1,0)","v":43},"Cipőkereskedelem",null,{"$f":"IFERROR(VLOOKUP(ROWS($L$2:L44),I44:$J$302,2,FALSE),\"\")","v":"Cipőkereskedelem"},null,null,null,null,{"$f":"IF(--ISNUMBER(SEARCH(Díjszámítás!$C$12,A44)),MAX($Q$1:Q43)+1,\"\")","v":43},{"$f":"IFERROR(INDEX($A$2:$A$302,MATCH(ROWS($Q$2:Q44),$Q$2:$Q$302,0)),\"\")","v":"1629 Egyéb fa-, parafatermék, fonottáru gyártása"}]
["1711 Papíripari rostanyag gyártása",6,4,2,6,3,3,null,{"$f":"IF(ISNUMBER(SEARCH($H$2,'Tevékenység lista'!A45)),MAX($I$1:I44)+1,0)","v":44},"Cipőjavítás",null,{"$f":"IFERROR(VLOOKUP(ROWS($L$2:L45),I45:$J$302,2,FALSE),\"\")","v":"Cipőjavítás"},null,null,null,null,{"$f":"IF(--ISNUMBER(SEARCH(Díjszámítás!$C$12,A45)),MAX($Q$1:Q44)+1,\"\")","v":44},{"$f":"IFERROR(INDEX($A$2:$A$302,MATCH(ROWS($Q$2:Q45),$Q$2:$Q$302,0)),\"\")","v":"1711 Papíripari rostanyag gyártása"}]
["1712 Papírgyártás",6,4,2,6,3,3,null,{"$f":"IF(ISNUMBER(SEARCH($H$2,'Tevékenység lista'!A46)),MAX($I$1:I45)+1,0)","v":45},"Cukorgyártás",null,{"$f":"IFERROR(VLOOKUP(ROWS($L$2:L46),I46:$J$302,2,FALSE),\"\")","v":"Cukorgyártás"},null,null,null,null,{"$f":"IF(--ISNUMBER(SEARCH(Díjszámítás!$C$12,A46)),MAX($Q$1:Q45)+1,\"\")","v":45},{"$f":"IFERROR(INDEX($A$2:$A$302,MATCH(ROWS($Q$2:Q46),$Q$2:$Q$302,0)),\"\")","v":"1712 Papírgyártás"}]
["1721 Papír csomagolóeszköz gyártása",5,4,2,5,3,3,null,{"$f":"IF(ISNUMBER(SEARCH($H$2,'Tevékenység lista'!A47)),MAX($I$1:I46)+1,0)","v":46},"Cukrászda",null,{"$f":"IFERROR(VLOOKUP(ROWS($L$2:L47),I47:$J$302,2,FALSE),\"\")","v":"Cukrászda"},null,null,null,null,{"$f":"IF(--ISNUMBER(SEARCH(Díjszámítás!$C$12,A47)),MAX($Q$1:Q46)+1,\"\")","v":46},{"$f":"IFERROR(INDEX($A$2:$A$302,MATCH(ROWS($Q$2:Q47),$Q$2:$Q$302,0)),\"\")","v":"1721 Papír csomagolóeszköz gyártása"}]
["1722 Háztartási, egészségügyi papírtermék gyártása",6,4,2,6,2,2,null,{"$f":"IF(ISNUMBER(SEARCH($H$2,'Tevékenység lista'!A48)),MAX($I$1:I47)+1,0)","v":47},"Csecsemő- és gyermekotthon",null,{"$f":"IFERROR(VLOOKUP(ROWS($L$2:L48),I48:$J$302,2,FALSE),\"\")","v":"Csecsemő- és gyermekotthon"},null,null,null,null,{"$f":"IF(--ISNUMBER(SEARCH(Díjszámítás!$C$12,A48)),MAX($Q$1:Q47)+1,\"\")","v":47},{"$f":"IFERROR(INDEX($A$2:$A$302,MATCH(ROWS($Q$2:Q48),$Q$2:$Q$302,0)),\"\")","v":"1722 Háztartási, egészségügyi papírtermék gyártása"}]
["1723 Irodai papíráru gyártása",6,4,2,6,3,3,null,{"$f":"IF(ISNUMBER(SEARCH($H$2,'Tevékenység lista'!A49)),MAX($I$1:I48)+1,0)","v":48},"Csomagoló- és tároló fatermékek gyártása",null,{"$f":"IFERROR(VLOOKUP(ROWS($L$2:L49),I49:$J$302,2,FALSE),\"\")","v":"Csomagoló- és tároló fatermékek gyártása"},null,null,null,null,{"$f":"IF(--ISNUMBER(SEARCH(Díjszámítás!$C$12,A49)),MAX($Q$1:Q48)+1,\"\")","v":48},{"$f":"IFERROR(INDEX($A$2:$A$302,MATCH(ROWS($Q$2:Q49),$Q$2:$Q$302,0)),\"\")","v":"1723 Irodai papíráru gyártása"}]
["1724 Tapétagyártás",6,4,2,6,3,3,null,{"$f":"IF(ISNUMBER(SEARCH($H$2,'Tevékenység lista'!A50)),MAX($I$1:I49)+1,0)","v":49},"Csőgyártás",null,{"$f":"IFERROR(VLOOKUP(ROWS($L$2:L50),I50:$J$302,2,FALSE),\"\")","v":"Csőgyártás"},null,null,null,null,{"$f":"IF(--ISNUMBER(SEARCH(Díjszámítás!$C$12,A50)),MAX($Q$1:Q49)+1,\"\")","v":49},{"$f":"IFERROR(INDEX($A$2:$A$302,MATCH(ROWS($Q$2:Q50),$Q$2:$Q$302,0)),\"\")","v":"1724 Tapétagyártás"}]
["1729 Egyéb papír-, kartontermék gyártása",6,4,2,6,3,3,null,{"$f":"IF(ISNUMBER(SEARCH($H$2,'Tevékenység lista'!A51)),MAX($I$1:I50)+1,0)","v":50},"Dekoratőr",null,{"$f":"IFERROR(VLOOKUP(ROWS($L$2:L51),I51:$J$302,2,FALSE),\"\")","v":"Dekoratőr"},null,null,null,null,{"$f":"IF(--ISNUMBER(SEARCH(Díjszámítás!$C$12,A51)),MAX($Q$1:Q50)+1,\"\")","v":50},{"$f":"IFERROR(INDEX($A$2:$A$302,MATCH(ROWS($Q$2:Q51),$Q$2:$Q$302,0)),\"\")","v":"1729 Egyéb papír-, kartontermék gyártása"}]
["1811 Napilapnyomás",4,4,1,4,4,1,null,{"$f":"IF(ISNUMBER(SEARCH($H$2,'Tevékenység lista'!A52)),MAX($I$1:I51)+1,0)","v":51},"Delicatesse, édesség kereskedés",null,{"$f":"IFERROR(VLOOKUP(ROWS($L$2:L52),I52:$J$302,2,FALSE),\"\")","v":"Delicatesse, édesség kereskedés"},null,null,null,null,{"$f":"IF(--ISNUMBER(SEARCH(Díjszámítás!$C$12,A52)),MAX($Q$1:Q51)+1,\"\")","v":51},{"$f":"IFERROR(INDEX($A$2:$A$302,MATCH(ROWS($Q$2:Q52),$Q$2:$Q$302,0)),\"\")","v":"1811 Napilapnyomás"}]
["1812 Nyomás (kivéve: napilap)",4,4,1,4,4,1,null,{"$f":"IF(ISNUMBER(SEARCH($H$2,'Tevékenység lista'!A53)),MAX($I$1:I52)+1,0)","v":52},"Diákétkeztetés",null,{"$f":"IFERROR(VLOOKUP(ROWS($L$2:L53),I53:$J$302,2,FALSE),\"\")","v":"Diákétkeztetés"},null,null,null,null,{"$f":"IF(--ISNUMBER(SEARCH(Díjszámítás!$C$12,A53)),MAX($Q$1:Q52)+1,\"\")","v":52},{"$f":"IFERROR(INDEX($A$2:$A$302,MATCH(ROWS($Q$2:Q53),$Q$2:$Q$302,0)),\"\")","v":"1812 Nyomás (kivéve: napilap)"}]
["1813 Nyomdai előkészítő tevékenység",4,4,1,4,4,2,null,{"$f":"IF(ISNUMBER(SEARCH($H$2,'Tevékenység lista'!A54)),MAX($I$1:I53)+1,0)","v":53},"Diákotthoni, kollégiumi ellátás",null,{"$f":"IFERROR(VLOOKUP(ROWS($L$2:L54),I54:$J$302,2,FALSE),\"\")","v":"Diákotthoni, kollégiumi ellátás"},null,null,null,null,{"$f":"IF(--ISNUMBER(SEARCH(Díjszámítás!$C$12,A54)),MAX($Q$1:Q53)+1,\"\")","v":53},{"$f":"IFERROR(INDEX($A$2:$A$302,MATCH(ROWS($Q$2:Q54),$Q$2:$Q$302,0)),\"\")","v":"1813 Nyomdai előkészítő tevékenység"}]
["1814 Könyvkötés, kapcsolódó szolgáltatás",4,4,1,4,3,1,null,{"$f":"IF(ISNUMBER(SEARCH($H$2,'Tevékenység lista'!A55)),MAX($I$1:I54)+1,0)","v":54},"Dísz- és ajándéktárgyak gyártása",null,{"$f":"IFERROR(VLOOKUP(ROWS($L$2:L55),I55:$J$302,2,FALSE),\"\")","v":"Dísz- és ajándéktárgyak gyártása"},null,null,null,null,{"$f":"IF(--ISNUMBER(SEARCH(Díjszámítás!$C$12,A55)),MAX($Q$1:Q54)+1,\"\")","v":54},{"$f":"IFERROR(INDEX($A$2:$A$302,MATCH(ROWS($Q$2:Q55),$Q$2:$Q$302,0)),\"\")","v":"1814 Könyvkötés, kapcsolódó szolgáltatás"}]
["1820 Egyéb sokszorosítás",4,4,1,4,4,2,null,{"$f":"IF(ISNUMBER(SEARCH($H$2,'Tevékenység lista'!A56)),MAX($I$1:I55)+1,0)","v":55},"Divatáru kereskedés (butik)",null,{"$f":"IFERROR(VLOOKUP(ROWS($L$2:L56),I56:$J$302,2,FALSE),\"\")","v":"Divatáru kereskedés (butik)"},null,null,null,null,{"$f":"IF(--ISNUMBER(SEARCH(Díjszámítás!$C$12,A56)),MAX($Q$1:Q55)+1,\"\")","v":55},{"$f":"IFERROR(INDEX($A$2:$A$302,MATCH(ROWS($Q$2:Q56),$Q$2:$Q$302,0)),\"\")","v":"1820 Egyéb sokszorosítás"}]
["2012 Színezék, pigment gyártása",8,4,2,8,4,3,null,{"$f":"IF(ISNUMBER(SEARCH($H$2,'Tevékenység lista'!A57)),MAX($I$1:I56)+1,0)","v":56},"Dohány, ajándék, bizsu, hírlap kereskedés",null,{"$f":"IFERROR(VLOOKUP(ROWS($L$2:L57),I57:$J$302,2,FALSE),\"\")","v":"Dohány, ajándék, bizsu, hírlap kereskedés"},null,null,null,null,{"$f":"IF(--ISNUMBER(SEARCH(Díjszámítás!$C$12,A57)),MAX($Q$1:Q56)+1,\"\")","v":56},{"$f":"IFERROR(INDEX($A$2:$A$302,MATCH(ROWS($Q$2:Q57),$Q$2:$Q$302,0)),\"\")","v":"2012 Színezék, pigment gyártása"}]
["2013 Szervetlen vegyi alapanyag gyártása",8,4,2,8,4,3,null,{"$f":"IF(ISNUMBER(SEARCH($H$2,'Tevékenység lista'!A58)),MAX($I$1:I57)+1,0)","v":57},"Édesipari termékek gyártása",null,{"$f":"IFERROR(VLOOKUP(ROWS($L$2:L58),I58:$J$302,2,FALSE),\"\")","v":"Édesipari termékek gyártása"},null,null,null,null,{"$f":"IF(--ISNUMBER(SEARCH(Díjszámítás!$C$12,A58)),MAX($Q$1:Q57)+1,\"\")","v":57},{"$f":"IFERROR(INDEX($A$2:$A$302,MATCH(ROWS($Q$2:Q58),$Q$2:$Q$302,0)),\"\")","v":"2013 Szervetlen vegyi alapanyag gyártása"}]
["2014 Szerves vegyi alapanyag gyártása",8,4,2,8,4,3,null,{"$f":"IF(ISNUMBER(SEARCH($H$2,'Tevékenység lista'!A59)),MAX($I$1:I58)+1,0)","v":58},"Egészségügyi és szociális ellátás - kizárólag magán tulajdonban lévő intézmények biztosíthatók",null,{"$f":"IFERROR(VLOOKUP(ROWS($L$2:L59),I59:$J$302,2,FALSE),\"\")","v":"Egészségügyi és szociális ellátás - kizárólag magán tulajdonban lévő intézmények biztosíthatók"},null,null,null,null,{"$f":"IF(--ISNUMBER(SEARCH(Díjszámítás!$C$12,A59)),MAX($Q$1:Q58)+1,\"\")","v":58},{"$f":"IFERROR(INDEX($A$2:$A$302,MATCH(ROWS($Q$2:Q59),$Q$2:$Q$302,0)),\"\")","v":"2014 Szerves vegyi alapanyag gyártása"}]
["2016 Műanyag-alapanyag gyártása",6,4,1,6,3,1,null,{"$f":"IF(ISNUMBER(SEARCH($H$2,'Tevékenység lista'!A60)),MAX($I$1:I59)+1,0)","v":59},"Egészségügyi, sport és szabadidő központ",null,{"$f":"IFERROR(VLOOKUP(ROWS($L$2:L60),I60:$J$302,2,FALSE),\"\")","v":"Egészségügyi, sport és szabadidő központ"},null,null,null,null,{"$f":"IF(--ISNUMBER(SEARCH(Díjszámítás!$C$12,A60)),MAX($Q$1:Q59)+1,\"\")","v":59},{"$f":"IFERROR(INDEX($A$2:$A$302,MATCH(ROWS($Q$2:Q60),$Q$2:$Q$302,0)),\"\")","v":"2016 Műanyag-alapanyag gyártása"}]
["2020 Mezőgazdasági vegyi termék gyártása",8,4,2,8,4,3,null,{"$f":"IF(ISNUMBER(SEARCH($H$2,'Tevékenység lista'!A61)),MAX($I$1:I60)+1,0)","v":60},"Elektromos és elektronikus alkatrészek kereskedelme",null,{"$f":"IFERROR(VLOOKUP(ROWS($L$2:L61),I61:$J$302,2,FALSE),\"\")","v":"Elektromos és elektronikus alkatrészek kereskedelme"},null,null,null,null,{"$f":"IF(--ISNUMBER(SEARCH(Díjszámítás!$C$12,A61)),MAX($Q$1:Q60)+1,\"\")","v":60},{"$f":"IFERROR(INDEX($A$2:$A$302,MATCH(ROWS($Q$2:Q61),$Q$2:$Q$302,0)),\"\")","v":"2020 Mezőgazdasági vegyi termék gyártása"}]
["2041 Tisztítószer gyártása",6,4,1,6,3,1,null,{"$f":"IF(ISNUMBER(SEARCH($H$2,'Tevékenység lista'!A62)),MAX($I$1:I61)+1,0)","v":61},"Élelmiszer nagykereskedelem",null,{"$f":"IFERROR(VLOOKUP(ROWS($L$2:L62),I62:$J$302,2,FALSE),\"\")","v":"Élelmiszer nagykereskedelem"},null,null,null,null,{"$f":"IF(--ISNUMBER(SEARCH(Díjszámítás!$C$12,A62)),MAX($Q$1:Q61)+1,\"\")","v":61},{"$f":"IFERROR(INDEX($A$2:$A$302,MATCH(ROWS($Q$2:Q62),$Q$2:$Q$302,0)),\"\")","v":"2041 Tisztítószer gyártása"}]
["2042 Testápolási cikk gyártása",6,4,1,6,3,1,null,{"$f":"IF(ISNUMBER(SEARCH($H$2,'Tevékenység lista'!A63)),MAX($I$1:I62)+1,0)","v":62},"Élelmiszer, ital, dohányáru nagykereskedelem",null,{"$f":"IFERROR(VLOOKUP(ROWS($L$2:L63),I63:$J$302,2,FALSE),\"\")","v":"Élelmiszer, ital, dohányáru nagykereskedelem"},null,null,null,null,{"$f":"IF(--ISNUMBER(SEARCH(Díjszámítás!$C$12,A63)),MAX($Q$1:Q62)+1,\"\")","v":62},{"$f":"IFERROR(INDEX($A$2:$A$302,MATCH(ROWS($Q$2:Q63),$Q$2:$Q$302,0)),\"\")","v":"2042 Testápolási cikk gyártása"}]
["2052 Ragasztószergyártás",8,4,2,8,4,3,null,{"$f":"IF(ISNUMBER(SEARCH($H$2,'Tevékenység lista'!A64)),MAX($I$1:I63)+1,0)","v":63},"Élelmiszeripari gépgyártás",null,{"$f":"IFERROR(VLOOKUP(ROWS($L$2:L64),I64:$J$302,2,FALSE),\"\")","v":"Élelmiszeripari gépgyártás"},null,null,null,null,{"$f":"IF(--ISNUMBER(SEARCH(Díjszámítás!$C$12,A64)),MAX($Q$1:Q63)+1,\"\")","v":63},{"$f":"IFERROR(INDEX($A$2:$A$302,MATCH(ROWS($Q$2:Q64),$Q$2:$Q$302,0)),\"\")","v":"2052 Ragasztószergyártás"}]
["2053 Illóolajgyártás",8,4,2,8,4,3,null,{"$f":"IF(ISNUMBER(SEARCH($H$2,'Tevékenység lista'!A65)),MAX($I$1:I64)+1,0)","v":64},"Építési és épületgépészeti szerelőipar",null,{"$f":"IFERROR(VLOOKUP(ROWS($L$2:L65),I65:$J$302,2,FALSE),\"\")","v":"Építési és épületgépészeti szerelőipar"},null,null,null,null,{"$f":"IF(--ISNUMBER(SEARCH(Díjszámítás!$C$12,A65)),MAX($Q$1:Q64)+1,\"\")","v":64},{"$f":"IFERROR(INDEX($A$2:$A$302,MATCH(ROWS($Q$2:Q65),$Q$2:$Q$302,0)),\"\")","v":"2053 Illóolajgyártás"}]
["2059 M.n.s. egyéb vegyi termék gyártása",8,4,2,8,4,3,null,{"$f":"IF(ISNUMBER(SEARCH($H$2,'Tevékenység lista'!A66)),MAX($I$1:I65)+1,0)","v":65},"Építőanyag kereskedelem faáruk nélkül (tégla, cement, mész stb.)",null,{"$f":"IFERROR(VLOOKUP(ROWS($L$2:L66),I66:$J$302,2,FALSE),\"\")","v":"Építőanyag kereskedelem faáruk nélkül (tégla, cement, mész stb.)"},null,null,null,null,{"$f":"IF(--ISNUMBER(SEARCH(Díjszámítás!$C$12,A66)),MAX($Q$1:Q65)+1,\"\")","v":65},{"$f":"IFERROR(INDEX($A$2:$A$302,MATCH(ROWS($Q$2:Q66),$Q$2:$Q$302,0)),\"\")","v":"2059 M.n.s. egyéb vegyi termék gyártása"}]
["2060 Vegyi szál gyártása",6,4,2,6,3,3,null,{"$f":"IF(ISNUMBER(SEARCH($H$2,'Tevékenység lista'!A67)),MAX($I$1:I66)+1,0)","v":66},"Építőanyag kereskedelem, jellemzően faárukkal (ajtó, ablak, épületfa)",null,{"$f":"IFERROR(VLOOKUP(ROWS($L$2:L67),I67:$J$302,2,FALSE),\"\")","v":"Építőanyag kereskedelem, jellemzően faárukkal (ajtó, ablak, épületfa)"},null,null,null,null,{"$f":"IF(--ISNUMBER(SEARCH(Díjszámítás!$C$12,A67)),MAX($Q$1:Q66)+1,\"\")","v":66},{"$f":"IFERROR(INDEX($A$2:$A$302,MATCH(ROWS($Q$2:Q67),$Q$2:$Q$302,0)),\"\")","v":"2060 Vegyi szál gyártása"}]
["2211 Gumiabroncs, gumitömlő gyártása",6,4,1,6,3,2,null,{"$f":"IF(ISNUMBER(SEARCH($H$2,'Tevékenység lista'!A68)),MAX($I$1:I67)+1,0)","v":67},"Építőipar",null,{"$f":"IFERROR(VLOOKUP(ROWS($L$2:L68),I68:$J$302,2,FALSE),\"\")","v":"Építőipar"},null,null,null,null,{"$f":"IF(--ISNUMBER(SEARCH(Díjszámítás!$C$12,A68)),MAX($Q$1:Q67)+1,\"\")","v":67},{"$f":"IFERROR(INDEX($A$2:$A$302,MATCH(ROWS($Q$2:Q68),$Q$2:$Q$302,0)),\"\")","v":"2211 Gumiabroncs, gumitömlő gyártása"}]
["2219 Egyéb gumitermék gyártása",6,4,1,6,3,2,null,{"$f":"IF(ISNUMBER(SEARCH($H$2,'Tevékenység lista'!A69)),MAX($I$1:I68)+1,0)","v":68},"Építőipari gépek, berendezések kölcsönzése (kivéve daru)",null,{"$f":"IFERROR(VLOOKUP(ROWS($L$2:L69),I69:$J$302,2,FALSE),\"\")","v":"Építőipari gépek, berendezések kölcsönzése (kivéve daru)"},null,null,null,null,{"$f":"IF(--ISNUMBER(SEARCH(Díjszámítás!$C$12,A69)),MAX($Q$1:Q68)+1,\"\")","v":68},{"$f":"IFERROR(INDEX($A$2:$A$302,MATCH(ROWS($Q$2:Q69),$Q$2:$Q$302,0)),\"\")","v":"2219 Egyéb gumitermék gyártása"}]
["2221 Műanyag lap, lemez, fólia, cső, profil gyártása",5,4,1,5,3,1,null,{"$f":"IF(ISNUMBER(SEARCH($H$2,'Tevékenység lista'!A70)),MAX($I$1:I69)+1,0)","v":69},"Építőipari vas- és fémszerkezetek gyártása",null,{"$f":"IFERROR(VLOOKUP(ROWS($L$2:L70),I70:$J$302,2,FALSE),\"\")","v":"Építőipari vas- és fémszerkezetek gyártása"},null,null,null,null,{"$f":"IF(--ISNUMBER(SEARCH(Díjszámítás!$C$12,A70)),MAX($Q$1:Q69)+1,\"\")","v":69},{"$f":"IFERROR(INDEX($A$2:$A$302,MATCH(ROWS($Q$2:Q70),$Q$2:$Q$302,0)),\"\")","v":"2221 Műanyag lap, lemez, fólia, cső, profil gyártása"}]
["2222 Műanyag csomagolóeszköz gyártása",5,4,1,5,3,1,null,{"$f":"IF(ISNUMBER(SEARCH($H$2,'Tevékenység lista'!A71)),MAX($I$1:I70)+1,0)","v":70},"Épület-, illetve gépjármű fóliázás",null,{"$f":"IFERROR(VLOOKUP(ROWS($L$2:L71),I71:$J$302,2,FALSE),\"\")","v":"Épület-, illetve gépjármű fóliázás"},null,null,null,null,{"$f":"IF(--ISNUMBER(SEARCH(Díjszámítás!$C$12,A71)),MAX($Q$1:Q70)+1,\"\")","v":70},{"$f":"IFERROR(INDEX($A$2:$A$302,MATCH(ROWS($Q$2:Q71),$Q$2:$Q$302,0)),\"\")","v":"2222 Műanyag csomagolóeszköz gyártása"}]
["2223 Műanyag építőanyag gyártása",5,4,1,5,3,1,null,{"$f":"IF(ISNUMBER(SEARCH($H$2,'Tevékenység lista'!A72)),MAX($I$1:I71)+1,0)","v":71},"Épületács- és épületasztalosipari termékek gyártása",null,{"$f":"IFERROR(VLOOKUP(ROWS($L$2:L72),I72:$J$302,2,FALSE),\"\")","v":"Épületács- és épületasztalosipari termékek gyártása"},null,null,null,null,{"$f":"IF(--ISNUMBER(SEARCH(Díjszámítás!$C$12,A72)),MAX($Q$1:Q71)+1,\"\")","v":71},{"$f":"IFERROR(INDEX($A$2:$A$302,MATCH(ROWS($Q$2:Q72),$Q$2:$Q$302,0)),\"\")","v":"2223 Műanyag építőanyag gyártása"}]
["2229 Egyéb műanyag termék gyártása",5,4,1,5,3,1,null,{"$f":"IF(ISNUMBER(SEARCH($H$2,'Tevékenység lista'!A73)),MAX($I$1:I72)+1,0)","v":72},"Épületasztalos",null,{"$f":"IFERROR(VLOOKUP(ROWS($L$2:L73),I73:$J$302,2,FALSE),\"\")","v":"Épületasztalos"},null,null,null,null,{"$f":"IF(--ISNUMBER(SEARCH(Díjszámítás!$C$12,A73)),MAX($Q$1:Q72)+1,\"\")","v":72},{"$f":"IFERROR(INDEX($A$2:$A$302,MATCH(ROWS($Q$2:Q73),$Q$2:$Q$302,0)),\"\")","v":"2229 Egyéb műanyag termék gyártása"}]
["2311 Síküveggyártás",5,3,1,5,3,1,null,{"$f":"IF(ISNUMBER(SEARCH($H$2,'Tevékenység lista'!A74)),MAX($I$1:I73)+1,0)","v":73},"Épülettisztítás (takarítás, ablaktisztítás)",null,{"$f":"IFERROR(VLOOKUP(ROWS($L$2:L74),I74:$J$302,2,FALSE),\"\")","v":"Épülettisztítás (takarítás, ablaktisztítás)"},null,null,null,null,{"$f":"IF(--ISNUMBER(SEARCH(Díjszámítás!$C$12,A74)),MAX($Q$1:Q73)+1,\"\")","v":73},{"$f":"IFERROR(INDEX($A$2:$A$302,MATCH(ROWS($Q$2:Q74),$Q$2:$Q$302,0)),\"\")","v":"2311 Síküveggyártás"}]
["2312 Síküveg továbbfeldolgozása",3,4,1,3,1,1,null,{"$f":"IF(ISNUMBER(SEARCH($H$2,'Tevékenység lista'!A75)),MAX($I$1:I74)+1,0)","v":74},"Épületüzemeltetés (kivéve társasház, lakásszövetkezet)",null,{"$f":"IFERROR(VLOOKUP(ROWS($L$2:L75),I75:$J$302,2,FALSE),\"\")","v":"Épületüzemeltetés (kivéve társasház, lakásszövetkezet)"},null,null,null,null,{"$f":"IF(--ISNUMBER(SEARCH(Díjszámítás!$C$12,A75)),MAX($Q$1:Q74)+1,\"\")","v":74},{"$f":"IFERROR(INDEX($A$2:$A$302,MATCH(ROWS($Q$2:Q75),$Q$2:$Q$302,0)),\"\")","v":"2312 Síküveg továbbfeldolgozása"}]
["2313 Öblösüveggyártás",5,3,1,5,3,1,null,{"$f":"IF(ISNUMBER(SEARCH($H$2,'Tevékenység lista'!A76)),MAX($I$1:I75)+1,0)","v":75},"Erőművi és ipari kazángyártás",null,{"$f":"IFERROR(VLOOKUP(ROWS($L$2:L76),I76:$J$302,2,FALSE),\"\")","v":"Erőművi és ipari kazángyártás"},null,null,null,null,{"$f":"IF(--ISNUMBER(SEARCH(Díjszámítás!$C$12,A76)),MAX($Q$1:Q75)+1,\"\")","v":75},{"$f":"IFERROR(INDEX($A$2:$A$302,MATCH(ROWS($Q$2:Q76),$Q$2:$Q$302,0)),\"\")","v":"2313 Öblösüveggyártás"}]
["2319 Műszaki, egyéb üvegtermék gyártása",5,3,1,5,3,1,null,{"$f":"IF(ISNUMBER(SEARCH($H$2,'Tevékenység lista'!A77)),MAX($I$1:I76)+1,0)","v":76},"Esküvőiruha-kölcsönző",null,{"$f":"IFERROR(VLOOKUP(ROWS($L$2:L77),I77:$J$302,2,FALSE),\"\")","v":"Esküvőiruha-kölcsönző"},null,null,null,null,{"$f":"IF(--ISNUMBER(SEARCH(Díjszámítás!$C$12,A77)),MAX($Q$1:Q76)+1,\"\")","v":76},{"$f":"IFERROR(INDEX($A$2:$A$302,MATCH(ROWS($Q$2:Q77),$Q$2:$Q$302,0)),\"\")","v":"2319 Műszaki, egyéb üvegtermék gyártása"}]
["2320 Tűzálló termék gyártása",4,3,1,4,3,1,null,{"$f":"IF(ISNUMBER(SEARCH($H$2,'Tevékenység lista'!A78)),MAX($I$1:I77)+1,0)","v":77},"Étrendkiegészítő készítmények forgalmazása",null,{"$f":"IFERROR(VLOOKUP(ROWS($L$2:L78),I78:$J$302,2,FALSE),\"\")","v":"Étrendkiegészítő készítmények forgalmazása"},null,null,null,null,{"$f":"IF(--ISNUMBER(SEARCH(Díjszámítás!$C$12,A78)),MAX($Q$1:Q77)+1,\"\")","v":77},{"$f":"IFERROR(INDEX($A$2:$A$302,MATCH(ROWS($Q$2:Q78),$Q$2:$Q$302,0)),\"\")","v":"2320 Tűzálló termék gyártása"}]
["2331 Kerámiacsempe, -lap gyártása",4,3,2,4,3,1,null,{"$f":"IF(ISNUMBER(SEARCH($H$2,'Tevékenység lista'!A79)),MAX($I$1:I78)+1,0)","v":78},"Éttermi vendéglátás",null,{"$f":"IFERROR(VLOOKUP(ROWS($L$2:L79),I79:$J$302,2,FALSE),\"\")","v":"Éttermi vendéglátás"},null,null,null,null,{"$f":"IF(--ISNUMBER(SEARCH(Díjszámítás!$C$12,A79)),MAX($Q$1:Q78)+1,\"\")","v":78},{"$f":"IFERROR(INDEX($A$2:$A$302,MATCH(ROWS($Q$2:Q79),$Q$2:$Q$302,0)),\"\")","v":"2331 Kerámiacsempe, -lap gyártása"}]
["2332 Égetett agyag építőanyag gyártása",3,3,1,3,3,1,null,{"$f":"IF(ISNUMBER(SEARCH($H$2,'Tevékenység lista'!A80)),MAX($I$1:I79)+1,0)","v":79},"Faanyag- és barkácsáru kereskedelem",null,{"$f":"IFERROR(VLOOKUP(ROWS($L$2:L80),I80:$J$302,2,FALSE),\"\")","v":"Faanyag- és barkácsáru kereskedelem"},null,null,null,null,{"$f":"IF(--ISNUMBER(SEARCH(Díjszámítás!$C$12,A80)),MAX($Q$1:Q79)+1,\"\")","v":79},{"$f":"IFERROR(INDEX($A$2:$A$302,MATCH(ROWS($Q$2:Q80),$Q$2:$Q$302,0)),\"\")","v":"2332 Égetett agyag építőanyag gyártása"}]
["2341 Háztartási kerámia gyártása",4,3,1,4,3,1,null,{"$f":"IF(ISNUMBER(SEARCH($H$2,'Tevékenység lista'!A81)),MAX($I$1:I80)+1,0)","v":80},"Fafeldolgozás",null,{"$f":"IFERROR(VLOOKUP(ROWS($L$2:L81),I81:$J$302,2,FALSE),\"\")","v":"Fafeldolgozás"},null,null,null,null,{"$f":"IF(--ISNUMBER(SEARCH(Díjszámítás!$C$12,A81)),MAX($Q$1:Q80)+1,\"\")","v":80},{"$f":"IFERROR(INDEX($A$2:$A$302,MATCH(ROWS($Q$2:Q81),$Q$2:$Q$302,0)),\"\")","v":"2341 Háztartási kerámia gyártása"}]
["2342 Egészségügyi kerámia gyártása",4,3,1,4,3,1,null,{"$f":"IF(ISNUMBER(SEARCH($H$2,'Tevékenység lista'!A82)),MAX($I$1:I81)+1,0)","v":81},"Falusi turizmus - lovaglás",null,{"$f":"IFERROR(VLOOKUP(ROWS($L$2:L82),I82:$J$302,2,FALSE),\"\")","v":"Falusi turizmus - lovaglás"},null,null,null,null,{"$f":"IF(--ISNUMBER(SEARCH(Díjszámítás!$C$12,A82)),MAX($Q$1:Q81)+1,\"\")","v":81},{"$f":"IFERROR(INDEX($A$2:$A$302,MATCH(ROWS($Q$2:Q82),$Q$2:$Q$302,0)),\"\")","v":"2342 Egészségügyi kerámia gyártása"}]
["2343 Kerámia szigetelő gyártása",4,3,1,4,3,1,null,{"$f":"IF(ISNUMBER(SEARCH($H$2,'Tevékenység lista'!A83)),MAX($I$1:I82)+1,0)","v":82},"Faragott kőtermékek előállítása",null,{"$f":"IFERROR(VLOOKUP(ROWS($L$2:L83),I83:$J$302,2,FALSE),\"\")","v":"Faragott kőtermékek előállítása"},null,null,null,null,{"$f":"IF(--ISNUMBER(SEARCH(Díjszámítás!$C$12,A83)),MAX($Q$1:Q82)+1,\"\")","v":82},{"$f":"IFERROR(INDEX($A$2:$A$302,MATCH(ROWS($Q$2:Q83),$Q$2:$Q$302,0)),\"\")","v":"2343 Kerámia szigetelő gyártása"}]
["2344 Műszaki kerámia gyártása",4,3,1,4,3,1,null,{"$f":"IF(ISNUMBER(SEARCH($H$2,'Tevékenység lista'!A84)),MAX($I$1:I83)+1,0)","v":83},"Fatömegcikk gyártása",null,{"$f":"IFERROR(VLOOKUP(ROWS($L$2:L84),I84:$J$302,2,FALSE),\"\")","v":"Fatömegcikk gyártása"},null,null,null,null,{"$f":"IF(--ISNUMBER(SEARCH(Díjszámítás!$C$12,A84)),MAX($Q$1:Q83)+1,\"\")","v":83},{"$f":"IFERROR(INDEX($A$2:$A$302,MATCH(ROWS($Q$2:Q84),$Q$2:$Q$302,0)),\"\")","v":"2344 Műszaki kerámia gyártása"}]
["2349 Egyéb kerámiatermék gyártása",4,3,1,4,3,1,null,{"$f":"IF(ISNUMBER(SEARCH($H$2,'Tevékenység lista'!A85)),MAX($I$1:I84)+1,0)","v":84},"Felnőtt- és egyéb oktatás",null,{"$f":"IFERROR(VLOOKUP(ROWS($L$2:L85),I85:$J$302,2,FALSE),\"\")","v":"Felnőtt- és egyéb oktatás"},null,null,null,null,{"$f":"IF(--ISNUMBER(SEARCH(Díjszámítás!$C$12,A85)),MAX($Q$1:Q84)+1,\"\")","v":84},{"$f":"IFERROR(INDEX($A$2:$A$302,MATCH(ROWS($Q$2:Q85),$Q$2:$Q$302,0)),\"\")","v":"2349 Egyéb kerámiatermék gyártása"}]
["2351 Cementgyártás",2,3,2,2,3,1,null,{"$f":"IF(ISNUMBER(SEARCH($H$2,'Tevékenység lista'!A86)),MAX($I$1:I85)+1,0)","v":85},"Felsőfokú oktatás",null,{"$f":"IFERROR(VLOOKUP(ROWS($L$2:L86),I86:$J$302,2,FALSE),\"\")","v":"Felsőfokú oktatás"},null,null,null,null,{"$f":"IF(--ISNUMBER(SEARCH(Díjszámítás!$C$12,A86)),MAX($Q$1:Q85)+1,\"\")","v":85},{"$f":"IFERROR(INDEX($A$2:$A$302,MATCH(ROWS($Q$2:Q86),$Q$2:$Q$302,0)),\"\")","v":"2351 Cementgyártás"}]
["2352 Mész-, gipszgyártás",2,3,2,2,3,1,null,{"$f":"IF(ISNUMBER(SEARCH($H$2,'Tevékenység lista'!A87)),MAX($I$1:I86)+1,0)","v":86},"Felvonó szerelés és javítás",null,{"$f":"IFERROR(VLOOKUP(ROWS($L$2:L87),I87:$J$302,2,FALSE),\"\")","v":"Felvonó szerelés és javítás"},null,null,null,null,{"$f":"IF(--ISNUMBER(SEARCH(Díjszámítás!$C$12,A87)),MAX($Q$1:Q86)+1,\"\")","v":86},{"$f":"IFERROR(INDEX($A$2:$A$302,MATCH(ROWS($Q$2:Q87),$Q$2:$Q$302,0)),\"\")","v":"2352 Mész-, gipszgyártás"}]
["2361 Építési betontermék gyártása",2,3,2,2,3,1,null,{"$f":"IF(ISNUMBER(SEARCH($H$2,'Tevékenység lista'!A88)),MAX($I$1:I87)+1,0)","v":87},"Fémfeldolgozási termékek gyártása",null,{"$f":"IFERROR(VLOOKUP(ROWS($L$2:L88),I88:$J$302,2,FALSE),\"\")","v":"Fémfeldolgozási termékek gyártása"},null,null,null,null,{"$f":"IF(--ISNUMBER(SEARCH(Díjszámítás!$C$12,A88)),MAX($Q$1:Q87)+1,\"\")","v":87},{"$f":"IFERROR(INDEX($A$2:$A$302,MATCH(ROWS($Q$2:Q88),$Q$2:$Q$302,0)),\"\")","v":"2361 Építési betontermék gyártása"}]
["2362 Építési gipsztermék gyártása",2,3,2,2,3,1,null,{"$f":"IF(ISNUMBER(SEARCH($H$2,'Tevékenység lista'!A89)),MAX($I$1:I88)+1,0)","v":88},"Fémmegmunkálás és felületkezelés",null,{"$f":"IFERROR(VLOOKUP(ROWS($L$2:L89),I89:$J$302,2,FALSE),\"\")","v":"Fémmegmunkálás és felületkezelés"},null,null,null,null,{"$f":"IF(--ISNUMBER(SEARCH(Díjszámítás!$C$12,A89)),MAX($Q$1:Q88)+1,\"\")","v":88},{"$f":"IFERROR(INDEX($A$2:$A$302,MATCH(ROWS($Q$2:Q89),$Q$2:$Q$302,0)),\"\")","v":"2362 Építési gipsztermék gyártása"}]
["2363 Előre kevert beton gyártása",2,3,2,2,3,1,null,{"$f":"IF(ISNUMBER(SEARCH($H$2,'Tevékenység lista'!A90)),MAX($I$1:I89)+1,0)","v":89},"Fémszerkezetgyártás (hegesztés)",null,{"$f":"IFERROR(VLOOKUP(ROWS($L$2:L90),I90:$J$302,2,FALSE),\"\")","v":"Fémszerkezetgyártás (hegesztés)"},null,null,null,null,{"$f":"IF(--ISNUMBER(SEARCH(Díjszámítás!$C$12,A90)),MAX($Q$1:Q89)+1,\"\")","v":89},{"$f":"IFERROR(INDEX($A$2:$A$302,MATCH(ROWS($Q$2:Q90),$Q$2:$Q$302,0)),\"\")","v":"2363 Előre kevert beton gyártása"}]
["2364 Habarcsgyártás",2,3,2,2,3,1,null,{"$f":"IF(ISNUMBER(SEARCH($H$2,'Tevékenység lista'!A91)),MAX($I$1:I90)+1,0)","v":90},"Fémtartály, szállítótartály gyártása (védőgázas hegesztés)",null,{"$f":"IFERROR(VLOOKUP(ROWS($L$2:L91),I91:$J$302,2,FALSE),\"\")","v":"Fémtartály, szállítótartály gyártása (védőgázas hegesztés)"},null,null,null,null,{"$f":"IF(--ISNUMBER(SEARCH(Díjszámítás!$C$12,A91)),MAX($Q$1:Q90)+1,\"\")","v":90},{"$f":"IFERROR(INDEX($A$2:$A$302,MATCH(ROWS($Q$2:Q91),$Q$2:$Q$302,0)),\"\")","v":"2364 Habarcsgyártás"}]
["2365 Szálerősítésű cement gyártása",2,3,2,2,3,1,null,{"$f":"IF(ISNUMBER(SEARCH($H$2,'Tevékenység lista'!A92)),MAX($I$1:I91)+1,0)","v":91},"Fényforrás- és világítóberendezés-gyártás",null,{"$f":"IFERROR(VLOOKUP(ROWS($L$2:L92),I92:$J$302,2,FALSE),\"\")","v":"Fényforrás- és világítóberendezés-gyártás"},null,null,null,null,{"$f":"IF(--ISNUMBER(SEARCH(Díjszámítás!$C$12,A92)),MAX($Q$1:Q91)+1,\"\")","v":91},{"$f":"IFERROR(INDEX($A$2:$A$302,MATCH(ROWS($Q$2:Q92),$Q$2:$Q$302,0)),\"\")","v":"2365 Szálerősítésű cement gyártása"}]
["2369 Egyéb beton-, gipsz-, cementtermék gyártása",2,3,2,2,3,1,null,{"$f":"IF(ISNUMBER(SEARCH($H$2,'Tevékenység lista'!A93)),MAX($I$1:I92)+1,0)","v":92},"Fényképészet, videofelvétel készítés",null,{"$f":"IFERROR(VLOOKUP(ROWS($L$2:L93),I93:$J$302,2,FALSE),\"\")","v":"Fényképészet, videofelvétel készítés"},null,null,null,null,{"$f":"IF(--ISNUMBER(SEARCH(Díjszámítás!$C$12,A93)),MAX($Q$1:Q92)+1,\"\")","v":92},{"$f":"IFERROR(INDEX($A$2:$A$302,MATCH(ROWS($Q$2:Q93),$Q$2:$Q$302,0)),\"\")","v":"2369 Egyéb beton-, gipsz-, cementtermék gyártása"}]
["2370 Kőmegmunkálás",2,3,1,2,3,1,null,{"$f":"IF(ISNUMBER(SEARCH($H$2,'Tevékenység lista'!A94)),MAX($I$1:I93)+1,0)","v":93},"Fénymásolás, sokszorosítás, bélyegzőkészítés",null,{"$f":"IFERROR(VLOOKUP(ROWS($L$2:L94),I94:$J$302,2,FALSE),\"\")","v":"Fénymásolás, sokszorosítás, bélyegzőkészítés"},null,null,null,null,{"$f":"IF(--ISNUMBER(SEARCH(Díjszámítás!$C$12,A94)),MAX($Q$1:Q93)+1,\"\")","v":93},{"$f":"IFERROR(INDEX($A$2:$A$302,MATCH(ROWS($Q$2:Q94),$Q$2:$Q$302,0)),\"\")","v":"2370 Kőmegmunkálás"}]
["2511 Fémszerkezet gyártása",6,4,1,6,2,1,null,{"$f":"IF(ISNUMBER(SEARCH($H$2,'Tevékenység lista'!A95)),MAX($I$1:I94)+1,0)","v":94},"Festék, lakk kereskedelem",null,{"$f":"IFERROR(VLOOKUP(ROWS($L$2:L95),I95:$J$302,2,FALSE),\"\")","v":"Festék, lakk kereskedelem"},null,null,null,null,{"$f":"IF(--ISNUMBER(SEARCH(Díjszámítás!$C$12,A95)),MAX($Q$1:Q94)+1,\"\")","v":94},{"$f":"IFERROR(INDEX($A$2:$A$302,MATCH(ROWS($Q$2:Q95),$Q$2:$Q$302,0)),\"\")","v":"2511 Fémszerkezet gyártása"}]
["2512 Fém épületelem gyártása",6,4,1,6,2,1,null,{"$f":"IF(ISNUMBER(SEARCH($H$2,'Tevékenység lista'!A96)),MAX($I$1:I95)+1,0)","v":95},"Festés, mázolás, tapétázás",null,{"$f":"IFERROR(VLOOKUP(ROWS($L$2:L96),I96:$J$302,2,FALSE),\"\")","v":"Festés, mázolás, tapétázás"},null,null,null,null,{"$f":"IF(--ISNUMBER(SEARCH(Díjszámítás!$C$12,A96)),MAX($Q$1:Q95)+1,\"\")","v":95},{"$f":"IFERROR(INDEX($A$2:$A$302,MATCH(ROWS($Q$2:Q96),$Q$2:$Q$302,0)),\"\")","v":"2512 Fém épületelem gyártása"}]
["2521 Központi fűtési kazán, radiátor gyártása",4,4,2,4,4,2,null,{"$f":"IF(ISNUMBER(SEARCH($H$2,'Tevékenység lista'!A97)),MAX($I$1:I96)+1,0)","v":96},"Filmvetítés (mozi)",null,{"$f":"IFERROR(VLOOKUP(ROWS($L$2:L97),I97:$J$302,2,FALSE),\"\")","v":"Filmvetítés (mozi)"},null,null,null,null,{"$f":"IF(--ISNUMBER(SEARCH(Díjszámítás!$C$12,A97)),MAX($Q$1:Q96)+1,\"\")","v":96},{"$f":"IFERROR(INDEX($A$2:$A$302,MATCH(ROWS($Q$2:Q97),$Q$2:$Q$302,0)),\"\")","v":"2521 Központi fűtési kazán, radiátor gyártása"}]
["2529 Fémtartály gyártása",5,4,1,5,2,1,null,{"$f":"IF(ISNUMBER(SEARCH($H$2,'Tevékenység lista'!A98)),MAX($I$1:I97)+1,0)","v":97},"Fitnesz center",null,{"$f":"IFERROR(VLOOKUP(ROWS($L$2:L98),I98:$J$302,2,FALSE),\"\")","v":"Fitnesz center"},null,null,null,null,{"$f":"IF(--ISNUMBER(SEARCH(Díjszámítás!$C$12,A98)),MAX($Q$1:Q97)+1,\"\")","v":97},{"$f":"IFERROR(INDEX($A$2:$A$302,MATCH(ROWS($Q$2:Q98),$Q$2:$Q$302,0)),\"\")","v":"2529 Fémtartály gyártása"}]
["2561 Fémfelület-kezelés",3,4,1,3,3,1,null,{"$f":"IF(ISNUMBER(SEARCH($H$2,'Tevékenység lista'!A99)),MAX($I$1:I98)+1,0)","v":98},"Fodrászat",null,{"$f":"IFERROR(VLOOKUP(ROWS($L$2:L99),I99:$J$302,2,FALSE),\"\")","v":"Fodrászat"},null,null,null,null,{"$f":"IF(--ISNUMBER(SEARCH(Díjszámítás!$C$12,A99)),MAX($Q$1:Q98)+1,\"\")","v":98},{"$f":"IFERROR(INDEX($A$2:$A$302,MATCH(ROWS($Q$2:Q99),$Q$2:$Q$302,0)),\"\")","v":"2561 Fémfelület-kezelés"}]
["2562 Fémmegmunkálás",3,4,1,3,3,1,null,{"$f":"IF(ISNUMBER(SEARCH($H$2,'Tevékenység lista'!A100)),MAX($I$1:I99)+1,0)","v":99},"Fogorvosi ellátás",null,{"$f":"IFERROR(VLOOKUP(ROWS($L$2:L100),I100:$J$302,2,FALSE),\"\")","v":"Fogorvosi ellátás"},null,null,null,null,{"$f":"IF(--ISNUMBER(SEARCH(Díjszámítás!$C$12,A100)),MAX($Q$1:Q99)+1,\"\")","v":99},{"$f":"IFERROR(INDEX($A$2:$A$302,MATCH(ROWS($Q$2:Q100),$Q$2:$Q$302,0)),\"\")","v":"2562 Fémmegmunkálás"}]
["2571 Evőeszköz gyártása",4,4,1,4,2,1,null,{"$f":"IF(ISNUMBER(SEARCH($H$2,'Tevékenység lista'!A101)),MAX($I$1:I100)+1,0)","v":100},"Fogtechnikus",null,{"$f":"IFERROR(VLOOKUP(ROWS($L$2:L101),I101:$J$302,2,FALSE),\"\")","v":"Fogtechnikus"},null,null,null,null,{"$f":"IF(--ISNUMBER(SEARCH(Díjszámítás!$C$12,A101)),MAX($Q$1:Q100)+1,\"\")","v":100},{"$f":"IFERROR(INDEX($A$2:$A$302,MATCH(ROWS($Q$2:Q101),$Q$2:$Q$302,0)),\"\")","v":"2571 Evőeszköz gyártása"}]
["2572 Lakat-, zárgyártás",4,4,1,4,2,1,null,{"$f":"IF(ISNUMBER(SEARCH($H$2,'Tevékenység lista'!A102)),MAX($I$1:I101)+1,0)","v":101},"Fotócikkek kereskedelme",null,{"$f":"IFERROR(VLOOKUP(ROWS($L$2:L102),I102:$J$302,2,FALSE),\"\")","v":"Fotócikkek kereskedelme"},null,null,null,null,{"$f":"IF(--ISNUMBER(SEARCH(Díjszámítás!$C$12,A102)),MAX($Q$1:Q101)+1,\"\")","v":101},{"$f":"IFERROR(INDEX($A$2:$A$302,MATCH(ROWS($Q$2:Q102),$Q$2:$Q$302,0)),\"\")","v":"2572 Lakat-, zárgyártás"}]
["2573 Szerszámgyártás",3,3,2,3,2,1,null,{"$f":"IF(ISNUMBER(SEARCH($H$2,'Tevékenység lista'!A103)),MAX($I$1:I102)+1,0)","v":102},"Fűrészárugyártás",null,{"$f":"IFERROR(VLOOKUP(ROWS($L$2:L103),I103:$J$302,2,FALSE),\"\")","v":"Fűrészárugyártás"},null,null,null,null,{"$f":"IF(--ISNUMBER(SEARCH(Díjszámítás!$C$12,A103)),MAX($Q$1:Q102)+1,\"\")","v":102},{"$f":"IFERROR(INDEX($A$2:$A$302,MATCH(ROWS($Q$2:Q103),$Q$2:$Q$302,0)),\"\")","v":"2573 Szerszámgyártás"}]
["2591 Acél tárolóeszköz gyártása",6,4,1,6,2,1,null,{"$f":"IF(ISNUMBER(SEARCH($H$2,'Tevékenység lista'!A104)),MAX($I$1:I103)+1,0)","v":103},"Fűszerpaprika őrlése vagy egyéb feldolgozása",null,{"$f":"IFERROR(VLOOKUP(ROWS($L$2:L104),I104:$J$302,2,FALSE),\"\")","v":"Fűszerpaprika őrlése vagy egyéb feldolgozása"},null,null,null,null,{"$f":"IF(--ISNUMBER(SEARCH(Díjszámítás!$C$12,A104)),MAX($Q$1:Q103)+1,\"\")","v":103},{"$f":"IFERROR(INDEX($A$2:$A$302,MATCH(ROWS($Q$2:Q104),$Q$2:$Q$302,0)),\"\")","v":"2591 Acél tárolóeszköz gyártása"}]
["2594 Kötőelem, csavar gyártása",4,4,1,4,2,1,null,{"$f":"IF(ISNUMBER(SEARCH($H$2,'Tevékenység lista'!A105)),MAX($I$1:I104)+1,0)","v":104},"Fűtő-hűtő berendezések szerelése",null,{"$f":"IFERROR(VLOOKUP(ROWS($L$2:L105),I105:$J$302,2,FALSE),\"\")","v":"Fűtő-hűtő berendezések szerelése"},null,null,null,null,{"$f":"IF(--ISNUMBER(SEARCH(Díjszámítás!$C$12,A105)),MAX($Q$1:Q104)+1,\"\")","v":104},{"$f":"IFERROR(INDEX($A$2:$A$302,MATCH(ROWS($Q$2:Q105),$Q$2:$Q$302,0)),\"\")","v":"2594 Kötőelem, csavar gyártása"}]
["2599 M.n.s. egyéb fémfeldolgozási termék gyártása",4,4,3,4,3,1,null,{"$f":"IF(ISNUMBER(SEARCH($H$2,'Tevékenység lista'!A106)),MAX($I$1:I105)+1,0)","v":105},"Garázsszolgáltatás, parkolás és járműőrzés",null,{"$f":"IFERROR(VLOOKUP(ROWS($L$2:L106),I106:$J$302,2,FALSE),\"\")","v":"Garázsszolgáltatás, parkolás és járműőrzés"},null,null,null,null,{"$f":"IF(--ISNUMBER(SEARCH(Díjszámítás!$C$12,A106)),MAX($Q$1:Q105)+1,\"\")","v":105},{"$f":"IFERROR(INDEX($A$2:$A$302,MATCH(ROWS($Q$2:Q106),$Q$2:$Q$302,0)),\"\")","v":"2599 M.n.s. egyéb fémfeldolgozási termék gyártása"}]
["2611 Elektronikai alkatrész gyártása",3,3,2,3,3,1,null,{"$f":"IF(ISNUMBER(SEARCH($H$2,'Tevékenység lista'!A107)),MAX($I$1:I106)+1,0)","v":106},"Gázcseretelep",null,{"$f":"IFERROR(VLOOKUP(ROWS($L$2:L107),I107:$J$302,2,FALSE),\"\")","v":"Gázcseretelep"},null,null,null,null,{"$f":"IF(--ISNUMBER(SEARCH(Díjszámítás!$C$12,A107)),MAX($Q$1:Q106)+1,\"\")","v":106},{"$f":"IFERROR(INDEX($A$2:$A$302,MATCH(ROWS($Q$2:Q107),$Q$2:$Q$302,0)),\"\")","v":"2611 Elektronikai alkatrész gyártása"}]
["2620 Számítógép, perifériás egység gyártása",3,3,3,3,3,2,null,{"$f":"IF(ISNUMBER(SEARCH($H$2,'Tevékenység lista'!A108)),MAX($I$1:I107)+1,0)","v":107},"Gázkészülékek javítása",null,{"$f":"IFERROR(VLOOKUP(ROWS($L$2:L108),I108:$J$302,2,FALSE),\"\")","v":"Gázkészülékek javítása"},null,null,null,null,{"$f":"IF(--ISNUMBER(SEARCH(Díjszámítás!$C$12,A108)),MAX($Q$1:Q107)+1,\"\")","v":107},{"$f":"IFERROR(INDEX($A$2:$A$302,MATCH(ROWS($Q$2:Q108),$Q$2:$Q$302,0)),\"\")","v":"2620 Számítógép, perifériás egység gyártása"}]
["2630 Híradás-technikai berendezés gyártása",4,3,2,4,3,1,null,{"$f":"IF(ISNUMBER(SEARCH($H$2,'Tevékenység lista'!A109)),MAX($I$1:I108)+1,0)","v":108},"Gáz-, víz-, villanyszerelés",null,{"$f":"IFERROR(VLOOKUP(ROWS($L$2:L109),I109:$J$302,2,FALSE),\"\")","v":"Gáz-, víz-, villanyszerelés"},null,null,null,null,{"$f":"IF(--ISNUMBER(SEARCH(Díjszámítás!$C$12,A109)),MAX($Q$1:Q108)+1,\"\")","v":108},{"$f":"IFERROR(INDEX($A$2:$A$302,MATCH(ROWS($Q$2:Q109),$Q$2:$Q$302,0)),\"\")","v":"2630 Híradás-technikai berendezés gyártása"}]
["2651 Mérőműszergyártás",4,3,2,4,3,1,null,{"$f":"IF(ISNUMBER(SEARCH($H$2,'Tevékenység lista'!A110)),MAX($I$1:I109)+1,0)","v":109},"Gépállomás ",null,{"$f":"IFERROR(VLOOKUP(ROWS($L$2:L110),I110:$J$302,2,FALSE),\"\")","v":"Gépállomás "},null,null,null,null,{"$f":"IF(--ISNUMBER(SEARCH(Díjszámítás!$C$12,A110)),MAX($Q$1:Q109)+1,\"\")","v":109},{"$f":"IFERROR(INDEX($A$2:$A$302,MATCH(ROWS($Q$2:Q110),$Q$2:$Q$302,0)),\"\")","v":"2651 Mérőműszergyártás"}]
["2660 Elektronikus orvosi berendezés gyártása",3,3,2,3,2,1,null,{"$f":"IF(ISNUMBER(SEARCH($H$2,'Tevékenység lista'!A111)),MAX($I$1:I110)+1,0)","v":110},"Gépek, gépi berendezések kölcsönzése",null,{"$f":"IFERROR(VLOOKUP(ROWS($L$2:L111),I111:$J$302,2,FALSE),\"\")","v":"Gépek, gépi berendezések kölcsönzése"},null,null,null,null,{"$f":"IF(--ISNUMBER(SEARCH(Díjszámítás!$C$12,A111)),MAX($Q$1:Q110)+1,\"\")","v":110},{"$f":"IFERROR(INDEX($A$2:$A$302,MATCH(ROWS($Q$2:Q111),$Q$2:$Q$302,0)),\"\")","v":"2660 Elektronikus orvosi berendezés gyártása"}]
["2670 Optikai eszköz gyártása",3,3,1,3,3,2,null,{"$f":"IF(ISNUMBER(SEARCH($H$2,'Tevékenység lista'!A112)),MAX($I$1:I111)+1,0)","v":111},"Gépek, gépi berendezések gyártása",null,{"$f":"IFERROR(VLOOKUP(ROWS($L$2:L112),I112:$J$302,2,FALSE),\"\")","v":"Gépek, gépi berendezések gyártása"},null,null,null,null,{"$f":"IF(--ISNUMBER(SEARCH(Díjszámítás!$C$12,A112)),MAX($Q$1:Q111)+1,\"\")","v":111},{"$f":"IFERROR(INDEX($A$2:$A$302,MATCH(ROWS($Q$2:Q112),$Q$2:$Q$302,0)),\"\")","v":"2670 Optikai eszköz gyártása"}]
["2711 Villamos motor, áramfejlesztő gyártása",3,3,1,3,3,1,null,{"$f":"IF(ISNUMBER(SEARCH($H$2,'Tevékenység lista'!A113)),MAX($I$1:I112)+1,0)","v":112},"Gépészeti berendezések kereskedelme",null,{"$f":"IFERROR(VLOOKUP(ROWS($L$2:L113),I113:$J$302,2,FALSE),\"\")","v":"Gépészeti berendezések kereskedelme"},null,null,null,null,{"$f":"IF(--ISNUMBER(SEARCH(Díjszámítás!$C$12,A113)),MAX($Q$1:Q112)+1,\"\")","v":112},{"$f":"IFERROR(INDEX($A$2:$A$302,MATCH(ROWS($Q$2:Q113),$Q$2:$Q$302,0)),\"\")","v":"2711 Villamos motor, áramfejlesztő gyártása"}]
["2712 Áramelosztó, -szabályozó készülék gyártása",3,3,1,3,3,1,null,{"$f":"IF(ISNUMBER(SEARCH($H$2,'Tevékenység lista'!A114)),MAX($I$1:I113)+1,0)","v":113},"Gépjárműbontó",null,{"$f":"IFERROR(VLOOKUP(ROWS($L$2:L114),I114:$J$302,2,FALSE),\"\")","v":"Gépjárműbontó"},null,null,null,null,{"$f":"IF(--ISNUMBER(SEARCH(Díjszámítás!$C$12,A114)),MAX($Q$1:Q113)+1,\"\")","v":113},{"$f":"IFERROR(INDEX($A$2:$A$302,MATCH(ROWS($Q$2:Q114),$Q$2:$Q$302,0)),\"\")","v":"2712 Áramelosztó, -szabályozó készülék gyártása"}]
["2720 Akkumulátor, szárazelem gyártása",6,3,2,6,3,1,null,{"$f":"IF(ISNUMBER(SEARCH($H$2,'Tevékenység lista'!A115)),MAX($I$1:I114)+1,0)","v":114},"Gépjárműfelépítmény-gyártás",null,{"$f":"IFERROR(VLOOKUP(ROWS($L$2:L115),I115:$J$302,2,FALSE),\"\")","v":"Gépjárműfelépítmény-gyártás"},null,null,null,null,{"$f":"IF(--ISNUMBER(SEARCH(Díjszámítás!$C$12,A115)),MAX($Q$1:Q114)+1,\"\")","v":114},{"$f":"IFERROR(INDEX($A$2:$A$302,MATCH(ROWS($Q$2:Q115),$Q$2:$Q$302,0)),\"\")","v":"2720 Akkumulátor, szárazelem gyártása"}]
["2731 Száloptikai kábel gyártása",6,3,2,6,2,1,null,{"$f":"IF(ISNUMBER(SEARCH($H$2,'Tevékenység lista'!A116)),MAX($I$1:I115)+1,0)","v":115},"Gépjármű-felszerelési cikk kereskedelem",null,{"$f":"IFERROR(VLOOKUP(ROWS($L$2:L116),I116:$J$302,2,FALSE),\"\")","v":"Gépjármű-felszerelési cikk kereskedelem"},null,null,null,null,{"$f":"IF(--ISNUMBER(SEARCH(Díjszámítás!$C$12,A116)),MAX($Q$1:Q115)+1,\"\")","v":115},{"$f":"IFERROR(INDEX($A$2:$A$302,MATCH(ROWS($Q$2:Q116),$Q$2:$Q$302,0)),\"\")","v":"2731 Száloptikai kábel gyártása"}]
["2732 Egyéb elektronikus, villamos vezeték, kábel gyártása",6,3,2,6,2,1,null,{"$f":"IF(ISNUMBER(SEARCH($H$2,'Tevékenység lista'!A117)),MAX($I$1:I116)+1,0)","v":116},"Gépjárműjavítás és -karbantartás (szerviz)",null,{"$f":"IFERROR(VLOOKUP(ROWS($L$2:L117),I117:$J$302,2,FALSE),\"\")","v":"Gépjárműjavítás és -karbantartás (szerviz)"},null,null,null,null,{"$f":"IF(--ISNUMBER(SEARCH(Díjszámítás!$C$12,A117)),MAX($Q$1:Q116)+1,\"\")","v":116},{"$f":"IFERROR(INDEX($A$2:$A$302,MATCH(ROWS($Q$2:Q117),$Q$2:$Q$302,0)),\"\")","v":"2732 Egyéb elektronikus, villamos vezeték, kábel gyártása"}]
["2733 Szerelvény gyártása",4,4,1,4,2,1,null,{"$f":"IF(ISNUMBER(SEARCH($H$2,'Tevékenység lista'!A118)),MAX($I$1:I117)+1,0)","v":117},"Gépjárműjavítás és -karbantartás (szerviz), és gépjárműalkatrész kereskedelem",null,{"$f":"IFERROR(VLOOKUP(ROWS($L$2:L118),I118:$J$302,2,FALSE),\"\")","v":"Gépjárműjavítás és -karbantartás (szerviz), és gépjárműalkatrész kereskedelem"},null,null,null,null,{"$f":"IF(--ISNUMBER(SEARCH(Díjszámítás!$C$12,A118)),MAX($Q$1:Q117)+1,\"\")","v":117},{"$f":"IFERROR(INDEX($A$2:$A$302,MATCH(ROWS($Q$2:Q118),$Q$2:$Q$302,0)),\"\")","v":"2733 Szerelvény gyártása"}]
["2740 Villamos világítóeszköz gyártása",4,3,1,4,2,1,null,{"$f":"IF(ISNUMBER(SEARCH($H$2,'Tevékenység lista'!A119)),MAX($I$1:I118)+1,0)","v":118},"Gépjármű karosszériafényező",null,{"$f":"IFERROR(VLOOKUP(ROWS($L$2:L119),I119:$J$302,2,FALSE),\"\")","v":"Gépjármű karosszériafényező"},null,null,null,null,{"$f":"IF(--ISNUMBER(SEARCH(Díjszámítás!$C$12,A119)),MAX($Q$1:Q118)+1,\"\")","v":118},{"$f":"IFERROR(INDEX($A$2:$A$302,MATCH(ROWS($Q$2:Q119),$Q$2:$Q$302,0)),\"\")","v":"2740 Villamos világítóeszköz gyártása"}]
["2751 Háztartási villamos készülék gyártása",3,3,2,3,3,1,null,{"$f":"IF(ISNUMBER(SEARCH($H$2,'Tevékenység lista'!A120)),MAX($I$1:I119)+1,0)","v":119},"Gépjármű karosszérialakatos",null,{"$f":"IFERROR(VLOOKUP(ROWS($L$2:L120),I120:$J$302,2,FALSE),\"\")","v":"Gépjármű karosszérialakatos"},null,null,null,null,{"$f":"IF(--ISNUMBER(SEARCH(Díjszámítás!$C$12,A120)),MAX($Q$1:Q119)+1,\"\")","v":119},{"$f":"IFERROR(INDEX($A$2:$A$302,MATCH(ROWS($Q$2:Q120),$Q$2:$Q$302,0)),\"\")","v":"2751 Háztartási villamos készülék gyártása"}]
["2752 Nem villamos háztartási készülék gyártása",3,3,2,3,3,1,null,{"$f":"IF(ISNUMBER(SEARCH($H$2,'Tevékenység lista'!A121)),MAX($I$1:I120)+1,0)","v":120},"Gépjármű-villamossági javítás",null,{"$f":"IFERROR(VLOOKUP(ROWS($L$2:L121),I121:$J$302,2,FALSE),\"\")","v":"Gépjármű-villamossági javítás"},null,null,null,null,{"$f":"IF(--ISNUMBER(SEARCH(Díjszámítás!$C$12,A121)),MAX($Q$1:Q120)+1,\"\")","v":120},{"$f":"IFERROR(INDEX($A$2:$A$302,MATCH(ROWS($Q$2:Q121),$Q$2:$Q$302,0)),\"\")","v":"2752 Nem villamos háztartási készülék gyártása"}]
["2790 Egyéb villamos berendezés gyártása",3,3,2,3,3,1,null,{"$f":"IF(ISNUMBER(SEARCH($H$2,'Tevékenység lista'!A122)),MAX($I$1:I121)+1,0)","v":121},"Gépjárműalkatrész kereskedelem",null,{"$f":"IFERROR(VLOOKUP(ROWS($L$2:L122),I122:$J$302,2,FALSE),\"\")","v":"Gépjárműalkatrész kereskedelem"},null,null,null,null,{"$f":"IF(--ISNUMBER(SEARCH(Díjszámítás!$C$12,A122)),MAX($Q$1:Q121)+1,\"\")","v":121},{"$f":"IFERROR(INDEX($A$2:$A$302,MATCH(ROWS($Q$2:Q122),$Q$2:$Q$302,0)),\"\")","v":"2790 Egyéb villamos berendezés gyártása"}]
["2814 Csap, szelep gyártása",4,4,1,4,2,1,null,{"$f":"IF(ISNUMBER(SEARCH($H$2,'Tevékenység lista'!A123)),MAX($I$1:I122)+1,0)","v":122},"Gépjármű-üzemanyag és kenőanyag kereskedelem (benzinkút)",null,{"$f":"IFERROR(VLOOKUP(ROWS($L$2:L123),I123:$J$302,2,FALSE),\"\")","v":"Gépjármű-üzemanyag és kenőanyag kereskedelem (benzinkút)"},null,null,null,null,{"$f":"IF(--ISNUMBER(SEARCH(Díjszámítás!$C$12,A123)),MAX($Q$1:Q122)+1,\"\")","v":122},{"$f":"IFERROR(INDEX($A$2:$A$302,MATCH(ROWS($Q$2:Q123),$Q$2:$Q$302,0)),\"\")","v":"2814 Csap, szelep gyártása"}]
["2823 Irodagép gyártása (kivéve: számítógép és perifériái)",3,3,3,3,3,2,null,{"$f":"IF(ISNUMBER(SEARCH($H$2,'Tevékenység lista'!A124)),MAX($I$1:I123)+1,0)","v":123},"GPS nyomkövető berendezések fejlesztése, gyártása, üzemeltetése",null,{"$f":"IFERROR(VLOOKUP(ROWS($L$2:L124),I124:$J$302,2,FALSE),\"\")","v":"GPS nyomkövető berendezések fejlesztése, gyártása, üzemeltetése"},null,null,null,null,{"$f":"IF(--ISNUMBER(SEARCH(Díjszámítás!$C$12,A124)),MAX($Q$1:Q123)+1,\"\")","v":123},{"$f":"IFERROR(INDEX($A$2:$A$302,MATCH(ROWS($Q$2:Q124),$Q$2:$Q$302,0)),\"\")","v":"2823 Irodagép gyártása (kivéve: számítógép és perifériái)"}]
["2824 Gépi meghajtású hordozható kézi szerszámgép gyártása",3,3,1,3,3,1,null,{"$f":"IF(ISNUMBER(SEARCH($H$2,'Tevékenység lista'!A125)),MAX($I$1:I124)+1,0)","v":124},"Gumijavító",null,{"$f":"IFERROR(VLOOKUP(ROWS($L$2:L125),I125:$J$302,2,FALSE),\"\")","v":"Gumijavító"},null,null,null,null,{"$f":"IF(--ISNUMBER(SEARCH(Díjszámítás!$C$12,A125)),MAX($Q$1:Q124)+1,\"\")","v":124},{"$f":"IFERROR(INDEX($A$2:$A$302,MATCH(ROWS($Q$2:Q125),$Q$2:$Q$302,0)),\"\")","v":"2824 Gépi meghajtású hordozható kézi szerszámgép gyártása"}]
["2829 M.n.s. egyéb általános rendeltetésű gép gyártása ",4,3,2,4,3,3,null,{"$f":"IF(ISNUMBER(SEARCH($H$2,'Tevékenység lista'!A126)),MAX($I$1:I125)+1,0)","v":125},"Gumitermékek gyártása",null,{"$f":"IFERROR(VLOOKUP(ROWS($L$2:L126),I126:$J$302,2,FALSE),\"\")","v":"Gumitermékek gyártása"},null,null,null,null,{"$f":"IF(--ISNUMBER(SEARCH(Díjszámítás!$C$12,A126)),MAX($Q$1:Q125)+1,\"\")","v":125},{"$f":"IFERROR(INDEX($A$2:$A$302,MATCH(ROWS($Q$2:Q126),$Q$2:$Q$302,0)),\"\")","v":"2829 M.n.s. egyéb általános rendeltetésű gép gyártása "}]
["2830 Mezőgazdasági, erdészeti gép gyártása",3,3,1,3,3,1,null,{"$f":"IF(ISNUMBER(SEARCH($H$2,'Tevékenység lista'!A127)),MAX($I$1:I126)+1,0)","v":126},"Gyapjúfonás, szövés",null,{"$f":"IFERROR(VLOOKUP(ROWS($L$2:L127),I127:$J$302,2,FALSE),\"\")","v":"Gyapjúfonás, szövés"},null,null,null,null,{"$f":"IF(--ISNUMBER(SEARCH(Díjszámítás!$C$12,A127)),MAX($Q$1:Q126)+1,\"\")","v":126},{"$f":"IFERROR(INDEX($A$2:$A$302,MATCH(ROWS($Q$2:Q127),$Q$2:$Q$302,0)),\"\")","v":"2830 Mezőgazdasági, erdészeti gép gyártása"}]
["2841 Fémmegmunkáló szerszámgép gyártása",3,3,1,3,3,1,null,{"$f":"IF(ISNUMBER(SEARCH($H$2,'Tevékenység lista'!A128)),MAX($I$1:I127)+1,0)","v":127},"Gyermektápszergyártás",null,{"$f":"IFERROR(VLOOKUP(ROWS($L$2:L128),I128:$J$302,2,FALSE),\"\")","v":"Gyermektápszergyártás"},null,null,null,null,{"$f":"IF(--ISNUMBER(SEARCH(Díjszámítás!$C$12,A128)),MAX($Q$1:Q127)+1,\"\")","v":127},{"$f":"IFERROR(INDEX($A$2:$A$302,MATCH(ROWS($Q$2:Q128),$Q$2:$Q$302,0)),\"\")","v":"2841 Fémmegmunkáló szerszámgép gyártása"}]
["2849 Egyéb szerszámgép gyártása",3,3,1,3,3,1,null,{"$f":"IF(ISNUMBER(SEARCH($H$2,'Tevékenység lista'!A129)),MAX($I$1:I128)+1,0)","v":128},"Gyógyászati segédeszközök gyártása",null,{"$f":"IFERROR(VLOOKUP(ROWS($L$2:L129),I129:$J$302,2,FALSE),\"\")","v":"Gyógyászati segédeszközök gyártása"},null,null,null,null,{"$f":"IF(--ISNUMBER(SEARCH(Díjszámítás!$C$12,A129)),MAX($Q$1:Q128)+1,\"\")","v":128},{"$f":"IFERROR(INDEX($A$2:$A$302,MATCH(ROWS($Q$2:Q129),$Q$2:$Q$302,0)),\"\")","v":"2849 Egyéb szerszámgép gyártása"}]
["2893 Élelmiszer-, dohányipari gép gyártása",3,3,2,3,3,1,null,{"$f":"IF(ISNUMBER(SEARCH($H$2,'Tevékenység lista'!A130)),MAX($I$1:I129)+1,0)","v":129},"Gyógyászati segédeszközök kereskedelme",null,{"$f":"IFERROR(VLOOKUP(ROWS($L$2:L130),I130:$J$302,2,FALSE),\"\")","v":"Gyógyászati segédeszközök kereskedelme"},null,null,null,null,{"$f":"IF(--ISNUMBER(SEARCH(Díjszámítás!$C$12,A130)),MAX($Q$1:Q129)+1,\"\")","v":129},{"$f":"IFERROR(INDEX($A$2:$A$302,MATCH(ROWS($Q$2:Q130),$Q$2:$Q$302,0)),\"\")","v":"2893 Élelmiszer-, dohányipari gép gyártása"}]
["2894 Textil-, ruházati, bőripari gép gyártása",4,3,2,4,3,1,null,{"$f":"IF(ISNUMBER(SEARCH($H$2,'Tevékenység lista'!A131)),MAX($I$1:I130)+1,0)","v":130},"Gyógynövény kereskedelem",null,{"$f":"IFERROR(VLOOKUP(ROWS($L$2:L131),I131:$J$302,2,FALSE),\"\")","v":"Gyógynövény kereskedelem"},null,null,null,null,{"$f":"IF(--ISNUMBER(SEARCH(Díjszámítás!$C$12,A131)),MAX($Q$1:Q130)+1,\"\")","v":130},{"$f":"IFERROR(INDEX($A$2:$A$302,MATCH(ROWS($Q$2:Q131),$Q$2:$Q$302,0)),\"\")","v":"2894 Textil-, ruházati, bőripari gép gyártása"}]
["2895 Papíripari gép gyártása",4,3,2,4,3,1,null,{"$f":"IF(ISNUMBER(SEARCH($H$2,'Tevékenység lista'!A132)),MAX($I$1:I131)+1,0)","v":131},"Gyógynövények szárítása, feldolgozása és kiszerelése",null,{"$f":"IFERROR(VLOOKUP(ROWS($L$2:L132),I132:$J$302,2,FALSE),\"\")","v":"Gyógynövények szárítása, feldolgozása és kiszerelése"},null,null,null,null,{"$f":"IF(--ISNUMBER(SEARCH(Díjszámítás!$C$12,A132)),MAX($Q$1:Q131)+1,\"\")","v":131},{"$f":"IFERROR(INDEX($A$2:$A$302,MATCH(ROWS($Q$2:Q132),$Q$2:$Q$302,0)),\"\")","v":"2895 Papíripari gép gyártása"}]
["2896 Műanyag-, gumifeldolgozó gép gyártása",4,3,2,4,3,1,null,{"$f":"IF(ISNUMBER(SEARCH($H$2,'Tevékenység lista'!A133)),MAX($I$1:I132)+1,0)","v":132},"Gyógyszer nagykereskedelem",null,{"$f":"IFERROR(VLOOKUP(ROWS($L$2:L133),I133:$J$302,2,FALSE),\"\")","v":"Gyógyszer nagykereskedelem"},null,null,null,null,{"$f":"IF(--ISNUMBER(SEARCH(Díjszámítás!$C$12,A133)),MAX($Q$1:Q132)+1,\"\")","v":132},{"$f":"IFERROR(INDEX($A$2:$A$302,MATCH(ROWS($Q$2:Q133),$Q$2:$Q$302,0)),\"\")","v":"2896 Műanyag-, gumifeldolgozó gép gyártása"}]
["2899 M.n.s. egyéb speciális gép gyártása",4,3,2,4,3,1,null,{"$f":"IF(ISNUMBER(SEARCH($H$2,'Tevékenység lista'!A134)),MAX($I$1:I133)+1,0)","v":133},"Gyógyszertár",null,{"$f":"IFERROR(VLOOKUP(ROWS($L$2:L134),I134:$J$302,2,FALSE),\"\")","v":"Gyógyszertár"},null,null,null,null,{"$f":"IF(--ISNUMBER(SEARCH(Díjszámítás!$C$12,A134)),MAX($Q$1:Q133)+1,\"\")","v":133},{"$f":"IFERROR(INDEX($A$2:$A$302,MATCH(ROWS($Q$2:Q134),$Q$2:$Q$302,0)),\"\")","v":"2899 M.n.s. egyéb speciális gép gyártása"}]
["2931 Járművillamossági, -elektronikai készülékek gyártása",3,3,3,3,3,3,null,{"$f":"IF(ISNUMBER(SEARCH($H$2,'Tevékenység lista'!A135)),MAX($I$1:I134)+1,0)","v":134},"Gyümölcs- és zöldségfeldolgozás",null,{"$f":"IFERROR(VLOOKUP(ROWS($L$2:L135),I135:$J$302,2,FALSE),\"\")","v":"Gyümölcs- és zöldségfeldolgozás"},null,null,null,null,{"$f":"IF(--ISNUMBER(SEARCH(Díjszámítás!$C$12,A135)),MAX($Q$1:Q134)+1,\"\")","v":134},{"$f":"IFERROR(INDEX($A$2:$A$302,MATCH(ROWS($Q$2:Q135),$Q$2:$Q$302,0)),\"\")","v":"2931 Járművillamossági, -elektronikai készülékek gyártása"}]
["2932 Közúti jármű, járműmotor alkatrészeinek gyártása",4,3,3,4,3,3,null,{"$f":"IF(ISNUMBER(SEARCH($H$2,'Tevékenység lista'!A136)),MAX($I$1:I135)+1,0)","v":135},"Hangfelvétel készítés (hangstúdió)",null,{"$f":"IFERROR(VLOOKUP(ROWS($L$2:L136),I136:$J$302,2,FALSE),\"\")","v":"Hangfelvétel készítés (hangstúdió)"},null,null,null,null,{"$f":"IF(--ISNUMBER(SEARCH(Díjszámítás!$C$12,A136)),MAX($Q$1:Q135)+1,\"\")","v":135},{"$f":"IFERROR(INDEX($A$2:$A$302,MATCH(ROWS($Q$2:Q136),$Q$2:$Q$302,0)),\"\")","v":"2932 Közúti jármű, járműmotor alkatrészeinek gyártása"}]
["3091 Motorkerékpár gyártása",4,3,4,4,3,1,null,{"$f":"IF(ISNUMBER(SEARCH($H$2,'Tevékenység lista'!A137)),MAX($I$1:I136)+1,0)","v":136},"Hangszerkereskedés",null,{"$f":"IFERROR(VLOOKUP(ROWS($L$2:L137),I137:$J$302,2,FALSE),\"\")","v":"Hangszerkereskedés"},null,null,null,null,{"$f":"IF(--ISNUMBER(SEARCH(Díjszámítás!$C$12,A137)),MAX($Q$1:Q136)+1,\"\")","v":136},{"$f":"IFERROR(INDEX($A$2:$A$302,MATCH(ROWS($Q$2:Q137),$Q$2:$Q$302,0)),\"\")","v":"3091 Motorkerékpár gyártása"}]
["3092 Kerékpár, mozgássérültkocsi gyártása",4,3,4,4,3,1,null,{"$f":"IF(ISNUMBER(SEARCH($H$2,'Tevékenység lista'!A138)),MAX($I$1:I137)+1,0)","v":137},"Hangszergyártás",null,{"$f":"IFERROR(VLOOKUP(ROWS($L$2:L138),I138:$J$302,2,FALSE),\"\")","v":"Hangszergyártás"},null,null,null,null,{"$f":"IF(--ISNUMBER(SEARCH(Díjszámítás!$C$12,A138)),MAX($Q$1:Q137)+1,\"\")","v":137},{"$f":"IFERROR(INDEX($A$2:$A$302,MATCH(ROWS($Q$2:Q138),$Q$2:$Q$302,0)),\"\")","v":"3092 Kerékpár, mozgássérültkocsi gyártása"}]
["3101 Irodabútor gyártása",6,3,2,6,3,2,null,{"$f":"IF(ISNUMBER(SEARCH($H$2,'Tevékenység lista'!A139)),MAX($I$1:I138)+1,0)","v":138},"Hangszerjavítás",null,{"$f":"IFERROR(VLOOKUP(ROWS($L$2:L139),I139:$J$302,2,FALSE),\"\")","v":"Hangszerjavítás"},null,null,null,null,{"$f":"IF(--ISNUMBER(SEARCH(Díjszámítás!$C$12,A139)),MAX($Q$1:Q138)+1,\"\")","v":138},{"$f":"IFERROR(INDEX($A$2:$A$302,MATCH(ROWS($Q$2:Q139),$Q$2:$Q$302,0)),\"\")","v":"3101 Irodabútor gyártása"}]
["3102 Konyhabútorgyártás",6,3,2,6,3,2,null,{"$f":"IF(ISNUMBER(SEARCH($H$2,'Tevékenység lista'!A140)),MAX($I$1:I139)+1,0)","v":139},"Hangtechnikai kis- és nagykereskedelem ",null,{"$f":"IFERROR(VLOOKUP(ROWS($L$2:L140),I140:$J$302,2,FALSE),\"\")","v":"Hangtechnikai kis- és nagykereskedelem "},null,null,null,null,{"$f":"IF(--ISNUMBER(SEARCH(Díjszámítás!$C$12,A140)),MAX($Q$1:Q139)+1,\"\")","v":139},{"$f":"IFERROR(INDEX($A$2:$A$302,MATCH(ROWS($Q$2:Q140),$Q$2:$Q$302,0)),\"\")","v":"3102 Konyhabútorgyártás"}]
["3103 Ágybetét gyártása",6,3,2,6,3,2,null,{"$f":"IF(ISNUMBER(SEARCH($H$2,'Tevékenység lista'!A141)),MAX($I$1:I140)+1,0)","v":140},"Háztartási elektromos készülékek kereskedelme (hűtő, mosógép, bojler)",null,{"$f":"IFERROR(VLOOKUP(ROWS($L$2:L141),I141:$J$302,2,FALSE),\"\")","v":"Háztartási elektromos készülékek kereskedelme (hűtő, mosógép, bojler)"},null,null,null,null,{"$f":"IF(--ISNUMBER(SEARCH(Díjszámítás!$C$12,A141)),MAX($Q$1:Q140)+1,\"\")","v":140},{"$f":"IFERROR(INDEX($A$2:$A$302,MATCH(ROWS($Q$2:Q141),$Q$2:$Q$302,0)),\"\")","v":"3103 Ágybetét gyártása"}]
["3109 Egyéb bútor gyártása",6,3,2,6,3,2,null,{"$f":"IF(ISNUMBER(SEARCH($H$2,'Tevékenység lista'!A142)),MAX($I$1:I141)+1,0)","v":141},"Háztartási- és egészségügyi papírtermékgyártás ",null,{"$f":"IFERROR(VLOOKUP(ROWS($L$2:L142),I142:$J$302,2,FALSE),\"\")","v":"Háztartási- és egészségügyi papírtermékgyártás "},null,null,null,null,{"$f":"IF(--ISNUMBER(SEARCH(Díjszámítás!$C$12,A142)),MAX($Q$1:Q141)+1,\"\")","v":141},{"$f":"IFERROR(INDEX($A$2:$A$302,MATCH(ROWS($Q$2:Q142),$Q$2:$Q$302,0)),\"\")","v":"3109 Egyéb bútor gyártása"}]
["3220 Hangszergyártás",4,3,2,4,2,1,null,{"$f":"IF(ISNUMBER(SEARCH($H$2,'Tevékenység lista'!A143)),MAX($I$1:I142)+1,0)","v":142},"Háztartási fémáru (finomacél áru, edény, étkészlet stb.) kereskedelem",null,{"$f":"IFERROR(VLOOKUP(ROWS($L$2:L143),I143:$J$302,2,FALSE),\"\")","v":"Háztartási fémáru (finomacél áru, edény, étkészlet stb.) kereskedelem"},null,null,null,null,{"$f":"IF(--ISNUMBER(SEARCH(Díjszámítás!$C$12,A143)),MAX($Q$1:Q142)+1,\"\")","v":142},{"$f":"IFERROR(INDEX($A$2:$A$302,MATCH(ROWS($Q$2:Q143),$Q$2:$Q$302,0)),\"\")","v":"3220 Hangszergyártás"}]
["3230 Sportszergyártás",5,3,2,5,3,1,null,{"$f":"IF(ISNUMBER(SEARCH($H$2,'Tevékenység lista'!A144)),MAX($I$1:I143)+1,0)","v":143},"Háztartási főző-,  fűtő- és vízmelegítő készülékek kereskedelme",null,{"$f":"IFERROR(VLOOKUP(ROWS($L$2:L144),I144:$J$302,2,FALSE),\"\")","v":"Háztartási főző-,  fűtő- és vízmelegítő készülékek kereskedelme"},null,null,null,null,{"$f":"IF(--ISNUMBER(SEARCH(Díjszámítás!$C$12,A144)),MAX($Q$1:Q143)+1,\"\")","v":143},{"$f":"IFERROR(INDEX($A$2:$A$302,MATCH(ROWS($Q$2:Q144),$Q$2:$Q$302,0)),\"\")","v":"3230 Sportszergyártás"}]
["3240 Játékgyártás",5,3,2,5,3,1,null,{"$f":"IF(ISNUMBER(SEARCH($H$2,'Tevékenység lista'!A145)),MAX($I$1:I144)+1,0)","v":144},"Háztartási gépek javítása (hűtő, mosógép, bojler)",null,{"$f":"IFERROR(VLOOKUP(ROWS($L$2:L145),I145:$J$302,2,FALSE),\"\")","v":"Háztartási gépek javítása (hűtő, mosógép, bojler)"},null,null,null,null,{"$f":"IF(--ISNUMBER(SEARCH(Díjszámítás!$C$12,A145)),MAX($Q$1:Q144)+1,\"\")","v":144},{"$f":"IFERROR(INDEX($A$2:$A$302,MATCH(ROWS($Q$2:Q145),$Q$2:$Q$302,0)),\"\")","v":"3240 Játékgyártás"}]
["3250 Orvosi eszköz gyártása",3,3,2,3,2,1,null,{"$f":"IF(ISNUMBER(SEARCH($H$2,'Tevékenység lista'!A146)),MAX($I$1:I145)+1,0)","v":145},"Háztartási készülékek gyártása",null,{"$f":"IFERROR(VLOOKUP(ROWS($L$2:L146),I146:$J$302,2,FALSE),\"\")","v":"Háztartási készülékek gyártása"},null,null,null,null,{"$f":"IF(--ISNUMBER(SEARCH(Díjszámítás!$C$12,A146)),MAX($Q$1:Q145)+1,\"\")","v":145},{"$f":"IFERROR(INDEX($A$2:$A$302,MATCH(ROWS($Q$2:Q146),$Q$2:$Q$302,0)),\"\")","v":"3250 Orvosi eszköz gyártása"}]
["3291 Seprű-, kefegyártás",6,3,1,6,3,1,null,{"$f":"IF(ISNUMBER(SEARCH($H$2,'Tevékenység lista'!A147)),MAX($I$1:I146)+1,0)","v":146},"Háztartási műanyagáru kereskedelem",null,{"$f":"IFERROR(VLOOKUP(ROWS($L$2:L147),I147:$J$302,2,FALSE),\"\")","v":"Háztartási műanyagáru kereskedelem"},null,null,null,null,{"$f":"IF(--ISNUMBER(SEARCH(Díjszámítás!$C$12,A147)),MAX($Q$1:Q146)+1,\"\")","v":146},{"$f":"IFERROR(INDEX($A$2:$A$302,MATCH(ROWS($Q$2:Q147),$Q$2:$Q$302,0)),\"\")","v":"3291 Seprű-, kefegyártás"}]
["3313 Elektronikus, optikai eszköz javítása",3,4,1,3,2,2,null,{"$f":"IF(ISNUMBER(SEARCH($H$2,'Tevékenység lista'!A148)),MAX($I$1:I147)+1,0)","v":147},"Háztartási vegyiáru kereskedelem",null,{"$f":"IFERROR(VLOOKUP(ROWS($L$2:L148),I148:$J$302,2,FALSE),\"\")","v":"Háztartási vegyiáru kereskedelem"},null,null,null,null,{"$f":"IF(--ISNUMBER(SEARCH(Díjszámítás!$C$12,A148)),MAX($Q$1:Q147)+1,\"\")","v":147},{"$f":"IFERROR(INDEX($A$2:$A$302,MATCH(ROWS($Q$2:Q148),$Q$2:$Q$302,0)),\"\")","v":"3313 Elektronikus, optikai eszköz javítása"}]
["3314 Ipari villamos gép, berendezés javítása",3,4,3,3,1,1,null,{"$f":"IF(ISNUMBER(SEARCH($H$2,'Tevékenység lista'!A149)),MAX($I$1:I148)+1,0)","v":148},"Hidegburkoló (kerámia padlólap, csempe stb.)",null,{"$f":"IFERROR(VLOOKUP(ROWS($L$2:L149),I149:$J$302,2,FALSE),\"\")","v":"Hidegburkoló (kerámia padlólap, csempe stb.)"},null,null,null,null,{"$f":"IF(--ISNUMBER(SEARCH(Díjszámítás!$C$12,A149)),MAX($Q$1:Q148)+1,\"\")","v":148},{"$f":"IFERROR(INDEX($A$2:$A$302,MATCH(ROWS($Q$2:Q149),$Q$2:$Q$302,0)),\"\")","v":"3314 Ipari villamos gép, berendezés javítása"}]
["3317 Egyéb közlekedési eszköz javítása",3,4,4,3,3,3,null,{"$f":"IF(ISNUMBER(SEARCH($H$2,'Tevékenység lista'!A150)),MAX($I$1:I149)+1,0)","v":149},"Híradástechnikai berendezések, fotócikkek kölcsönzése",null,{"$f":"IFERROR(VLOOKUP(ROWS($L$2:L150),I150:$J$302,2,FALSE),\"\")","v":"Híradástechnikai berendezések, fotócikkek kölcsönzése"},null,null,null,null,{"$f":"IF(--ISNUMBER(SEARCH(Díjszámítás!$C$12,A150)),MAX($Q$1:Q149)+1,\"\")","v":149},{"$f":"IFERROR(INDEX($A$2:$A$302,MATCH(ROWS($Q$2:Q150),$Q$2:$Q$302,0)),\"\")","v":"3317 Egyéb közlekedési eszköz javítása"}]
["4120 Lakó- és nem lakó épület építése",5,5,2,5,2,1,null,{"$f":"IF(ISNUMBER(SEARCH($H$2,'Tevékenység lista'!A151)),MAX($I$1:I150)+1,0)","v":150},"Híradástechnikai- és elektronikai alkatrészgyártás",null,{"$f":"IFERROR(VLOOKUP(ROWS($L$2:L151),I151:$J$302,2,FALSE),\"\")","v":"Híradástechnikai- és elektronikai alkatrészgyártás"},null,null,null,null,{"$f":"IF(--ISNUMBER(SEARCH(Díjszámítás!$C$12,A151)),MAX($Q$1:Q150)+1,\"\")","v":150},{"$f":"IFERROR(INDEX($A$2:$A$302,MATCH(ROWS($Q$2:Q151),$Q$2:$Q$302,0)),\"\")","v":"4120 Lakó- és nem lakó épület építése"}]
["4299 Egyéb m.n.s. építés",5,5,2,5,2,1,null,{"$f":"IF(ISNUMBER(SEARCH($H$2,'Tevékenység lista'!A152)),MAX($I$1:I151)+1,0)","v":151},"Hiradástechnikai termékek gyártása",null,{"$f":"IFERROR(VLOOKUP(ROWS($L$2:L152),I152:$J$302,2,FALSE),\"\")","v":"Hiradástechnikai termékek gyártása"},null,null,null,null,{"$f":"IF(--ISNUMBER(SEARCH(Díjszámítás!$C$12,A152)),MAX($Q$1:Q151)+1,\"\")","v":151},{"$f":"IFERROR(INDEX($A$2:$A$302,MATCH(ROWS($Q$2:Q152),$Q$2:$Q$302,0)),\"\")","v":"4299 Egyéb m.n.s. építés"}]
["4321 Villanyszerelés",5,5,2,5,1,1,null,{"$f":"IF(ISNUMBER(SEARCH($H$2,'Tevékenység lista'!A153)),MAX($I$1:I152)+1,0)","v":152},"Hirdetési tevékenység",null,{"$f":"IFERROR(VLOOKUP(ROWS($L$2:L153),I153:$J$302,2,FALSE),\"\")","v":"Hirdetési tevékenység"},null,null,null,null,{"$f":"IF(--ISNUMBER(SEARCH(Díjszámítás!$C$12,A153)),MAX($Q$1:Q152)+1,\"\")","v":152},{"$f":"IFERROR(INDEX($A$2:$A$302,MATCH(ROWS($Q$2:Q153),$Q$2:$Q$302,0)),\"\")","v":"4321 Villanyszerelés"}]
["4322 Víz-, gáz-, fűtés-, légkondicionáló-szerelés",5,5,2,5,1,1,null,{"$f":"IF(ISNUMBER(SEARCH($H$2,'Tevékenység lista'!A154)),MAX($I$1:I153)+1,0)","v":153},"Hírlapárusítás",null,{"$f":"IFERROR(VLOOKUP(ROWS($L$2:L154),I154:$J$302,2,FALSE),\"\")","v":"Hírlapárusítás"},null,null,null,null,{"$f":"IF(--ISNUMBER(SEARCH(Díjszámítás!$C$12,A154)),MAX($Q$1:Q153)+1,\"\")","v":153},{"$f":"IFERROR(INDEX($A$2:$A$302,MATCH(ROWS($Q$2:Q154),$Q$2:$Q$302,0)),\"\")","v":"4322 Víz-, gáz-, fűtés-, légkondicionáló-szerelés"}]
["4329 Egyéb épületgépészeti szerelés",5,5,2,5,2,1,null,{"$f":"IF(ISNUMBER(SEARCH($H$2,'Tevékenység lista'!A155)),MAX($I$1:I154)+1,0)","v":154},"Hordós vagy tartályos bortárolás",null,{"$f":"IFERROR(VLOOKUP(ROWS($L$2:L155),I155:$J$302,2,FALSE),\"\")","v":"Hordós vagy tartályos bortárolás"},null,null,null,null,{"$f":"IF(--ISNUMBER(SEARCH(Díjszámítás!$C$12,A155)),MAX($Q$1:Q154)+1,\"\")","v":154},{"$f":"IFERROR(INDEX($A$2:$A$302,MATCH(ROWS($Q$2:Q155),$Q$2:$Q$302,0)),\"\")","v":"4329 Egyéb épületgépészeti szerelés"}]
["4331 Vakolás",5,5,2,5,2,1,null,{"$f":"IF(ISNUMBER(SEARCH($H$2,'Tevékenység lista'!A156)),MAX($I$1:I155)+1,0)","v":155},"Horgász, vadász szaküzlet (lőfegyverek nélkül)",null,{"$f":"IFERROR(VLOOKUP(ROWS($L$2:L156),I156:$J$302,2,FALSE),\"\")","v":"Horgász, vadász szaküzlet (lőfegyverek nélkül)"},null,null,null,null,{"$f":"IF(--ISNUMBER(SEARCH(Díjszámítás!$C$12,A156)),MAX($Q$1:Q155)+1,\"\")","v":155},{"$f":"IFERROR(INDEX($A$2:$A$302,MATCH(ROWS($Q$2:Q156),$Q$2:$Q$302,0)),\"\")","v":"4331 Vakolás"}]
["4332 Épületasztalos-szerkezet szerelése",8,5,2,8,3,1,null,{"$f":"IF(ISNUMBER(SEARCH($H$2,'Tevékenység lista'!A157)),MAX($I$1:I156)+1,0)","v":156},"Hús- és halfeldogozás",null,{"$f":"IFERROR(VLOOKUP(ROWS($L$2:L157),I157:$J$302,2,FALSE),\"\")","v":"Hús- és halfeldogozás"},null,null,null,null,{"$f":"IF(--ISNUMBER(SEARCH(Díjszámítás!$C$12,A157)),MAX($Q$1:Q156)+1,\"\")","v":156},{"$f":"IFERROR(INDEX($A$2:$A$302,MATCH(ROWS($Q$2:Q157),$Q$2:$Q$302,0)),\"\")","v":"4332 Épületasztalos-szerkezet szerelése"}]
["4333 Padló-, falburkolás",6,5,2,6,1,1,null,{"$f":"IF(ISNUMBER(SEARCH($H$2,'Tevékenység lista'!A158)),MAX($I$1:I157)+1,0)","v":157},"Hús-, hal-, baromfi kereskedelem",null,{"$f":"IFERROR(VLOOKUP(ROWS($L$2:L158),I158:$J$302,2,FALSE),\"\")","v":"Hús-, hal-, baromfi kereskedelem"},null,null,null,null,{"$f":"IF(--ISNUMBER(SEARCH(Díjszámítás!$C$12,A158)),MAX($Q$1:Q157)+1,\"\")","v":157},{"$f":"IFERROR(INDEX($A$2:$A$302,MATCH(ROWS($Q$2:Q158),$Q$2:$Q$302,0)),\"\")","v":"4333 Padló-, falburkolás"}]
["4334 Festés, üvegezés",5,5,2,5,1,1,null,{"$f":"IF(ISNUMBER(SEARCH($H$2,'Tevékenység lista'!A159)),MAX($I$1:I158)+1,0)","v":158},"Ingóvagyon kölcsönzése",null,{"$f":"IFERROR(VLOOKUP(ROWS($L$2:L159),I159:$J$302,2,FALSE),\"\")","v":"Ingóvagyon kölcsönzése"},null,null,null,null,{"$f":"IF(--ISNUMBER(SEARCH(Díjszámítás!$C$12,A159)),MAX($Q$1:Q158)+1,\"\")","v":158},{"$f":"IFERROR(INDEX($A$2:$A$302,MATCH(ROWS($Q$2:Q159),$Q$2:$Q$302,0)),\"\")","v":"4334 Festés, üvegezés"}]
["4339 Egyéb befejező építés m.n.s.",5,5,2,5,2,1,null,{"$f":"IF(ISNUMBER(SEARCH($H$2,'Tevékenység lista'!A160)),MAX($I$1:I159)+1,0)","v":159},"Ipari fémtömegcikkek gyártása (forgácsolás)",null,{"$f":"IFERROR(VLOOKUP(ROWS($L$2:L160),I160:$J$302,2,FALSE),\"\")","v":"Ipari fémtömegcikkek gyártása (forgácsolás)"},null,null,null,null,{"$f":"IF(--ISNUMBER(SEARCH(Díjszámítás!$C$12,A160)),MAX($Q$1:Q159)+1,\"\")","v":159},{"$f":"IFERROR(INDEX($A$2:$A$302,MATCH(ROWS($Q$2:Q160),$Q$2:$Q$302,0)),\"\")","v":"4339 Egyéb befejező építés m.n.s."}]
["4391 Tetőfedés, tetőszerkezet-építés",5,5,3,5,2,1,null,{"$f":"IF(ISNUMBER(SEARCH($H$2,'Tevékenység lista'!A161)),MAX($I$1:I160)+1,0)","v":160},"Ipari híradástechnikai termékek gyártása",null,{"$f":"IFERROR(VLOOKUP(ROWS($L$2:L161),I161:$J$302,2,FALSE),\"\")","v":"Ipari híradástechnikai termékek gyártása"},null,null,null,null,{"$f":"IF(--ISNUMBER(SEARCH(Díjszámítás!$C$12,A161)),MAX($Q$1:Q160)+1,\"\")","v":160},{"$f":"IFERROR(INDEX($A$2:$A$302,MATCH(ROWS($Q$2:Q161),$Q$2:$Q$302,0)),\"\")","v":"4391 Tetőfedés, tetőszerkezet-építés"}]
["4399 Egyéb speciális szaképítés m.n.s.",5,5,2,5,2,1,null,{"$f":"IF(ISNUMBER(SEARCH($H$2,'Tevékenység lista'!A162)),MAX($I$1:I161)+1,0)","v":161},"Iparművészeti jellegű üveg- és porcelán kereskedelem",null,{"$f":"IFERROR(VLOOKUP(ROWS($L$2:L162),I162:$J$302,2,FALSE),\"\")","v":"Iparművészeti jellegű üveg- és porcelán kereskedelem"},null,null,null,null,{"$f":"IF(--ISNUMBER(SEARCH(Díjszámítás!$C$12,A162)),MAX($Q$1:Q161)+1,\"\")","v":161},{"$f":"IFERROR(INDEX($A$2:$A$302,MATCH(ROWS($Q$2:Q162),$Q$2:$Q$302,0)),\"\")","v":"4399 Egyéb speciális szaképítés m.n.s."}]
["4520 Gépjárműjavítás, -karbantartás",3,4,4,3,3,3,null,{"$f":"IF(ISNUMBER(SEARCH($H$2,'Tevékenység lista'!A163)),MAX($I$1:I162)+1,0)","v":162},"Iroda - irodaházban",null,{"$f":"IFERROR(VLOOKUP(ROWS($L$2:L163),I163:$J$302,2,FALSE),\"\")","v":"Iroda - irodaházban"},null,null,null,null,{"$f":"IF(--ISNUMBER(SEARCH(Díjszámítás!$C$12,A163)),MAX($Q$1:Q162)+1,\"\")","v":162},{"$f":"IFERROR(INDEX($A$2:$A$302,MATCH(ROWS($Q$2:Q163),$Q$2:$Q$302,0)),\"\")","v":"4520 Gépjárműjavítás, -karbantartás"}]
["4531 Gépjárműalkatrész-nagykereskedelem",3,4,4,3,1,1,null,{"$f":"IF(ISNUMBER(SEARCH($H$2,'Tevékenység lista'!A164)),MAX($I$1:I163)+1,0)","v":163},"Iroda - telephelyen, lakóházban",null,{"$f":"IFERROR(VLOOKUP(ROWS($L$2:L164),I164:$J$302,2,FALSE),\"\")","v":"Iroda - telephelyen, lakóházban"},null,null,null,null,{"$f":"IF(--ISNUMBER(SEARCH(Díjszámítás!$C$12,A164)),MAX($Q$1:Q163)+1,\"\")","v":163},{"$f":"IFERROR(INDEX($A$2:$A$302,MATCH(ROWS($Q$2:Q164),$Q$2:$Q$302,0)),\"\")","v":"4531 Gépjárműalkatrész-nagykereskedelem"}]
["4532 Gépjárműalkatrész-kiskereskedelem",3,4,4,3,1,1,null,{"$f":"IF(ISNUMBER(SEARCH($H$2,'Tevékenység lista'!A165)),MAX($I$1:I164)+1,0)","v":164},"Iroda- és számítógépjavítás és -karbantartás",null,{"$f":"IFERROR(VLOOKUP(ROWS($L$2:L165),I165:$J$302,2,FALSE),\"\")","v":"Iroda- és számítógépjavítás és -karbantartás"},null,null,null,null,{"$f":"IF(--ISNUMBER(SEARCH(Díjszámítás!$C$12,A165)),MAX($Q$1:Q164)+1,\"\")","v":164},{"$f":"IFERROR(INDEX($A$2:$A$302,MATCH(ROWS($Q$2:Q165),$Q$2:$Q$302,0)),\"\")","v":"4532 Gépjárműalkatrész-kiskereskedelem"}]
["4540 Motorkerékpár, -alkatrész kereskedelme, javítása",5,4,3,5,3,3,null,{"$f":"IF(ISNUMBER(SEARCH($H$2,'Tevékenység lista'!A166)),MAX($I$1:I165)+1,0)","v":165},"Irodagép- és számítógépgyártás",null,{"$f":"IFERROR(VLOOKUP(ROWS($L$2:L166),I166:$J$302,2,FALSE),\"\")","v":"Irodagép- és számítógépgyártás"},null,null,null,null,{"$f":"IF(--ISNUMBER(SEARCH(Díjszámítás!$C$12,A166)),MAX($Q$1:Q165)+1,\"\")","v":165},{"$f":"IFERROR(INDEX($A$2:$A$302,MATCH(ROWS($Q$2:Q166),$Q$2:$Q$302,0)),\"\")","v":"4540 Motorkerékpár, -alkatrész kereskedelme, javítása"}]
["4711 Élelmiszer jellegű bolti vegyes kiskereskedelem",2,2,2,2,1,1,null,{"$f":"IF(ISNUMBER(SEARCH($H$2,'Tevékenység lista'!A167)),MAX($I$1:I166)+1,0)","v":166},"Irodagépek és gépi berendezések, számítástechnikai eszközök kölcsönzése",null,{"$f":"IFERROR(VLOOKUP(ROWS($L$2:L167),I167:$J$302,2,FALSE),\"\")","v":"Irodagépek és gépi berendezések, számítástechnikai eszközök kölcsönzése"},null,null,null,null,{"$f":"IF(--ISNUMBER(SEARCH(Díjszámítás!$C$12,A167)),MAX($Q$1:Q166)+1,\"\")","v":166},{"$f":"IFERROR(INDEX($A$2:$A$302,MATCH(ROWS($Q$2:Q167),$Q$2:$Q$302,0)),\"\")","v":"4711 Élelmiszer jellegű bolti vegyes kiskereskedelem"}]
["4721 Zöldség, gyümölcs kiskereskedelme",3,2,1,3,1,1,null,{"$f":"IF(ISNUMBER(SEARCH($H$2,'Tevékenység lista'!A168)),MAX($I$1:I167)+1,0)","v":167},"Italkereskedés (szeszesital)",null,{"$f":"IFERROR(VLOOKUP(ROWS($L$2:L168),I168:$J$302,2,FALSE),\"\")","v":"Italkereskedés (szeszesital)"},null,null,null,null,{"$f":"IF(--ISNUMBER(SEARCH(Díjszámítás!$C$12,A168)),MAX($Q$1:Q167)+1,\"\")","v":167},{"$f":"IFERROR(INDEX($A$2:$A$302,MATCH(ROWS($Q$2:Q168),$Q$2:$Q$302,0)),\"\")","v":"4721 Zöldség, gyümölcs kiskereskedelme"}]
["4722 Hús-, húsáru kiskereskedelme",3,2,1,3,1,1,null,{"$f":"IF(ISNUMBER(SEARCH($H$2,'Tevékenység lista'!A169)),MAX($I$1:I168)+1,0)","v":168},"Italok raktározása, nagykereskedelem, palackozás",null,{"$f":"IFERROR(VLOOKUP(ROWS($L$2:L169),I169:$J$302,2,FALSE),\"\")","v":"Italok raktározása, nagykereskedelem, palackozás"},null,null,null,null,{"$f":"IF(--ISNUMBER(SEARCH(Díjszámítás!$C$12,A169)),MAX($Q$1:Q168)+1,\"\")","v":168},{"$f":"IFERROR(INDEX($A$2:$A$302,MATCH(ROWS($Q$2:Q169),$Q$2:$Q$302,0)),\"\")","v":"4722 Hús-, húsáru kiskereskedelme"}]
["4723 Hal kiskereskedelme",3,2,1,3,1,1,null,{"$f":"IF(ISNUMBER(SEARCH($H$2,'Tevékenység lista'!A170)),MAX($I$1:I169)+1,0)","v":169},"Járművek,  járműalkatrészek gyártása",null,{"$f":"IFERROR(VLOOKUP(ROWS($L$2:L170),I170:$J$302,2,FALSE),\"\")","v":"Járművek,  járműalkatrészek gyártása"},null,null,null,null,{"$f":"IF(--ISNUMBER(SEARCH(Díjszámítás!$C$12,A170)),MAX($Q$1:Q169)+1,\"\")","v":169},{"$f":"IFERROR(INDEX($A$2:$A$302,MATCH(ROWS($Q$2:Q170),$Q$2:$Q$302,0)),\"\")","v":"4723 Hal kiskereskedelme"}]
["4724 Kenyér-, pékáru-, édesség-kiskereskedelem ",3,2,1,3,1,1,null,{"$f":"IF(ISNUMBER(SEARCH($H$2,'Tevékenység lista'!A171)),MAX($I$1:I170)+1,0)","v":170},"Járművillamossági készülékek gyártása",null,{"$f":"IFERROR(VLOOKUP(ROWS($L$2:L171),I171:$J$302,2,FALSE),\"\")","v":"Járművillamossági készülékek gyártása"},null,null,null,null,{"$f":"IF(--ISNUMBER(SEARCH(Díjszámítás!$C$12,A171)),MAX($Q$1:Q170)+1,\"\")","v":170},{"$f":"IFERROR(INDEX($A$2:$A$302,MATCH(ROWS($Q$2:Q171),$Q$2:$Q$302,0)),\"\")","v":"4724 Kenyér-, pékáru-, édesség-kiskereskedelem "}]
["4725 Ital-kiskereskedelem ",3,2,2,3,1,1,null,{"$f":"IF(ISNUMBER(SEARCH($H$2,'Tevékenység lista'!A172)),MAX($I$1:I171)+1,0)","v":171},"Játékkereskedés",null,{"$f":"IFERROR(VLOOKUP(ROWS($L$2:L172),I172:$J$302,2,FALSE),\"\")","v":"Játékkereskedés"},null,null,null,null,{"$f":"IF(--ISNUMBER(SEARCH(Díjszámítás!$C$12,A172)),MAX($Q$1:Q171)+1,\"\")","v":171},{"$f":"IFERROR(INDEX($A$2:$A$302,MATCH(ROWS($Q$2:Q172),$Q$2:$Q$302,0)),\"\")","v":"4725 Ital-kiskereskedelem "}]
["4726 Dohányáru-kiskereskedelem ",4,2,3,4,1,1,null,{"$f":"IF(ISNUMBER(SEARCH($H$2,'Tevékenység lista'!A173)),MAX($I$1:I172)+1,0)","v":172},"Játékgyártás",null,{"$f":"IFERROR(VLOOKUP(ROWS($L$2:L173),I173:$J$302,2,FALSE),\"\")","v":"Játékgyártás"},null,null,null,null,{"$f":"IF(--ISNUMBER(SEARCH(Díjszámítás!$C$12,A173)),MAX($Q$1:Q172)+1,\"\")","v":172},{"$f":"IFERROR(INDEX($A$2:$A$302,MATCH(ROWS($Q$2:Q173),$Q$2:$Q$302,0)),\"\")","v":"4726 Dohányáru-kiskereskedelem "}]
["4729 Egyéb élelmiszer-kiskereskedelem ",2,2,2,2,1,1,null,{"$f":"IF(ISNUMBER(SEARCH($H$2,'Tevékenység lista'!A174)),MAX($I$1:I173)+1,0)","v":173},"Szórakoztató-, illetve kulturális tevékenység",null,{"$f":"IFERROR(VLOOKUP(ROWS($L$2:L174),I174:$J$302,2,FALSE),\"\")","v":"Szórakoztató-, illetve kulturális tevékenység"},null,null,null,null,{"$f":"IF(--ISNUMBER(SEARCH(Díjszámítás!$C$12,A174)),MAX($Q$1:Q173)+1,\"\")","v":173},{"$f":"IFERROR(INDEX($A$2:$A$302,MATCH(ROWS($Q$2:Q174),$Q$2:$Q$302,0)),\"\")","v":"4729 Egyéb élelmiszer-kiskereskedelem "}]
["4730 Gépjárműüzemanyag-kiskereskedelem ",3,4,4,3,3,2,null,{"$f":"IF(ISNUMBER(SEARCH($H$2,'Tevékenység lista'!A175)),MAX($I$1:I174)+1,0)","v":174},"Kaputechnika, egyéb épületgépészeti szerelés",null,{"$f":"IFERROR(VLOOKUP(ROWS($L$2:L175),I175:$J$302,2,FALSE),\"\")","v":"Kaputechnika, egyéb épületgépészeti szerelés"},null,null,null,null,{"$f":"IF(--ISNUMBER(SEARCH(Díjszámítás!$C$12,A175)),MAX($Q$1:Q174)+1,\"\")","v":174},{"$f":"IFERROR(INDEX($A$2:$A$302,MATCH(ROWS($Q$2:Q175),$Q$2:$Q$302,0)),\"\")","v":"4730 Gépjárműüzemanyag-kiskereskedelem "}]
["4741 Számítógép, periféria, szoftver kiskereskedelme ",3,2,3,3,1,1,null,{"$f":"IF(ISNUMBER(SEARCH($H$2,'Tevékenység lista'!A176)),MAX($I$1:I175)+1,0)","v":175},"Kárpitos",null,{"$f":"IFERROR(VLOOKUP(ROWS($L$2:L176),I176:$J$302,2,FALSE),\"\")","v":"Kárpitos"},null,null,null,null,{"$f":"IF(--ISNUMBER(SEARCH(Díjszámítás!$C$12,A176)),MAX($Q$1:Q175)+1,\"\")","v":175},{"$f":"IFERROR(INDEX($A$2:$A$302,MATCH(ROWS($Q$2:Q176),$Q$2:$Q$302,0)),\"\")","v":"4741 Számítógép, periféria, szoftver kiskereskedelme "}]
["4742 Telekommunikációs termék kiskereskedelme",2,2,4,2,3,3,null,{"$f":"IF(ISNUMBER(SEARCH($H$2,'Tevékenység lista'!A177)),MAX($I$1:I176)+1,0)","v":176},"Kávépörkölés, forgalmazás",null,{"$f":"IFERROR(VLOOKUP(ROWS($L$2:L177),I177:$J$302,2,FALSE),\"\")","v":"Kávépörkölés, forgalmazás"},null,null,null,null,{"$f":"IF(--ISNUMBER(SEARCH(Díjszámítás!$C$12,A177)),MAX($Q$1:Q176)+1,\"\")","v":176},{"$f":"IFERROR(INDEX($A$2:$A$302,MATCH(ROWS($Q$2:Q177),$Q$2:$Q$302,0)),\"\")","v":"4742 Telekommunikációs termék kiskereskedelme"}]
["4743 Audio-, videoberendezés kiskereskedelme",3,2,4,3,1,1,null,{"$f":"IF(ISNUMBER(SEARCH($H$2,'Tevékenység lista'!A178)),MAX($I$1:I177)+1,0)","v":177},"Képkeretező",null,{"$f":"IFERROR(VLOOKUP(ROWS($L$2:L178),I178:$J$302,2,FALSE),\"\")","v":"Képkeretező"},null,null,null,null,{"$f":"IF(--ISNUMBER(SEARCH(Díjszámítás!$C$12,A178)),MAX($Q$1:Q177)+1,\"\")","v":177},{"$f":"IFERROR(INDEX($A$2:$A$302,MATCH(ROWS($Q$2:Q178),$Q$2:$Q$302,0)),\"\")","v":"4743 Audio-, videoberendezés kiskereskedelme"}]
["4751 Textil-kiskereskedelem",3,2,2,3,1,1,null,{"$f":"IF(ISNUMBER(SEARCH($H$2,'Tevékenység lista'!A179)),MAX($I$1:I178)+1,0)","v":178},"Képző- és iparművészeti tárgyak kereskedelme",null,{"$f":"IFERROR(VLOOKUP(ROWS($L$2:L179),I179:$J$302,2,FALSE),\"\")","v":"Képző- és iparművészeti tárgyak kereskedelme"},null,null,null,null,{"$f":"IF(--ISNUMBER(SEARCH(Díjszámítás!$C$12,A179)),MAX($Q$1:Q178)+1,\"\")","v":178},{"$f":"IFERROR(INDEX($A$2:$A$302,MATCH(ROWS($Q$2:Q179),$Q$2:$Q$302,0)),\"\")","v":"4751 Textil-kiskereskedelem"}]
["4752 Vasáru-, festék-, üveg-kiskereskedelem ",2,2,4,2,1,1,null,{"$f":"IF(ISNUMBER(SEARCH($H$2,'Tevékenység lista'!A180)),MAX($I$1:I179)+1,0)","v":179},"Képzőművészeti tárgyak, festmények kereskedelme",null,{"$f":"IFERROR(VLOOKUP(ROWS($L$2:L180),I180:$J$302,2,FALSE),\"\")","v":"Képzőművészeti tárgyak, festmények kereskedelme"},null,null,null,null,{"$f":"IF(--ISNUMBER(SEARCH(Díjszámítás!$C$12,A180)),MAX($Q$1:Q179)+1,\"\")","v":179},{"$f":"IFERROR(INDEX($A$2:$A$302,MATCH(ROWS($Q$2:Q180),$Q$2:$Q$302,0)),\"\")","v":"4752 Vasáru-, festék-, üveg-kiskereskedelem "}]
["4753 Takaró, szőnyeg, fal-, padlóburkoló kiskereskedelme",4,2,2,4,1,1,null,{"$f":"IF(ISNUMBER(SEARCH($H$2,'Tevékenység lista'!A181)),MAX($I$1:I180)+1,0)","v":180},"Kerámiacsempék és -lapok gyártása",null,{"$f":"IFERROR(VLOOKUP(ROWS($L$2:L181),I181:$J$302,2,FALSE),\"\")","v":"Kerámiacsempék és -lapok gyártása"},null,null,null,null,{"$f":"IF(--ISNUMBER(SEARCH(Díjszámítás!$C$12,A181)),MAX($Q$1:Q180)+1,\"\")","v":180},{"$f":"IFERROR(INDEX($A$2:$A$302,MATCH(ROWS($Q$2:Q181),$Q$2:$Q$302,0)),\"\")","v":"4753 Takaró, szőnyeg, fal-, padlóburkoló kiskereskedelme"}]
["4754 Villamos háztartási készülék kiskereskedelme",4,2,3,4,1,1,null,{"$f":"IF(ISNUMBER(SEARCH($H$2,'Tevékenység lista'!A182)),MAX($I$1:I181)+1,0)","v":181},"Kerékpár és -alkatrész kereskedelem",null,{"$f":"IFERROR(VLOOKUP(ROWS($L$2:L182),I182:$J$302,2,FALSE),\"\")","v":"Kerékpár és -alkatrész kereskedelem"},null,null,null,null,{"$f":"IF(--ISNUMBER(SEARCH(Díjszámítás!$C$12,A182)),MAX($Q$1:Q181)+1,\"\")","v":181},{"$f":"IFERROR(INDEX($A$2:$A$302,MATCH(ROWS($Q$2:Q182),$Q$2:$Q$302,0)),\"\")","v":"4754 Villamos háztartási készülék kiskereskedelme"}]
["4759 Bútor, világítási eszköz, egyéb háztartási cikk kiskereskedelme",6,2,3,6,1,1,null,{"$f":"IF(ISNUMBER(SEARCH($H$2,'Tevékenység lista'!A183)),MAX($I$1:I182)+1,0)","v":182},"Kerékpár és motorkerékpár gyártása",null,{"$f":"IFERROR(VLOOKUP(ROWS($L$2:L183),I183:$J$302,2,FALSE),\"\")","v":"Kerékpár és motorkerékpár gyártása"},null,null,null,null,{"$f":"IF(--ISNUMBER(SEARCH(Díjszámítás!$C$12,A183)),MAX($Q$1:Q182)+1,\"\")","v":182},{"$f":"IFERROR(INDEX($A$2:$A$302,MATCH(ROWS($Q$2:Q183),$Q$2:$Q$302,0)),\"\")","v":"4759 Bútor, világítási eszköz, egyéb háztartási cikk kiskereskedelme"}]
["4761 Könyv-kiskereskedelem",4,2,2,4,1,1,null,{"$f":"IF(ISNUMBER(SEARCH($H$2,'Tevékenység lista'!A184)),MAX($I$1:I183)+1,0)","v":183},"Kert- és parképítés",null,{"$f":"IFERROR(VLOOKUP(ROWS($L$2:L184),I184:$J$302,2,FALSE),\"\")","v":"Kert- és parképítés"},null,null,null,null,{"$f":"IF(--ISNUMBER(SEARCH(Díjszámítás!$C$12,A184)),MAX($Q$1:Q183)+1,\"\")","v":183},{"$f":"IFERROR(INDEX($A$2:$A$302,MATCH(ROWS($Q$2:Q184),$Q$2:$Q$302,0)),\"\")","v":"4761 Könyv-kiskereskedelem"}]
["4762 Újság-, papíráru-kiskereskedelem ",4,2,1,4,1,1,null,{"$f":"IF(ISNUMBER(SEARCH($H$2,'Tevékenység lista'!A185)),MAX($I$1:I184)+1,0)","v":184},"Kézi- és gépszerszámgyártás",null,{"$f":"IFERROR(VLOOKUP(ROWS($L$2:L185),I185:$J$302,2,FALSE),\"\")","v":"Kézi- és gépszerszámgyártás"},null,null,null,null,{"$f":"IF(--ISNUMBER(SEARCH(Díjszámítás!$C$12,A185)),MAX($Q$1:Q184)+1,\"\")","v":184},{"$f":"IFERROR(INDEX($A$2:$A$302,MATCH(ROWS($Q$2:Q185),$Q$2:$Q$302,0)),\"\")","v":"4762 Újság-, papíráru-kiskereskedelem "}]
["4763 Zene-, videofelvétel kiskereskedelme",3,2,3,3,1,1,null,{"$f":"IF(ISNUMBER(SEARCH($H$2,'Tevékenység lista'!A186)),MAX($I$1:I185)+1,0)","v":185},"Kézműipari textiláruk előállítása",null,{"$f":"IFERROR(VLOOKUP(ROWS($L$2:L186),I186:$J$302,2,FALSE),\"\")","v":"Kézműipari textiláruk előállítása"},null,null,null,null,{"$f":"IF(--ISNUMBER(SEARCH(Díjszámítás!$C$12,A186)),MAX($Q$1:Q185)+1,\"\")","v":185},{"$f":"IFERROR(INDEX($A$2:$A$302,MATCH(ROWS($Q$2:Q186),$Q$2:$Q$302,0)),\"\")","v":"4763 Zene-, videofelvétel kiskereskedelme"}]
["4764 Sportszer-kiskereskedelem",3,2,2,3,1,1,null,{"$f":"IF(ISNUMBER(SEARCH($H$2,'Tevékenység lista'!A187)),MAX($I$1:I186)+1,0)","v":186},"Kisállatkozmetika",null,{"$f":"IFERROR(VLOOKUP(ROWS($L$2:L187),I187:$J$302,2,FALSE),\"\")","v":"Kisállatkozmetika"},null,null,null,null,{"$f":"IF(--ISNUMBER(SEARCH(Díjszámítás!$C$12,A187)),MAX($Q$1:Q186)+1,\"\")","v":186},{"$f":"IFERROR(INDEX($A$2:$A$302,MATCH(ROWS($Q$2:Q187),$Q$2:$Q$302,0)),\"\")","v":"4764 Sportszer-kiskereskedelem"}]
["4765 Játék-kiskereskedelem",3,2,2,3,1,1,null,{"$f":"IF(ISNUMBER(SEARCH($H$2,'Tevékenység lista'!A188)),MAX($I$1:I187)+1,0)","v":187},"Kisállatkereskedés",null,{"$f":"IFERROR(VLOOKUP(ROWS($L$2:L188),I188:$J$302,2,FALSE),\"\")","v":"Kisállatkereskedés"},null,null,null,null,{"$f":"IF(--ISNUMBER(SEARCH(Díjszámítás!$C$12,A188)),MAX($Q$1:Q187)+1,\"\")","v":187},{"$f":"IFERROR(INDEX($A$2:$A$302,MATCH(ROWS($Q$2:Q188),$Q$2:$Q$302,0)),\"\")","v":"4765 Játék-kiskereskedelem"}]
["4771 Ruházat kiskereskedelem",3,2,2,3,1,1,null,{"$f":"IF(ISNUMBER(SEARCH($H$2,'Tevékenység lista'!A189)),MAX($I$1:I188)+1,0)","v":188},"Klímaberendezések forgalmazása, telepítése",null,{"$f":"IFERROR(VLOOKUP(ROWS($L$2:L189),I189:$J$302,2,FALSE),\"\")","v":"Klímaberendezések forgalmazása, telepítése"},null,null,null,null,{"$f":"IF(--ISNUMBER(SEARCH(Díjszámítás!$C$12,A189)),MAX($Q$1:Q188)+1,\"\")","v":188},{"$f":"IFERROR(INDEX($A$2:$A$302,MATCH(ROWS($Q$2:Q189),$Q$2:$Q$302,0)),\"\")","v":"4771 Ruházat kiskereskedelem"}]
["4772 Lábbeli-, bőráru-kiskereskedelem",3,2,2,3,1,1,null,{"$f":"IF(ISNUMBER(SEARCH($H$2,'Tevékenység lista'!A190)),MAX($I$1:I189)+1,0)","v":189},"Klímaberendezések gyártása",null,{"$f":"IFERROR(VLOOKUP(ROWS($L$2:L190),I190:$J$302,2,FALSE),\"\")","v":"Klímaberendezések gyártása"},null,null,null,null,{"$f":"IF(--ISNUMBER(SEARCH(Díjszámítás!$C$12,A190)),MAX($Q$1:Q189)+1,\"\")","v":189},{"$f":"IFERROR(INDEX($A$2:$A$302,MATCH(ROWS($Q$2:Q190),$Q$2:$Q$302,0)),\"\")","v":"4772 Lábbeli-, bőráru-kiskereskedelem"}]
["4773 Gyógyszer-kiskereskedelem ",2,2,3,2,1,1,null,{"$f":"IF(ISNUMBER(SEARCH($H$2,'Tevékenység lista'!A191)),MAX($I$1:I190)+1,0)","v":190},"Konfekció kereskedelem",null,{"$f":"IFERROR(VLOOKUP(ROWS($L$2:L191),I191:$J$302,2,FALSE),\"\")","v":"Konfekció kereskedelem"},null,null,null,null,{"$f":"IF(--ISNUMBER(SEARCH(Díjszámítás!$C$12,A191)),MAX($Q$1:Q190)+1,\"\")","v":190},{"$f":"IFERROR(INDEX($A$2:$A$302,MATCH(ROWS($Q$2:Q191),$Q$2:$Q$302,0)),\"\")","v":"4773 Gyógyszer-kiskereskedelem "}]
["4774 Gyógyászati termék kiskereskedelme ",4,2,1,4,1,1,null,{"$f":"IF(ISNUMBER(SEARCH($H$2,'Tevékenység lista'!A192)),MAX($I$1:I191)+1,0)","v":191},"Konfekcióáruk gyártása (textil)",null,{"$f":"IFERROR(VLOOKUP(ROWS($L$2:L192),I192:$J$302,2,FALSE),\"\")","v":"Konfekcióáruk gyártása (textil)"},null,null,null,null,{"$f":"IF(--ISNUMBER(SEARCH(Díjszámítás!$C$12,A192)),MAX($Q$1:Q191)+1,\"\")","v":191},{"$f":"IFERROR(INDEX($A$2:$A$302,MATCH(ROWS($Q$2:Q192),$Q$2:$Q$302,0)),\"\")","v":"4774 Gyógyászati termék kiskereskedelme "}]
["4775 Illatszer-kiskereskedelem ",4,4,3,4,1,1,null,{"$f":"IF(ISNUMBER(SEARCH($H$2,'Tevékenység lista'!A193)),MAX($I$1:I192)+1,0)","v":192},"Konzervgyártás és egyéb tartósított termékek előállítása",null,{"$f":"IFERROR(VLOOKUP(ROWS($L$2:L193),I193:$J$302,2,FALSE),\"\")","v":"Konzervgyártás és egyéb tartósított termékek előállítása"},null,null,null,null,{"$f":"IF(--ISNUMBER(SEARCH(Díjszámítás!$C$12,A193)),MAX($Q$1:Q192)+1,\"\")","v":192},{"$f":"IFERROR(INDEX($A$2:$A$302,MATCH(ROWS($Q$2:Q193),$Q$2:$Q$302,0)),\"\")","v":"4775 Illatszer-kiskereskedelem "}]
["4776 Dísznövény, vetőmag, műtrágya, hobbiállat-eledel kiskereskedelme",3,2,1,3,1,1,null,{"$f":"IF(ISNUMBER(SEARCH($H$2,'Tevékenység lista'!A194)),MAX($I$1:I193)+1,0)","v":193},"Konyhabútor és konyhafelszerelési cikkek kereskedelme",null,{"$f":"IFERROR(VLOOKUP(ROWS($L$2:L194),I194:$J$302,2,FALSE),\"\")","v":"Konyhabútor és konyhafelszerelési cikkek kereskedelme"},null,null,null,null,{"$f":"IF(--ISNUMBER(SEARCH(Díjszámítás!$C$12,A194)),MAX($Q$1:Q193)+1,\"\")","v":193},{"$f":"IFERROR(INDEX($A$2:$A$302,MATCH(ROWS($Q$2:Q194),$Q$2:$Q$302,0)),\"\")","v":"4776 Dísznövény, vetőmag, műtrágya, hobbiállat-eledel kiskereskedelme"}]
["4782 Textil, ruházat, lábbeli piaci kiskereskedelme",3,2,2,3,1,1,null,{"$f":"IF(ISNUMBER(SEARCH($H$2,'Tevékenység lista'!A195)),MAX($I$1:I194)+1,0)","v":194},"Kozmetikai cikk, illatszer kereskedelem (drogéria)",null,{"$f":"IFERROR(VLOOKUP(ROWS($L$2:L195),I195:$J$302,2,FALSE),\"\")","v":"Kozmetikai cikk, illatszer kereskedelem (drogéria)"},null,null,null,null,{"$f":"IF(--ISNUMBER(SEARCH(Díjszámítás!$C$12,A195)),MAX($Q$1:Q194)+1,\"\")","v":194},{"$f":"IFERROR(INDEX($A$2:$A$302,MATCH(ROWS($Q$2:Q195),$Q$2:$Q$302,0)),\"\")","v":"4782 Textil, ruházat, lábbeli piaci kiskereskedelme"}]
["5510 Szállodai szolgáltatás",2,3,2,2,2,2,null,{"$f":"IF(ISNUMBER(SEARCH($H$2,'Tevékenység lista'!A196)),MAX($I$1:I195)+1,0)","v":195},"Kozmetikai szalon",null,{"$f":"IFERROR(VLOOKUP(ROWS($L$2:L196),I196:$J$302,2,FALSE),\"\")","v":"Kozmetikai szalon"},null,null,null,null,{"$f":"IF(--ISNUMBER(SEARCH(Díjszámítás!$C$12,A196)),MAX($Q$1:Q195)+1,\"\")","v":195},{"$f":"IFERROR(INDEX($A$2:$A$302,MATCH(ROWS($Q$2:Q196),$Q$2:$Q$302,0)),\"\")","v":"5510 Szállodai szolgáltatás"}]
["5520 Üdülési, egyéb átmeneti szálláshely-szolgáltatás",2,3,2,2,2,2,null,{"$f":"IF(ISNUMBER(SEARCH($H$2,'Tevékenység lista'!A197)),MAX($I$1:I196)+1,0)","v":196},"Könyv- és lapnyomás",null,{"$f":"IFERROR(VLOOKUP(ROWS($L$2:L197),I197:$J$302,2,FALSE),\"\")","v":"Könyv- és lapnyomás"},null,null,null,null,{"$f":"IF(--ISNUMBER(SEARCH(Díjszámítás!$C$12,A197)),MAX($Q$1:Q196)+1,\"\")","v":196},{"$f":"IFERROR(INDEX($A$2:$A$302,MATCH(ROWS($Q$2:Q197),$Q$2:$Q$302,0)),\"\")","v":"5520 Üdülési, egyéb átmeneti szálláshely-szolgáltatás"}]
["5590 Egyéb szálláshely-szolgáltatás",2,3,2,2,2,2,null,{"$f":"IF(ISNUMBER(SEARCH($H$2,'Tevékenység lista'!A198)),MAX($I$1:I197)+1,0)","v":197},"Könyvkereskedés",null,{"$f":"IFERROR(VLOOKUP(ROWS($L$2:L198),I198:$J$302,2,FALSE),\"\")","v":"Könyvkereskedés"},null,null,null,null,{"$f":"IF(--ISNUMBER(SEARCH(Díjszámítás!$C$12,A198)),MAX($Q$1:Q197)+1,\"\")","v":197},{"$f":"IFERROR(INDEX($A$2:$A$302,MATCH(ROWS($Q$2:Q198),$Q$2:$Q$302,0)),\"\")","v":"5590 Egyéb szálláshely-szolgáltatás"}]
["5610 Éttermi, mozgó vendéglátás",4,3,2,4,2,1,null,{"$f":"IF(ISNUMBER(SEARCH($H$2,'Tevékenység lista'!A199)),MAX($I$1:I198)+1,0)","v":198},"Könyvkötés",null,{"$f":"IFERROR(VLOOKUP(ROWS($L$2:L199),I199:$J$302,2,FALSE),\"\")","v":"Könyvkötés"},null,null,null,null,{"$f":"IF(--ISNUMBER(SEARCH(Díjszámítás!$C$12,A199)),MAX($Q$1:Q198)+1,\"\")","v":198},{"$f":"IFERROR(INDEX($A$2:$A$302,MATCH(ROWS($Q$2:Q199),$Q$2:$Q$302,0)),\"\")","v":"5610 Éttermi, mozgó vendéglátás"}]
["5621 Rendezvényi étkeztetés",4,3,2,4,2,1,null,{"$f":"IF(ISNUMBER(SEARCH($H$2,'Tevékenység lista'!A200)),MAX($I$1:I199)+1,0)","v":199},"Könyvtári tevékenység",null,{"$f":"IFERROR(VLOOKUP(ROWS($L$2:L200),I200:$J$302,2,FALSE),\"\")","v":"Könyvtári tevékenység"},null,null,null,null,{"$f":"IF(--ISNUMBER(SEARCH(Díjszámítás!$C$12,A200)),MAX($Q$1:Q199)+1,\"\")","v":199},{"$f":"IFERROR(INDEX($A$2:$A$302,MATCH(ROWS($Q$2:Q200),$Q$2:$Q$302,0)),\"\")","v":"5621 Rendezvényi étkeztetés"}]
["5629 Egyéb vendéglátás",4,3,3,4,1,2,null,{"$f":"IF(ISNUMBER(SEARCH($H$2,'Tevékenység lista'!A201)),MAX($I$1:I200)+1,0)","v":200},"Kötött kelmék és cikkek gyártása",null,{"$f":"IFERROR(VLOOKUP(ROWS($L$2:L201),I201:$J$302,2,FALSE),\"\")","v":"Kötött kelmék és cikkek gyártása"},null,null,null,null,{"$f":"IF(--ISNUMBER(SEARCH(Díjszámítás!$C$12,A201)),MAX($Q$1:Q200)+1,\"\")","v":200},{"$f":"IFERROR(INDEX($A$2:$A$302,MATCH(ROWS($Q$2:Q201),$Q$2:$Q$302,0)),\"\")","v":"5629 Egyéb vendéglátás"}]
["5630 Italszolgáltatás",4,3,3,4,1,2,null,{"$f":"IF(ISNUMBER(SEARCH($H$2,'Tevékenység lista'!A202)),MAX($I$1:I201)+1,0)","v":201},"Kötöttáru kereskedelem",null,{"$f":"IFERROR(VLOOKUP(ROWS($L$2:L202),I202:$J$302,2,FALSE),\"\")","v":"Kötöttáru kereskedelem"},null,null,null,null,{"$f":"IF(--ISNUMBER(SEARCH(Díjszámítás!$C$12,A202)),MAX($Q$1:Q201)+1,\"\")","v":201},{"$f":"IFERROR(INDEX($A$2:$A$302,MATCH(ROWS($Q$2:Q202),$Q$2:$Q$302,0)),\"\")","v":"5630 Italszolgáltatás"}]
["5811 Könyvkiadás",4,4,1,4,4,1,null,{"$f":"IF(ISNUMBER(SEARCH($H$2,'Tevékenység lista'!A203)),MAX($I$1:I202)+1,0)","v":202},"Középfokú oktatás",null,{"$f":"IFERROR(VLOOKUP(ROWS($L$2:L203),I203:$J$302,2,FALSE),\"\")","v":"Középfokú oktatás"},null,null,null,null,{"$f":"IF(--ISNUMBER(SEARCH(Díjszámítás!$C$12,A203)),MAX($Q$1:Q202)+1,\"\")","v":202},{"$f":"IFERROR(INDEX($A$2:$A$302,MATCH(ROWS($Q$2:Q203),$Q$2:$Q$302,0)),\"\")","v":"5811 Könyvkiadás"}]
["5813 Napilapkiadás",4,4,1,4,4,1,null,{"$f":"IF(ISNUMBER(SEARCH($H$2,'Tevékenység lista'!A204)),MAX($I$1:I203)+1,0)","v":203},"Közhasználatú fémtömegcikkek gyártása",null,{"$f":"IFERROR(VLOOKUP(ROWS($L$2:L204),I204:$J$302,2,FALSE),\"\")","v":"Közhasználatú fémtömegcikkek gyártása"},null,null,null,null,{"$f":"IF(--ISNUMBER(SEARCH(Díjszámítás!$C$12,A204)),MAX($Q$1:Q203)+1,\"\")","v":203},{"$f":"IFERROR(INDEX($A$2:$A$302,MATCH(ROWS($Q$2:Q204),$Q$2:$Q$302,0)),\"\")","v":"5813 Napilapkiadás"}]
["5814 Folyóirat, időszaki kiadvány kiadása",4,4,1,4,4,1,null,{"$f":"IF(ISNUMBER(SEARCH($H$2,'Tevékenység lista'!A205)),MAX($I$1:I204)+1,0)","v":204},"Központi fűtési kazán és radiátor gyártása",null,{"$f":"IFERROR(VLOOKUP(ROWS($L$2:L205),I205:$J$302,2,FALSE),\"\")","v":"Központi fűtési kazán és radiátor gyártása"},null,null,null,null,{"$f":"IF(--ISNUMBER(SEARCH(Díjszámítás!$C$12,A205)),MAX($Q$1:Q204)+1,\"\")","v":204},{"$f":"IFERROR(INDEX($A$2:$A$302,MATCH(ROWS($Q$2:Q205),$Q$2:$Q$302,0)),\"\")","v":"5814 Folyóirat, időszaki kiadvány kiadása"}]
["5819 Egyéb kiadói tevékenység",4,4,1,4,4,1,null,{"$f":"IF(ISNUMBER(SEARCH($H$2,'Tevékenység lista'!A206)),MAX($I$1:I205)+1,0)","v":205},"Közszükségleti fémtömegcikk (zár, lakat, csavar, szeg stb.) kereskedelem",null,{"$f":"IFERROR(VLOOKUP(ROWS($L$2:L206),I206:$J$302,2,FALSE),\"\")","v":"Közszükségleti fémtömegcikk (zár, lakat, csavar, szeg stb.) kereskedelem"},null,null,null,null,{"$f":"IF(--ISNUMBER(SEARCH(Díjszámítás!$C$12,A206)),MAX($Q$1:Q205)+1,\"\")","v":205},{"$f":"IFERROR(INDEX($A$2:$A$302,MATCH(ROWS($Q$2:Q206),$Q$2:$Q$302,0)),\"\")","v":"5819 Egyéb kiadói tevékenység"}]
["5911 Film-, video-, televízióműsor-gyártás",3,4,3,3,4,4,null,{"$f":"IF(ISNUMBER(SEARCH($H$2,'Tevékenység lista'!A207)),MAX($I$1:I206)+1,0)","v":206},"Kulcsmásolás",null,{"$f":"IFERROR(VLOOKUP(ROWS($L$2:L207),I207:$J$302,2,FALSE),\"\")","v":"Kulcsmásolás"},null,null,null,null,{"$f":"IF(--ISNUMBER(SEARCH(Díjszámítás!$C$12,A207)),MAX($Q$1:Q206)+1,\"\")","v":206},{"$f":"IFERROR(INDEX($A$2:$A$302,MATCH(ROWS($Q$2:Q207),$Q$2:$Q$302,0)),\"\")","v":"5911 Film-, video-, televízióműsor-gyártás"}]
["5912 Film-, videogyártás, televíziós műsorfelvétel utómunkálatai",3,4,3,3,4,4,null,{"$f":"IF(ISNUMBER(SEARCH($H$2,'Tevékenység lista'!A208)),MAX($I$1:I207)+1,0)","v":207},"Kultúrcikk kereskedelem",null,{"$f":"IFERROR(VLOOKUP(ROWS($L$2:L208),I208:$J$302,2,FALSE),\"\")","v":"Kultúrcikk kereskedelem"},null,null,null,null,{"$f":"IF(--ISNUMBER(SEARCH(Díjszámítás!$C$12,A208)),MAX($Q$1:Q207)+1,\"\")","v":207},{"$f":"IFERROR(INDEX($A$2:$A$302,MATCH(ROWS($Q$2:Q208),$Q$2:$Q$302,0)),\"\")","v":"5912 Film-, videogyártás, televíziós műsorfelvétel utómunkálatai"}]
["5914 Filmvetítés",4,1,2,4,3,3,null,{"$f":"IF(ISNUMBER(SEARCH($H$2,'Tevékenység lista'!A209)),MAX($I$1:I208)+1,0)","v":208},"Lábbeligyártás",null,{"$f":"IFERROR(VLOOKUP(ROWS($L$2:L209),I209:$J$302,2,FALSE),\"\")","v":"Lábbeligyártás"},null,null,null,null,{"$f":"IF(--ISNUMBER(SEARCH(Díjszámítás!$C$12,A209)),MAX($Q$1:Q208)+1,\"\")","v":208},{"$f":"IFERROR(INDEX($A$2:$A$302,MATCH(ROWS($Q$2:Q209),$Q$2:$Q$302,0)),\"\")","v":"5914 Filmvetítés"}]
["5920 Hangfelvétel készítése, kiadása",4,4,2,4,1,3,null,{"$f":"IF(ISNUMBER(SEARCH($H$2,'Tevékenység lista'!A210)),MAX($I$1:I209)+1,0)","v":209},"Lakásfelszerelési cikkek (kivéve bútor) kereskedelme",null,{"$f":"IFERROR(VLOOKUP(ROWS($L$2:L210),I210:$J$302,2,FALSE),\"\")","v":"Lakásfelszerelési cikkek (kivéve bútor) kereskedelme"},null,null,null,null,{"$f":"IF(--ISNUMBER(SEARCH(Díjszámítás!$C$12,A210)),MAX($Q$1:Q209)+1,\"\")","v":209},{"$f":"IFERROR(INDEX($A$2:$A$302,MATCH(ROWS($Q$2:Q210),$Q$2:$Q$302,0)),\"\")","v":"5920 Hangfelvétel készítése, kiadása"}]
["6010 Rádióműsor-szolgáltatás",3,4,3,3,4,4,null,{"$f":"IF(ISNUMBER(SEARCH($H$2,'Tevékenység lista'!A211)),MAX($I$1:I210)+1,0)","v":210},"Lakásszerviz szolgáltatás (zár-, villany-, víz stb. szerelés)",null,{"$f":"IFERROR(VLOOKUP(ROWS($L$2:L211),I211:$J$302,2,FALSE),\"\")","v":"Lakásszerviz szolgáltatás (zár-, villany-, víz stb. szerelés)"},null,null,null,null,{"$f":"IF(--ISNUMBER(SEARCH(Díjszámítás!$C$12,A211)),MAX($Q$1:Q210)+1,\"\")","v":210},{"$f":"IFERROR(INDEX($A$2:$A$302,MATCH(ROWS($Q$2:Q211),$Q$2:$Q$302,0)),\"\")","v":"6010 Rádióműsor-szolgáltatás"}]
["6020 Televízióműsor összeállítása, szolgáltatása",3,4,3,3,4,4,null,{"$f":"IF(ISNUMBER(SEARCH($H$2,'Tevékenység lista'!A212)),MAX($I$1:I211)+1,0)","v":211},"Látszerész, optikai kereskedés",null,{"$f":"IFERROR(VLOOKUP(ROWS($L$2:L212),I212:$J$302,2,FALSE),\"\")","v":"Látszerész, optikai kereskedés"},null,null,null,null,{"$f":"IF(--ISNUMBER(SEARCH(Díjszámítás!$C$12,A212)),MAX($Q$1:Q211)+1,\"\")","v":211},{"$f":"IFERROR(INDEX($A$2:$A$302,MATCH(ROWS($Q$2:Q212),$Q$2:$Q$302,0)),\"\")","v":"6020 Televízióműsor összeállítása, szolgáltatása"}]
["6201 Számítógépes programozás",2,1,1,2,2,2,null,{"$f":"IF(ISNUMBER(SEARCH($H$2,'Tevékenység lista'!A213)),MAX($I$1:I212)+1,0)","v":212},"Látszerészeti és optikai eszközök javítása",null,{"$f":"IFERROR(VLOOKUP(ROWS($L$2:L213),I213:$J$302,2,FALSE),\"\")","v":"Látszerészeti és optikai eszközök javítása"},null,null,null,null,{"$f":"IF(--ISNUMBER(SEARCH(Díjszámítás!$C$12,A213)),MAX($Q$1:Q212)+1,\"\")","v":212},{"$f":"IFERROR(INDEX($A$2:$A$302,MATCH(ROWS($Q$2:Q213),$Q$2:$Q$302,0)),\"\")","v":"6201 Számítógépes programozás"}]
["6203 Számítógép-üzemeltetés ",3,5,3,3,1,2,null,{"$f":"IF(ISNUMBER(SEARCH($H$2,'Tevékenység lista'!A214)),MAX($I$1:I213)+1,0)","v":213},"Látszerészeti, optikai és fényképészeti eszközök gyártása",null,{"$f":"IFERROR(VLOOKUP(ROWS($L$2:L214),I214:$J$302,2,FALSE),\"\")","v":"Látszerészeti, optikai és fényképészeti eszközök gyártása"},null,null,null,null,{"$f":"IF(--ISNUMBER(SEARCH(Díjszámítás!$C$12,A214)),MAX($Q$1:Q213)+1,\"\")","v":213},{"$f":"IFERROR(INDEX($A$2:$A$302,MATCH(ROWS($Q$2:Q214),$Q$2:$Q$302,0)),\"\")","v":"6203 Számítógép-üzemeltetés "}]
["6419 Egyéb monetáris közvetítés",2,1,3,2,1,2,null,{"$f":"IF(ISNUMBER(SEARCH($H$2,'Tevékenység lista'!A215)),MAX($I$1:I214)+1,0)","v":214},"Len- és kenderfonás, szövés",null,{"$f":"IFERROR(VLOOKUP(ROWS($L$2:L215),I215:$J$302,2,FALSE),\"\")","v":"Len- és kenderfonás, szövés"},null,null,null,null,{"$f":"IF(--ISNUMBER(SEARCH(Díjszámítás!$C$12,A215)),MAX($Q$1:Q214)+1,\"\")","v":214},{"$f":"IFERROR(INDEX($A$2:$A$302,MATCH(ROWS($Q$2:Q215),$Q$2:$Q$302,0)),\"\")","v":"6419 Egyéb monetáris közvetítés"}]
["6420 Vagyonkezelés (holding)",2,1,1,2,2,2,null,{"$f":"IF(ISNUMBER(SEARCH($H$2,'Tevékenység lista'!A216)),MAX($I$1:I215)+1,0)","v":215},"Malomipari termékek kereskedelme",null,{"$f":"IFERROR(VLOOKUP(ROWS($L$2:L216),I216:$J$302,2,FALSE),\"\")","v":"Malomipari termékek kereskedelme"},null,null,null,null,{"$f":"IF(--ISNUMBER(SEARCH(Díjszámítás!$C$12,A216)),MAX($Q$1:Q215)+1,\"\")","v":215},{"$f":"IFERROR(INDEX($A$2:$A$302,MATCH(ROWS($Q$2:Q216),$Q$2:$Q$302,0)),\"\")","v":"6420 Vagyonkezelés (holding)"}]
["6430 Befektetési alapok és hasonlók",2,1,3,2,1,2,null,{"$f":"IF(ISNUMBER(SEARCH($H$2,'Tevékenység lista'!A217)),MAX($I$1:I216)+1,0)","v":216},"Manikűr és pedikűr",null,{"$f":"IFERROR(VLOOKUP(ROWS($L$2:L217),I217:$J$302,2,FALSE),\"\")","v":"Manikűr és pedikűr"},null,null,null,null,{"$f":"IF(--ISNUMBER(SEARCH(Díjszámítás!$C$12,A217)),MAX($Q$1:Q216)+1,\"\")","v":216},{"$f":"IFERROR(INDEX($A$2:$A$302,MATCH(ROWS($Q$2:Q217),$Q$2:$Q$302,0)),\"\")","v":"6430 Befektetési alapok és hasonlók"}]
["6491 Pénzügyi lízing",2,1,3,2,1,2,null,{"$f":"IF(ISNUMBER(SEARCH($H$2,'Tevékenység lista'!A218)),MAX($I$1:I217)+1,0)","v":217},"Melegburkoló (parketta, szőnyegpadló stb.)",null,{"$f":"IFERROR(VLOOKUP(ROWS($L$2:L218),I218:$J$302,2,FALSE),\"\")","v":"Melegburkoló (parketta, szőnyegpadló stb.)"},null,null,null,null,{"$f":"IF(--ISNUMBER(SEARCH(Díjszámítás!$C$12,A218)),MAX($Q$1:Q217)+1,\"\")","v":217},{"$f":"IFERROR(INDEX($A$2:$A$302,MATCH(ROWS($Q$2:Q218),$Q$2:$Q$302,0)),\"\")","v":"6491 Pénzügyi lízing"}]
["6492 Egyéb hitelnyújtás",2,1,3,2,1,2,null,{"$f":"IF(ISNUMBER(SEARCH($H$2,'Tevékenység lista'!A219)),MAX($I$1:I218)+1,0)","v":218},"Mérés- és irányítástechnikai berendezések gyártása",null,{"$f":"IFERROR(VLOOKUP(ROWS($L$2:L219),I219:$J$302,2,FALSE),\"\")","v":"Mérés- és irányítástechnikai berendezések gyártása"},null,null,null,null,{"$f":"IF(--ISNUMBER(SEARCH(Díjszámítás!$C$12,A219)),MAX($Q$1:Q218)+1,\"\")","v":218},{"$f":"IFERROR(INDEX($A$2:$A$302,MATCH(ROWS($Q$2:Q219),$Q$2:$Q$302,0)),\"\")","v":"6492 Egyéb hitelnyújtás"}]
["6499 M.n.s. egyéb pénzügyi közvetítés ",2,1,3,2,1,2,null,{"$f":"IF(ISNUMBER(SEARCH($H$2,'Tevékenység lista'!A220)),MAX($I$1:I219)+1,0)","v":219},"Mérőműszergyártás",null,{"$f":"IFERROR(VLOOKUP(ROWS($L$2:L220),I220:$J$302,2,FALSE),\"\")","v":"Mérőműszergyártás"},null,null,null,null,{"$f":"IF(--ISNUMBER(SEARCH(Díjszámítás!$C$12,A220)),MAX($Q$1:Q219)+1,\"\")","v":219},{"$f":"IFERROR(INDEX($A$2:$A$302,MATCH(ROWS($Q$2:Q220),$Q$2:$Q$302,0)),\"\")","v":"6499 M.n.s. egyéb pénzügyi közvetítés "}]
["6511 Életbiztosítás",2,1,1,2,2,2,null,{"$f":"IF(ISNUMBER(SEARCH($H$2,'Tevékenység lista'!A221)),MAX($I$1:I220)+1,0)","v":220},"Mezőgazdasági gépgyártás",null,{"$f":"IFERROR(VLOOKUP(ROWS($L$2:L221),I221:$J$302,2,FALSE),\"\")","v":"Mezőgazdasági gépgyártás"},null,null,null,null,{"$f":"IF(--ISNUMBER(SEARCH(Díjszámítás!$C$12,A221)),MAX($Q$1:Q220)+1,\"\")","v":220},{"$f":"IFERROR(INDEX($A$2:$A$302,MATCH(ROWS($Q$2:Q221),$Q$2:$Q$302,0)),\"\")","v":"6511 Életbiztosítás"}]
["6512 Nem életbiztosítás",2,1,1,2,2,2,null,{"$f":"IF(ISNUMBER(SEARCH($H$2,'Tevékenység lista'!A222)),MAX($I$1:I221)+1,0)","v":221},"Mezőgazdasági- és kertészeti szaküzlet (kisgépek nélkül)",null,{"$f":"IFERROR(VLOOKUP(ROWS($L$2:L222),I222:$J$302,2,FALSE),\"\")","v":"Mezőgazdasági- és kertészeti szaküzlet (kisgépek nélkül)"},null,null,null,null,{"$f":"IF(--ISNUMBER(SEARCH(Díjszámítás!$C$12,A222)),MAX($Q$1:Q221)+1,\"\")","v":221},{"$f":"IFERROR(INDEX($A$2:$A$302,MATCH(ROWS($Q$2:Q222),$Q$2:$Q$302,0)),\"\")","v":"6512 Nem életbiztosítás"}]
["6520 Viszontbiztosítás",2,1,1,2,2,2,null,{"$f":"IF(ISNUMBER(SEARCH($H$2,'Tevékenység lista'!A223)),MAX($I$1:I222)+1,0)","v":222},"Mezőgazdasági gép nagykereskedelem, javítás",null,{"$f":"IFERROR(VLOOKUP(ROWS($L$2:L223),I223:$J$302,2,FALSE),\"\")","v":"Mezőgazdasági gép nagykereskedelem, javítás"},null,null,null,null,{"$f":"IF(--ISNUMBER(SEARCH(Díjszámítás!$C$12,A223)),MAX($Q$1:Q222)+1,\"\")","v":222},{"$f":"IFERROR(INDEX($A$2:$A$302,MATCH(ROWS($Q$2:Q223),$Q$2:$Q$302,0)),\"\")","v":"6520 Viszontbiztosítás"}]
["6530 Nyugdíjalapok",2,1,1,2,2,2,null,{"$f":"IF(ISNUMBER(SEARCH($H$2,'Tevékenység lista'!A224)),MAX($I$1:I223)+1,0)","v":223},"Mezőgazdasági gépállomás (gépjavítás, karbantartás)",null,{"$f":"IFERROR(VLOOKUP(ROWS($L$2:L224),I224:$J$302,2,FALSE),\"\")","v":"Mezőgazdasági gépállomás (gépjavítás, karbantartás)"},null,null,null,null,{"$f":"IF(--ISNUMBER(SEARCH(Díjszámítás!$C$12,A224)),MAX($Q$1:Q223)+1,\"\")","v":223},{"$f":"IFERROR(INDEX($A$2:$A$302,MATCH(ROWS($Q$2:Q224),$Q$2:$Q$302,0)),\"\")","v":"6530 Nyugdíjalapok"}]
["6621 Kockázatértékelés, kárszakértés",2,1,1,2,2,2,null,{"$f":"IF(ISNUMBER(SEARCH($H$2,'Tevékenység lista'!A225)),MAX($I$1:I224)+1,0)","v":224},"Mezőgazdasági gépek és eszközök kereskedelme",null,{"$f":"IFERROR(VLOOKUP(ROWS($L$2:L225),I225:$J$302,2,FALSE),\"\")","v":"Mezőgazdasági gépek és eszközök kereskedelme"},null,null,null,null,{"$f":"IF(--ISNUMBER(SEARCH(Díjszámítás!$C$12,A225)),MAX($Q$1:Q224)+1,\"\")","v":224},{"$f":"IFERROR(INDEX($A$2:$A$302,MATCH(ROWS($Q$2:Q225),$Q$2:$Q$302,0)),\"\")","v":"6621 Kockázatértékelés, kárszakértés"}]
["6622 Biztosítási ügynöki, brókeri tevékenység",2,1,1,2,2,2,null,{"$f":"IF(ISNUMBER(SEARCH($H$2,'Tevékenység lista'!A226)),MAX($I$1:I225)+1,0)","v":225},"Mosás, vegytisztítás, textilfestés",null,{"$f":"IFERROR(VLOOKUP(ROWS($L$2:L226),I226:$J$302,2,FALSE),\"\")","v":"Mosás, vegytisztítás, textilfestés"},null,null,null,null,{"$f":"IF(--ISNUMBER(SEARCH(Díjszámítás!$C$12,A226)),MAX($Q$1:Q225)+1,\"\")","v":225},{"$f":"IFERROR(INDEX($A$2:$A$302,MATCH(ROWS($Q$2:Q226),$Q$2:$Q$302,0)),\"\")","v":"6622 Biztosítási ügynöki, brókeri tevékenység"}]
["6831 Ingatlanügynöki tevékenység",2,1,1,2,2,2,null,{"$f":"IF(ISNUMBER(SEARCH($H$2,'Tevékenység lista'!A227)),MAX($I$1:I226)+1,0)","v":226},"Motorkerékpár szakszerviz",null,{"$f":"IFERROR(VLOOKUP(ROWS($L$2:L227),I227:$J$302,2,FALSE),\"\")","v":"Motorkerékpár szakszerviz"},null,null,null,null,{"$f":"IF(--ISNUMBER(SEARCH(Díjszámítás!$C$12,A227)),MAX($Q$1:Q226)+1,\"\")","v":226},{"$f":"IFERROR(INDEX($A$2:$A$302,MATCH(ROWS($Q$2:Q227),$Q$2:$Q$302,0)),\"\")","v":"6831 Ingatlanügynöki tevékenység"}]
["6910 Jogi tevékenység",2,1,1,2,2,2,null,{"$f":"IF(ISNUMBER(SEARCH($H$2,'Tevékenység lista'!A228)),MAX($I$1:I227)+1,0)","v":227},"Munkásszállás",null,{"$f":"IFERROR(VLOOKUP(ROWS($L$2:L228),I228:$J$302,2,FALSE),\"\")","v":"Munkásszállás"},null,null,null,null,{"$f":"IF(--ISNUMBER(SEARCH(Díjszámítás!$C$12,A228)),MAX($Q$1:Q227)+1,\"\")","v":227},{"$f":"IFERROR(INDEX($A$2:$A$302,MATCH(ROWS($Q$2:Q228),$Q$2:$Q$302,0)),\"\")","v":"6910 Jogi tevékenység"}]
["6920 Számviteli, könyvvizsgálói, adószakértői tevékenység",2,1,1,2,2,2,null,{"$f":"IF(ISNUMBER(SEARCH($H$2,'Tevékenység lista'!A229)),MAX($I$1:I228)+1,0)","v":228},"Munkavédelmi termékek kis- és nagykereskedelme",null,{"$f":"IFERROR(VLOOKUP(ROWS($L$2:L229),I229:$J$302,2,FALSE),\"\")","v":"Munkavédelmi termékek kis- és nagykereskedelme"},null,null,null,null,{"$f":"IF(--ISNUMBER(SEARCH(Díjszámítás!$C$12,A229)),MAX($Q$1:Q228)+1,\"\")","v":228},{"$f":"IFERROR(INDEX($A$2:$A$302,MATCH(ROWS($Q$2:Q229),$Q$2:$Q$302,0)),\"\")","v":"6920 Számviteli, könyvvizsgálói, adószakértői tevékenység"}]
["7021 PR, kommunikáció",2,1,1,2,2,2,null,{"$f":"IF(ISNUMBER(SEARCH($H$2,'Tevékenység lista'!A230)),MAX($I$1:I229)+1,0)","v":229},"Műanyagalapanyag-gyártás",null,{"$f":"IFERROR(VLOOKUP(ROWS($L$2:L230),I230:$J$302,2,FALSE),\"\")","v":"Műanyagalapanyag-gyártás"},null,null,null,null,{"$f":"IF(--ISNUMBER(SEARCH(Díjszámítás!$C$12,A230)),MAX($Q$1:Q229)+1,\"\")","v":229},{"$f":"IFERROR(INDEX($A$2:$A$302,MATCH(ROWS($Q$2:Q230),$Q$2:$Q$302,0)),\"\")","v":"7021 PR, kommunikáció"}]
["7022 Üzletviteli, egyéb vezetési tanácsadás",2,1,1,2,2,2,null,{"$f":"IF(ISNUMBER(SEARCH($H$2,'Tevékenység lista'!A231)),MAX($I$1:I230)+1,0)","v":230},"Műanyagalapú hő-, hang- és vízszigetelő anyagok gyártása",null,{"$f":"IFERROR(VLOOKUP(ROWS($L$2:L231),I231:$J$302,2,FALSE),\"\")","v":"Műanyagalapú hő-, hang- és vízszigetelő anyagok gyártása"},null,null,null,null,{"$f":"IF(--ISNUMBER(SEARCH(Díjszámítás!$C$12,A231)),MAX($Q$1:Q230)+1,\"\")","v":230},{"$f":"IFERROR(INDEX($A$2:$A$302,MATCH(ROWS($Q$2:Q231),$Q$2:$Q$302,0)),\"\")","v":"7022 Üzletviteli, egyéb vezetési tanácsadás"}]
["7111 Építészmérnöki tevékenység",2,1,1,2,2,2,null,{"$f":"IF(ISNUMBER(SEARCH($H$2,'Tevékenység lista'!A232)),MAX($I$1:I231)+1,0)","v":231},"Műanyag bevonatok készítése szinterezéssel",null,{"$f":"IFERROR(VLOOKUP(ROWS($L$2:L232),I232:$J$302,2,FALSE),\"\")","v":"Műanyag bevonatok készítése szinterezéssel"},null,null,null,null,{"$f":"IF(--ISNUMBER(SEARCH(Díjszámítás!$C$12,A232)),MAX($Q$1:Q231)+1,\"\")","v":231},{"$f":"IFERROR(INDEX($A$2:$A$302,MATCH(ROWS($Q$2:Q232),$Q$2:$Q$302,0)),\"\")","v":"7111 Építészmérnöki tevékenység"}]
["7112 Mérnöki tevékenység, műszaki tanácsadás",2,1,1,2,2,2,null,{"$f":"IF(ISNUMBER(SEARCH($H$2,'Tevékenység lista'!A233)),MAX($I$1:I232)+1,0)","v":232},"Műanyag termékek gyártása",null,{"$f":"IFERROR(VLOOKUP(ROWS($L$2:L233),I233:$J$302,2,FALSE),\"\")","v":"Műanyag termékek gyártása"},null,null,null,null,{"$f":"IF(--ISNUMBER(SEARCH(Díjszámítás!$C$12,A233)),MAX($Q$1:Q232)+1,\"\")","v":232},{"$f":"IFERROR(INDEX($A$2:$A$302,MATCH(ROWS($Q$2:Q233),$Q$2:$Q$302,0)),\"\")","v":"7112 Mérnöki tevékenység, műszaki tanácsadás"}]
["7120 Műszaki vizsgálat, elemzés",3,1,2,3,2,2,null,{"$f":"IF(ISNUMBER(SEARCH($H$2,'Tevékenység lista'!A234)),MAX($I$1:I233)+1,0)","v":233},"Műbőr és viaszosvászongyártás",null,{"$f":"IFERROR(VLOOKUP(ROWS($L$2:L234),I234:$J$302,2,FALSE),\"\")","v":"Műbőr és viaszosvászongyártás"},null,null,null,null,{"$f":"IF(--ISNUMBER(SEARCH(Díjszámítás!$C$12,A234)),MAX($Q$1:Q233)+1,\"\")","v":233},{"$f":"IFERROR(INDEX($A$2:$A$302,MATCH(ROWS($Q$2:Q234),$Q$2:$Q$302,0)),\"\")","v":"7120 Műszaki vizsgálat, elemzés"}]
["7211 Biotechnológiai kutatás, fejlesztés",3,1,2,3,2,2,null,{"$f":"IF(ISNUMBER(SEARCH($H$2,'Tevékenység lista'!A235)),MAX($I$1:I234)+1,0)","v":234},"Műjégpályák",null,{"$f":"IFERROR(VLOOKUP(ROWS($L$2:L235),I235:$J$302,2,FALSE),\"\")","v":"Műjégpályák"},null,null,null,null,{"$f":"IF(--ISNUMBER(SEARCH(Díjszámítás!$C$12,A235)),MAX($Q$1:Q234)+1,\"\")","v":234},{"$f":"IFERROR(INDEX($A$2:$A$302,MATCH(ROWS($Q$2:Q235),$Q$2:$Q$302,0)),\"\")","v":"7211 Biotechnológiai kutatás, fejlesztés"}]
["7219 Egyéb természettudományi, műszaki kutatás, fejlesztés",3,1,2,3,2,2,null,{"$f":"IF(ISNUMBER(SEARCH($H$2,'Tevékenység lista'!A236)),MAX($I$1:I235)+1,0)","v":235},"Műszaki cikkek kereskedelme",null,{"$f":"IFERROR(VLOOKUP(ROWS($L$2:L236),I236:$J$302,2,FALSE),\"\")","v":"Műszaki cikkek kereskedelme"},null,null,null,null,{"$f":"IF(--ISNUMBER(SEARCH(Díjszámítás!$C$12,A236)),MAX($Q$1:Q235)+1,\"\")","v":235},{"$f":"IFERROR(INDEX($A$2:$A$302,MATCH(ROWS($Q$2:Q236),$Q$2:$Q$302,0)),\"\")","v":"7219 Egyéb természettudományi, műszaki kutatás, fejlesztés"}]
["7220 Társadalomtudományi, humán kutatás, fejlesztés",3,1,2,3,2,2,null,{"$f":"IF(ISNUMBER(SEARCH($H$2,'Tevékenység lista'!A237)),MAX($I$1:I236)+1,0)","v":236},"Műszaki vizsgáztatás",null,{"$f":"IFERROR(VLOOKUP(ROWS($L$2:L237),I237:$J$302,2,FALSE),\"\")","v":"Műszaki vizsgáztatás"},null,null,null,null,{"$f":"IF(--ISNUMBER(SEARCH(Díjszámítás!$C$12,A237)),MAX($Q$1:Q236)+1,\"\")","v":236},{"$f":"IFERROR(INDEX($A$2:$A$302,MATCH(ROWS($Q$2:Q237),$Q$2:$Q$302,0)),\"\")","v":"7220 Társadalomtudományi, humán kutatás, fejlesztés"}]
["7311 Reklámügynöki tevékenység",2,1,1,2,2,2,null,{"$f":"IF(ISNUMBER(SEARCH($H$2,'Tevékenység lista'!A238)),MAX($I$1:I237)+1,0)","v":237},"Műszaki, természettudományi kutatás és kísérleti fejlesztés",null,{"$f":"IFERROR(VLOOKUP(ROWS($L$2:L238),I238:$J$302,2,FALSE),\"\")","v":"Műszaki, természettudományi kutatás és kísérleti fejlesztés"},null,null,null,null,{"$f":"IF(--ISNUMBER(SEARCH(Díjszámítás!$C$12,A238)),MAX($Q$1:Q237)+1,\"\")","v":237},{"$f":"IFERROR(INDEX($A$2:$A$302,MATCH(ROWS($Q$2:Q238),$Q$2:$Q$302,0)),\"\")","v":"7311 Reklámügynöki tevékenység"}]
["7312 Médiareklám",3,4,1,3,1,2,null,{"$f":"IF(ISNUMBER(SEARCH($H$2,'Tevékenység lista'!A239)),MAX($I$1:I238)+1,0)","v":238},"Műszergyártás",null,{"$f":"IFERROR(VLOOKUP(ROWS($L$2:L239),I239:$J$302,2,FALSE),\"\")","v":"Műszergyártás"},null,null,null,null,{"$f":"IF(--ISNUMBER(SEARCH(Díjszámítás!$C$12,A239)),MAX($Q$1:Q238)+1,\"\")","v":238},{"$f":"IFERROR(INDEX($A$2:$A$302,MATCH(ROWS($Q$2:Q239),$Q$2:$Q$302,0)),\"\")","v":"7312 Médiareklám"}]
["7320 Piac-, közvélemény-kutatás",2,1,1,2,2,2,null,{"$f":"IF(ISNUMBER(SEARCH($H$2,'Tevékenység lista'!A240)),MAX($I$1:I239)+1,0)","v":239},"Műszeripari termékek javítása",null,{"$f":"IFERROR(VLOOKUP(ROWS($L$2:L240),I240:$J$302,2,FALSE),\"\")","v":"Műszeripari termékek javítása"},null,null,null,null,{"$f":"IF(--ISNUMBER(SEARCH(Díjszámítás!$C$12,A240)),MAX($Q$1:Q239)+1,\"\")","v":239},{"$f":"IFERROR(INDEX($A$2:$A$302,MATCH(ROWS($Q$2:Q240),$Q$2:$Q$302,0)),\"\")","v":"7320 Piac-, közvélemény-kutatás"}]
["7420 Fényképészet",4,4,3,4,2,1,null,{"$f":"IF(ISNUMBER(SEARCH($H$2,'Tevékenység lista'!A241)),MAX($I$1:I240)+1,0)","v":240},"Nem építési célú kerámiatermékek gyártása",null,{"$f":"IFERROR(VLOOKUP(ROWS($L$2:L241),I241:$J$302,2,FALSE),\"\")","v":"Nem építési célú kerámiatermékek gyártása"},null,null,null,null,{"$f":"IF(--ISNUMBER(SEARCH(Díjszámítás!$C$12,A241)),MAX($Q$1:Q240)+1,\"\")","v":240},{"$f":"IFERROR(INDEX($A$2:$A$302,MATCH(ROWS($Q$2:Q241),$Q$2:$Q$302,0)),\"\")","v":"7420 Fényképészet"}]
["7430 Fordítás, tolmácsolás",2,1,1,2,2,2,null,{"$f":"IF(ISNUMBER(SEARCH($H$2,'Tevékenység lista'!A242)),MAX($I$1:I241)+1,0)","v":241},"Növényolajgyártás és feldolgozás (extrakció nélkül)",null,{"$f":"IFERROR(VLOOKUP(ROWS($L$2:L242),I242:$J$302,2,FALSE),\"\")","v":"Növényolajgyártás és feldolgozás (extrakció nélkül)"},null,null,null,null,{"$f":"IF(--ISNUMBER(SEARCH(Díjszámítás!$C$12,A242)),MAX($Q$1:Q241)+1,\"\")","v":241},{"$f":"IFERROR(INDEX($A$2:$A$302,MATCH(ROWS($Q$2:Q242),$Q$2:$Q$302,0)),\"\")","v":"7430 Fordítás, tolmácsolás"}]
["7490 M.n.s. egyéb szakmai, tudományos, műszaki tevékenység ",2,1,1,2,2,2,null,{"$f":"IF(ISNUMBER(SEARCH($H$2,'Tevékenység lista'!A243)),MAX($I$1:I242)+1,0)","v":242},"Növényvédőszer, műtrágya kereskedelem",null,{"$f":"IFERROR(VLOOKUP(ROWS($L$2:L243),I243:$J$302,2,FALSE),\"\")","v":"Növényvédőszer, műtrágya kereskedelem"},null,null,null,null,{"$f":"IF(--ISNUMBER(SEARCH(Díjszámítás!$C$12,A243)),MAX($Q$1:Q242)+1,\"\")","v":242},{"$f":"IFERROR(INDEX($A$2:$A$302,MATCH(ROWS($Q$2:Q243),$Q$2:$Q$302,0)),\"\")","v":"7490 M.n.s. egyéb szakmai, tudományos, műszaki tevékenység "}]
["7500 Állat-egészségügyi ellátás",2,1,1,2,2,2,null,{"$f":"IF(ISNUMBER(SEARCH($H$2,'Tevékenység lista'!A244)),MAX($I$1:I243)+1,0)","v":243},"Nyílászárók gyártása",null,{"$f":"IFERROR(VLOOKUP(ROWS($L$2:L244),I244:$J$302,2,FALSE),\"\")","v":"Nyílászárók gyártása"},null,null,null,null,{"$f":"IF(--ISNUMBER(SEARCH(Díjszámítás!$C$12,A244)),MAX($Q$1:Q243)+1,\"\")","v":243},{"$f":"IFERROR(INDEX($A$2:$A$302,MATCH(ROWS($Q$2:Q244),$Q$2:$Q$302,0)),\"\")","v":"7500 Állat-egészségügyi ellátás"}]
["7722 Videokazetta, lemez kölcsönzése",3,2,3,3,1,1,null,{"$f":"IF(ISNUMBER(SEARCH($H$2,'Tevékenység lista'!A245)),MAX($I$1:I244)+1,0)","v":244},"Nyílászárók kereskedelme",null,{"$f":"IFERROR(VLOOKUP(ROWS($L$2:L245),I245:$J$302,2,FALSE),\"\")","v":"Nyílászárók kereskedelme"},null,null,null,null,{"$f":"IF(--ISNUMBER(SEARCH(Díjszámítás!$C$12,A245)),MAX($Q$1:Q244)+1,\"\")","v":244},{"$f":"IFERROR(INDEX($A$2:$A$302,MATCH(ROWS($Q$2:Q245),$Q$2:$Q$302,0)),\"\")","v":"7722 Videokazetta, lemez kölcsönzése"}]
["7729 Egyéb személyi használatú, háztartási cikk kölcsönzése",3,2,3,3,1,1,null,{"$f":"IF(ISNUMBER(SEARCH($H$2,'Tevékenység lista'!A246)),MAX($I$1:I245)+1,0)","v":245},"Nyomdai szolgáltatás",null,{"$f":"IFERROR(VLOOKUP(ROWS($L$2:L246),I246:$J$302,2,FALSE),\"\")","v":"Nyomdai szolgáltatás"},null,null,null,null,{"$f":"IF(--ISNUMBER(SEARCH(Díjszámítás!$C$12,A246)),MAX($Q$1:Q245)+1,\"\")","v":245},{"$f":"IFERROR(INDEX($A$2:$A$302,MATCH(ROWS($Q$2:Q246),$Q$2:$Q$302,0)),\"\")","v":"7729 Egyéb személyi használatú, háztartási cikk kölcsönzése"}]
["7731 Mezőgazdasági gép kölcsönzése",3,2,3,3,1,1,null,{"$f":"IF(ISNUMBER(SEARCH($H$2,'Tevékenység lista'!A247)),MAX($I$1:I246)+1,0)","v":246},"Oktatás  - kizárólag magán tulajdonban lévő intézmények biztosíthatók",null,{"$f":"IFERROR(VLOOKUP(ROWS($L$2:L247),I247:$J$302,2,FALSE),\"\")","v":"Oktatás  - kizárólag magán tulajdonban lévő intézmények biztosíthatók"},null,null,null,null,{"$f":"IF(--ISNUMBER(SEARCH(Díjszámítás!$C$12,A247)),MAX($Q$1:Q246)+1,\"\")","v":246},{"$f":"IFERROR(INDEX($A$2:$A$302,MATCH(ROWS($Q$2:Q247),$Q$2:$Q$302,0)),\"\")","v":"7731 Mezőgazdasági gép kölcsönzése"}]
["7732 Építőipari gép kölcsönzése",3,2,3,3,4,1,null,{"$f":"IF(ISNUMBER(SEARCH($H$2,'Tevékenység lista'!A248)),MAX($I$1:I247)+1,0)","v":247},"Oktatást kiegészítő egyéb tevékenység",null,{"$f":"IFERROR(VLOOKUP(ROWS($L$2:L248),I248:$J$302,2,FALSE),\"\")","v":"Oktatást kiegészítő egyéb tevékenység"},null,null,null,null,{"$f":"IF(--ISNUMBER(SEARCH(Díjszámítás!$C$12,A248)),MAX($Q$1:Q247)+1,\"\")","v":247},{"$f":"IFERROR(INDEX($A$2:$A$302,MATCH(ROWS($Q$2:Q248),$Q$2:$Q$302,0)),\"\")","v":"7732 Építőipari gép kölcsönzése"}]
["7733 Irodagép kölcsönzése (beleértve: számítógép) ",3,2,3,3,2,2,null,{"$f":"IF(ISNUMBER(SEARCH($H$2,'Tevékenység lista'!A249)),MAX($I$1:I248)+1,0)","v":248},"Órakereskedés (ékszer nélkül)",null,{"$f":"IFERROR(VLOOKUP(ROWS($L$2:L249),I249:$J$302,2,FALSE),\"\")","v":"Órakereskedés (ékszer nélkül)"},null,null,null,null,{"$f":"IF(--ISNUMBER(SEARCH(Díjszámítás!$C$12,A249)),MAX($Q$1:Q248)+1,\"\")","v":248},{"$f":"IFERROR(INDEX($A$2:$A$302,MATCH(ROWS($Q$2:Q249),$Q$2:$Q$302,0)),\"\")","v":"7733 Irodagép kölcsönzése (beleértve: számítógép) "}]
["7911 Utazásközvetítés",2,1,1,2,2,2,null,{"$f":"IF(ISNUMBER(SEARCH($H$2,'Tevékenység lista'!A250)),MAX($I$1:I249)+1,0)","v":249},"Órajavítás",null,{"$f":"IFERROR(VLOOKUP(ROWS($L$2:L250),I250:$J$302,2,FALSE),\"\")","v":"Órajavítás"},null,null,null,null,{"$f":"IF(--ISNUMBER(SEARCH(Díjszámítás!$C$12,A250)),MAX($Q$1:Q249)+1,\"\")","v":249},{"$f":"IFERROR(INDEX($A$2:$A$302,MATCH(ROWS($Q$2:Q250),$Q$2:$Q$302,0)),\"\")","v":"7911 Utazásközvetítés"}]
["7912 Utazásszervezés",2,1,1,2,2,2,null,{"$f":"IF(ISNUMBER(SEARCH($H$2,'Tevékenység lista'!A251)),MAX($I$1:I250)+1,0)","v":250},"Orvosi műszerek, gyógyászati- és laboratóriumi berendezések gyártása",null,{"$f":"IFERROR(VLOOKUP(ROWS($L$2:L251),I251:$J$302,2,FALSE),\"\")","v":"Orvosi műszerek, gyógyászati- és laboratóriumi berendezések gyártása"},null,null,null,null,{"$f":"IF(--ISNUMBER(SEARCH(Díjszámítás!$C$12,A251)),MAX($Q$1:Q250)+1,\"\")","v":250},{"$f":"IFERROR(INDEX($A$2:$A$302,MATCH(ROWS($Q$2:Q251),$Q$2:$Q$302,0)),\"\")","v":"7912 Utazásszervezés"}]
["8110 Építményüzemeltetés",3,4,1,3,2,1,null,{"$f":"IF(ISNUMBER(SEARCH($H$2,'Tevékenység lista'!A252)),MAX($I$1:I251)+1,0)","v":251},"Óvodai nevelés, iskolai előkészítés",null,{"$f":"IFERROR(VLOOKUP(ROWS($L$2:L252),I252:$J$302,2,FALSE),\"\")","v":"Óvodai nevelés, iskolai előkészítés"},null,null,null,null,{"$f":"IF(--ISNUMBER(SEARCH(Díjszámítás!$C$12,A252)),MAX($Q$1:Q251)+1,\"\")","v":251},{"$f":"IFERROR(INDEX($A$2:$A$302,MATCH(ROWS($Q$2:Q252),$Q$2:$Q$302,0)),\"\")","v":"8110 Építményüzemeltetés"}]
["8121 Általános épülettakarítás",2,4,2,2,2,3,null,{"$f":"IF(ISNUMBER(SEARCH($H$2,'Tevékenység lista'!A253)),MAX($I$1:I252)+1,0)","v":252},"Önkormányzat",null,{"$f":"IFERROR(VLOOKUP(ROWS($L$2:L253),I253:$J$302,2,FALSE),\"\")","v":"Önkormányzat"},null,null,null,null,{"$f":"IF(--ISNUMBER(SEARCH(Díjszámítás!$C$12,A253)),MAX($Q$1:Q252)+1,\"\")","v":252},{"$f":"IFERROR(INDEX($A$2:$A$302,MATCH(ROWS($Q$2:Q253),$Q$2:$Q$302,0)),\"\")","v":"8121 Általános épülettakarítás"}]
["8129 Egyéb takarítás",2,4,2,2,2,3,null,{"$f":"IF(ISNUMBER(SEARCH($H$2,'Tevékenység lista'!A254)),MAX($I$1:I253)+1,0)","v":253},"Palackozott italok kereskedelme",null,{"$f":"IFERROR(VLOOKUP(ROWS($L$2:L254),I254:$J$302,2,FALSE),\"\")","v":"Palackozott italok kereskedelme"},null,null,null,null,{"$f":"IF(--ISNUMBER(SEARCH(Díjszámítás!$C$12,A254)),MAX($Q$1:Q253)+1,\"\")","v":253},{"$f":"IFERROR(INDEX($A$2:$A$302,MATCH(ROWS($Q$2:Q254),$Q$2:$Q$302,0)),\"\")","v":"8129 Egyéb takarítás"}]
["8211 Összetett adminisztratív szolgáltatás",2,1,1,2,2,2,null,{"$f":"IF(ISNUMBER(SEARCH($H$2,'Tevékenység lista'!A255)),MAX($I$1:I254)+1,0)","v":254},"Pamutfonás, szövés",null,{"$f":"IFERROR(VLOOKUP(ROWS($L$2:L255),I255:$J$302,2,FALSE),\"\")","v":"Pamutfonás, szövés"},null,null,null,null,{"$f":"IF(--ISNUMBER(SEARCH(Díjszámítás!$C$12,A255)),MAX($Q$1:Q254)+1,\"\")","v":254},{"$f":"IFERROR(INDEX($A$2:$A$302,MATCH(ROWS($Q$2:Q255),$Q$2:$Q$302,0)),\"\")","v":"8211 Összetett adminisztratív szolgáltatás"}]
["8219 Fénymásolás, egyéb irodai szolgáltatás",2,1,1,2,2,2,null,{"$f":"IF(ISNUMBER(SEARCH($H$2,'Tevékenység lista'!A256)),MAX($I$1:I255)+1,0)","v":255},"Papír csomagolóeszközök gyártása",null,{"$f":"IFERROR(VLOOKUP(ROWS($L$2:L256),I256:$J$302,2,FALSE),\"\")","v":"Papír csomagolóeszközök gyártása"},null,null,null,null,{"$f":"IF(--ISNUMBER(SEARCH(Díjszámítás!$C$12,A256)),MAX($Q$1:Q255)+1,\"\")","v":255},{"$f":"IFERROR(INDEX($A$2:$A$302,MATCH(ROWS($Q$2:Q256),$Q$2:$Q$302,0)),\"\")","v":"8219 Fénymásolás, egyéb irodai szolgáltatás"}]
["8220 Telefoninformáció",2,1,1,2,2,2,null,{"$f":"IF(ISNUMBER(SEARCH($H$2,'Tevékenység lista'!A257)),MAX($I$1:I256)+1,0)","v":256},"Papír- és papírtermékek gyártása",null,{"$f":"IFERROR(VLOOKUP(ROWS($L$2:L257),I257:$J$302,2,FALSE),\"\")","v":"Papír- és papírtermékek gyártása"},null,null,null,null,{"$f":"IF(--ISNUMBER(SEARCH(Díjszámítás!$C$12,A257)),MAX($Q$1:Q256)+1,\"\")","v":256},{"$f":"IFERROR(INDEX($A$2:$A$302,MATCH(ROWS($Q$2:Q257),$Q$2:$Q$302,0)),\"\")","v":"8220 Telefoninformáció"}]
["8291 Követelésbehajtás",2,1,1,2,2,2,null,{"$f":"IF(ISNUMBER(SEARCH($H$2,'Tevékenység lista'!A258)),MAX($I$1:I257)+1,0)","v":257},"Papír-írószer",null,{"$f":"IFERROR(VLOOKUP(ROWS($L$2:L258),I258:$J$302,2,FALSE),\"\")","v":"Papír-írószer"},null,null,null,null,{"$f":"IF(--ISNUMBER(SEARCH(Díjszámítás!$C$12,A258)),MAX($Q$1:Q257)+1,\"\")","v":257},{"$f":"IFERROR(INDEX($A$2:$A$302,MATCH(ROWS($Q$2:Q258),$Q$2:$Q$302,0)),\"\")","v":"8291 Követelésbehajtás"}]
["8411 Általános közigazgatás",2,4,2,2,2,3,null,{"$f":"IF(ISNUMBER(SEARCH($H$2,'Tevékenység lista'!A259)),MAX($I$1:I258)+1,0)","v":258},"Paplan- és párnagyártás",null,{"$f":"IFERROR(VLOOKUP(ROWS($L$2:L259),I259:$J$302,2,FALSE),\"\")","v":"Paplan- és párnagyártás"},null,null,null,null,{"$f":"IF(--ISNUMBER(SEARCH(Díjszámítás!$C$12,A259)),MAX($Q$1:Q258)+1,\"\")","v":258},{"$f":"IFERROR(INDEX($A$2:$A$302,MATCH(ROWS($Q$2:Q259),$Q$2:$Q$302,0)),\"\")","v":"8411 Általános közigazgatás"}]
["8510 Iskolai előkészítő oktatás",2,4,2,2,1,2,null,{"$f":"IF(ISNUMBER(SEARCH($H$2,'Tevékenység lista'!A260)),MAX($I$1:I259)+1,0)","v":259},"Parafa, szalma és fonott termékek gyártása",null,{"$f":"IFERROR(VLOOKUP(ROWS($L$2:L260),I260:$J$302,2,FALSE),\"\")","v":"Parafa, szalma és fonott termékek gyártása"},null,null,null,null,{"$f":"IF(--ISNUMBER(SEARCH(Díjszámítás!$C$12,A260)),MAX($Q$1:Q259)+1,\"\")","v":259},{"$f":"IFERROR(INDEX($A$2:$A$302,MATCH(ROWS($Q$2:Q260),$Q$2:$Q$302,0)),\"\")","v":"8510 Iskolai előkészítő oktatás"}]
["8520 Alapfokú oktatás",1,4,2,1,1,2,null,{"$f":"IF(ISNUMBER(SEARCH($H$2,'Tevékenység lista'!A261)),MAX($I$1:I260)+1,0)","v":260},"Padlóburkolati cikkek kereskedelme (melegburkolat)",null,{"$f":"IFERROR(VLOOKUP(ROWS($L$2:L261),I261:$J$302,2,FALSE),\"\")","v":"Padlóburkolati cikkek kereskedelme (melegburkolat)"},null,null,null,null,{"$f":"IF(--ISNUMBER(SEARCH(Díjszámítás!$C$12,A261)),MAX($Q$1:Q260)+1,\"\")","v":260},{"$f":"IFERROR(INDEX($A$2:$A$302,MATCH(ROWS($Q$2:Q261),$Q$2:$Q$302,0)),\"\")","v":"8520 Alapfokú oktatás"}]
["8531 Általános középfokú oktatás",2,4,2,2,1,2,null,{"$f":"IF(ISNUMBER(SEARCH($H$2,'Tevékenység lista'!A262)),MAX($I$1:I261)+1,0)","v":261},"Pékáru, édesipari termékek kereskedelme",null,{"$f":"IFERROR(VLOOKUP(ROWS($L$2:L262),I262:$J$302,2,FALSE),\"\")","v":"Pékáru, édesipari termékek kereskedelme"},null,null,null,null,{"$f":"IF(--ISNUMBER(SEARCH(Díjszámítás!$C$12,A262)),MAX($Q$1:Q261)+1,\"\")","v":261},{"$f":"IFERROR(INDEX($A$2:$A$302,MATCH(ROWS($Q$2:Q262),$Q$2:$Q$302,0)),\"\")","v":"8531 Általános középfokú oktatás"}]
["8532 Szakmai középfokú oktatás",2,4,2,2,1,2,null,{"$f":"IF(ISNUMBER(SEARCH($H$2,'Tevékenység lista'!A263)),MAX($I$1:I262)+1,0)","v":262},"Rádiós- és televíziós tevékenység (stúdiók)",null,{"$f":"IFERROR(VLOOKUP(ROWS($L$2:L263),I263:$J$302,2,FALSE),\"\")","v":"Rádiós- és televíziós tevékenység (stúdiók)"},null,null,null,null,{"$f":"IF(--ISNUMBER(SEARCH(Díjszámítás!$C$12,A263)),MAX($Q$1:Q262)+1,\"\")","v":262},{"$f":"IFERROR(INDEX($A$2:$A$302,MATCH(ROWS($Q$2:Q263),$Q$2:$Q$302,0)),\"\")","v":"8532 Szakmai középfokú oktatás"}]
["8541 Felső szintű, nem felsőfokú oktatás",2,4,2,2,1,1,null,{"$f":"IF(ISNUMBER(SEARCH($H$2,'Tevékenység lista'!A264)),MAX($I$1:I263)+1,0)","v":263},"Régiség, antikvitás kereskedelem",null,{"$f":"IFERROR(VLOOKUP(ROWS($L$2:L264),I264:$J$302,2,FALSE),\"\")","v":"Régiség, antikvitás kereskedelem"},null,null,null,null,{"$f":"IF(--ISNUMBER(SEARCH(Díjszámítás!$C$12,A264)),MAX($Q$1:Q263)+1,\"\")","v":263},{"$f":"IFERROR(INDEX($A$2:$A$302,MATCH(ROWS($Q$2:Q264),$Q$2:$Q$302,0)),\"\")","v":"8541 Felső szintű, nem felsőfokú oktatás"}]
["8542 Felsőfokú oktatás",2,4,2,2,1,1,null,{"$f":"IF(ISNUMBER(SEARCH($H$2,'Tevékenység lista'!A265)),MAX($I$1:I264)+1,0)","v":264},"Világítástechnikai berendezések kereskedelme",null,{"$f":"IFERROR(VLOOKUP(ROWS($L$2:L265),I265:$J$302,2,FALSE),\"\")","v":"Világítástechnikai berendezések kereskedelme"},null,null,null,null,{"$f":"IF(--ISNUMBER(SEARCH(Díjszámítás!$C$12,A265)),MAX($Q$1:Q264)+1,\"\")","v":264},{"$f":"IFERROR(INDEX($A$2:$A$302,MATCH(ROWS($Q$2:Q265),$Q$2:$Q$302,0)),\"\")","v":"8542 Felsőfokú oktatás"}]
["8551 Sport, szabadidős képzés",2,4,2,2,1,1,null,{"$f":"IF(ISNUMBER(SEARCH($H$2,'Tevékenység lista'!A266)),MAX($I$1:I265)+1,0)","v":265},"Rövidáru- és lakástextilgyártás",null,{"$f":"IFERROR(VLOOKUP(ROWS($L$2:L266),I266:$J$302,2,FALSE),\"\")","v":"Rövidáru- és lakástextilgyártás"},null,null,null,null,{"$f":"IF(--ISNUMBER(SEARCH(Díjszámítás!$C$12,A266)),MAX($Q$1:Q265)+1,\"\")","v":265},{"$f":"IFERROR(INDEX($A$2:$A$302,MATCH(ROWS($Q$2:Q266),$Q$2:$Q$302,0)),\"\")","v":"8551 Sport, szabadidős képzés"}]
["8552 Kulturális képzés",2,4,2,2,1,1,null,{"$f":"IF(ISNUMBER(SEARCH($H$2,'Tevékenység lista'!A267)),MAX($I$1:I266)+1,0)","v":266},"Ruházati áruházak",null,{"$f":"IFERROR(VLOOKUP(ROWS($L$2:L267),I267:$J$302,2,FALSE),\"\")","v":"Ruházati áruházak"},null,null,null,null,{"$f":"IF(--ISNUMBER(SEARCH(Díjszámítás!$C$12,A267)),MAX($Q$1:Q266)+1,\"\")","v":266},{"$f":"IFERROR(INDEX($A$2:$A$302,MATCH(ROWS($Q$2:Q267),$Q$2:$Q$302,0)),\"\")","v":"8552 Kulturális képzés"}]
["8553 Járművezető-oktatás",2,4,2,2,1,1,null,{"$f":"IF(ISNUMBER(SEARCH($H$2,'Tevékenység lista'!A268)),MAX($I$1:I267)+1,0)","v":267},"Ruházati cikkek gyártása textilanyagok felhasználásával",null,{"$f":"IFERROR(VLOOKUP(ROWS($L$2:L268),I268:$J$302,2,FALSE),\"\")","v":"Ruházati cikkek gyártása textilanyagok felhasználásával"},null,null,null,null,{"$f":"IF(--ISNUMBER(SEARCH(Díjszámítás!$C$12,A268)),MAX($Q$1:Q267)+1,\"\")","v":267},{"$f":"IFERROR(INDEX($A$2:$A$302,MATCH(ROWS($Q$2:Q268),$Q$2:$Q$302,0)),\"\")","v":"8553 Járművezető-oktatás"}]
["8559 M.n.s. egyéb oktatás",2,4,2,2,1,1,null,{"$f":"IF(ISNUMBER(SEARCH($H$2,'Tevékenység lista'!A269)),MAX($I$1:I268)+1,0)","v":268},"Ruházati cikkek kereskedelme",null,{"$f":"IFERROR(VLOOKUP(ROWS($L$2:L269),I269:$J$302,2,FALSE),\"\")","v":"Ruházati cikkek kereskedelme"},null,null,null,null,{"$f":"IF(--ISNUMBER(SEARCH(Díjszámítás!$C$12,A269)),MAX($Q$1:Q268)+1,\"\")","v":268},{"$f":"IFERROR(INDEX($A$2:$A$302,MATCH(ROWS($Q$2:Q269),$Q$2:$Q$302,0)),\"\")","v":"8559 M.n.s. egyéb oktatás"}]
["8560 Oktatást kiegészítő tevékenység",2,4,2,2,1,3,null,{"$f":"IF(ISNUMBER(SEARCH($H$2,'Tevékenység lista'!A270)),MAX($I$1:I269)+1,0)","v":269},"Ruházati- és egyéb konfekcionált termékek javítása",null,{"$f":"IFERROR(VLOOKUP(ROWS($L$2:L270),I270:$J$302,2,FALSE),\"\")","v":"Ruházati- és egyéb konfekcionált termékek javítása"},null,null,null,null,{"$f":"IF(--ISNUMBER(SEARCH(Díjszámítás!$C$12,A270)),MAX($Q$1:Q269)+1,\"\")","v":269},{"$f":"IFERROR(INDEX($A$2:$A$302,MATCH(ROWS($Q$2:Q270),$Q$2:$Q$302,0)),\"\")","v":"8560 Oktatást kiegészítő tevékenység"}]
["8621 Általános járóbeteg-ellátás",3,1,3,3,3,3,null,{"$f":"IF(ISNUMBER(SEARCH($H$2,'Tevékenység lista'!A271)),MAX($I$1:I270)+1,0)","v":270},"Ruházati- és textil kereskedelem",null,{"$f":"IFERROR(VLOOKUP(ROWS($L$2:L271),I271:$J$302,2,FALSE),\"\")","v":"Ruházati- és textil kereskedelem"},null,null,null,null,{"$f":"IF(--ISNUMBER(SEARCH(Díjszámítás!$C$12,A271)),MAX($Q$1:Q270)+1,\"\")","v":270},{"$f":"IFERROR(INDEX($A$2:$A$302,MATCH(ROWS($Q$2:Q271),$Q$2:$Q$302,0)),\"\")","v":"8621 Általános járóbeteg-ellátás"}]
["8622 Szakorvosi járóbeteg-ellátás",3,1,3,3,3,3,null,{"$f":"IF(ISNUMBER(SEARCH($H$2,'Tevékenység lista'!A272)),MAX($I$1:I271)+1,0)","v":271},"Ruházati termékek gyártása",null,{"$f":"IFERROR(VLOOKUP(ROWS($L$2:L272),I272:$J$302,2,FALSE),\"\")","v":"Ruházati termékek gyártása"},null,null,null,null,{"$f":"IF(--ISNUMBER(SEARCH(Díjszámítás!$C$12,A272)),MAX($Q$1:Q271)+1,\"\")","v":271},{"$f":"IFERROR(INDEX($A$2:$A$302,MATCH(ROWS($Q$2:Q272),$Q$2:$Q$302,0)),\"\")","v":"8622 Szakorvosi járóbeteg-ellátás"}]
["8623 Fogorvosi járóbeteg-ellátás",2,1,3,2,3,3,null,{"$f":"IF(ISNUMBER(SEARCH($H$2,'Tevékenység lista'!A273)),MAX($I$1:I272)+1,0)","v":272},"Selyemfonás, szövés",null,{"$f":"IFERROR(VLOOKUP(ROWS($L$2:L273),I273:$J$302,2,FALSE),\"\")","v":"Selyemfonás, szövés"},null,null,null,null,{"$f":"IF(--ISNUMBER(SEARCH(Díjszámítás!$C$12,A273)),MAX($Q$1:Q272)+1,\"\")","v":272},{"$f":"IFERROR(INDEX($A$2:$A$302,MATCH(ROWS($Q$2:Q273),$Q$2:$Q$302,0)),\"\")","v":"8623 Fogorvosi járóbeteg-ellátás"}]
["8690 Egyéb humán-egészségügyi ellátás",3,1,3,3,3,3,null,{"$f":"IF(ISNUMBER(SEARCH($H$2,'Tevékenység lista'!A274)),MAX($I$1:I273)+1,0)","v":273},"Seprű, kefe és nádfonat gyártása",null,{"$f":"IFERROR(VLOOKUP(ROWS($L$2:L274),I274:$J$302,2,FALSE),\"\")","v":"Seprű, kefe és nádfonat gyártása"},null,null,null,null,{"$f":"IF(--ISNUMBER(SEARCH(Díjszámítás!$C$12,A274)),MAX($Q$1:Q273)+1,\"\")","v":273},{"$f":"IFERROR(INDEX($A$2:$A$302,MATCH(ROWS($Q$2:Q274),$Q$2:$Q$302,0)),\"\")","v":"8690 Egyéb humán-egészségügyi ellátás"}]
["8710 Bentlakásos, nem kórházi ápolás",3,1,2,3,2,1,null,{"$f":"IF(ISNUMBER(SEARCH($H$2,'Tevékenység lista'!A275)),MAX($I$1:I274)+1,0)","v":274},"Söripari termékek gyártása",null,{"$f":"IFERROR(VLOOKUP(ROWS($L$2:L275),I275:$J$302,2,FALSE),\"\")","v":"Söripari termékek gyártása"},null,null,null,null,{"$f":"IF(--ISNUMBER(SEARCH(Díjszámítás!$C$12,A275)),MAX($Q$1:Q274)+1,\"\")","v":274},{"$f":"IFERROR(INDEX($A$2:$A$302,MATCH(ROWS($Q$2:Q275),$Q$2:$Q$302,0)),\"\")","v":"8710 Bentlakásos, nem kórházi ápolás"}]
["8790 Egyéb bentlakásos ellátás",3,1,2,3,2,1,null,{"$f":"IF(ISNUMBER(SEARCH($H$2,'Tevékenység lista'!A276)),MAX($I$1:I275)+1,0)","v":275},"Sportcikkek, felszerelések javítása",null,{"$f":"IFERROR(VLOOKUP(ROWS($L$2:L276),I276:$J$302,2,FALSE),\"\")","v":"Sportcikkek, felszerelések javítása"},null,null,null,null,{"$f":"IF(--ISNUMBER(SEARCH(Díjszámítás!$C$12,A276)),MAX($Q$1:Q275)+1,\"\")","v":275},{"$f":"IFERROR(INDEX($A$2:$A$302,MATCH(ROWS($Q$2:Q276),$Q$2:$Q$302,0)),\"\")","v":"8790 Egyéb bentlakásos ellátás"}]
["8810 Idősek, fogyatékosok szociális ellátása bentlakás nélkül",3,1,3,3,3,3,null,{"$f":"IF(ISNUMBER(SEARCH($H$2,'Tevékenység lista'!A277)),MAX($I$1:I276)+1,0)","v":276},"Sportcsarnokok, tornacsarnokok",null,{"$f":"IFERROR(VLOOKUP(ROWS($L$2:L277),I277:$J$302,2,FALSE),\"\")","v":"Sportcsarnokok, tornacsarnokok"},null,null,null,null,{"$f":"IF(--ISNUMBER(SEARCH(Díjszámítás!$C$12,A277)),MAX($Q$1:Q276)+1,\"\")","v":276},{"$f":"IFERROR(INDEX($A$2:$A$302,MATCH(ROWS($Q$2:Q277),$Q$2:$Q$302,0)),\"\")","v":"8810 Idősek, fogyatékosok szociális ellátása bentlakás nélkül"}]
["8891 Gyermekek napközbeni ellátása",2,4,2,2,1,2,null,{"$f":"IF(ISNUMBER(SEARCH($H$2,'Tevékenység lista'!A278)),MAX($I$1:I277)+1,0)","v":277},"Sportszer- és sportcikkgyártás",null,{"$f":"IFERROR(VLOOKUP(ROWS($L$2:L278),I278:$J$302,2,FALSE),\"\")","v":"Sportszer- és sportcikkgyártás"},null,null,null,null,{"$f":"IF(--ISNUMBER(SEARCH(Díjszámítás!$C$12,A278)),MAX($Q$1:Q277)+1,\"\")","v":277},{"$f":"IFERROR(INDEX($A$2:$A$302,MATCH(ROWS($Q$2:Q278),$Q$2:$Q$302,0)),\"\")","v":"8891 Gyermekek napközbeni ellátása"}]
["8899 M.n.s. egyéb szociális ellátás bentlakás nélkül",3,1,3,3,3,3,null,{"$f":"IF(ISNUMBER(SEARCH($H$2,'Tevékenység lista'!A279)),MAX($I$1:I278)+1,0)","v":278},"Sportszerkereskedés",null,{"$f":"IFERROR(VLOOKUP(ROWS($L$2:L279),I279:$J$302,2,FALSE),\"\")","v":"Sportszerkereskedés"},null,null,null,null,{"$f":"IF(--ISNUMBER(SEARCH(Díjszámítás!$C$12,A279)),MAX($Q$1:Q278)+1,\"\")","v":278},{"$f":"IFERROR(INDEX($A$2:$A$302,MATCH(ROWS($Q$2:Q279),$Q$2:$Q$302,0)),\"\")","v":"8899 M.n.s. egyéb szociális ellátás bentlakás nélkül"}]
["9004 Művészeti létesítmények működtetése",3,1,1,3,4,3,null,{"$f":"IF(ISNUMBER(SEARCH($H$2,'Tevékenység lista'!A280)),MAX($I$1:I279)+1,0)","v":279},"Sütőipari termékek gyártása",null,{"$f":"IFERROR(VLOOKUP(ROWS($L$2:L280),I280:$J$302,2,FALSE),\"\")","v":"Sütőipari termékek gyártása"},null,null,null,null,{"$f":"IF(--ISNUMBER(SEARCH(Díjszámítás!$C$12,A280)),MAX($Q$1:Q279)+1,\"\")","v":279},{"$f":"IFERROR(INDEX($A$2:$A$302,MATCH(ROWS($Q$2:Q280),$Q$2:$Q$302,0)),\"\")","v":"9004 Művészeti létesítmények működtetése"}]
["9101 Könyvtári, levéltári tevékenység",4,1,1,4,1,1,null,{"$f":"IF(ISNUMBER(SEARCH($H$2,'Tevékenység lista'!A281)),MAX($I$1:I280)+1,0)","v":280},"Szakmunkásképző iskolai oktatás",null,{"$f":"IFERROR(VLOOKUP(ROWS($L$2:L281),I281:$J$302,2,FALSE),\"\")","v":"Szakmunkásképző iskolai oktatás"},null,null,null,null,{"$f":"IF(--ISNUMBER(SEARCH(Díjszámítás!$C$12,A281)),MAX($Q$1:Q280)+1,\"\")","v":280},{"$f":"IFERROR(INDEX($A$2:$A$302,MATCH(ROWS($Q$2:Q281),$Q$2:$Q$302,0)),\"\")","v":"9101 Könyvtári, levéltári tevékenység"}]
["9200 Szerencsejáték, fogadás",3,4,4,3,2,3,null,{"$f":"IF(ISNUMBER(SEARCH($H$2,'Tevékenység lista'!A282)),MAX($I$1:I281)+1,0)","v":281},"Szálláshely szolgáltatás és vendéglátás",null,{"$f":"IFERROR(VLOOKUP(ROWS($L$2:L282),I282:$J$302,2,FALSE),\"\")","v":"Szálláshely szolgáltatás és vendéglátás"},null,null,null,null,{"$f":"IF(--ISNUMBER(SEARCH(Díjszámítás!$C$12,A282)),MAX($Q$1:Q281)+1,\"\")","v":281},{"$f":"IFERROR(INDEX($A$2:$A$302,MATCH(ROWS($Q$2:Q282),$Q$2:$Q$302,0)),\"\")","v":"9200 Szerencsejáték, fogadás"}]
["9311 Sportlétesítmény működtetése",4,1,3,4,2,2,null,{"$f":"IF(ISNUMBER(SEARCH($H$2,'Tevékenység lista'!A283)),MAX($I$1:I282)+1,0)","v":282},"Számítógépes hálózatok, egyéb gyengeáramú rendszerek szerelése",null,{"$f":"IFERROR(VLOOKUP(ROWS($L$2:L283),I283:$J$302,2,FALSE),\"\")","v":"Számítógépes hálózatok, egyéb gyengeáramú rendszerek szerelése"},null,null,null,null,{"$f":"IF(--ISNUMBER(SEARCH(Díjszámítás!$C$12,A283)),MAX($Q$1:Q282)+1,\"\")","v":282},{"$f":"IFERROR(INDEX($A$2:$A$302,MATCH(ROWS($Q$2:Q283),$Q$2:$Q$302,0)),\"\")","v":"9311 Sportlétesítmény működtetése"}]
["9312 Sportegyesületi tevékenység",4,1,3,4,2,2,null,{"$f":"IF(ISNUMBER(SEARCH($H$2,'Tevékenység lista'!A284)),MAX($I$1:I283)+1,0)","v":283},"Számítógép, irodatechnika kereskedelem",null,{"$f":"IFERROR(VLOOKUP(ROWS($L$2:L284),I284:$J$302,2,FALSE),\"\")","v":"Számítógép, irodatechnika kereskedelem"},null,null,null,null,{"$f":"IF(--ISNUMBER(SEARCH(Díjszámítás!$C$12,A284)),MAX($Q$1:Q283)+1,\"\")","v":283},{"$f":"IFERROR(INDEX($A$2:$A$302,MATCH(ROWS($Q$2:Q284),$Q$2:$Q$302,0)),\"\")","v":"9312 Sportegyesületi tevékenység"}]
["9313 Testedzési szolgáltatás",3,1,2,3,2,2,null,{"$f":"IF(ISNUMBER(SEARCH($H$2,'Tevékenység lista'!A285)),MAX($I$1:I284)+1,0)","v":284},"Szanatórium",null,{"$f":"IFERROR(VLOOKUP(ROWS($L$2:L285),I285:$J$302,2,FALSE),\"\")","v":"Szanatórium"},null,null,null,null,{"$f":"IF(--ISNUMBER(SEARCH(Díjszámítás!$C$12,A285)),MAX($Q$1:Q284)+1,\"\")","v":284},{"$f":"IFERROR(INDEX($A$2:$A$302,MATCH(ROWS($Q$2:Q285),$Q$2:$Q$302,0)),\"\")","v":"9313 Testedzési szolgáltatás"}]
["9319 Egyéb sporttevékenység",4,1,3,4,2,2,null,{"$f":"IF(ISNUMBER(SEARCH($H$2,'Tevékenység lista'!A286)),MAX($I$1:I285)+1,0)","v":285},"Szaniter áruk gyártása",null,{"$f":"IFERROR(VLOOKUP(ROWS($L$2:L286),I286:$J$302,2,FALSE),\"\")","v":"Szaniter áruk gyártása"},null,null,null,null,{"$f":"IF(--ISNUMBER(SEARCH(Díjszámítás!$C$12,A286)),MAX($Q$1:Q285)+1,\"\")","v":285},{"$f":"IFERROR(INDEX($A$2:$A$302,MATCH(ROWS($Q$2:Q286),$Q$2:$Q$302,0)),\"\")","v":"9319 Egyéb sporttevékenység"}]
["9329 M.n.s. egyéb szórakoztatás, szabadidős tevékenység",4,1,2,4,2,1,null,{"$f":"IF(ISNUMBER(SEARCH($H$2,'Tevékenység lista'!A287)),MAX($I$1:I286)+1,0)","v":286},"Szaniter és kerámia áruk kereskedelme",null,{"$f":"IFERROR(VLOOKUP(ROWS($L$2:L287),I287:$J$302,2,FALSE),\"\")","v":"Szaniter és kerámia áruk kereskedelme"},null,null,null,null,{"$f":"IF(--ISNUMBER(SEARCH(Díjszámítás!$C$12,A287)),MAX($Q$1:Q286)+1,\"\")","v":286},{"$f":"IFERROR(INDEX($A$2:$A$302,MATCH(ROWS($Q$2:Q287),$Q$2:$Q$302,0)),\"\")","v":"9329 M.n.s. egyéb szórakoztatás, szabadidős tevékenység"}]
["9411 Vállalkozói, munkaadói érdekképviselet",2,1,1,2,2,2,null,{"$f":"IF(ISNUMBER(SEARCH($H$2,'Tevékenység lista'!A288)),MAX($I$1:I287)+1,0)","v":287},"Személyi használati tárgyak és háztartási eszközök javítása",null,{"$f":"IFERROR(VLOOKUP(ROWS($L$2:L288),I288:$J$302,2,FALSE),\"\")","v":"Személyi használati tárgyak és háztartási eszközök javítása"},null,null,null,null,{"$f":"IF(--ISNUMBER(SEARCH(Díjszámítás!$C$12,A288)),MAX($Q$1:Q287)+1,\"\")","v":287},{"$f":"IFERROR(INDEX($A$2:$A$302,MATCH(ROWS($Q$2:Q288),$Q$2:$Q$302,0)),\"\")","v":"9411 Vállalkozói, munkaadói érdekképviselet"}]
["9412 Szakmai érdekképviselet",2,1,1,2,2,2,null,{"$f":"IF(ISNUMBER(SEARCH($H$2,'Tevékenység lista'!A289)),MAX($I$1:I288)+1,0)","v":288},"Személyi használatú és háztartási cikkek kölcsönzése",null,{"$f":"IFERROR(VLOOKUP(ROWS($L$2:L289),I289:$J$302,2,FALSE),\"\")","v":"Személyi használatú és háztartási cikkek kölcsönzése"},null,null,null,null,{"$f":"IF(--ISNUMBER(SEARCH(Díjszámítás!$C$12,A289)),MAX($Q$1:Q288)+1,\"\")","v":288},{"$f":"IFERROR(INDEX($A$2:$A$302,MATCH(ROWS($Q$2:Q289),$Q$2:$Q$302,0)),\"\")","v":"9412 Szakmai érdekképviselet"}]
["9420 Szakszervezeti tevékenység",2,1,1,2,2,2,null,{"$f":"IF(ISNUMBER(SEARCH($H$2,'Tevékenység lista'!A290)),MAX($I$1:I289)+1,0)","v":289},"Szépségszalon",null,{"$f":"IFERROR(VLOOKUP(ROWS($L$2:L290),I290:$J$302,2,FALSE),\"\")","v":"Szépségszalon"},null,null,null,null,{"$f":"IF(--ISNUMBER(SEARCH(Díjszámítás!$C$12,A290)),MAX($Q$1:Q289)+1,\"\")","v":289},{"$f":"IFERROR(INDEX($A$2:$A$302,MATCH(ROWS($Q$2:Q290),$Q$2:$Q$302,0)),\"\")","v":"9420 Szakszervezeti tevékenység"}]
["9492 Politikai tevékenység",2,1,1,2,2,2,null,{"$f":"IF(ISNUMBER(SEARCH($H$2,'Tevékenység lista'!A291)),MAX($I$1:I290)+1,0)","v":290},"Szerszám- és kisgép kereskedelem",null,{"$f":"IFERROR(VLOOKUP(ROWS($L$2:L291),I291:$J$302,2,FALSE),\"\")","v":"Szerszám- és kisgép kereskedelem"},null,null,null,null,{"$f":"IF(--ISNUMBER(SEARCH(Díjszámítás!$C$12,A291)),MAX($Q$1:Q290)+1,\"\")","v":290},{"$f":"IFERROR(INDEX($A$2:$A$302,MATCH(ROWS($Q$2:Q291),$Q$2:$Q$302,0)),\"\")","v":"9492 Politikai tevékenység"}]
["9499 M.n.s. egyéb közösségi, társadalmi tevékenység",4,1,2,4,2,1,null,{"$f":"IF(ISNUMBER(SEARCH($H$2,'Tevékenység lista'!A292)),MAX($I$1:I291)+1,0)","v":291},"Szerszámgépértékesítés és szerviz",null,{"$f":"IFERROR(VLOOKUP(ROWS($L$2:L292),I292:$J$302,2,FALSE),\"\")","v":"Szerszámgépértékesítés és szerviz"},null,null,null,null,{"$f":"IF(--ISNUMBER(SEARCH(Díjszámítás!$C$12,A292)),MAX($Q$1:Q291)+1,\"\")","v":291},{"$f":"IFERROR(INDEX($A$2:$A$302,MATCH(ROWS($Q$2:Q292),$Q$2:$Q$302,0)),\"\")","v":"9499 M.n.s. egyéb közösségi, társadalmi tevékenység"}]
["9511 Számítógép, -periféria javítása",3,5,3,3,1,2,null,{"$f":"IF(ISNUMBER(SEARCH($H$2,'Tevékenység lista'!A293)),MAX($I$1:I292)+1,0)","v":292},"Szerszámgépgyártás",null,{"$f":"IFERROR(VLOOKUP(ROWS($L$2:L293),I293:$J$302,2,FALSE),\"\")","v":"Szerszámgépgyártás"},null,null,null,null,{"$f":"IF(--ISNUMBER(SEARCH(Díjszámítás!$C$12,A293)),MAX($Q$1:Q292)+1,\"\")","v":292},{"$f":"IFERROR(INDEX($A$2:$A$302,MATCH(ROWS($Q$2:Q293),$Q$2:$Q$302,0)),\"\")","v":"9511 Számítógép, -periféria javítása"}]
["9512 Kommunikációs eszköz javítása",3,4,3,3,1,1,null,{"$f":"IF(ISNUMBER(SEARCH($H$2,'Tevékenység lista'!A294)),MAX($I$1:I293)+1,0)","v":293},"Szesz- és szeszesitalgyártás",null,{"$f":"IFERROR(VLOOKUP(ROWS($L$2:L294),I294:$J$302,2,FALSE),\"\")","v":"Szesz- és szeszesitalgyártás"},null,null,null,null,{"$f":"IF(--ISNUMBER(SEARCH(Díjszámítás!$C$12,A294)),MAX($Q$1:Q293)+1,\"\")","v":293},{"$f":"IFERROR(INDEX($A$2:$A$302,MATCH(ROWS($Q$2:Q294),$Q$2:$Q$302,0)),\"\")","v":"9512 Kommunikációs eszköz javítása"}]
["9521 Szórakoztatóelektronikai cikk javítása",3,4,3,3,1,1,null,{"$f":"IF(ISNUMBER(SEARCH($H$2,'Tevékenység lista'!A295)),MAX($I$1:I294)+1,0)","v":294},"Szigetelt vezeték és kábel gyártása",null,{"$f":"IFERROR(VLOOKUP(ROWS($L$2:L295),I295:$J$302,2,FALSE),\"\")","v":"Szigetelt vezeték és kábel gyártása"},null,null,null,null,{"$f":"IF(--ISNUMBER(SEARCH(Díjszámítás!$C$12,A295)),MAX($Q$1:Q294)+1,\"\")","v":294},{"$f":"IFERROR(INDEX($A$2:$A$302,MATCH(ROWS($Q$2:Q295),$Q$2:$Q$302,0)),\"\")","v":"9521 Szórakoztatóelektronikai cikk javítása"}]
["9522 Háztartási gép, háztartási, kerti eszköz javítása",3,4,2,3,1,1,null,{"$f":"IF(ISNUMBER(SEARCH($H$2,'Tevékenység lista'!A296)),MAX($I$1:I295)+1,0)","v":295},"Színház",null,{"$f":"IFERROR(VLOOKUP(ROWS($L$2:L296),I296:$J$302,2,FALSE),\"\")","v":"Színház"},null,null,null,null,{"$f":"IF(--ISNUMBER(SEARCH(Díjszámítás!$C$12,A296)),MAX($Q$1:Q295)+1,\"\")","v":295},{"$f":"IFERROR(INDEX($A$2:$A$302,MATCH(ROWS($Q$2:Q296),$Q$2:$Q$302,0)),\"\")","v":"9522 Háztartási gép, háztartási, kerti eszköz javítása"}]
["9523 Lábbeli, egyéb bőráru javítása",4,4,3,4,1,1,null,{"$f":"IF(ISNUMBER(SEARCH($H$2,'Tevékenység lista'!A297)),MAX($I$1:I296)+1,0)","v":296},"Színpadtechnika, színpadok építése",null,{"$f":"IFERROR(VLOOKUP(ROWS($L$2:L297),I297:$J$302,2,FALSE),\"\")","v":"Színpadtechnika, színpadok építése"},null,null,null,null,{"$f":"IF(--ISNUMBER(SEARCH(Díjszámítás!$C$12,A297)),MAX($Q$1:Q296)+1,\"\")","v":296},{"$f":"IFERROR(INDEX($A$2:$A$302,MATCH(ROWS($Q$2:Q297),$Q$2:$Q$302,0)),\"\")","v":"9523 Lábbeli, egyéb bőráru javítása"}]
["9524 Bútor, lakberendezési tárgy javítása",6,4,2,6,1,1,null,{"$f":"IF(ISNUMBER(SEARCH($H$2,'Tevékenység lista'!A298)),MAX($I$1:I297)+1,0)","v":297},"Szintetikus mosószergyártás",null,{"$f":"IFERROR(VLOOKUP(ROWS($L$2:L298),I298:$J$302,2,FALSE),\"\")","v":"Szintetikus mosószergyártás"},null,null,null,null,{"$f":"IF(--ISNUMBER(SEARCH(Díjszámítás!$C$12,A298)),MAX($Q$1:Q297)+1,\"\")","v":297},{"$f":"IFERROR(INDEX($A$2:$A$302,MATCH(ROWS($Q$2:Q298),$Q$2:$Q$302,0)),\"\")","v":"9524 Bútor, lakberendezési tárgy javítása"}]
["9529 Egyéb személyi-, háztartási cikk javítása",3,4,3,3,1,1,null,{"$f":"IF(ISNUMBER(SEARCH($H$2,'Tevékenység lista'!A299)),MAX($I$1:I298)+1,0)","v":298},"Szociális ellátás szállásnyújtással",null,{"$f":"IFERROR(VLOOKUP(ROWS($L$2:L299),I299:$J$302,2,FALSE),\"\")","v":"Szociális ellátás szállásnyújtással"},null,null,null,null,{"$f":"IF(--ISNUMBER(SEARCH(Díjszámítás!$C$12,A299)),MAX($Q$1:Q298)+1,\"\")","v":298},{"$f":"IFERROR(INDEX($A$2:$A$302,MATCH(ROWS($Q$2:Q299),$Q$2:$Q$302,0)),\"\")","v":"9529 Egyéb személyi-, háztartási cikk javítása"}]
["9601 Textil, szőrme mosása, tisztítása",4,4,2,4,3,1,null,{"$f":"IF(ISNUMBER(SEARCH($H$2,'Tevékenység lista'!A300)),MAX($I$1:I299)+1,0)","v":299},"Szolárium, szauna",null,{"$f":"IFERROR(VLOOKUP(ROWS($L$2:L300),I300:$J$302,2,FALSE),\"\")","v":"Szolárium, szauna"},null,null,null,null,{"$f":"IF(--ISNUMBER(SEARCH(Díjszámítás!$C$12,A300)),MAX($Q$1:Q299)+1,\"\")","v":299},{"$f":"IFERROR(INDEX($A$2:$A$302,MATCH(ROWS($Q$2:Q300),$Q$2:$Q$302,0)),\"\")","v":"9601 Textil, szőrme mosása, tisztítása"}]
["9602 Fodrászat, szépségápolás",2,4,1,2,1,1,null,{"$f":"IF(ISNUMBER(SEARCH($H$2,'Tevékenység lista'!A301)),MAX($I$1:I300)+1,0)","v":300},"Szórakoztató elektronika kereskedelem (TV, video, HIFI)",null,{"$f":"IFERROR(VLOOKUP(ROWS($L$2:L301),I301:$J$302,2,FALSE),\"\")","v":"Szórakoztató elektronika kereskedelem (TV, video, HIFI)"},null,null,null,null,{"$f":"IF(--ISNUMBER(SEARCH(Díjszámítás!$C$12,A301)),MAX($Q$1:Q300)+1,\"\")","v":300},{"$f":"IFERROR(INDEX($A$2:$A$302,MATCH(ROWS($Q$2:Q301),$Q$2:$Q$302,0)),\"\")","v":"9602 Fodrászat, szépségápolás"}]
["9603 Temetkezés, temetkezést kiegészítő szolgáltatás",3,4,1,3,1,1,null,{"$f":"IF(ISNUMBER(SEARCH($H$2,'Tevékenység lista'!A302)),MAX($I$1:I301)+1,0)","v":301},"Szórakoztató-, kulturális- és sporttevékenység",null,{"$f":"IFERROR(VLOOKUP(ROWS($L$2:L302),I302:$J$302,2,FALSE),\"\")","v":"Szórakoztató-, kulturális- és sporttevékenység"},null,null,null,null,{"$f":"IF(--ISNUMBER(SEARCH(Díjszámítás!$C$12,A302)),MAX($Q$1:Q301)+1,\"\")","v":301},{"$f":"IFERROR(INDEX($A$2:$A$302,MATCH(ROWS($Q$2:Q302),$Q$2:$Q$302,0)),\"\")","v":"9603 Temetkezés, temetkezést kiegészítő szolgáltatás"}]

{"sheet":"Tarifa táblák","index":3,"n_rows":41,"n_cols":32,"rows_kept":41,"cut":false,"hidden":true,"merged":[[2,17,2,18],[15,17,15,19],[24,17,24,18],[31,17,31,21],[2,23,2,24],[1,0,1,1],[14,0,14,1],[19,0,19,2],[2,8,2,9],[15,8,15,9],[2,4,2,6],[37,0,37,1],[29,4,29,5],[37,8,37,9],[33,4,33,5],[2,29,2,30],[10,23,10,24],[16,23,16,27],[20,8,20,10],[29,8,29,9],[2,11,2,12],[16,11,16,13],[26,11,26,12],[28,0,28,1],[20,4,20,6],[21,23,21,24],[33,11,33,15]]}
[]
["Épület DÍJTÉTELEK ‰-ben"]
["Kockázati osztály","Tűz+elemi kár+ \nvezetékes víz+üveg",null,null,"Ingóság",null,null,null,"DÍJTÉTELEK ‰-ben",null,null,"DÍJTÉTELEK ‰-ben",null,null,null,null,null,"DÍJTÉTELEK ‰-ben",null,null,null,null,null,"DÍJTÉTELEK ‰-ben",null,null,null,null,null,"ÜVEG KIEGÉSZÍTŐ"]
[1,0.8,null,null,"Kockázati osztály","Tűz+elemi kár+ \nvezetékes víz+üveg","Betöréses lopás\nrablás",null,"Kockázati osztály","Üzemszünet",null,"Kockázati osztály","Géptörés",null,null,null,null,"Kockázati osztály","ELBER",null,null,null,null,"Kockázati osztály","Felelősség",null,null,null,null,"Éves limit eFt","Normál üveg díj Ft","Normál és speciális üveg díj Ft"]
[2,0.91,null,null,1,1.1200000000000001,1.5,null,1,0.53,null,1,3.71,null,null,null,null,1,3.41,null,null,null,null,1,0.24,null,null,null,null,50,6360,9540]
[3,1.07,null,null,2,1.27,1.92,null,2,0.63,null,2,4.6100000000000003,null,null,null,null,2,4.24,null,null,null,null,2,0.3,null,null,null,null,100,12720,19080]
[4,1.19,null,null,3,1.46,2.4700000000000002,null,3,0.77,null,3,6.39,null,null,null,null,3,5.88,null,null,null,null,3,0.33,null,null,null,null,150,18285,27425]
[5,1.51,null,null,4,1.59,3.02,null,4,0.89,null,4,9.8800000000000008,null,null,null,null,4,9.09,null,null,null,null,4,0.45,null,null,null,null,200,24380,34130]
[6,1.99,null,null,5,1.98,4.21,null,5,1.18,null,5,17.03,null,null,null,null,5,15.67,null,null,null,null,5,0.84,null,null,null,null,250,30475,42665]
[7,2.62,null,null,6,2.56,"nincs",null,6,1.61,null,6,null,null,null,null,null,6,null,null,null,null,null,null,null,null,null,null,null,300,34980,48970]
[8,3.18,null,null,7,3.32,"nincs",null,7,2.21,null,7,null,null,null,null,null,7,null,null,null,null,null,"Módozati szorzók",null,null,null,null,null,350,40810,55095]
[9,3.98,null,null,8,3.96,"nincs",null,8,2.79,null,8,null,null,null,null,null,8,null,null,null,null,null,"Alap",0.75,null,null,null,null,400,44520,60100]
[10,5.57,null,null,9,4.8600000000000003,"nincs",null,9,3.62,null,9,null,null,null,null,null,9,null,null,null,null,null,"Teljes",1,null,null,null,null,450,50085,67615]
[null,null,null,null,10,6.68,"nincs",null,10,5.27,null,10,null,null,null,null,null,10,null,null,null,null,null,"Extra",1.3,null,null,null,null,500,53000,68900]
["Épület Módozati szorzók",null,null,null,null,null,null,null,null,null,null,null,null,null,null,null,null,null,null,null,null,null,null,null,null,null,null,null,null,600,63600,82680]
["Alap",0.6,null,null,"Módozati szorzók","Bet. Loppal","Bet nélkül",null,"Módozati szorzók",null,null,null,null,null,null,null,null,"Volumenszorzók Bizosítási összeg szerint ELBER",null,null,null,null,null,null,null,null,null,null,null,700,70490,91635]
["Teljes",0.8,null,null,"Alap",0.6,0.6,null,"Alap",0.7,null,"Volumenszorzók Bizosítási összeg szerint Géptörés",null,null,null,null,null,0,10000000,1.6,null,null,null,"Önrészesedés szorzó",null,null,null,null,null,800,80560,100700]
["Extra",1,null,null,"Teljes",0.8,0.8,null,"Teljes",1,null,0,10000000,1.6,null,null,null,10000001,25000000,1.5,null,null,null,null,25000,50000,100000,200000,null,900,85860,107325]
["All Risks",1.1000000000000001,null,null,"Extra",1,1,null,"Extra",1.4,null,10000001,25000000,1.5,null,null,null,25000001,50000000,1.3,null,null,null,0.1,1,0.95,0.85,0.7,null,1000,95400,119250]
["Épület Volumenszorzók Bizosítási összeg szerint TEKVÜ",null,null,null,"All Risks",1.1000000000000001,1.1000000000000001,null,"All Risks",1.6,null,25000001,50000000,1.3,null,null,null,50000001,100000000,1,null,null,null,0.2,0.92,0.87,0.78,0.64]
[0,10000000,2,null,"Volumenszorzók Bizosítási összeg szerint TEKVÜ",null,null,"50 felett","Volumenszorzók Bizosítási összeg szerint TEKVÜ",null,null,50000001,100000000,1,null,null,null,100000001,200000000,0.85]
[10000001,25000000,1.6,null,0,10000000,2,null,0,10000000,2,100000001,200000000,0.85,null,null,null,200000001,500000000,0.65,null,null,null,"Pótdíjak"]
[25000001,50000000,1.3,null,10000001,25000000,1.6,null,10000001,25000000,1.6,200000001,500000000,0.65,null,null,null,null,null,null,null,null,null,"Bérlői",0.3]
[50000001,100000000,1,null,25000001,50000000,1.3,null,25000001,50000000,1.3,null,null,null,null,null,null,null,null,null,null,null,null,"Bérbeadói",0.3]
[100000001,200000000,0.8,null,50000001,100000000,1,0.4,50000001,100000000,1,null,null,null,null,null,null,"Átlagéletkor engedmény",null,null,null,null,null,"Kiterjesztett termék",1]
[200000001,500000000,0.55000000000000004,null,100000001,200000000,0.8,0.32,100000001,200000000,0.8,null,null,null,null,null,null,"0-2",0.65,null,null,null,null,"Szálloda 1. (S,M,L)",0.3]
[null,null,null,null,200000001,500000000,0.55000000000000004,0.22,200000001,500000000,0.55000000000000004,"Átlagéletkor engedmény",null,null,null,null,null,"2,01-3",0.8,null,null,null,null,"szálloda 2. (M,L)",0.8]
[null,null,null,null,null,null,null,null,null,null,null,"0-2",0.5,null,null,null,null,"3,01-5",0.9,null,null,null,null,"Környezetszennyezés",0.5]
["Épület Önrészesedés szorzó",null,null,null,null,null,null,null,null,null,null,"2,01-5",0.65,null,null,null,null,"5,01-",1,null,null,null,null,"EU kiterjesztés",0.5]
[0,1.45,null,null,"Volumenszorzók Betlop 50 M Ft-ig)",null,null,null,"Önrészesedés szorzó",null,null,"5,01-10",0.75,null,null,null,null,null,null,null,null,null,null,"Rakodás (M,L)",0.4]
[5000,1.25,null,null,"Bizt. Öszeg ( eFt. )","Volumenszorzó",null,null,"3 nap",1,null,"10,01-15",0.9,null,null,null,null,null,null,null,null,null,null,"Termék",0.8]
[10000,1.1200000000000001,null,null,250000,{"$f":"4.1646*(E32/1000)^-0.348","v":0.60966346740946231},null,null,"5 nap",0.9,null,"15 felett",1,null,null,null,null,"Önrészesedés szorzó",null,null,null,null,null,"Üzemi",0.6]
[25000,1,null,null,null,null,null,null,"7 nap",0.8,null,null,null,null,null,null,null,null,25000,50000,100000,200000,null,"Szolgáltatói",0.8]
[50000,0.92,null,null,"Önrészesedés szorzó",null,null,null,null,null,null,"Önrészesedés szorzó",null,null,null,null,null,0.1,1,0.95,0.85,0.7,null,"Oktatói",0.2]
[100000,0.82,null,null,0,1.45,null,null,null,null,null,null,25000,50000,100000,200000,null,0.2,0.92,0.87,0.78,0.64,null,"Szerviz",0.6]
[200000,0.7,null,null,5000,1.25,null,null,null,null,null,0.1,1,0.95,0.85,0.7,null,null,null,null,null,null,null,"Alvállalkozói kiterjesztés",0.2]
[null,null,null,null,10000,1.1200000000000001,null,null,null,null,null,0.2,0.92,0.87,0.78,0.64,null,null,null,null,null,null,null,"Szolgáltatás tárgyában okozott károk",0.4]
["Volumenszorzók  TEKV",null,null,null,25000,1,null,null,"Volumenszorzók  TEKV",null,null,null,null,null,null,null,null,null,null,null,null,null,null,"Építés-Szerelés",0.1]
["Bizt. Összeg ( eFt. )","Volumenszorzó",null,null,50000,0.92,null,null,"Bizt. Összeg ( eFt. )","Volumenszorzó"]
[250000,{"$f":"4.1646*(A40/1000)^-0.348","v":0.60966346740946231},null,null,100000,0.82,null,null,1,{"$f":"4.1646*(I40/1000)^-0.348","v":46.086454107533868},null,null,null,null,null,null,null,null,null,null,null,null,null,"Forgkorr. Szorzó","Vagyon alapú engedmény","Forgalom eFt"]
[null,null,null,null,200000,0.7,null,null,null,null,null,null,null,null,null,null,null,null,null,null,null,null,null,{"$f":"-0.236*(LN(Z41/1000))+1.9136","v":0.82677983610681038},{"$f":"IF((Díjszámítás!C27+Díjszámítás!C42)<11000,1,(1.0022*EXP(-0.002*(Díjszámítás!C27+Díjszámítás!C42)/10000)-0.3))","v":1},100000,{"$f":"Z41*X41*Y41","v":82677.98361068104}]

{"sheet":"Vagyonbiztosítási adatközlő","index":4,"n_rows":38,"n_cols":25,"rows_kept":38,"cut":false,"hidden":false,"merged":[[11,4,11,5],[31,7,31,9],[18,6,18,7],[19,6,19,7],[20,6,20,7],[21,6,21,7],[24,6,24,7],[25,6,25,7],[30,8,30,9],[23,6,23,7],[15,4,15,5],[16,6,16,7],[17,6,17,7],[16,4,16,5],[17,4,17,5],[24,4,24,5],[0,19,0,21],[1,10,1,17],[22,6,22,7],[14,6,14,7],[15,6,15,7],[12,6,12,7],[13,6,13,7],[2,10,2,17],[4,0,4,17],[10,4,10,5],[14,15,14,17],[15,15,15,17],[10,6,10,7],[11,6,11,7],[9,4,9,5],[22,4,22,5],[12,4,12,5],[23,4,23,5],[20,4,20,5],[21,4,21,5],[18,4,18,5],[19,4,19,5],[25,4,25,5],[14,4,14,5],[13,15,13,17],[6,15,8,17],[6,0,8,0],[8,6,8,7],[8,4,8,5],[6,3,8,3],[7,4,7,7],[7,8,7,9],[7,10,7,11],[7,12,7,13],[7,14,8,14],[6,4,6,14],[6,1,8,1],[9,6,9,7],[12,15,12,17],[13,4,13,5],[25,1,25,2],[9,15,9,17],[10,15,10,17],[11,15,11,17],[18,15,18,17],[19,15,19,17],[20,15,20,17],[21,15,21,17],[22,15,22,17],[23,15,23,17],[24,15,24,17],[25,15,25,17],[16,15,16,17],[17,15,17,17]]}
[]
[null,null,null,null,null,null,null,null,null,null,"UNION-Business Class"]
[null,null,null,null,null,null,null,null,null,null,"Biztosítási ajánlat "]
[]
["Vagyonbiztosítási adatközlő"]
[]
["Sorsz.","Telephely címe",null,"Telephelyen folytatott tevékenységek","BIZTOSÍTÁSI ÖSSZEG eFt",null,null,null,null,null,null,null,null,null,null,"Összesen eFt"]
[null,null,null,null,"Épületek/Építmények ",null,null,null,"Gépek, berendezések ",null,"Egyéb nevesített vagyontárgyak",null,"Készlet",null,"Készpénz, értékkészletek"]
[null,null,null,null,"Saját",null,"Idegen",null,"Saját","Idegen","Saját","Idegen","Saját","Idegen"]
[{"$f":"IF(B10>0,1,0)","v":0},null,null,null,null,null,null,null,null,null,null,null,null,null,null,{"$f":"SUM(E10:O10)","v":0},null,null,null,{"$f":"SUM(E10:H10)","v":0},{"$f":"SUM(I10:O10)","v":0},null,{"$f":"SUM(I10:J10)","v":0},null,{"$f":"B10","v":0}]
[{"$f":"IF(B11>0,(A10+1),0)","v":0},null,null,null,null,null,null,null,null,null,null,null,null,null,null,{"$f":"SUM(E11:O11)","v":0},null,null,null,{"$f":"SUM(E11:H11)","v":0},{"$f":"SUM(I11:O11)","v":0},null,{"$f":"SUM(I11:J11)","v":0},null,{"$f":"B11","v":0}]
[{"$f":"IF(B12>0,(A11+1),0)","v":0},null,null,null,null,null,null,null,null,null,null,null,null,null,null,0,null,null,null,0,0,null,0,null,0]
[{"$f":"IF(B13>0,(A12+1),0)","v":0},null,null,null,null,null,null,null,null,null,null,null,null,null,null,0,null,null,null,0,0,null,0,null,0]
[0,null,null,null,null,null,null,null,null,null,null,null,null,null,null,0,null,null,null,0,0,null,0,null,0]
[0,null,null,null,null,null,null,null,null,null,null,null,null,null,null,0,null,null,null,0,0,null,0,null,0]
[0,null,null,null,null,null,null,null,null,null,null,null,null,null,null,0,null,null,null,0,0,null,0,null,0]
[0,null,null,null,null,null,null,null,null,null,null,null,null,null,null,0,null,null,null,0,0,null,0,null,0]
[0,null,null,null,null,null,null,null,null,null,null,null,null,null,null,0,null,null,null,0,0,null,0,null,0]
[0,null,null,null,null,null,null,null,null,null,null,null,null,null,null,0,null,null,null,0,0,null,0,null,0]
[0,null,null,null,null,null,null,null,null,null,null,null,null,null,null,0,null,null,null,0,0,null,0,null,0]
[0,null,null,null,null,null,null,null,null,null,null,null,null,null,null,0,null,null,null,0,0,null,0,null,0]
[0,null,null,null,null,null,null,null,null,null,null,null,null,null,null,0,null,null,null,0,0,null,0,null,0]
[0,null,null,null,null,null,null,null,null,null,null,null,null,null,null,0,null,null,null,0,0,null,0,null,0]
[0,null,null,null,null,null,null,null,null,null,null,null,null,null,null,0,null,null,null,0,0,null,0,null,0]
[0,null,null,null,null,null,null,null,null,null,null,null,null,null,null,0,null,null,null,0,0,null,0,null,0]
[null,null,null,"Összesen",{"$f":"SUM(E10:F25)","v":0},null,{"$f":"SUM(G10:H25)","v":0},null,{"$f":"SUM(I10:I25)","v":0},{"$f":"SUM(J10:J25)","v":0},0,0,0,0,0,{"$f":"SUM(P10:R25)","v":0},null,null,null,{"$f":"SUM(T10:T25)","v":0},{"$f":"SUM(U10:U25)","v":0},null,{"$f":"SUM(W10:W25)","v":0}]
["Kelt.:",{"$f":"Ajánlat1!E112","v":0}]
[null,null,null,{"$f":"Ajánlat1!G112","v":"00:00:00"}]
[]
[]
[null,null,null,"biztosításközvetítő aláírása",null,null,null,null,"szerződő aláírása"]
[{"$f":"Ajánlat1!B116","v":"Verzió: 1.19"}]
[{"$f":"Ajánlat1!B117","v":"UNION-Business Class Érvényes: 2021.12.31.-ig "}]
[]
[]
[]
[]
[null,null,null,null,null,null,{"$f":"SUM(E26,G26)","v":0}]

{"sheet":"Gép,berendezés","index":5,"n_rows":38,"n_cols":14,"rows_kept":38,"cut":false,"hidden":true,"merged":[[6,11,7,13],[8,11,8,13],[6,4,6,5],[6,8,6,9],[6,10,7,10],[12,1,12,2],[12,11,12,13],[37,1,37,3],[37,7,37,9],[1,0,1,2],[34,1,34,2],[34,3,34,4],[6,0,7,0],[6,1,7,2],[6,3,7,3],[6,6,6,7],[8,1,8,2],[2,9,2,12],[1,9,1,12],[4,0,4,12],[36,7,36,9],[9,11,9,13],[10,1,10,2],[10,11,10,13],[11,1,11,2],[11,11,11,13],[9,1,9,2],[13,1,13,2],[13,11,13,13],[14,1,14,2],[14,11,14,13],[15,1,15,2],[15,11,15,13],[16,1,16,2],[16,11,16,13],[17,1,17,2],[17,11,17,13],[18,1,18,2],[18,11,18,13],[19,1,19,2],[19,11,19,13],[20,1,20,2],[20,11,20,13],[21,1,21,2],[21,11,21,13],[22,1,22,2],[22,11,22,13],[23,1,23,2],[23,11,23,13],[24,1,24,2],[24,11,24,13],[25,1,25,2],[25,11,25,13],[26,1,26,2],[26,11,26,13],[27,1,27,2],[27,11,27,13],[28,1,28,2],[28,11,28,13],[29,1,29,2],[29,11,29,13],[32,1,32,2],[32,11,32,12],[30,1,30,2],[30,11,30,13],[31,1,31,2],[31,11,31,13]]}
[]
[null,null,null,null,null,null,null,null,null,"UNION - BC"]
[null,null,null,null,null,null,null,null,null,"Biztosítási ajánlat"]
[]
["Vagyonbiztosítási adatközlő gép, berendezés, készlet biztosításhoz"]
[]
["Sor-szám","Telephely címe",null,"Telephelyen folytatott tevékenységek","Gép berendezés eFt",null,"Egyéb nevesített eFt",null,"Készlet eFt",null,"Készpénz eFt","Összesen eFt"]
[null,null,null,null,"Saját","Idegen","Saját","Idegen","Saját","Idegen"]
[{"$f":"IF(B9>0,1,0)","v":0},null,null,null,null,null,null,null,null,null,null,{"$f":"SUM(E9:K9)","v":0}]
[{"$f":"IF(B10>0,(A9+1),0)","v":0},null,null,null,null,null,null,null,null,null,null,{"$f":"SUM(E10:K10)","v":0}]
[{"$f":"IF(B11>0,(A10+1),0)","v":0},null,null,null,null,null,null,null,null,null,null,0]
[0,null,null,null,null,null,null,null,null,null,null,0]
[0,null,null,null,null,null,null,null,null,null,null,0]
[0,null,null,null,null,null,null,null,null,null,null,0]
[0,null,null,null,null,null,null,null,null,null,null,0]
[0,null,null,null,null,null,null,null,null,null,null,0]
[0,null,null,null,null,null,null,null,null,null,null,0]
[0,null,null,null,null,null,null,null,null,null,null,0]
[0,null,null,null,null,null,null,null,null,null,null,0]
[0,null,null,null,null,null,null,null,null,null,null,0]
[0,null,null,null,null,null,null,null,null,null,null,0]
[0,null,null,null,null,null,null,null,null,null,null,0]
[0,null,null,null,null,null,null,null,null,null,null,0]
[0,null,null,null,null,null,null,null,null,null,null,0]
[0,null,null,null,null,null,null,null,null,null,null,0]
[0,null,null,null,null,null,null,null,null,null,null,0]
[0,null,null,null,null,null,null,null,null,null,null,0]
[0,null,null,null,null,null,null,null,null,null,null,0]
[0,null,null,null,null,null,null,null,null,null,null,0]
[0,null,null,null,null,null,null,null,null,null,null,0]
[0,null,null,null,null,null,null,null,null,null,null,0]
[0,null,null,null,null,null,null,null,null,null,null,0]
[null,null,null,"Összesen",{"$f":"SUM(E9:E32)","v":0},{"$f":"SUM(F9:F32)","v":0},{"$f":"SUM(G9:G32)","v":0},{"$f":"SUM(H9:H32)","v":0},0,0,0,0,null,0]
[]
["Dátum",{"$f":"Ajánlat1!C114","v":0},null,{"$f":"TODAY()","v":"2021-07-05"}]
[]
[]
[null,"üzletkötő",null,null,null,null,null,"szerződő/biztosított"]

{"sheet":"Géplista","index":6,"n_rows":41,"n_cols":15,"rows_kept":41,"cut":false,"hidden":true,"merged":[[6,8,7,8],[6,0,7,0],[6,1,7,1],[6,2,7,2],[6,3,7,3],[40,4,40,5],[39,4,39,5],[1,5,1,7],[2,5,2,7],[4,0,4,7],[6,6,6,7],[6,4,7,4],[6,5,7,5],[36,3,36,7]]}
[]
[null,null,null,null,null,"UNION - BC"]
[null,null,null,null,null,"Biztosítási ajánlat"]
[]
["Géplista géptörés biztosításhoz"]
[]
["Sor szám","Gép neve","Típusa","Gyári száma","Gyártási éve","Értékelés módja","Gép értéke eFt ",null,"Gép kora",null,null,{"$f":"COUNTIF(E9:E35,\">0\")","v":0}]
[null,null,null,null,null,null,"saját","idegen"]
[{"$f":"IF(B9>0,1,0)","v":0},null,null,null,null,null,null,null,{"$f":"IF(E9=0,0,IF(E9=$K$10,0.25,SUM($K$10-E9)))","v":0},{"$f":"I9*(G9+H9)","v":0},{"$f":"TODAY()","v":"2021-07-05"},{"$f":"COUNTIF(O9:O35,\">0\")","v":0},{"$f":"IF(L9>L7,\"Kitöltötte a gép értékét, de nem adta meg a gyártási évet\",IF(L9=L7,0,IF(L9<L7,\"Kitöltötte gyártási évet, de nem adta meg a gép értékét\")))","v":0},null,{"$f":"SUM(G9:H9)","v":0}]
[{"$f":"IF(B10>0,(A9+1),0)","v":0},null,null,null,null,null,null,null,{"$f":"IF(E10=0,0,IF(E10=$K$10,0.25,SUM($K$10-E10)))","v":0},{"$f":"I10*(G10+H10)","v":0},{"$f":"YEAR(K9)","v":2021},null,null,null,{"$f":"SUM(G10:H10)","v":0}]
[{"$f":"IF(B11>0,(A10+1),0)","v":0},null,null,null,null,null,null,null,0,0,null,null,null,null,0]
[0,null,null,null,null,null,null,null,0,0,null,null,"Új érték",null,0]
[0,null,null,null,null,null,null,null,0,0,null,null,"Avult érték",null,0]
[0,null,null,null,null,null,null,null,0,0,null,null,null,null,0]
[0,null,null,null,null,null,null,null,0,0,null,null,null,null,0]
[0,null,null,null,null,null,null,null,0,0,null,null,null,null,0]
[0,null,null,null,null,null,null,null,0,0,null,null,null,null,0]
[0,null,null,null,null,null,null,null,0,0,null,null,null,null,0]
[0,null,null,null,null,null,null,null,0,0,null,null,null,null,0]
[0,null,null,null,null,null,null,null,0,0,null,null,null,null,0]
[0,null,null,null,null,null,null,null,0,0,null,null,null,null,0]
[0,null,null,null,null,null,null,null,0,0,null,null,null,null,0]
[0,null,null,null,null,null,null,null,0,0,null,null,null,null,0]
[0,null,null,null,null,null,null,null,0,0,null,null,null,null,0]
[0,null,null,null,null,null,null,null,0,0,null,null,null,null,0]
[0,null,null,null,null,null,null,null,0,0,null,null,null,null,0]
[0,null,null,null,null,null,null,null,0,0,null,null,null,null,0]
[0,null,null,null,null,null,null,null,0,0,null,null,null,null,0]
[0,null,null,null,null,null,null,null,0,0,null,null,null,null,0]
[0,null,null,null,null,null,null,null,0,0,null,null,null,null,0]
[0,null,null,null,null,null,null,null,0,0,null,null,null,null,0]
[0,null,null,null,null,null,null,null,0,0,null,null,null,null,0]
[0,null,null,null,null,null,null,null,0,0,null,null,null,null,0]
[0,null,null,null,null,null,null,null,0,0,null,null,null,null,0]
[0,null,null,null,null,null,null,null,0,0,null,null,null,null,0]
[null,null,null,null,null,"Összesen",{"$f":"SUM(G9:G35)","v":0},{"$f":"SUM(H9:H35)","v":0},null,{"$f":"SUM(J9:J35)","v":0},{"$f":"SUM(G36:H36)","v":0},null,null,null,{"$f":"SUM(O9:O35)","v":0}]
[null,null,null,{"$f":"M9","v":0},null,null,null,null,{"$f":"IF(OR(L9>L7,K36=0),\"15 felett\",J36/K36)","v":"15 felett"},"Átlagéletkor"]
["Dátum",{"$f":"Ajánlat1!E112","v":0},{"$f":"Dátum","v":"00:00:00"}]
[]
[]
[null,"üzletkötő",null,null,"szerződő/biztosított"]

{"sheet":"Munka10","index":7,"n_rows":0,"n_cols":0,"rows_kept":0,"cut":false,"hidden":true,"merged":[]}

{"sheet":"GéptörésELBER","index":8,"n_rows":47,"n_cols":18,"rows_kept":47,"cut":false,"hidden":false,"merged":[[1,4,1,7],[2,4,2,7],[4,0,4,7],[6,0,7,0],[6,1,7,3],[6,4,7,4],[44,4,44,5],[6,5,7,5],[6,6,6,7],[8,1,8,3],[40,3,40,7],[43,4,43,5],[9,6,9,7],[9,4,10,4],[9,5,10,5],[24,0,24,7],[9,0,10,0],[9,1,10,1],[9,2,10,2],[9,3,10,3],[39,0,39,5],[26,1,27,1],[22,0,22,5],[26,6,26,7],[26,8,27,8],[26,2,27,2],[26,3,27,3],[26,4,27,4],[26,5,27,5],[26,0,27,0]]}
[]
[null,null,null,null,"UNION-Business Class"]
[null,null,null,null,"Biztosítási ajánlat"]
[]
["Elektromos berendezések biztosítása"]
[]
["Sor szám","Informatikai eszközök",null,null,"Átlagélet-kora","Értékelés módja","Biztosítási összeg eFt",null,"Gép kora",null,null,{"$f":"COUNTIF(E9:E22,\">0\")","v":0},null,null,null,null,null,{"$f":"YEAR(TODAY())-10","v":2011}]
[null,null,null,null,null,null,"saját","idegen",null,null,null,null,null,null,null,null,null,{"$f":"YEAR(TODAY())-9","v":2012}]
[0,"Számítógépek, monitorok, központi egységek, terminálok, perifériák, lap-topok, adathordozók",null,null,null,null,null,null,{"$f":"IF(E9=0,0,E9)","v":0},{"$f":"I9*(G9+H9)","v":0},{"$f":"TODAY()","v":"2021-07-05"},{"$f":"COUNTIF(O9:O22,\">0\")","v":0},{"$f":"IF(L9>L5,\"Kitöltötte a gép értékét, de nem adta meg a gyártási évet\",IF(L9=L5,0,IF(L9<L5,\"Kitöltötte gyártási évet, de nem adta meg a gép értékét\")))","v":0},null,{"$f":"SUM(G9:H9)","v":0},null,null,{"$f":"YEAR(TODAY())-8","v":2013}]
["Sor szám","Elektromos és elektronikus gépek, berendezések neve","Típusa","Gyári száma","Gyártási éve","Értékelés módja","Biztosítási összeg eFt",null,"Gép kora",null,{"$f":"YEAR(K9)","v":2021},{"$f":"COUNTIF(E9:E22,\">0\")","v":0},null,null,null,null,null,{"$f":"YEAR(TODAY())-7","v":2014}]
[null,null,null,null,null,null,"saját","idegen",null,null,null,null,null,null,null,null,null,{"$f":"YEAR(TODAY())-6","v":2015}]
[{"$f":"IF(B12>0,1,0)","v":0},null,null,null,null,null,null,null,{"$f":"IF(E12=0,0,IF(E12=$K$13,0.25,SUM($K$13-E12)))","v":0},{"$f":"I12*(G12+H12)","v":0},{"$f":"TODAY()","v":"2021-07-05"},{"$f":"COUNTIF(O9:O22,\">0\")","v":0},{"$f":"IF(L12>L7,\"Kitöltötte a gép értékét, de nem adta meg a gyártási évet\",IF(L12=L7,0,IF(L12<L7,\"Kitöltötte gyártási évet, de nem adta meg a gép értékét\")))","v":0},null,{"$f":"SUM(G12:H12)","v":0},null,null,{"$f":"YEAR(TODAY())-5","v":2016}]
[{"$f":"IF(B13>0,(A12+1),0)","v":0},null,null,null,null,null,null,null,{"$f":"IF(E13=0,0,IF(E13=$K$13,0.25,SUM($K$13-E13)))","v":0},{"$f":"I13*(G13+H13)","v":0},{"$f":"YEAR(K12)","v":2021},null,null,null,{"$f":"SUM(G13:H13)","v":0},null,null,{"$f":"YEAR(TODAY())-4","v":2017}]
[{"$f":"IF(B14>0,(A13+1),0)","v":0},null,null,null,null,null,null,null,0,0,null,null,null,null,0,null,null,{"$f":"YEAR(TODAY())-3","v":2018}]
[0,null,null,null,null,null,null,null,0,0,null,null,"Új érték",null,0,null,null,{"$f":"YEAR(TODAY())-2","v":2019}]
[0,null,null,null,null,null,null,null,0,0,null,null,"Avult érték",null,0,null,null,{"$f":"YEAR(TODAY())-1","v":2020}]
[0,null,null,null,null,null,null,null,0,0,null,null,null,null,0,null,null,{"$f":"YEAR(TODAY())-0","v":2021}]
[0,null,null,null,null,null,null,null,0,0,null,null,null,null,0]
[0,null,null,null,null,null,null,null,0,0,null,null,null,null,0]
[0,null,null,null,null,null,null,null,0,0,null,null,null,null,0]
[0,null,null,null,null,null,null,null,0,0,null,null,null,null,0]
[0,null,null,null,null,null,null,null,0,0,null,null,null,null,0]
["Számítógépek és számítógép vezérlésű elektromos berendezések összesen",null,null,null,null,null,{"$f":"SUM(G9,G12:G22)","v":0},{"$f":"SUM(H9,H12:H22)","v":0},null,{"$f":"SUM(J9,J12:J22)","v":0},null,null,null,null,0]
[null,null,null,null,null,null,null,null,{"$f":"IF(K24>5,\"5 felett\",K24)","v":"5 felett"},"Átlagéletkor",{"$f":"IF(OR(L12>L10,J23=0),\"5 felett\",J23/O24)","v":"5 felett"},null,null,null,{"$f":"SUM(O9,O12:O22)","v":0}]
["Géplista géptörés biztosításhoz"]
[]
["Sor szám","Gép neve","Típusa","Gyári száma","Gyártási éve","Értékelés módja","Gép értéke eFt ",null,"Gép kora",null,null,{"$f":"COUNTIF(E29:E39,\">0\")","v":0}]
[null,null,null,null,null,null,"saját","idegen"]
[{"$f":"IF(B29>0,1,0)","v":0},null,null,null,null,null,null,null,{"$f":"IF(E29=0,0,IF(E29=$K$10,0.25,SUM($K$10-E29)))","v":0},{"$f":"I29*(G29+H29)","v":0},{"$f":"TODAY()","v":"2021-07-05"},{"$f":"COUNTIF(O29:O39,\">0\")","v":0},{"$f":"IF(L29>L27,\"Kitöltötte a gép értékét, de nem adta meg a gyártási évet\",IF(L29=L27,0,IF(L29<L27,\"Kitöltötte gyártási évet, de nem adta meg a gép értékét\")))","v":0},null,{"$f":"SUM(G29:H29)","v":0}]
[{"$f":"IF(B30>0,(A29+1),0)","v":0},null,null,null,null,null,null,null,{"$f":"IF(E30=0,0,IF(E30=$K$10,0.25,SUM($K$10-E30)))","v":0},{"$f":"I30*(G30+H30)","v":0},{"$f":"YEAR(K29)","v":2021},null,null,null,{"$f":"SUM(G30:H30)","v":0}]
[{"$f":"IF(B31>0,(A30+1),0)","v":0},null,null,null,null,null,null,null,{"$f":"IF(E31=0,0,IF(E31=$K$10,0.25,SUM($K$10-E31)))","v":0},{"$f":"I31*(G31+H31)","v":0},null,null,null,null,{"$f":"SUM(G31:H31)","v":0}]
[{"$f":"IF(B32>0,(A31+1),0)","v":0},null,null,null,null,null,null,null,{"$f":"IF(E32=0,0,IF(E32=$K$10,0.25,SUM($K$10-E32)))","v":0},{"$f":"I32*(G32+H32)","v":0},null,null,"Új érték",null,{"$f":"SUM(G32:H32)","v":0}]
[{"$f":"IF(B33>0,(A32+1),0)","v":0},null,null,null,null,null,null,null,{"$f":"IF(E33=0,0,IF(E33=$K$10,0.25,SUM($K$10-E33)))","v":0},{"$f":"I33*(G33+H33)","v":0},null,null,"Avult érték",null,{"$f":"SUM(G33:H33)","v":0}]
[0,null,null,null,null,null,null,null,0,0,null,null,null,null,0]
[0,null,null,null,null,null,null,null,0,0,null,null,null,null,0]
[0,null,null,null,null,null,null,null,0,0,null,null,null,null,0]
[0,null,null,null,null,null,null,null,0,0,null,null,null,null,0]
[0,null,null,null,null,null,null,null,0,0,null,null,null,null,0]
[0,null,null,null,null,null,null,null,0,0,null,null,null,null,0]
["Gépek összesen",null,null,null,null,null,{"$f":"SUM(G29:G39)","v":0},{"$f":"SUM(H29:H39)","v":0},null,{"$f":"SUM(J29:J39)","v":0},null,null,null,null,{"$f":"SUM(O29:O39)","v":0}]
[null,null,null,null,null,null,null,null,{"$f":"IF(OR(J40=0,L29>L27),\"15 felett\",J40/O40)","v":"15 felett"},"Átlagéletkor"]
["Kelt.:",{"$f":"Ajánlat1!E112","v":0},{"$f":"Dátum","v":"00:00:00"}]
[]
[]
[null,null,"biztosításközvetítő aláírása",null,"szerződő aláírása"]
[{"$f":"Ajánlat1!B116","v":"Verzió: 1.19"}]
[{"$f":"Ajánlat1!B117","v":"UNION-Business Class Érvényes: 2021.12.31.-ig "}]

{"sheet":"Kiegészítők","index":9,"n_rows":73,"n_cols":17,"rows_kept":73,"cut":false,"hidden":true,"merged":[[2,7,2,10],[1,7,1,10],[5,0,5,10],[12,0,12,10],[32,0,32,1],[32,2,32,3],[32,9,32,10],[24,0,24,1],[17,0,17,1],[17,2,17,3],[17,9,17,10],[22,2,22,5],[18,0,18,10],[24,2,24,3],[24,9,24,10],[25,0,25,1],[27,0,27,10],[33,0,33,10],[39,0,39,1],[39,2,39,3],[35,0,35,1],[35,2,35,3],[35,9,35,10],[36,0,36,1],[36,2,36,3],[36,9,36,10],[34,0,34,1],[34,2,34,3],[31,2,31,3],[31,9,31,10],[37,0,37,1],[37,2,37,3],[50,1,50,3],[50,7,50,9],[49,7,49,9],[42,9,42,10],[39,9,39,10],[40,2,40,3],[40,9,40,10],[40,0,40,1],[41,0,41,1],[41,2,41,3],[49,1,49,3],[41,9,41,10],[37,9,37,10],[38,0,38,1],[38,2,38,3],[38,9,38,10],[46,1,46,2],[46,3,46,4],[42,0,42,8],[26,0,26,10],[43,0,43,10],[7,2,7,3],[9,0,9,1],[9,2,9,3],[9,9,9,10],[10,0,10,1],[10,2,10,3],[10,9,10,10],[20,0,20,10],[14,2,14,5],[11,0,11,10],[16,0,16,1],[34,9,34,10],[29,2,29,5],[31,0,31,1],[16,2,16,3],[16,9,16,10],[25,2,25,3],[25,9,25,10],[7,7,7,9]]}
[]
[null,null,null,null,null,null,null,"UNION - BC"]
[null,null,null,null,null,null,null,"Biztosítási ajánlat"]
[null,null,null,null,null,null,null,null,null,null,null,null,null,null,null,null,"Tevkor"]
[]
["Üzemszünetbiztosítás",null,null,null,null,null,null,null,null,null,null,null,null,null,"Épület","Gép, ber"]
[]
["Választott önrész",null,"3 nap",null,null,"Kártérítési limit",null,{"$f":"IF(A11=0,0,IF(A11=\"Small\",A71,IF(A11=\"Medium\",A72,IF(A11=\"Large\",A73))))","v":"12 hónap, max 100 MFt"},null,null,null,null,{"$f":"IF(C8=\"3 nap\",1,IF(C8=\"5 nap\",2,IF(C8=\"7 nap\",3)))","v":1},null,{"$f":"IF(Díjszámítás!M27=1,1,IF(Díjszámítás!M27=2,2,IF(Díjszámítás!M27=3,3,0)))","v":0},{"$f":"IF(Díjszámítás!M42=1,1,IF(Díjszámítás!M42=2,2,IF(Díjszámítás!M42=3,3,0)))","v":0}]
[]
["Választott módozat",null,"Díjszámítás alapja",null,"Kockázati osztály","Díjtétel","Módozati szorzó","Volumen-szorzó","Önrész szorzó","Éves díj",null,null,"Mód","Vol",null,{"$f":"IF(P8=0,0,IF(OR(O8=1,P8=1),1,IF(P8>1,2)))","v":0}]
["Large",null,{"$f":"IF(A11=0,0,Díjszámítás!N27)","v":0},null,{"$f":"IF(OR(A11=0,C11=0,C8=0),0,IF(Díjszámítás!C12=\"\",\"\",VLOOKUP(Díjszámítás!$C12,'Tevékenység lista'!$A$2:$H$304,5,FALSE)))","v":0},{"$f":"IF(OR(A11=0,C11=0,C8=0),0,IF(E11=\"vig\",0,IF(E11=\"k\",0,INDEX(Üzem,E11))))","v":0},{"$f":"IF(OR(A11=0,C11=0,C8=0),0,INDEX(Ümód,M11))","v":0},{"$f":"IF(OR(A11=0,C11=0,C8=0),0,INDEX(Üvol,O11))","v":0},{"$f":"IF(OR(A11=0,C11=0,C8=0),0,INDEX(Üönr,M8,))","v":0},{"$f":"IF(Díjszámítás!J45=0,0,IF(AND(C8=0,A11=0),0,(C11*F11*G11*H11*I11)))","v":0},null,null,{"$f":"IF(A11=\"Small\",1,IF(A11=\"Medium\",2,IF(A11=\"Large\",3)))","v":3},{"$f":"Díjszámítás!N27","v":0},{"$f":"IF(N11<=10000,1,IF(AND(N11<=25000,N11>10),2,IF(AND(N11<=50000,N11>25),3,IF(AND(N11<=100000,N11>50),4,IF(AND(N11<=200000,N11>100),5,IF(AND(N11<=500000,N11>200),6))))))","v":1}]
[{"$f":"IF(E11=\"vig\",\"Üzemszünet biztosítás csak a vagyonigazgatóság engedélyével köthető\",IF(E11=\"k\",\"Kizárt kockázat\",IF(AND(Díjszámítás!J45=0,C8>0,A11>0),\"Az üzemszünetbiztosítás csak a vagyonbiztosítás kiegészítőjeként köthető\",0)))","v":"Az üzemszünetbiztosítás csak a vagyonbiztosítás kiegészítőjeként köthető"}]
["Géptörés biztosítás"]
[]
["Választott önrész",null,"10%, de minimum 25.000 Ft",null,null,null,"Gépek átlagéletkora",null,{"$f":"Géplista!I37","v":"15 felett"},null,null,null,{"$f":"IF(C15=\"\",\"\",VLOOKUP($C15,Összesítő!$E$63:$H$70,4,FALSE))","v":1},{"$f":"IF(I15<=2,1,IF(AND(I15<=5,I15>2),2,IF(AND(I15<=10,I15>5),3,IF(AND(I15<=15,I15>10),4,IF(OR(I15>15,I15=\"15 felett\"),5)))))","v":5}]
[]
["Választott módozat",null,"Biztosítási összeg",null,"Kockázati osztály","Díjtétel","Átlagélet-kor eng.","Volumen-szorzó","Önrész szorzó","Éves díj",null,null,{"$f":"INDEX(Gkor,N15)","v":1},null,{"$f":"IF(C18<=10000,1,IF(AND(C18<=25000,C18>10),2,IF(AND(C18<=50000,C18>25),3,IF(AND(C18<=100000,C18>50),4,IF(AND(C18<=200000,C18>100),5,IF(AND(C18<=500000,C18>200),6))))))","v":1}]
["Géptörés",null,{"$f":"IF(Díjszámítás!J45=0,0,Géplista!O36)","v":0},null,{"$f":"IF(OR(C18=0,C15=0),0,IF(Díjszámítás!C12=\"\",\"\",VLOOKUP(Díjszámítás!$C12,'Tevékenység lista'!$A$2:$H$304,6,FALSE)))","v":0},{"$f":"IF(OR(C18=0,C15=0),0,IF(E18=\"vig\",0,IF(E18=\"k\",0,INDEX(Gép,E18))))","v":0},{"$f":"IF(OR(C18=0,C15=0),0,M17)","v":0},{"$f":"IF(OR(C18=0,C15=0),0,INDEX(Gvol,O17))","v":0},{"$f":"IF(OR(C15=0,C18=0),0,INDEX(Gönr,M15))","v":0},{"$f":"IF(Díjszámítás!J45=0,0,IF(OR(C15=0,A18=0),0,(C18*F18*G18*H18*I18)))","v":0},null,null,{"$f":"IF(A18=\"Small\",1,IF(A18=\"Medium\",2,IF(A18=\"Large\",3)))","v":false}]
[{"$f":"IF(E18=\"vig\",\"Géptörésbiztosítás csak a vagyonigazgatóság engedélyével köthető\",IF(E18=\"k\",\"Kizárt kockázat\",IF(AND(Díjszámítás!J45=0,C15>0),\"A géptörésbiztosítás csak a vagyonbiztosítás kiegészítőjeként köthető\",0)))","v":"A géptörésbiztosítás csak a vagyonbiztosítás kiegészítőjeként köthető"}]
[]
["Elektromos berendezések biztosítása"]
[]
["Választott önrész",null,"10%, de minimum 25.000 Ft",null,null,null,"Gépek átlagéletkora",null,{"$f":"GéptörésELBER!I24","v":"5 felett"},null,null,null,{"$f":"IF(C23=\"\",\"\",VLOOKUP($C23,Összesítő!$E$63:$H$70,4,FALSE))","v":1},{"$f":"IF(I23<=2,1,IF(AND(I23<=3,I23>2),2,IF(AND(I23<=5,I23>3),3,IF(OR(I23>5,I23=\"5 felett\"),4))))","v":4}]
[]
["Választott módozat",null,"Biztosítási összeg",null,"Kockázati osztály","Díjtétel","Átlagélet-kor eng.","Volumen-szorzó","Önrész szorzó","Éves díj",null,null,{"$f":"INDEX(Ekor,N23)","v":1},null,{"$f":"IF(C26<=10000,1,IF(AND(C26<=25000,C26>10),2,IF(AND(C26<=50000,C26>25),3,IF(AND(C26<=100000,C26>50),4,IF(AND(C26<=200000,C26>100),5,IF(AND(C26<=500000,C26>200),6))))))","v":1}]
["ELBER",null,{"$f":"IF(Díjszámítás!J45=0,0,GéptörésELBER!O24)","v":0},null,{"$f":"IF(OR(C26=0,C23=0),0,IF(Díjszámítás!C12=\"\",\"\",VLOOKUP(Díjszámítás!$C12,'Tevékenység lista'!$A$2:$H$304,7,FALSE)))","v":0},{"$f":"IF(OR(C26=0,C23=0),0,IF(E26=\"vig\",0,IF(E26=\"k\",0,INDEX(ELBER,E26))))","v":0},{"$f":"IF(OR(C26=0,C23=0),0,M25)","v":0},{"$f":"IF(OR(C26=0,C23=0),0,INDEX(Evol,O25))","v":0},{"$f":"IF(OR(C23=0,A26=0),0,INDEX(Eönr,M23))","v":1},{"$f":"IF(Díjszámítás!J45=0,0,IF(AND(C23=0,A26=0),0,(C26*F26*G26*H26*I26)))","v":0}]
[{"$f":"IF(E26=\"vig\",\"Elektromos berendezések biztosítása csak a vagyonigazgatóság engedélyével köthető\",IF(E26=\"k\",\"Kizárt kockázat\",IF(AND(Díjszámítás!J45=0,C23>0),\"Elektromos berendezések biztosítása csak a vagyonbiztosítás kiegészítőjeként köthető\",0)))","v":"Elektromos berendezések biztosítása csak a vagyonbiztosítás kiegészítőjeként köthető"}]
["Felelősségbiztosítás"]
[]
["Választott önrész",null,"20%, de minimum 50.000 Ft",null,null,null,null,null,null,null,null,null,{"$f":"IF(C30=\"\",\"\",VLOOKUP($C30,Összesítő!$E$63:$H$70,4,FALSE))","v":6}]
[]
["Választott módozat",null,"Kártérítési limit MFt/kár/év",null,"Kockázati osztály","Díjtétel","Módozati szorzó",null,"Önrész szorzó","Éves díj"]
["Small",null,{"$f":"IF(Díjszámítás!J45=0,0,IF(A33=0,0,IF(A33=\"Small\",\"5/15\",IF(A33=\"Medium\",\"15/45\",IF(A33=\"Large\",\"50/100\")))))","v":0},null,{"$f":"IF(OR(A33=0,C33=0,C30=0),0,IF(Díjszámítás!C12=\"\",\"\",VLOOKUP(Díjszámítás!$C12,'Tevékenység lista'!$A$2:$H$304,3,FALSE)))","v":0},{"$f":"IF(OR(A33=0,C33=0,C30=0),0,IF(E33=\"vig\",0,IF(E33=\"k\",0,INDEX(Fel,E33))))","v":0},{"$f":"IF(OR(A33=0,C33=0,C30=0),0,INDEX(Felmód,M33))","v":0},null,{"$f":"IF(OR(A33=0,C33=0,C30=0),0,INDEX(Felönr,M30))","v":0},{"$f":"F33*G33*I33","v":0},null,null,{"$f":"IF(A33=\"Small\",1,IF(A33=\"Medium\",2,IF(A33=\"Large\",3)))","v":1}]
["Kiegészítő felelősségbiztosítások"]
["Bérlői felelősség",null,null,null,null,null,null,null,null,{"$f":"IF(I35=0,0,IF(J33=0,0,IF(AND(J33>0,I35=\"kérem\"),(J33*0.1),IF(AND(J33>0,I35=\"nem kérem\"),0))))","v":0}]
["Bérbeadói felelősség",null,null,null,null,null,null,null,null,{"$f":"IF(I36=0,0,IF(J33=0,0,IF(AND(J33>0,I36=\"kérem\"),(J33*0.1),IF(AND(J33>0,I36=\"nem kérem\"),0))))","v":0}]
["Kiterjesztett termék",null,null,null,null,null,null,null,null,{"$f":"IF(I37=0,0,IF(J33=0,0,IF(AND(J33>0,I37=\"kérem\"),(J33*0.35),IF(AND(J33>0,I37=\"nem kérem\"),0))))","v":0}]
["Szálloda 1 (S;M;L)",null,null,null,null,null,null,null,null,{"$f":"IF(I38=0,0,IF(J33=0,0,IF(AND(J33>0,I38=\"kérem\"),(J33*0.3),IF(AND(J33>0,I38=\"nem kérem\"),0))))","v":0}]
["Szálloda 2 (M;L)",null,null,null,null,null,null,null,null,{"$f":"IF(A33=\"Small\",0,IF(I39=0,0,IF(J33=0,0,IF(AND(J33>0,I39=\"kérem\"),(J33*0.4),IF(I39=\"Nem köthető\",0,IF(AND(J33>0,I39=\"nem kérem\"),0))))))","v":0}]
["Környezetszennyezés",null,null,null,null,null,null,null,null,{"$f":"IF(I40=0,0,IF(J33=0,0,IF(AND(J33>0,I40=\"kérem\"),(J33*0.15),IF(AND(J33>0,I40=\"nem kérem\"),0))))","v":0}]
["EU Kiterjesztés",null,null,null,null,null,null,null,null,{"$f":"IF(I41=0,0,IF(J33=0,0,IF(AND(J33>0,I41=\"kérem\"),(J33*0.15),IF(AND(J33>0,I41=\"nem kérem\"),0))))","v":0}]
["Rakodás (M;L)",null,null,null,null,null,null,null,null,{"$f":"IF(A33=\"Small\",0,IF(I42=0,0,IF(J33=0,0,IF(I42=\"Nem köthető\",0,IF(AND(J33>0,I42=\"kérem\"),(J33*0.15),IF(AND(J33>0,I42=\"nem kérem\"),0))))))","v":0}]
["Felelősségbiztosítás  összesen",null,null,null,null,null,null,null,null,{"$f":"IF(Díjszámítás!J45=0,0,IF(AND(C30=0,A33=0),0,SUM(J35:K42,J33)))","v":0}]
[{"$f":"IF(E33=\"vig\",\"Felelősségbiztosítás csak a vagyonigazgatóság engedélyével köthető\",IF(E33=\"k\",\"Kizárt kockázat\",IF(AND(Díjszámítás!J45=0,C30>0,A33>0),\"Felelősségbiztosítás csak a vagyonbiztosítás kiegészítőjeként köthető\",0)))","v":"Felelősségbiztosítás csak a vagyonbiztosítás kiegészítőjeként köthető"}]
[]
[]
["Dátum",{"$f":"Ajánlat1!E112","v":0},null,{"$f":"TODAY()","v":"2021-07-05"}]
[]
[]
[]
[null,"üzletkötő",null,null,null,null,null,"szerződő/biztosított"]
[]
[]
[]
[]
[]
[0,null,"3 nap",null,"10%, de minimum 25.000 Ft",null,null,1,1,null,1]
[5000,null,"5 nap",null,"10%, de minimum 50.000 Ft",null,null,2,0.95,null,0.95]
[10000,null,"7 nap",null,"10%, de minimum 100.000 Ft",null,null,3,0.85,null,0.85]
[25000,null,null,null,"10%, de minimum 200.000 Ft",null,null,4,0.7,null,0.7]
[50000,null,null,null,"20%, de minimum 25.000 Ft",null,null,5,0.92,null,0.92]
[100000,null,null,null,"20%, de minimum 50.000 Ft",null,null,6,0.87,null,0.87]
[200000,null,null,null,"20%, de minimum 100.000 Ft",null,null,7,0.78,null,0.78]
[null,null,null,null,"20%, de minimum 200.000 Ft",null,null,8,0.64,null,0.64]
["Small","Small"]
["Medium",null,null,"0-2",null,"kérem",null,"éves",null,"Nem köthető"]
["Large",null,null,"2,01-3",null,"nem kérem",null,"féléves"]
[null,null,null,"3,01-5",null,null,null,"negyedéves"]
[null,null,null,"5,01-",null,"üzleti"]
[null,null,null,null,null,"üzletpolitikai"]
["3 hónap, max. 25 MFt"]
["6 hónap, max. 50 MFt"]
["12 hónap, max 100 MFt"]

{"sheet":"Összesítő","index":10,"n_rows":76,"n_cols":17,"rows_kept":76,"cut":false,"hidden":true,"merged":[[12,0,12,8],[12,9,12,10],[1,8,1,10],[2,8,2,10],[8,0,8,10],[11,0,11,8],[11,9,11,10],[13,0,13,8],[13,9,13,10],[14,0,14,8],[14,9,14,10],[15,0,15,8],[15,9,15,10],[16,0,16,8],[16,9,16,10],[17,0,17,8],[17,9,17,10],[18,0,18,8],[18,9,18,10],[20,0,20,8],[20,9,20,10],[23,0,23,4],[23,5,23,6],[23,9,23,10],[21,0,21,8],[21,9,21,10],[22,0,22,4],[22,5,22,8],[22,9,22,10],[24,0,24,4],[24,5,24,8],[24,9,24,10],[25,0,25,4],[25,5,25,8],[25,9,25,10],[26,0,26,8],[26,9,26,10],[27,0,27,4],[27,5,27,6],[27,7,27,8],[27,9,27,10],[28,0,28,8],[28,9,28,10],[29,2,29,3],[29,4,29,5],[29,9,29,10],[37,1,37,3],[37,7,37,9],[30,4,30,5],[34,1,34,2],[34,3,34,4],[36,1,36,3],[36,7,36,9]]}
[]
[null,null,null,null,null,null,null,null,"UNION - BC"]
[null,null,null,null,null,null,null,null,"Biztosítási ajánlat"]
[null,null,null,null,null,null,null,null,null,null,null,null,null,null,null,null,"Tevkor"]
[]
[]
[]
[]
["Biztosítási díjösszesítő",null,null,null,null,null,null,null,null,null,null,null,null,{"$f":"(100-5)/100","v":0.95}]
[]
[]
[null,null,null,null,null,null,null,null,null,"Éves díj"]
["Vagyonbiztosítás összesen",null,null,null,null,null,null,null,null,{"$f":"Díjszámítás!J45","v":0}]
["Épületbiztosítás",null,null,null,null,null,null,null,null,{"$f":"Díjszámítás!J27","v":0}]
["Gép, berendezés biztosítás",null,null,null,null,null,null,null,null,{"$f":"Díjszámítás!J42","v":0},null,null,{"$f":"COUNTIF(J14:K19,\">0\")","v":0}]
["Üzemszünetbiztosítás",null,null,null,null,null,null,null,null,{"$f":"Kiegészítők!J11","v":0}]
["Géptörés biztosítás",null,null,null,null,null,null,null,null,{"$f":"Kiegészítők!J18","v":0}]
["Elektromos gépek, berendezések biztosítása",null,null,null,null,null,null,null,null,{"$f":"Kiegészítők!J26","v":0}]
["Felelősségbiztosítás",null,null,null,null,null,null,null,null,{"$f":"Kiegészítők!J43","v":0}]
[]
["Éves díj ",null,null,null,null,null,null,null,null,{"$f":"J13+J16+J17+J18+J19","v":0}]
["Pótdíjak"]
["Engedmények",null,null,null,null,"Csomag engedmény",null,null,null,{"$f":"IF(M15<4,0,IF(M15=4,0.95,IF(OR(M15=5,M15=6),0.9)))","v":0}]
[null,null,null,null,null,"Üzleti engedmények",null,"üzleti",5,{"$f":"IF(J21=0,0,M24)","v":0},null,null,{"$f":"IF(H24=0,0,IF(H24=\"üzleti\",(100-I24)/100,IF(H24=\"üzletpolitikai\",0.84)))","v":0.95}]
[null,null,null,null,null,"Tartamengedmény",null,null,null,{"$f":"IF(Ajánlat1!E37=\"Felmondási jog 3 évre kizárva\",0.9,0)","v":0},null,null,null,{"$f":"IF(AND(J23=0,J24=0,J25=0,J26=0),0,IF(AND(J23>0,J24>0,J25>0,J26>0),(J23*J24*J25*J26),IF(AND(J23>0,J24=0,J25=0,J26=0),J23,IF(AND(J23>0,J24>0,J25=0,J26=0),(J23*J24),IF(AND(J23>0,J24>0,J25>0,J26=0),(J23*J24*J25),IF(AND(J23=0,J24>0,J25>0,J26>0),(J24*J25*J26),IF(AND(J23=0,J24=0,J25>0,J26>0),(J25*J26),0)))))))","v":0}]
[null,null,null,null,null,"Egyedi engedmény",null,null,null,null,null,null,{"$f":"IF(Ajánlat1!J37>0,1,0)","v":0},{"$f":"IF(AND(J23=0,J24=0,J25=0,J26>0),J26,IF(AND(J23=0,J24>0,J25=0,J26=0),J24,IF(AND(J23=0,J24=0,J25>0,J26=0),J25,IF(AND(J23=0,J24>0,J25>0,J26=0),(J24*J25),IF(AND(J23>0,J24=0,J25=0,J26>0),(J23*J26),IF(AND(J23>0,J24=0,J25>0,J26=0),(J23*J25),0))))))","v":0}]
["Éves díj összesen",null,null,null,null,null,null,null,null,{"$f":"IF(J21=0,0,MAX(20000,IF(N28=0,J21,IF(N28>0,(J21*N28)))))","v":0},null,null,{"$f":"J27/365","v":0},{"$f":"IF(AND(J23>0,J24=0,J25>0,J26>0),(J23*J25*J26),IF(AND(J23>0,J24>0,J25=0,J26>0),(J23*J24*J26),0))","v":0}]
["Gyakorisági díj",null,null,null,null,"Díjfizetés gyakorisága",null,"féléves",null,{"$f":"IF(H28=0,0,IF(H28=\"éves\",J27*0.92,IF(H28=\"féléves\",(J27/2)*0.96,IF(H28=\"negyedéves\",J27/4))))","v":0},null,null,{"$f":"IF(H28=\"negyedéves\",J28*4,IF(H28=\"féléves\",J28*2,IF(H28=\"éves\",J28)))","v":0},{"$f":"IF(AND(N25=0,N26=0,N27=0),0,IF(AND(N25>0,N26=0,N27=0),N25,IF(AND(N25=0,N26>0,N27=0),N26,IF(AND(N25=0,N26=0,N27>0),N27))))","v":0}]
["Fizetendő első díj ",null,null,null,null,null,null,null,null,{"$f":"J30","v":0},null,null,{"$f":"M28/365","v":0}]
["Fizetendő díj ",null,{"$f":"Ajánlat1!E39","v":"2021-07-06"},null,{"$f":"IF(OR(Ajánlat1!J37=\"\",Ajánlat1!N37>364),DATEVALUE(CONCATENATE(YEAR(Ajánlat1!E39),\".\",MONTH(Ajánlat1!E39)+1,\".01\")),\"\")","v":"2021-08-01"},null,{"$f":"IF(OR(MOD(YEAR(Ajánlat1!E35)-2000,4)=0,Ajánlat1!J37=\"\"),365,IF(Ajánlat1!J37-Ajánlat1!E35=364,365,Ajánlat1!J37-Ajánlat1!E35+1))","v":365},{"$f":"SUM(E31-C30)","v":26},null,{"$f":"IF(Ajánlat1!J37>0,((G30*M27)+(M27*30)),(M29*H30)+J28)","v":0}]
[null,null,null,null,{"$f":"DATEVALUE(CONCATENATE(YEAR(Ajánlat1!E39),\".\",MONTH(Ajánlat1!E39)+1,\".01\"))","v":"2021-08-01"}]
[]
[]
[]
["Dátum",{"$f":"Ajánlat1!E112","v":0},null,{"$f":"TODAY()","v":"2021-07-05"}]
[]
[]
[null,"üzletkötő",null,null,null,null,null,"szerződő/biztosított"]
[]
[]
[]
[]
[]
[]
[]
[]
[]
[]
[]
[]
[]
[]
[]
[]
[]
[]
[]
[]
[]
[]
[]
[]
[0,null,"3 nap",null,"10%, de minimum 25.000 Ft",null,null,1,1]
[5000,null,"5 nap",null,"10%, de minimum 50.000 Ft",null,null,2,0.95]
[10000,null,"7 nap",null,"10%, de minimum 100.000 Ft",null,null,3,0.85]
[25000,null,null,null,"10%, de minimum 200.000 Ft",null,null,4,0.7]
[50000,null,null,null,"20%, de minimum 25.000 Ft",null,null,5,0.92]
[100000,null,null,null,"20%, de minimum 50.000 Ft",null,null,6,0.87]
[200000,null,null,null,"20%, de minimum 100.000 Ft",null,null,7,0.78]
[null,null,null,null,"20%, de minimum 200.000 Ft",null,null,8,0.64]
["Small"]
["Medium",null,null,"0-2",null,"kérem",null,"éves"]
["Large",null,null,"2,01-5",null,"nem kérem",null,"féléves"]
[null,null,null,"5,01-10",null,null,null,"negyedéves"]
[null,null,null,"10,01-15",null,"üzleti"]
[null,null,null,"15 felett",null,"üzletpolitikai"]

{"sheet":"Kockázatfelmérő","index":11,"n_rows":96,"n_cols":19,"rows_kept":96,"cut":false,"hidden":false,"merged":[[15,1,15,9],[15,11,15,12],[5,4,5,12],[7,1,7,12],[9,11,9,12],[11,1,11,12],[13,3,13,9],[17,1,17,9],[17,11,17,12],[19,1,19,9],[19,11,19,12],[21,1,21,9],[21,11,21,12],[23,11,23,12],[27,3,27,9],[29,1,29,9],[29,11,29,12],[31,1,31,9],[31,11,31,12],[50,11,50,12],[33,1,33,9],[33,11,33,12],[35,1,35,9],[35,11,35,12],[37,11,37,12],[39,1,39,11],[40,11,40,12],[42,11,42,12],[44,11,44,12],[46,11,46,12],[48,11,48,12],[52,11,52,12],[54,8,54,12],[56,8,56,10],[58,8,58,10],[62,1,62,3],[62,5,62,6],[62,8,62,9],[62,11,62,12],[64,1,64,3],[64,5,64,6],[64,8,64,9],[64,11,64,12],[66,1,66,3],[66,5,66,6],[66,8,66,9],[66,11,66,12],[68,1,68,3],[68,5,68,6],[68,8,68,9],[68,11,68,12],[70,1,70,3],[70,5,70,6],[70,8,70,9],[70,11,70,12],[79,8,79,10],[80,8,80,10],[72,3,72,12],[74,1,74,12],[78,1,78,12],[79,2,79,3],[77,4,77,5],[76,1,76,12]]}
[]
[null,null,null,null,null,null,null,null,null,null,null,null,"UNION-Business Class"]
[null,null,null,null,null,null,null,null,null,null,null,null,"Kockázatfelmérő adatlap"]
[]
[]
[null,"Szerződő/Biztosított neve:",null,null,{"$f":"Ajánlat1!E16","v":0}]
[]
[null,"Szerződő/biztosítottként nyilatkozom, hogy a jelen biztosítási ajánlatban részletezett telephelyek megfelelnek az alábbiaknak:"]
[]
[null,"1. Az épületek falazata szilárd anyagból készült (tégla, kő, vasbeton):",null,null,null,null,null,null,null,null,null,"igen",null,null,{"$f":"IF(L10=\"igen\",1,IF(AND(L10=\"nem\",B16>0,L16>0),1,IF(L10=0,0,IF(AND(L10=\"nem\",B16=0,L16=0),2))))","v":1}]
[]
[null,"2. A nem szilárd anyagból készült épületek (vályog, könnyűszerkezet, fa) az alábbi telephelyeken találhatók:"]
[]
[null,"Telephely címe:",null,{"$f":"IF(O10=2,\"Kérjük adja meg az épületek címét és a funkciókat\",0)","v":0},null,null,null,null,null,null,null,"Épület funkciója:"]
[]
[]
[]
[]
[]
[]
[]
[]
[]
[null,"3. Az épületek héjalása (tetőzete) szilárd anyagból készült (cserép, pala, beton):",null,null,null,null,null,null,null,null,null,"igen",null,null,{"$f":"IF(L24=\"igen\",1,IF(AND(L24=\"nem\",B30>0,L30>0),1,IF(L24=0,0,IF(AND(L24=\"nem\",B30=0,L30=0),2))))","v":1}]
[]
[null,"4. A nem szilárd anyagból készült (nád, fa) héjalású épületek az alábbi telephelyeken találhatók:"]
[]
[null,"Telephely címe:",null,{"$f":"IF(O24=2,\"Kérjük adja meg az épületek címét és a funkciókat\",0)","v":0},null,null,null,null,null,null,null,"Épület funkciója:"]
[]
[]
[]
[]
[]
[]
[]
[]
[]
[null,"5. A telephelyek épületeinek állaga:",null,null,null,null,null,null,null,null,null,"jó",null,null,{"$f":"IF(L38=0,0,IF(L38>0,1))","v":1}]
[]
[null,"6. A telephelyek tűzvédelmi berendezéssel ellátottak (hagyományos kézi oltókészülékek,"]
[null,"kiépített hálózat, a tüzivíz ellátása megoldott):",null,null,null,null,null,null,null,null,null,"igen",null,null,{"$f":"IF(L41=0,0,IF(L41>0,1))","v":1}]
[]
[null,"7. A telephelyeken automata tűz, füst, hőérzékelő működik:",null,null,null,null,null,null,null,null,null,"nem",null,null,{"$f":"IF(L43=0,0,IF(L43>0,1))","v":1}]
[]
[null,"8. A tűzoltó készülékek, tűzjelző berendezések ellenőrzése rendszeres:",null,null,null,null,null,null,null,null,null,"igen",null,null,{"$f":"IF(L45=0,0,IF(L45>0,1))","v":1}]
[]
[null,"9. Használnak-e lobbanékony folyadékokat/gázokat:",null,null,null,null,null,null,"nem","Ha igen, milyet:",null,null,null,null,{"$f":"IF(I47=0,0,IF(AND(I47=\"igen\",L47=0),2,IF(AND(I47=\"igen\",L47>0),1,IF(I47=\"nem\",1))))","v":1}]
[]
[null,"10. Fennállnak-e külső veszélyforrások:",null,null,null,null,null,null,"nem","Ha igen milyen:",null,null,null,null,{"$f":"IF(I49=0,0,IF(AND(I49=\"igen\",L49=0),2,IF(AND(I49=\"igen\",L49>0),1,IF(I49=\"nem\",1))))","v":1}]
[]
[null,"11. Az elektromos hálózat állapota megfelelő (szigeteltek a kábelek, trafóházak):",null,null,null,null,null,null,null,null,null,"igen",null,null,{"$f":"IF(L51=0,0,IF(L51>0,1))","v":1}]
[]
[null,"12.  A telephelyeken talajszint alatti padozatú helyiségek találhatók-e:",null,null,null,null,null,null,null,null,null,"igen",null,null,{"$f":"IF(L53=0,0,IF(L53>0,1))","v":1}]
[]
[null,"13. Ha igen a szerződést kezelő biztosító társaság neve:"]
[]
[null,null,null,null,null,null,"Biztosítás kötvényszám"]
[]
[null,"13. Kárelőzmények (az előző két év káreseményei):",null,null,null,null,null,null,"nem volt károm",null,null,null,null,null,{"$f":"IF(I59=0,0,IF(I59=\"nem volt károm\",1,IF(AND(I59=\"volt károm\",B63=0,F63=0,I63=0,L63=0),2,IF(AND(I59=\"volt károm\",B63>0,F63>0,I63>0,L63>0),1))))","v":1}]
[]
[null,"14. Telephely címe:",null,null,null,"Kár időpontja:",null,null,"Kár oka:",null,null,"Kár összege:",null,null,{"$f":"IF(AND(O10=0,O24=0,O38=0,O41=0,O43=0,O45=0,O47=0,O49=0,O51=0,O53=0,O59=0),0,IF(AND(O10=1,O24=1,O38=1,O41=1,O43=1,O45=1,O47=1,O49=1,O51=1,O53=1,O59=1),1,IF(OR(O10>1,O10=0,O24>1,O24=0,O38>1,O24=0,O41>1,O41=0,O43>1,O43=0,O45>1,O45=0,O47>1,O47=0,O49>1,O49=0,O51>1,O51=0,O53>1,O53=0,O59>1,O59=0),2)))","v":1}]
[]
[null,null,null,null,null,null,null,null,null,null,null,null,null,null,"HA(ÉS("]
[]
[]
[]
[]
[]
[]
[]
[]
[]
[null,"Megjegyzések:",null,null,null,null,null,null,null,null,null,null,null,null,{"$f":"IF(O61=11,0,IF(O61<11,1,IF(O61>11,2)))","v":1}]
[]
[null,null,null,null,null,null,null,null,null,null,null,null,null,null,{"$f":"VLOOKUP(1,O10:O59,1,FALSE)","v":1}]
[]
[]
[null,null,null,null,{"$f":"Ajánlat1!G112","v":"00:00:00"}]
[null,{"$f":"IF(O61=0,\"Kérjük, töltse ki a kockázatfelmérő adatlapot!\",IF(O61=1,0,IF(O61=2,\"Kérjük, töltse ki a hiányzó adatokat!\")))","v":0}]
[null,"Kelt.:",{"$f":"Ajánlat1!E112","v":0}]
[null,null,null,null,null,null,null,null,"szerződő/biztosított",null,null,null,null,null,null,null,null,null,{"$f":"IFERROR('Vagyonbiztosítási adatközlő'!B10, )","v":0}]
[null,null,null,null,null,null,null,null,null,null,null,null,null,null,null,null,null,null,{"$f":"IFERROR('Vagyonbiztosítási adatközlő'!B11, )","v":0}]
[null,null,null,null,null,null,null,null,null,null,null,null,null,null,null,null,null,null,{"$f":"IFERROR('Vagyonbiztosítási adatközlő'!B12, )","v":0}]
[null,{"$f":"Ajánlat1!B116","v":"Verzió: 1.19"},null,null,null,null,null,null,null,null,null,null,null,null,{"$f":"O10","v":1},null,null,null,{"$f":"IFERROR('Vagyonbiztosítási adatközlő'!B13, )","v":0}]
[null,{"$f":"Ajánlat1!B117","v":"UNION-Business Class Érvényes: 2021.12.31.-ig "},null,null,null,null,null,null,null,null,null,null,null,null,{"$f":"O24","v":1},null,null,null,{"$f":"IFERROR('Vagyonbiztosítási adatközlő'!B14, )","v":0}]
[null,null,null,null,null,null,null,null,null,null,null,null,null,null,{"$f":"O38","v":1},null,null,null,{"$f":"IFERROR('Vagyonbiztosítási adatközlő'!B15, )","v":0}]
[null,null,null,null,null,null,null,null,null,null,null,null,null,null,{"$f":"O41","v":1},null,null,null,{"$f":"IFERROR('Vagyonbiztosítási adatközlő'!B16, )","v":0}]
[null,null,null,null,null,null,null,null,null,null,null,null,null,null,{"$f":"O43","v":1},null,null,null,{"$f":"IFERROR('Vagyonbiztosítási adatközlő'!B17, )","v":0}]
[null,null,null,null,null,null,null,null,null,null,null,null,null,null,{"$f":"O45","v":1},null,null,null,{"$f":"IFERROR('Vagyonbiztosítási adatközlő'!B18, )","v":0}]
[null,"igen","üzemcsarnok",null,null,"jó",null,null,"volt károm",null,null,null,null,null,{"$f":"O47","v":1},null,null,null,{"$f":"IFERROR('Vagyonbiztosítási adatközlő'!B19, )","v":0}]
[null,"nem","raktár",null,null,"közepes",null,null,"nem volt károm",null,null,null,null,null,{"$f":"O49","v":1},null,null,null,{"$f":"IFERROR('Vagyonbiztosítási adatközlő'!B20, )","v":0}]
[null,null,"műhely",null,null,"rossz",null,null,null,null,null,null,null,null,{"$f":"O51","v":1},null,null,null,{"$f":"IFERROR('Vagyonbiztosítási adatközlő'!B21, )","v":0}]
[null,null,"iroda",null,null,null,null,null,null,null,null,null,null,null,{"$f":"O53","v":1},null,null,null,{"$f":"IFERROR('Vagyonbiztosítási adatközlő'!B22, )","v":0}]
[null,null,"üzlet",null,null,null,null,null,null,null,null,null,null,null,{"$f":"O59","v":1},null,null,null,{"$f":"IFERROR('Vagyonbiztosítási adatközlő'!B23, )","v":0}]
[null,null,"szociális létesítmény",null,null,null,null,null,null,null,null,null,null,null,{"$f":"IF(AND(O84:O94)=0,1,IF(AND(O84:O94)=1,0,IF(OR(O84:O94)=2,2,IF(OR(O84:O94)=0,2))))","v":false},null,null,null,{"$f":"IFERROR('Vagyonbiztosítási adatközlő'!B24, )","v":0}]
[null,null,null,null,null,null,null,null,null,null,null,null,null,null,null,null,null,null,{"$f":"IFERROR('Vagyonbiztosítási adatközlő'!B25, )","v":0}]

{"sheet":"Díjszámítás","index":12,"n_rows":209,"n_cols":27,"rows_kept":209,"cut":false,"hidden":false,"merged":[[42,0,42,10],[47,0,47,1],[47,2,47,4],[49,0,49,10],[51,8,51,10],[53,2,53,3],[43,0,43,10],[51,2,51,3],[53,0,53,1],[50,0,50,10],[66,1,66,3],[78,0,78,3],[79,0,79,3],[80,0,80,3],[81,0,81,3],[48,2,48,3],[48,7,48,10],[80,8,80,10],[46,7,46,10],[4,0,4,10],[7,7,7,8],[101,7,101,10],[102,0,102,6],[102,7,102,10],[108,7,108,8],[98,0,98,6],[5,0,5,10],[15,0,15,10],[28,0,28,10],[106,9,106,10],[107,5,107,6],[107,9,107,10],[108,9,108,10],[107,0,107,1],[60,7,60,10],[58,9,58,10],[58,1,58,3],[62,0,62,10],[61,7,61,10],[64,0,64,10],[68,0,68,1],[68,2,68,3],[68,7,68,10],[7,9,7,10],[23,2,23,3],[7,4,7,6],[19,9,19,10],[19,6,19,8],[19,0,19,2],[12,0,12,10],[17,3,17,8],[17,0,18,2],[18,3,18,5],[21,6,21,8],[21,9,21,10],[21,3,21,5],[20,9,20,10],[18,6,18,8],[16,0,16,10],[17,9,18,10],[19,3,19,5],[21,0,21,2],[20,0,20,2],[20,3,20,5],[20,6,20,8],[25,2,25,3],[27,0,27,10],[29,0,29,10],[25,0,25,1],[25,7,25,10],[26,7,26,10],[30,0,31,2],[32,3,32,5],[32,9,32,10],[30,3,30,8],[31,3,31,5],[31,6,31,8],[30,9,31,10],[32,0,32,2],[32,6,32,8],[26,0,26,1],[26,2,26,3],[112,7,112,8],[112,9,112,10],[91,8,91,10],[125,2,125,3],[33,9,33,10],[40,7,40,10],[41,7,41,10],[34,6,34,8],[35,3,35,5],[82,0,82,3],[83,0,83,3],[84,0,84,3],[85,0,85,3],[58,7,58,8],[44,0,44,6],[53,7,53,10],[54,0,54,1],[44,7,44,10],[55,0,55,10],[54,7,54,10],[76,2,76,3],[61,2,61,3],[69,7,69,10],[66,9,66,10],[40,0,40,1],[34,3,34,5],[36,0,36,2],[36,3,36,5],[127,0,127,10],[95,0,95,10],[108,2,108,3],[100,0,100,6],[100,7,100,10],[89,8,89,10],[90,8,90,10],[111,7,111,8],[111,9,111,10],[110,0,110,8],[110,9,110,10],[109,9,109,10],[114,2,114,3],[114,4,114,5],[107,2,107,3],[106,2,106,3],[118,0,118,1],[98,7,98,10],[114,9,114,10],[113,9,113,10],[35,0,35,2],[34,9,34,10],[33,6,33,8],[48,0,48,1],[1,7,1,10],[105,7,105,8],[77,0,77,10],[76,8,76,10],[81,8,81,10],[79,8,79,10],[70,0,70,10],[73,1,73,3],[71,0,71,10],[75,0,75,1],[75,2,75,3],[45,0,45,10],[99,7,99,10],[94,0,94,7],[36,9,36,10],[33,3,33,5],[40,2,40,3],[38,2,38,3],[41,0,41,1],[41,2,41,3],[109,2,109,3],[94,8,94,10],[96,0,96,6],[113,2,113,8],[2,7,2,10],[99,0,99,6],[84,8,84,10],[85,8,85,10],[88,8,88,10],[47,7,47,10],[83,8,83,10],[86,8,86,10],[82,8,82,10],[78,8,78,10],[56,0,56,10],[60,0,60,1],[60,2,60,3],[54,2,54,3],[36,6,36,8],[92,8,92,10],[93,8,93,10],[34,0,34,2],[35,6,35,8],[35,9,35,10],[118,8,118,9],[116,4,116,5],[104,1,104,8],[69,0,69,1],[69,2,69,3],[61,0,61,1],[75,8,75,10],[76,0,76,1],[86,0,86,3],[87,0,87,3],[88,0,88,3],[89,0,89,3],[90,0,90,3],[91,0,91,3],[92,0,92,3],[93,0,93,3],[96,7,96,10],[97,0,97,6],[97,7,97,10],[87,8,87,10],[101,0,101,6],[104,9,104,10],[105,9,105,10],[115,9,115,10]]}
[]
[null,null,null,null,null,null,null,"UNION-Business Class"]
[null,null,null,null,null,null,null,"Biztosítási ajánlat"]
[]
["UNION-Business Class"]
["DÍJKALKULÁCIÓS PROGRAM, NEM MINŐSÜL BIZTOSÍTÁSI AJÁNLATNAK!!"]
[]
["Kockázatviselés helye:",null,null,{"$f":"Ajánlat1!B33","v":0},{"$f":"Ajánlat1!D33","v":0},null,null,{"$f":"Ajánlat1!G33","v":0},null,{"$f":"Ajánlat1!J33","v":0}]
[]
["Telephelyen folytatott tevékenységek"]
[]
["Jellemző tevékenység:",null,"",null,null,null,null,null,null,null,null,null,null,null,{"$f":"IF(C12=\"Önkormányzat\",1,0)","v":0}]
[{"$f":"IF(C12=0,\"Kérjük, válasszon tevékenységet!\",IF(OR(D14=\"vig\",I14=\"vig\"),\"Vagyonbiztosítás csak a vagyonigazgatóság engedélyével köthető\",0))","v":0},null,null,null,null,null,null,null,null,null,null,null,-1]
["Kockázati osztály tűz",null,null,{"$f":"IF(C12=\"\",\"\",VLOOKUP($C12,'Tevékenység lista'!$A$2:$G$304,2,FALSE))","v":""},null,"Kockázati osztály betörés",null,null,{"$f":"IF(C12=\"\",\"\",VLOOKUP($C12,'Tevékenység lista'!$A$2:$G$304,4,FALSE))","v":""}]
[]
["Épületbiztosítás",null,null,null,null,null,null,null,null,null,null,null,null,null,{"$f":"IF(H27>0,1,0)","v":0}]
[{"$f":"IF(AND(C24>0,A27>0,'Vagyonbiztosítási adatközlő'!P26=0),\"Kérjük töltse ki az Épület munkalapot!\",0)","v":0}]
["Biztosított vagyontárgyak",null,null,"Biztosítási összeg eFt",null,null,null,null,null,"Összesen"]
[null,null,null,"Saját tulajdon",null,null,"Idegen tulajdon"]
["Épület",null,null,{"$f":"'Vagyonbiztosítási adatközlő'!E26","v":0},null,null,{"$f":"'Vagyonbiztosítási adatközlő'!G26","v":0},null,null,{"$f":"SUM(D20:I20)","v":0}]
["Építmény",null,null,{"$f":"'Vagyonbiztosítási adatközlő'!I26","v":0},null,null,{"$f":"'Vagyonbiztosítási adatközlő'!K26","v":0},null,null,{"$f":"SUM(D21:I21)","v":0}]
["Összesen",null,null,{"$f":"SUM(D20:F21)","v":0},null,null,{"$f":"SUM(G20:I21)","v":0},null,null,{"$f":"C27","v":0}]
[null,null,null,null,null,null,null,null,null,null,null,null,"Önr"]
["Választott önrész",null,null,null,"Ft",null,null,"Ft",null,null,null,null,{"$f":"IF(C24=\"0\",1,IF(C24=5000,2,IF(C24=10000,3,IF(C24=25000,4,IF(C24=50000,5,IF(C24=100000,6,IF(C24=200000,7)))))))","v":false},null,null,null,null,null,null,null,null,null,null,null,null,null,"Hibakezelés"]
[]
["Választott módozat",null,"Biztosítási összeg eFt",null,"Kockázati osztály","Díjtétel","Módozati szorzó","Éves díj Ft",null,null,null,null,"Mód","Vol",null,null,null,"Kockázati osztály","Díjtétel","Módozati szorzó","Volumen-szorzó","Önrész szorzó",{"$f":"IF(H27>0,1,0)","v":0}]
[0,null,{"$f":"'Vagyonbiztosítási adatközlő'!T26","v":0},null,null,null,null,{"$f":"SUM(C27*S27*T27*U27*V27)","v":0},null,null,null,null,{"$f":"IF(A27=\"Alap\",1,IF(A27=\"Teljes\",2,IF(A27=\"Extra\",3,IF(A27=\"All Risks\",4))))","v":false},{"$f":"SUM(C27,C42)","v":0},{"$f":"IF(N27<=10000,1,IF(AND(N27<=25000,N27>10),2,IF(AND(N27<=50000,N27>25),3,IF(AND(N27<=100000,N27>50),4,IF(AND(N27<=200000,N27>100),5,IF(AND(N27<=500000,N27>200),6))))))","v":1},null,null,{"$f":"IF(OR(A27=0,C27=0,C24=0),0,D14)","v":0},{"$f":"IF(OR(A27=0,C27=0,C24=0),0,INDEX(Tűz,R27))","v":0},{"$f":"IF(OR(A27=0,C27=0,C24=0),0,INDEX(Tmód,M27))","v":0},{"$f":"IF(OR(A27=0,C27=0,C24=0),0,4.1646*(N27/1000)^-0.348)","v":0},{"$f":"IF(OR(A27=0,C27=0,C24=0),0,INDEX(Tönr,M24))","v":0},{"$f":"IF(H42>0,1,0)","v":0},null,null,null,"Épület Hibakód"]
[{"$f":"IF(AA28=2,\"Kérjük töltse ki a Vagyonbiztosítási adatközlő munkalapot!\",IF(AA28=1,\"Kérjük, válasszon módozatot!\",IF(AA28=3,\"Kérjük, válasszon önrészt!\",0)))","v":0},null,null,null,null,null,null,null,null,null,null,null,null,{"$f":"IF(A42=0,0,INDEX(tvol,$O$27))","v":0},{"$f":"IF(O27=4,1,IF(O27=5,2,IF(O27=6,3)))","v":false},{"$f":"IF(O28=0,1,INDEX(bvol,O28))","v":{"$error":"#VALUE!"}},null,null,null,null,null,null,{"$f":"IF(H49>0,1,0)","v":0},null,null,null,{"$f":"IF(AND(OR(C27>0,C24>0),A27=0),1,IF(AND(OR(C24>0,A27>0),C27=0),2,IF(AND(OR(C27>0,A27>0),C24=0),3,0)))","v":0}]
["Ingóság (Gép, berendezés, készlet biztosítás)",null,null,null,null,null,null,null,null,null,null,null,null,{"$f":"C42-50000","v":-50000},null,null,null,null,null,null,null,null,{"$f":"IF(H55>0,1,1)","v":1}]
[{"$f":"IF(AND(C39>0,A42>0,'Gép,berendezés'!L33=0),\"Kérjük töltse ki a Gép, berendezés munkalapot!\",0)","v":0}]
["Biztosított vagyontárgyak",null,null,"Biztosítási összeg",null,null,null,null,null,"Összesen"]
[null,null,null,"Saját tulajdon",null,null,"Idegen tulajdon",null,null,null,null,null,null,{"$f":"INDEX(Itűz,D14)","v":{"$error":"#VALUE!"}},{"$f":"INDEX(Bet,I14)","v":{"$error":"#VALUE!"}}]
["Gép, berendezés",null,null,{"$f":"'Gép,berendezés'!E33","v":0},null,null,{"$f":"'Gép,berendezés'!F33","v":0},null,null,{"$f":"SUM(D33:I33)","v":0},null,null,null,{"$f":"C42*N32*T42*N28*V42","v":{"$error":"#VALUE!"}},{"$f":"IF(C42<=50000,(C42*O32*T42*V42*N28),IF(C42>50000,O34+O35))","v":{"$error":"#VALUE!"}},{"$f":"SUM(N33:O33)","v":{"$error":"#VALUE!"}}]
["Egyéb nevesített vagyontárgy",null,null,{"$f":"'Gép,berendezés'!G33","v":0},null,null,{"$f":"'Gép,berendezés'!H33","v":0},null,null,{"$f":"SUM(D34:I34)","v":0},null,null,null,null,{"$f":"50000*O32*T42*N28*V42","v":{"$error":"#VALUE!"}}]
["Készlet",null,null,{"$f":"'Gép,berendezés'!I33","v":0},null,null,{"$f":"'Gép,berendezés'!J33","v":0},null,null,{"$f":"SUM(D35:I35)","v":0},null,null,null,null,{"$f":"N29*O32*T42*P28*V42","v":{"$error":"#VALUE!"}}]
["Készpénz",null,null,{"$f":"'Gép,berendezés'!K33","v":0},null,null,null,null,null,{"$f":"SUM(D36:I36)","v":0},null,null,null,null,{"$f":"SUM(O34:O35)","v":{"$error":"#VALUE!"}}]
["Összesen",null,null,{"$f":"SUM(D33:F36)","v":0},null,null,{"$f":"SUM(G33:I36)","v":0},null,null,{"$f":"C42","v":0},null,null,null,null,{"$f":"O36+N33","v":{"$error":"#VALUE!"}}]
[]
["Választott önrész",null,null,null,null,null,null,"Ft",null,null,null,null,{"$f":"IF(C39=\"0\",1,IF(C39=5000,2,IF(C39=10000,3,IF(C39=25000,4,IF(C39=50000,5,IF(C39=100000,6,IF(C39=200000,7)))))))","v":false},null,null,null,null,null,null,null,null,null,{"$f":"IF(H62>0,1,0)","v":0}]
[]
["Választott módozat",null,"Biztosítási összeg eFt",null,"Kockázati osztály","Díjtétel","Módozati szorzó","Éves díj Ft",null,null,null,null,null,null,null,null,null,"Kockázati osztály","Díjtétel","Módozati szorzó","Volumen-szorzó","Önrész szorzó",{"$f":"IF(H70>0,1,0)","v":0}]
[0,null,{"$f":"'Vagyonbiztosítási adatközlő'!U26","v":0},null,null,null,null,{"$f":"IF(A43<>0,0,IF(AND(N29>0,N42<>7),T42*V42*(C42*S44*U42+50000*S45*U42+N29*S45*U44),C42*S42*T42*U42*V42))","v":0},null,null,null,null,{"$f":"IF(A42=\"Alap csomag betöréses lopással\",1,IF(A42=\"Teljes csomag betöréses lopással\",2,IF(A42=\"Extra csomag betöréses lopással\",3,IF(A42=\"All Risks csomag betöréses lopással\",4,IF(A42=\"Alap csomag betöréses lopás nélkül\",5,IF(A42=\"Teljes csomag betöréses lopás nélkül\",6,IF(A42=\"Extra csomag betöréses lopás nélkül\",7,IF(A42=\"All Risks csomag betöréses lopás nélkül\",8))))))))","v":false},{"$f":"IF(M42=1,1,IF(M42=2,2,IF(M42=3,3,IF(M42=4,4,7))))","v":7},null,null,null,{"$f":"IF(OR(A42=0,C42=0,C39=0),0,D14)","v":0},{"$f":"IF(OR(A42=0,C42=0,C39=0),0,IF(N42=7,INDEX(Itűz,D14),IF(N42<7,SUM(INDEX(Itűz,D14),INDEX(Bet,I14)))))","v":0},{"$f":"IF(OR(A42=0,C42=0,C39=0),0,IF(M42=0,0,IF(M42<=4,INDEX(Bmód,M42),IF(M42>4,INDEX(Tmód,(M42-4)),))))","v":0},{"$f":"IF(A42=0,0,4.1646*(N27/1000)^-0.348)","v":0},{"$f":"IF(OR(A42=0,C42=0,C39=0),0,INDEX(Tönr,M39))","v":0},null,null,null,null,"Ingóság Hibakód"]
[{"$f":"IF(AA43=2,\"Kérjük töltse ki a Vagyonbiztosítási adatközlő munkalapot!\",IF(AA43=1,\"Kérjük, válasszon módozatot!\",IF(AA43=3,\"Kérjük, válasszon önrészt!\",0)))","v":0},null,null,null,null,null,null,null,null,null,null,null,null,null,null,null,null,null,null,null,null,null,null,null,null,null,{"$f":"IF(AND(OR(C42>0,C39>0),A42=0),1,IF(AND(OR(C39>0,A42>0),C42=0),2,IF(AND(OR(C42>0,A42>0),C39=0),3,0)))","v":0}]
["Vagyonbiztosítás összesen",null,null,null,null,null,null,null,null,null,null,null,null,null,null,null,null,null,{"$f":"INDEX(Itűz,D14)","v":{"$error":"#VALUE!"}},null,{"$f":"IF(C42<=50000,\"50MFt feletti bet. Lop. volumen szorzó kerül ide, ha van!\",VLOOKUP(C42*1000,'Tarifa táblák'!E25:H27,4,TRUE))","v":"50MFt feletti bet. Lop. volumen szorzó kerül ide, ha van!"}]
["Épület és Ingóság biztosítás éves díja összesen",null,null,null,null,null,null,{"$f":"IF(OR(A46<>\"\",M45<0),0,IF(AND(M45>0,M45<15000),15000,M45))","v":0},null,null,null,null,{"$f":"SUM(H27+H42)","v":0},null,null,null,null,null,{"$f":"INDEX(Bet,I14)","v":{"$error":"#VALUE!"}},null,null,null,null,null,null,null,"1000000 fölötti összeg"]
[{"$f":"IF(AA46=2,\"Kérjük, töltse ki a Forgalom adatot az Ajánlat1 oldalán!\",IF(AA46=1,\"1.000.000 eFt vagyonérték felett nem köthető Business Class biztosítás\",\"\"))","v":"Kérjük, töltse ki a Forgalom adatot az Ajánlat1 oldalán!"},null,null,null,null,null,null,null,null,null,null,null,null,null,null,null,null,null,null,null,null,null,null,null,null,null,{"$f":"IF(J74<1,2,IF(N27>1000000,1,0))","v":2}]
["Kiegészítő üvegbiztosítás",null,null,null,null,null,null,"Önrész: 2000 Ft"]
["Választott módozat",null,"Limit eFt",null,null,null,null,"Éves díj Ft"]
[null,null,null,null,null,null,null,{"$f":"IF(H45=0,0,IF(A49=0,0,IF(C49=0,0,IF(A49=\"Normál üveg\",VLOOKUP(C49,'Tarifa táblák'!AD5:AF19,2,FALSE),IF(A49=\"Normál és speciális üveg\",VLOOKUP(C49,'Tarifa táblák'!AD5:AF19,3,FALSE))))))","v":0},null,null,null,null,null,null,null,null,null,null,null,null,null,null,null,null,null,null,"Üveg Hibakód"]
[{"$f":"IF(AA50=3,\"A Kiegészítő üvegbiztosítás csak a vagyonbiztosítás kiegészítőjeként köthető\",IF(AA50=2,\"Kérjük, válasszon limitet!\",IF(AA50=1,\"Kérjük, válasszon módozatot!\",0)))","v":0},null,null,null,null,null,null,null,null,null,null,null,null,null,null,null,null,null,null,null,null,null,null,null,null,null,{"$f":"IF(AND(C49>0,A49=0),1,IF(AND(A49>0,C49=0),2,0))","v":0}]
["Üzemszünetbiztosítás",null,null,null,null,null,null,null,null,null,null,null,null,null,"Épületcsomag","ingóságcsomag"]
["Választott önrész",null,null,null,null,null,null,"Limit",{"$f":"IF(A55=0,0,IF(A55=\"Alap csomag: 3 hó, max. 25 M Ft\",A157,IF(A55=\"Bővített csomag: 6 hó, max. 50 M Ft\",A158,IF(A55=\"Bővített csomag: 12 hó, max. 100 M Ft\",A159,IF(A55=\"Bővített csomag: 12 hó, max. 150 M Ft\",A160,0)))))","v":0},null,null,null,{"$f":"IF(C52=\"3 nap\",1,IF(C52=\"5 nap\",2,IF(C52=\"7 nap\",3)))","v":false},null,{"$f":"IF(Díjszámítás!M27=1,1,IF(Díjszámítás!M27=2,2,IF(Díjszámítás!M27=3,3,0)))","v":0},{"$f":"IF(OR(M42=5,M42=1),1,IF(OR(M42=6,M42=2),2,IF(OR(M42=7,M42=3),3,IF(OR(M42=8,M42=4),4,0))))","v":0}]
[]
["Választott módozat",null,"Díjszámítás alapja",null,"Kockázati osztály","Díjtétel","Módozati szorzó","Éves díj Ft",null,null,null,null,"Mód","Vol",null,{"$f":"IF(AND(O52>0,P52>O52),O52,P52)","v":0},null,"Kockázati osztály","Díjtétel","Módozati szorzó","Volumen-szorzó","Önrész szorzó"]
[0,null,{"$f":"IF(OR(A42=0,A55=0),0,IF(AND(M42=1,M55>1),0,IF(AND(M27=1,M55>1),0,Díjszámítás!N27)))","v":0},null,null,null,null,{"$f":"IF(A56<>0,0,IF(H42=0,0,IF(AND(C52=0,A55=0),0,(C55*S55*T55*U55*V55))))","v":0},null,null,null,null,{"$f":"IF(A55=\"Alap csomag: 3 hó, max. 25 M Ft\",1,IF(A55=\"Bővített csomag: 6 hó, max. 50 M Ft\",2,IF(A55=\"Bővített csomag: 12 hó, max. 100 M Ft\",3,IF(A55=\"Bővített csomag: 12 hó, max. 150 M Ft\",4))))","v":false},{"$f":"Díjszámítás!N27","v":0},{"$f":"IF(N55<=10000,1,IF(AND(N55<=25000,N55>10),2,IF(AND(N55<=50000,N55>25),3,IF(AND(N55<=100000,N55>50),4,IF(AND(N55<=200000,N55>100),5,IF(AND(N55<=500000,N55>200),6))))))","v":1},null,null,{"$f":"IF(OR(A55=0,C55=0,C52=0),0,IF(Díjszámítás!C12=\"\",\"\",VLOOKUP(Díjszámítás!C12,'Tevékenység lista'!$A$2:$G$304,5,FALSE)))","v":0},{"$f":"IF(OR(A55=0,C55=0,C52=0),0,IF(R55=\"vig\",0,INDEX(Üzem,R55)))","v":0},{"$f":"IF(OR(A55=0,C55=0,C52=0),0,INDEX(Ümód,M55))","v":0},{"$f":"IF(OR(A55=0,C55=0,C52=0),0,4.1646*(N55/1000)^-0.348)","v":0},{"$f":"IF(OR(A55=0,C55=0,C52=0),0,INDEX(Üönr,M52,))","v":0},null,null,null,null,"Üzemszünet Hibakód"]
[{"$f":"IF(AA56=4,\"Üzemszünetbiztosítás csak a vagyonigazgatóság engedélyével köthető\",IF(AA56=5,\"Az Üzemszünetbiztosítás csak a vagyonbiztosítás kiegészítőjeként köthető\",IF(AA56=6,\"Üzemszünet biztosítás csak az Ingóságbiztosítás kiegészítőjeként köthető\",IF(AA56=1,\"Kérjük, válasszon módozatot!\",IF(AA56=2,\"Kérjük, válasszon ki önrészt!\",IF(AA56=7,\"A választott üzemszünet csomag nem engedélyezett a megjelölt vagyonbiztosítási módozathoz!\",0))))))","v":0},null,null,null,null,null,null,null,null,null,null,null,null,null,null,null,null,null,null,null,null,null,null,null,null,null,{"$f":"IF(AND(C52>0,A55=0),1,IF(AND(C52=0,A55>0),2,IF(AND(H45>0,H42>0,R55=\"vig\"),4,IF(AND(H45=0,C52>0,A55>0),5,IF(AND(A55>0,H42=0),6,IF(AND(M55,M55>P54),7,0))))))","v":0}]
["Géptörés biztosítás"]
[]
["Önrész",null,null,null,null,null,null,"Gépek átlagéletkora",null,{"$f":"IF(C62>0,GéptörésELBER!I41,0)","v":0},null,null,{"$f":"IF(B59=\"\",\"\",VLOOKUP($B59,Összesítő!$E$63:$H$70,4,FALSE))","v":""},{"$f":"IF(J59<=2,1,IF(AND(J59<=5,J59>2),2,IF(AND(J59<=10,J59>5),3,IF(AND(J59<=15,J59>10),4,IF(OR(J59>15,J59=\"15 felett\"),5)))))","v":1},{"$f":"IF(J59=0,0,IF(J59=\"0-2\",1,IF(J59=\"2,01-5\",2,IF(J59=\"5,01-10\",3,IF(J59=\"10,01-15\",4,IF(J59=\"15 felett\",5))))))","v":0}]
[]
["Választott módozat",null,"Biztosítási összeg eFt",null,"Kockázati osztály","Díjtétel","Átlagélet-kor eng.","Éves díj Ft",null,null,null,null,{"$f":"INDEX(Gkor,N59)","v":0.5},null,{"$f":"IF(C62<=10000,1,IF(AND(C62<=25000,C62>10),2,IF(AND(C62<=50000,C62>25),3,IF(AND(C62<=100000,C62>50),4,IF(AND(C62<=200000,C62>100),5,IF(AND(C62<=500000,C62>200),6))))))","v":1},null,null,"Kockázati osztály","Díjtétel","Átlagélet-kor eng.","Volumen-szorzó","Önrész szorzó"]
["Géptörés",null,{"$f":"GéptörésELBER!O40","v":0},null,null,null,null,{"$f":"IF(OR(H42=0,H45=0),0,IF(C42<C62,0,IF(B59=0,0,(C62*S62*T62*U62*V62))))","v":0},null,null,null,null,{"$f":"IF(A62=\"Alap\",1,IF(A62=\"Teljes\",2,IF(A62=\"Extra\",3)))","v":false},null,null,null,null,{"$f":"IF(OR(C62=0,B59=0),0,IF(Díjszámítás!C12=\"\",\"\",VLOOKUP(Díjszámítás!$C12,'Tevékenység lista'!$A$2:$G$304,6,FALSE)))","v":0},{"$f":"IF(OR(C62=0,B59=0,R62=0),0,IF(R62=\"vig\",0,INDEX(Gép,R62)))","v":0},{"$f":"IF(OR(C62=0,B59=0,J59=0),0,M61)","v":0},{"$f":"IF(OR(C62=0,B59=0),0,INDEX(Gvol,O61))","v":0},{"$f":"IF(OR(B59=0,C62=0),0,INDEX(Gönr,M59))","v":0},null,null,null,null,"Géptörés Hibakód"]
[{"$f":"IF(AA63=1,\"Kérjük töltse ki az Géptörés/ELBER munkalapot!\",IF(AA63=2,\"Kérjük, válasszon önrészt!\",IF(AA63=3,\"Géptörésbiztosítás csak a vagyonigazgatóság engedélyével köthető\",IF(AA63=4,\"A géptörésbiztosítás csak az ingóságbiztosítás kiegészítőjeként köthető\",IF(AA63=5,\"A géptörésbiztosítási összeg nem lehet magasabb, mint a gépek berendezések biztosítási összege\",0)))))","v":0},null,null,null,null,null,null,null,null,null,null,null,null,null,null,null,null,null,null,null,null,null,null,null,null,null,{"$f":"IF(AND(B59>0,C62=0),1,IF(AND(B59=0,C62>0),2,IF(R62=\"vig\",3,IF(AND(H42=0,C62>0),4,IF(C62>'Vagyonbiztosítási adatközlő'!W26,5,0)))))","v":0}]
[]
["Elektromos berendezések biztosítása"]
[]
["Önrész",null,null,null,null,null,null,"Gépek átlagéletkora",null,{"$f":"IF(C70>0,GéptörésELBER!I24,0)","v":0},null,null,{"$f":"IF(B67=\"\",\"\",VLOOKUP($B67,Összesítő!$E$63:$H$70,4,FALSE))","v":""},{"$f":"IF(J67<=2,1,IF(AND(J67<=3,J67>2),2,IF(AND(J67<=5,J67>3),3,IF(OR(J67>5,J67=\"5 felett\"),4))))","v":1},{"$f":"IF(J67=\"0-2\",1,IF(J67=\"2,01-3\",2,IF(J67=\"3,01-5\",3,IF(J67=\"5,01-\",4))))","v":false}]
[]
["Választott módozat",null,"Biztosítási összeg eFt",null,"Kockázati osztály","Díjtétel","Átlagélet-kor eng.","Éves díj Ft",null,null,null,null,{"$f":"INDEX(Ekor,N67)","v":0.65},null,{"$f":"IF(C70<=10000,1,IF(AND(C70<=25000,C70>10),2,IF(AND(C70<=50000,C70>25),3,IF(AND(C70<=100000,C70>50),4,IF(AND(C70<=200000,C70>100),5,IF(AND(C70<=500000,C70>200),6))))))","v":1},null,null,"Kockázati osztály","Díjtétel","Átlagélet-kor eng.","Volumen-szorzó","Önrész szorzó"]
["ELBER",null,{"$f":"GéptörésELBER!O24","v":0},null,null,null,null,{"$f":"IF(OR(H42=0,H45=0),0,IF(C42<C70,0,IF(AND(B67=0,A70=0),0,(C70*S70*T70*U70*V70))))","v":0},null,null,null,null,null,null,null,null,null,{"$f":"IF(OR(C70=0,B67=0),0,IF(Díjszámítás!C12=\"\",\"\",VLOOKUP(Díjszámítás!$C12,'Tevékenység lista'!$A$2:$G$304,7,FALSE)))","v":0},{"$f":"IF(OR(C70=0,B67=0),0,IF(R70=\"vig\",0,INDEX(ELBER,R70)))","v":0},{"$f":"IF(OR(C70=0,B67=0,J67=0),0,M69)","v":0},{"$f":"IF(OR(C70=0,B67=0),0,INDEX(Evol,O69))","v":0},{"$f":"IF(OR(B67=0,A70=0),0,INDEX(Eönr,M67))","v":0},null,null,null,null,"ELBER Hibakód"]
[{"$f":"IF(AA71=1,\"Kérjük töltse ki az ELBER/Géptörés munkalapot!\",IF(AA71=2,\"Kérjük, válasszon önrészt!\",IF(AA71=3,\"Elektromos berendezések biztosítása csak a vagyonigazgatóság engedélyével köthető\",IF(AA71=4,\"Elektromos berendezések biztosítása csak az ingóság kiegészítőjeként köthető\",IF(AA71=5,\"Az elektromos berendezések biztosítási összege nem lehet magasabb, mint a gép, berendezés biztosítási összege\",0)))))","v":0},null,null,null,null,null,null,null,null,null,null,null,null,null,null,null,null,null,null,null,null,null,null,null,null,null,{"$f":"IF(AND(B67>0,C70=0),1,IF(AND(B67=0,C70>0),2,IF(R70=\"vig\",3,IF(AND(H42=0,C62>0),4,IF(C70>'Vagyonbiztosítási adatközlő'!W26,5,0)))))","v":0}]
["Felelősségbiztosítás"]
[]
["Önrész",null,null,null,null,null,null,null,"Forgalom:",{"$f":"Ajánlat1!J35","v":0},"M Ft",null,{"$f":"IF(B74=\"\",\"\",VLOOKUP($B74,Összesítő!$E$63:$H$70,4,FALSE))","v":""}]
[]
["Választott módozat",null,"Kártérítési limit MFt/kár/év",null,"Kockázati osztály","Díjtétel","Módozati szorzó",null,"Éves díj Ft",null,null,null,null,null,"Ha 5. kockázat a minimum felelősség",null,null,"Kockázati osztály","Díjtétel","Módozati szorzó",null,"Önrész szorzó"]
["Általános felelősségbiztosítás",null,null,null,null,null,null,null,{"$f":"IF(OR(H45=0,J74=0,B74=0,C77=0,J74>1000),0,IF(U80*S77*T77*V77<O77,O77,U80*S77*T77*V77))","v":0},null,null,null,{"$f":"IF(C77=\"5 MFt/kár; 15 MFt/év\",1,IF(C77=\"15 MFt/kár; 45 MFt/év\",2,IF(C77=\"50 MFt/kár; 100 MFt/év\",3)))","v":false},null,{"$f":"IF(R77=5,67500,15000)","v":15000},null,null,{"$f":"IF(OR(A77=0,C77=0,B74=0),0,IF(Díjszámítás!C12=\"\",\"\",VLOOKUP(Díjszámítás!$C12,'Tevékenység lista'!$A$2:$G$304,3,FALSE)))","v":0},{"$f":"IF(OR(A77=0,C77=0,B74=0),0,IF(R77=\"vig\",0,INDEX(Fel,R77)))","v":0},{"$f":"IF(OR(A77=0,C77=0,B74=0),0,INDEX(Felmód,M77))","v":0},null,{"$f":"IF(OR(A77=0,C77=0,B74=0),0,INDEX(Felönr,M74))","v":0}]
["Kiegészítő felelősségbiztosítások"]
["Munkáltatói felelősségbiztosítás",null,null,null,null,null,null,null,{"$f":"IF(H79=0,0,IF(I77=0,0,IF(AND(I77>0,H79=\"kérem\"),(I77*0.6),IF(AND(I77>0,H79=\"nem kérem\"),0))))","v":0},null,null,null,null,null,"Csak akkor törlöm az épszerfelt ha előtte 5 volt",null,null,"Forgkorr. Szorzó","Vagyon alapú engedmény","Forgalom eFt"]
["Termékfelelősség-biztosítás",null,null,null,null,null,null,null,{"$f":"IF(H80=0,0,IF(I77=0,0,IF(AND(I77>0,H80=\"kérem\"),(I77*0.8),IF(AND(I77>0,H80=\"nem kérem\"),0))))","v":0},null,null,null,{"$f":"IF(I80=0,1,IF(I80>0,2))","v":1},null,0,null,null,{"$f":"-0.262*(LN(J74))+2.2125","v":{"$error":"#NUM!"}},{"$f":"IF((C27+C42)<S83,1,(1.0022*EXP(-0.002*(C27+C42)/10000)-0.3))","v":1},{"$f":"J74*1000","v":0},{"$f":"T80*R80*S80","v":{"$error":"#NUM!"}}]
["Szolgáltatói felelősségbiztosítás",null,null,null,null,null,null,null,{"$f":"IF(H81=0,0,IF(I77=0,0,IF(AND(I77>0,H81=\"kérem\"),(I77*0.8),IF(AND(I77>0,H81=\"nem kérem\"),0))))","v":0},null,null,null,{"$f":"IF(I81=0,1,IF(I81>0,2))","v":1}]
["Ingatlan-bérlői felelősségbiztosítás",null,null,null,null,null,null,null,{"$f":"IF(H82=0,0,IF(I77=0,0,IF(AND(I77>0,H82=\"kérem\"),(I77*0.3),IF(AND(I77>0,H82=\"nem kérem\"),0))))","v":0},null,null,null,null,null,null,null,null,null,"Ha 5. kockázat akkor 100 millió min"]
["Ingatlan-bérbeadói felelősségbiztosítás",null,null,null,null,null,null,null,{"$f":"IF(H83=0,0,IF(I77=0,0,IF(AND(I77>0,H83=\"kérem\"),(I77*0.3),IF(AND(I77>0,H83=\"nem kérem\"),0))))","v":0},null,null,null,null,null,null,null,null,null,{"$f":"IF(R77=5,100000,11000)","v":11000}]
["Kiterjesztett termékfelelősség-biztosítás",null,null,null,null,null,null,null,{"$f":"IF(H84=0,0,IF(OR(I77=0,I80=0,H84=\"Nem köthető\"),0,IF(AND(I77>0,H84=\"kérem\"),(I77*1),IF(AND(I77>0,H84=\"nem kérem\"),0))))","v":0}]
["Szállodai szolgáltatók felelősségbiztosítása",null,null,null,null,null,null,null,{"$f":"IF(H85=0,0,IF(I77=0,0,IF(AND(I77>0,H85=\"kérem\"),(I77*0.3),IF(AND(I77>0,H85=\"nem kérem\"),0))))","v":0},null,null,null,{"$f":"IF(I85=0,1,IF(I85>0,2))","v":1}]
["Szállodai szolg. fel.bizt. kiterjesztése gépjárművek őrzésére",null,null,null,null,null,null,null,{"$f":"IF(H86=0,0,IF(OR(I77=0,I85=0,H86=\"Nem köthető\"),0,IF(AND(I77>0,H86=\"kérem\"),(I77*0.8),IF(AND(I77>0,H86=\"nem kérem\"),0))))","v":0}]
["Környezetszennyezési felelősségbiztosítás",null,null,null,null,null,null,null,{"$f":"IF(H87=0,0,IF(I77=0,0,IF(AND(I77>0,H87=\"kérem\"),(I77*0.5),IF(AND(I77>0,H87=\"nem kérem\"),0))))","v":0}]
["Fel.biztosítások területi hatályának kiterjesztése az EU-ra",null,null,null,null,null,null,null,{"$f":"IF(H88=0,0,IF(I77=0,0,IF(AND(I77>0,H88=\"kérem\"),(I77*0.5),IF(AND(I77>0,H88=\"nem kérem\"),0))))","v":0}]
["Szolgáltatói fel.bizt. kiterjesztése idegen jármű rakodására",null,null,null,null,null,null,null,{"$f":"IF(H89=0,0,IF(OR(I77=0,I81=0,H89=\"Nem köthető\"),0,IF(AND(I77>0,H89=\"kérem\"),(I77*0.4),IF(AND(I77>0,H89=\"nem kérem\"),0))))","v":0}]
["Oktatói, gyakorlati képzést szervezők felelősségbiztosítása",null,null,null,null,null,null,null,{"$f":"IF(H90=0,0,IF(I77=0,0,IF(AND(I77>0,H90=\"kérem\"),(I77*0.2),IF(AND(I77>0,H90=\"nem kérem\"),0))))","v":0}]
["Gépjárműszerviz üzemeltetői felelősségbiztosítás",null,null,null,null,null,null,null,{"$f":"IF(H91=0,0,IF(I77=0,0,IF(AND(I77>0,H91=\"kérem\"),(I77*0.6),IF(AND(I77>0,H91=\"nem kérem\"),0))))","v":0},null,null,null,null,{"$f":"78665*1.03*0.9","v":72922.455000000002}]
["Szolgáltatói fel.bizt. kiterjesztése alvállalkozókra",null,null,null,null,null,null,null,{"$f":"IF(AND($I$81>0,$I$77>0,H92=\"kérem\"),$I$77*0.2,0)","v":0}]
["Szolgáltatói fel.bizt. kiterj. a szolg. tárgyában okozott károkra",null,null,null,null,null,null,null,{"$f":"IF(AND($I$81>0,$I$77>0,H93=\"kérem\"),$I$77*0.4,0)","v":0}]
["Szolgáltatói fel.bizt. kiterjesztése építés-szerelési tevékenységre",null,null,null,null,null,null,null,{"$f":"IF(AND($I$81>0,$I$77>0,H94=\"kérem\"),$I$77*0.1,0)","v":0}]
["Felelősségbiztosítás  összesen",null,null,null,null,null,null,null,{"$f":"IF(H45=0,0,IF(AND(B74=0,C77=0),0,SUM(I79:K94,I77)))","v":0},null,null,null,null,null,null,null,null,null,null,null,null,null,null,null,null,null,"Felelőség Hibakód"]
[{"$f":"IF(AA96=1,\"Kérjük, töltse ki a Forgalom adatot az Ajánlat1 oldalán!\",IF(AA96=2,\"Kérjük, válasszon önrészt!\",IF(AA96=3,\"Kérjük, válasszon limitet!\",IF(AA96=5,\"Felelősség biztosítás csak a vagyonigazgatóság engedélyével köthető\",IF(AA96=6,\"Felelősség biztosítás csak a vagyonbiztosítás kiegészítőjeként köthető\",IF(AA96=7,\"A megadott adatok alapján az ajánlat nem tarifális kategóriába tartozik, ajánlatkérésével kérjük forduljon bizalommal UNION-os kapcsolattartójához.\",0))))))","v":0},null,null,null,null,null,null,null,null,null,null,null,null,null,null,null,null,null,null,null,null,null,null,null,null,null,{"$f":"IF(AND(J74=0,OR(B74>0,C77>0)),1,IF(AND(B74=0,OR(C77>0)),2,IF(AND(C77=0,OR(B74>0)),3,IF(E77=\"vig\",5,IF(AND(H45=0,C77>0),6,IF(J74>1000,7,0))))))","v":0}]
["Vagyonbiztosítás összesen",null,null,null,null,null,null,{"$f":"H45","v":0},null,null,null,null,null,{"$f":"H27","v":0}]
["Épületbiztosítás",null,null,null,null,null,null,{"$f":"H27","v":0},null,null,null,null,null,{"$f":"H42","v":0}]
["Gép, berendezés biztosítás",null,null,null,null,null,null,{"$f":"H42","v":0},null,null,null,null,{"$f":"COUNTIF(N97:N102,\">0\")","v":0},{"$f":"H55","v":0}]
["Üzemszünetbiztosítás",null,null,null,null,null,null,{"$f":"H55","v":0},null,null,null,null,null,{"$f":"H62","v":0}]
["Géptörés biztosítás",null,null,null,null,null,null,{"$f":"H62","v":0},null,null,null,null,null,{"$f":"H70","v":0}]
["Elektromos gépek, berendezések biztosítása",null,null,null,null,null,null,{"$f":"H70","v":0},null,null,null,null,null,{"$f":"I95","v":0}]
["Felelősségbiztosítás",null,null,null,null,null,null,{"$f":"I95","v":0}]
[]
["Éves díj ",{"$f":"IF(Kockázatfelmérő!O61=0,\"Kérjük, töltse ki a kockázatfelmérő adatlapot!\",IF(Kockázatfelmérő!O61=1,0,IF(Kockázatfelmérő!O61=2,\"A kockázatfelmérő adatlap kitöltése hiányos, ellenőrizze az adatokat!\")))","v":0},null,null,null,null,null,null,null,{"$f":"IF(B105>0,0,IF(AA108=0,SUM(I95,H70,H62,H55,H49,H45),0))","v":0}]
["Záradékok                       Pótdíjak",null,null,null,null,null,null,null,null,{"$f":"O123","v":1}]
["Engedmények",null,"Csomag engedmény",null,null,null,null,null,null,{"$f":"IF(OR(J105=0,M99<4),0,IF(M99=4,0.95,IF(OR(M99=5,M99=6),0.9)))","v":0},null,null,null,null,null,null,null,null,null,null,null,null,null,null,null,null,"Hibakódok vannak?"]
[{"$f":"IF(N108=0,0,IF(AND(N108=1,I108=0),0,IF(AND(N108=1,I108>0),\"Törölje a speciális engedmény mértékét!\",IF(AND(N108=2,I108=0),\"Adja meg a speciális engedmény mértékét!\",IF(AND(N108=2,I108>0),0)))))","v":0},null,"Üzleti engedmények",null,null,null,null,null,null,{"$f":"IF(J105=0,0,M108)","v":0},null,null,{"$f":"IF(H108=0,0,IF(H108=\"speciális\",(100-I108)/100,IF(H108=\"üzleti\",0.8)))","v":0},{"$f":"IF(H108=0,0,IF(H108=\"üzleti\",1,IF(H108=\"speciális\",2)))","v":0},null,null,null,null,null,null,null,null,null,null,null,null,{"$f":"SUM(AA96,AA71,AA63,AA56,AA50,AA46,AA43,AA28)","v":2}]
[null,null,"Tartamengedmény",null,null,null,null,null,null,{"$f":"IF(J105=0,0,IF(R110=1,0.9,0))","v":0},null,null,null,{"$f":"IF(AND(J107=0,J108=0,J109=0,J110=0),0,IF(AND(J107>0,J108>0,J109>0,J110>0),(J107*J108*J109*J110),IF(AND(J107>0,J108=0,J109=0,J110=0),J107,IF(AND(J107>0,J108>0,J109=0,J110=0),(J107*J108),IF(AND(J107>0,J108>0,J109>0,J110=0),(J107*J108*J109),IF(AND(J107=0,J108>0,J109>0,J110>0),(J108*J109*J110),IF(AND(J107=0,J108=0,J109>0,J110>0),(J109*J110),0)))))))","v":0},null,{"$f":"Ajánlat1!E37","v":"határozatlan"},null,{"$f":"IF(P109=\"1 évnél rövidebb\",1,0)","v":0}]
[null,null,"Egyedi engedmény",null,null,null,null,null,null,{"$f":"IF(OR('Tevékenység lista'!AB2=0,J105=0),0,0.8)","v":0},null,null,{"$f":"IF(H112>0,1,0)","v":0},{"$f":"IF(AND(J107=0,J108=0,J109=0,J110>0),J110,IF(AND(J107=0,J108>0,J109=0,J110=0),J108,IF(AND(J107=0,J108=0,J109>0,J110=0),J109,IF(AND(J107=0,J108>0,J109>0,J110=0),(J108*J109),IF(AND(J107>0,J108=0,J109=0,J110>0),(J107*J110),IF(AND(J107>0,J108=0,J109>0,J110=0),(J107*J109),0))))))","v":0},null,{"$f":"Ajánlat1!E37","v":"határozatlan"},null,{"$f":"IF(P110=\"Felmondási jog 3 évre kizárva\",1,0)","v":0}]
["Éves díj összesen",null,null,null,null,null,null,null,null,{"$f":"IF(J105=0,0,MAX(15000,IF(N113=0,(J105*J106),IF(N113>0,(J105*N113*J106)))))","v":0},null,null,{"$f":"J111/360","v":0},{"$f":"IF(AND(J107>0,J108=0,J109>0,J110>0),(J107*J109*J110),IF(AND(J107>0,J108>0,J109=0,J110>0),(J107*J108*J110),IF(AND(J107=0,J108>0,J109=0,J110>0),(J108*J110),0)))","v":0},null,null,null,{"$f":"IF(OR(R109>0,R110>0),1,0)","v":0}]
["Lejárat, ha a tartam rövidebb mint 1 év",null,null,null,null,null,null,{"$f":"Ajánlat1!J37","v":"00:00:00"},null,{"$f":"IF(OR(H113=0,R109>0,H113=\"egyszeri\"),0,IF(AND(J111>15000,H113=\"éves\"),J111*0.95,IF(AND(J111>15000,H113=\"féléves\"),(J111/2)*0.975,IF(AND(J111>15000,H113=\"negyedéves\"),J111/4,IF(AND(J111=15000,H113=\"éves\"),J111,IF(AND(J111=15000,H113=\"féléves\"),J111/2,IF(AND(J111=15000,H113=\"negyedéves\"),J111/4,)))))))","v":0}]
["Gyakorisági díj",{"$f":"IF(R109>0,0,IF(AND(R109=0,H113=\"éves\"),\"5% engedmény\",IF(AND(R109=0,H113=\"féléves\"),\"2,5% engedmény\",0)))","v":"5% engedmény"},"Díjfizetés gyakorisága",null,null,null,null,"éves",null,{"$f":"IF(OR(J105=0,R109>0,H113=0,H113=\"egyszeri\"),0,IF(AND(J112<=15000,H113=\"éves\"),15000,IF(AND(J112<=7500,H113=\"féléves\"),7500,IF(AND(J112<=3750,H113=\"negyedéves\"),3750,J112))))","v":0},null,null,{"$f":"IF(H113=\"negyedéves\",J113*4,IF(H113=\"féléves\",J113*2,IF(H113=\"éves\",J113,IF(H113=\"egyszeri\",0))))","v":0},{"$f":"IF(AND(N109=0,N110=0,N111=0),0,IF(AND(N109>0,N110=0,N111=0),N109,IF(AND(N109=0,N110>0,N111=0),N110,IF(AND(N109=0,N110=0,N111>0),N111))))","v":0}]
["Fizetendő első díj / Tartamdíj",null,{"$f":"IF(AND(R109>0,H113=\"egyszeri\"),IF(Ajánlat1!J37,0,\"Az Ajánlat1 oldalon a lejárati dátum nincs kitöltve!\"),IF(AND(R109>0,M115=1),\"A díjfizetés gyakorisága csak egyszeri lehet!\",IF(AND(R109>0,H113=0),\"A gyakoriság csak egyszeri lehet!\",IF(AND(R109=0,H113=\"egyszeri\"),\"Kérjük, válasszon más gyakoriságot!\",IF(AND(R109=0,H113=0),\"Kérjük, válasszon gyakoriságot!\",IF(AND(R109=0,M115=1),0))))))","v":0},null,null,null,null,null,null,{"$f":"IF(AND(H112=0,DAY(P123)=1),J113,IF(C114=0,J115,0))","v":0},null,null,{"$f":"M113/360","v":0}]
["Fizetendő díj ",null,{"$f":"IF(DAY(kockviskezd)=1,kockviskezd,IF(MONTH(kockviskezd)=12,DATE(YEAR(kockviskezd)+1,1,1),DATE(YEAR(kockviskezd),MONTH(kockviskezd)+1,1)))","v":"2021-08-01"},null,{"$f":"IF(OR(H112=\"\",G115>364),DATEVALUE(CONCATENATE(YEAR(C115),\".\",MONTH(C115)+1,\".01\")),\"\")","v":"2021-09-01"},null,{"$f":"IF(OR(MOD(YEAR(C117)-2000,4)=0,H112=\"\"),365,IF(H112-C117=364,365,H112-C117+1))","v":365},{"$f":"SUM(C115-C117)","v":44409},{"$f":"Ajánlat1!J37-kockviskezd","v":-44383},{"$f":"IF(AND(R109>0,I115<91),((I115*M111)+(M111*30*3)),IF(AND(R109>0,I115>90,I115<241),((I115*M111)+(M111*30)),IF(AND(R109>0,I115>240),J111,((M114*P124)+J113))))","v":0},null,null,{"$f":"IF(OR(H113=\"éves\",H113=\"féléves\",H113=\"negyedéves\"),1,0)","v":1}]
["Fizetendő éves díj",null,null,null,null,null,null,null,null,{"$f":"IF(J113=0,0,IF(H113=\"negyedéves\",(J113*4),IF(H113=\"féléves\",(J113*2),IF(H113=\"éves\",J113,IF(H113=\"egyszeri\",0)))))","v":0}]
[{"$f":"\"Kelt.:  \"&kelt","v":"Kelt.:  0"},null,{"$f":"Dátum","v":"00:00:00"}]
[null,null,null,null,null,null,null,null,null,null,null,null,null,{"$f":"IF(B106=0,0,VALUE(LEFT(B106,1)))","v":0},{"$f":"IF(N118=0,1,IF(N118=1,1.03))","v":1}]
["biztosításközvetítő aláírása",null,null,"szerződő aláírása",null,null,null,null,null,null,null,null,null,{"$f":"IF(C106=0,0,VALUE(LEFT(C106,1)))","v":0},{"$f":"IF(N119=0,1,IF(N119=2,1.03))","v":1}]
[{"$f":"Ajánlat1!B116","v":"Verzió: 1.19"},null,null,null,null,null,null,null,null,null,null,null,null,{"$f":"IF(D106=0,0,VALUE(LEFT(D106,1)))","v":0},{"$f":"IF(N120=0,1,IF(N120=3,1.05))","v":1}]
[{"$f":"Ajánlat1!B117","v":"UNION-Business Class Érvényes: 2021.12.31.-ig "},null,null,null,null,null,null,null,null,null,null,null,null,{"$f":"IF(H106=0,0,VALUE(LEFT(H106,1)))","v":0},{"$f":"IF(N121=0,1,IF(N121=4,1.05))","v":1}]
[null,null,null,null,null,null,null,null,null,null,null,null,null,{"$f":"IF(I106=0,0,VALUE(LEFT(I106,1)))","v":0},{"$f":"IF(N122=0,1,IF(N122=5,1.05))","v":1}]
[null,null,null,null,null,null,null,null,null,null,null,null,null,null,{"$f":"O118*O119*O120*O121*O122","v":1},{"$f":"Ajánlat1!E35","v":"2021-07-06"}]
[null,null,null,null,null,null,null,null,null,null,null,null,null,null,null,{"$f":"SUM(1+(30-DAY(P123)))","v":25}]
[]
[null,null,{"$f":"IF(DAY(P123)=1,P123,IF(MONTH(P123)=12,DATE(YEAR(P123)+1,1,1),DATE(YEAR(P123),MONTH(P123)+1,1)))","v":"2021-08-01"},null,null,null,null,"speciális"]
[null,null,null,null,null,null,null,"üzleti"]
[{"$f":"IF(AND(M27=1,M42>1,M55>1),\"Az üzemszünet biztosítás csak Small módozat lehet\",IF(AND(M27>1,M42=1,M55>1),\"Az üzemszünet biztosítás csak Small lehet\",IF(AND(M27=1,M42=1,M55=1),0,IF(AND(M27>1,M42>1,M55>1),0,IF(AND(M27=1,M42=1,M55>0),\"Az üzemszünet biztosítás csak Small módozat lehet\",IF(OR(M27>1,M42>1,M55=1),0,IF(AND(M27>1,M42>1,M55=1),0)))))))","v":0}]
[10,"1.sz.Záradék /Hűtőtt árúk/"]
[null,"2.sz.Záradék /Vandalizmus/"]
[null,"3.sz.Záradék /Alvállalkozói/"]
[null,"4.sz.Záradék /Szolgált. tárgya/"]
[null,"5.sz.Záradék /Építőipari tev./"]
[]
[]
[]
[]
[]
[]
[]
[]
[]
[0,null,"3 nap",null,"10%, de minimum 25.000 Ft",null,null,1,1,null,1]
[5000,null,"5 nap",null,"10%, de minimum 50.000 Ft",null,null,2,0.95,null,0.95]
[10000,null,"7 nap",null,"10%, de minimum 100.000 Ft",null,null,3,0.85,null,0.85]
[25000,null,null,null,"10%, de minimum 200.000 Ft",null,null,4,0.7,null,0.7]
[50000,null,null,null,"20%, de minimum 25.000 Ft",null,null,5,0.92,null,0.92]
[100000,null,null,null,"20%, de minimum 50.000 Ft",null,null,6,0.87,null,0.87]
[200000,null,null,null,"20%, de minimum 100.000 Ft",null,null,7,0.78,null,0.78]
[null,null,null,null,"20%, de minimum 200.000 Ft",null,null,8,0.64,null,0.64]
["Alap","Alap"]
["Teljes",null,null,"0-2",null,"kérem",null,"éves",null,"Nem köthető"]
["Extra",null,null,"2,01-3",null,"nem kérem",null,"féléves"]
["All Risks",null,null,"3,01-5",null,null,null,"negyedéves"]
[null,null,null,"5,01-",null,"üzleti",null,"egyszeri"]
[null,null,null,null,null,"üzletpolitikai",null,"igen"]
["3 hónap, max. 25 MFt",null,null,null,null,null,null,"nem"]
["6 hónap, max. 50 MFt",null,"5 MFt/kár; 15 MFt/év",null,null,"0-2"]
["12 hónap, max 100 MFt",null,"15 MFt/kár; 45 MFt/év",null,null,"2,01-5"]
["12 hónap, max 150 MFt",null,"50 MFt/kár; 100 MFt/év",null,null,"5,01-10"]
[null,null,null,null,null,"10,01-15"]
[null,null,null,null,null,"15 felett"]
[]
[]
[]
["Alap csomag: 3 hó, max. 25 M Ft"]
["Bővített csomag: 6 hó, max. 50 M Ft"]
["Bővített csomag: 12 hó, max. 100 M Ft"]
["Bővített csomag: 12 hó, max. 150 M Ft"]
[]
[]
[]
[]
[]
[]
[]
[]
[]
[]
[]
[]
[]
[]
[]
[]
[]
[]
[]
[]
["0"]
[5000,"Normál üveg",null,null,null,null,null,50,50]
[10000,"Normál és speciális üveg",null,null,null,null,null,100,100]
[25000,null,null,null,null,null,null,150,150]
[50000,null,null,null,null,null,null,200,200]
[100000,null,null,null,null,null,null,250]
[200000,null,null,null,null,null,null,300]
[null,null,null,null,null,null,null,350]
["Alap",null,null,null,null,null,null,400]
["Teljes",null,null,null,null,null,null,450]
["Extra",null,null,null,null,null,null,500]
[null,null,null,null,null,null,null,600]
["Alap csomag betöréses lopással",null,null,null,null,null,null,700]
["Alap csomag betöréses lopás nélkül",null,null,null,null,null,null,800]
["Teljes csomag betöréses lopással",null,null,null,null,null,null,900]
["Teljes csomag betöréses lopás nélkül",null,null,null,null,null,null,1000]
["Extra csomag betöréses lopással"]
["Extra csomag betöréses lopás nélkül"]
["All Risks csomag betöréses lopással"]
["All Risks csomag betöréses lopás nélkül"]

{"sheet":"Nyilatkozat","index":13,"n_rows":145,"n_cols":8,"rows_kept":145,"cut":false,"hidden":false,"merged":[[1,5,1,10],[2,6,2,10],[32,1,32,10],[33,1,33,10],[4,3,4,9],[5,3,5,9],[6,3,6,9],[7,3,7,9],[21,1,21,10],[23,4,23,9],[24,4,24,9],[29,4,29,9],[30,4,30,9],[25,4,25,9],[26,4,26,9],[27,4,27,9],[35,1,35,10],[79,1,79,10],[80,1,80,10],[51,2,51,10],[28,4,28,9],[72,7,72,8],[102,1,102,10],[96,1,96,10],[97,1,97,10],[49,2,49,9],[50,2,50,9],[81,1,81,10],[53,2,53,9],[65,7,65,8],[77,1,77,10],[78,1,78,10],[61,2,61,10],[60,2,60,9],[68,0,68,16383],[70,1,70,10],[144,0,144,16383],[34,1,34,10],[98,1,98,10],[109,1,115,10],[117,1,124,10],[128,7,128,8],[82,1,82,10],[95,1,95,10],[103,1,103,10],[83,1,83,10],[85,1,85,10],[88,7,88,8],[105,7,105,8],[99,1,99,10],[100,1,100,10],[101,1,101,10]]}
[]
[null,null,null,null,null,"UNION-Business Class"]
[null,null,null,null,null,null,"Nyilatkozat"]
[]
[null,"Szerződő neve:",null,{"$f":"Ajánlat1!E16","v":0}]
[null,"Adószáma:",null,{"$f":"Ajánlat1!D18","v":0}]
[null,"Biztosított neve:",null,{"$f":"Ajánlat1!E16","v":0}]
[null,"Adószáma:",null,{"$f":"Ajánlat1!D18","v":0}]
[]
[]
[null,null,"A biztosított három alábbi mutatója közül legalább kettő meghaladja-e a következő értékeket:"]
[null,null,"               Mérleg főösszege az 1,5 mrd. Ft-ot"]
[null,null,"               Nettó üzleti forgalma a 3 mrd. Ft-ot"]
[null,null,"               Átlagos alkalmazotti létszám az 1.000 főt"]
[null,null,"Szerződőként ezúton nyilatkozom, hogy Társaságunk :"]
[]
[]
[]
[]
[null,null,"minősül."]
[]
[null,"Alulírott szerződő ajánlatot teszek az előző oldalakon részletezett biztosítási szerződés megkötésére, amelynek alapján az Union Vienna Insurance Group Biztosító Zrt. azt a kötelezettséget vállalja, hogy díjfizetés ellenében készpénzben megtéríti a különös feltételekben felsorolt biztosítási események során bekövetkező azon károkat, amelyekre a biztosítási szerződés kiterjed. "]
[]
[null,"Tudomásul veszem, hogy:",null,null,"jelen ajánlat a biztosító kockázatelbírálásának alapja, továbbá, hogy a biztosítónak az ajánlat beérkezésétől számított 15 nap áll rendelkezésére a kockázat elbírálására,"]
[null,null,null,null,"a biztosító a kockázatelbírálás eredményeként az ajánlatot jogosult elutasítani, az elutasítást nem köteles megindokolni,"]
[null,null,null,null,"a biztosító kártérítése - betöréses lopás esetén - a kár időpontjában fennálló vagyonvédelmi színvonal függvényében történik,"]
[null,null,null,null,"a biztosító a tényleges adatoktól való eltérés esetén az alul- és túlbiztosítottságot vizsgálja."]
[]
[null,"Kijelentem, hogy:",null,null,"az Általános Feltételekben, a Különös Feltételekben,  a Vagyonvédelmi Feltételekben, a Különös Felelősségbiztosítási Feltételekben foglaltakat az ajánlat aláírása előtt átvettem és megismertem,"]
[null,null,null,null,"a közölt adatok a valóságnak megfelelnek,"]
[null,null,null,null,"jelen ajánlatomban minden biztosítási szándékommal kapcsolatos igényemet rögzítettek, más szóbeli megállapodás nem történt."]
[]
[null,"Alulírott szerződő ajánlatot teszek UNION-Business Class biztosítási szerződés megkötésére."]
[null,"Mint szerződő kijelentem, hogy az UNION Vienna Insurance Group Biztosító Zrt. /továbbiakban biztosító/ részére átadott UNION-Business Class biztosítási ajánlatom megtétele előtt biztosítási igényem felmérése nyomán a vonatkozó termékismertetőt (IPID) átvettem, áttanulmányoztam és megértettem, majd a jogszabályban előírt tájékoztatást megkaptam, az általam megjelölt biztosítások feltételeit átvettem, azok tartalmát megismertem, az eljárt biztosításközvetítőtől a biztosító főbb adatairól, valamint a biztosítási termékről tájékoztatást kaptam."]
[null,"Kijelentem, hogy az Adatkezelési tájékoztató a biztosítási ajánlat aláírását megelőzően részemre átadásra került, és tudomással bírok arról, hogy ezen dokumentum a biztosító honlapján (www.union.hu) bármikor megtekinthető."]
[null,"Átvett mellékletek:"]
[null,{"$f":"IF(Díjszámítás!H45>0,\"X\",0)","v":0},"U52201/8 UNION-Business Class Általános Biztosítási Feltételek Vagyonbiztosítás"]
[null,{"$f":"IF(Díjszámítás!H27>0,\"X\",0)","v":0},"U52202/3 UNION-Business Class Különös Biztosítási Feltételek Épületbiztosítás"]
[null,{"$f":"IF(Díjszámítás!H42>0,\"X\",0)","v":0},"U52203/3 UNION-Business Class Különös Biztosítási Feltételek Ingóságbiztosítás"]
[null,{"$f":"IF(Díjszámítás!H70>0,\"X\",0)","v":0},"U52204/2 UNION-Business Class Különös Biztosítási Feltételek Elektromos és elektronikus gépek és berendezések biztosítása"]
[null,{"$f":"IF(Díjszámítás!H62>0,\"X\",0)","v":0},"U52205/2 UNION-Business Class Különös Biztosítási Feltételek Géptörés-biztosítás"]
[null,{"$f":"IF(Díjszámítás!H55>0,\"X\",0)","v":0},"U52206/2 UNION-Business Class Különös Biztosítási Feltételek Üzemszünet-biztosítás"]
[null,{"$f":"IF(AND(Díjszámítás!H42>0,Díjszámítás!M42<=3),\"X\",0)","v":0},"U52207/3 UNION-Business Class Védelmi Feltételek"]
[null,{"$f":"IF(Díjszámítás!I77>0,\"X\",0)","v":0},"U52208/3 UNION-Business Class Általános Biztosítási Feltételek Felelősségbiztosítás"]
[null,{"$f":"IF(Díjszámítás!I83>0,\"X\",0)","v":0},"U52209/2 UNION-Business Class Különös Biztosítási Feltételek Ingatlan-bérbeadói felelősségbiztosítás"]
[null,{"$f":"IF(Díjszámítás!I82>0,\"X\",0)","v":0},"U52210/2 UNION-Business Class Különös Biztosítási Feltételek Ingatlan-bérlői felelősségbiztosítás"]
[null,{"$f":"IF(Díjszámítás!I84>0,\"X\",0)","v":0},"U52211/2 UNION-Business Class Kiegészítő Biztosítási Feltételek Kiterjesztett termékfelelősség-biztosítás"]
[null,{"$f":"IF(Díjszámítás!I87>0,\"X\",0)","v":0},"U52212/2 UNION-Business Class Különös Biztosítási Feltételek Környezetszennyezési felelősségbiztosítás"]
[null,{"$f":"IF(Díjszámítás!I85>0,\"X\",0)","v":0},"U52213/2 UNION-Business Class Különös Biztosítási Feltételek Szállodai szolgáltatók felelősségbiztosítása"]
[null,{"$f":"IF(Díjszámítás!I86>0,\"X\",0)","v":0},"U52214/2 UNION-Business Class Kiegészítő Biztosítási Feltételek Szállodai szolgáltatók felelősségbiztosításának kiterjesztése gépjárművek őrzésére"]
[null,{"$f":"IF(Díjszámítás!I88>0,\"X\",0)","v":0},"U52215/1 UNION-Business Class Különös Biztosítási Feltételek Felelősségbiztosítási fedezet területi hatályának kiterjesztése az Európai Unióra és egyes európai államokra"]
[null,{"$f":"IF(Díjszámítás!I89>0,\"X\",0)","v":0},"U52216/1 UNION-Business Class Kiegészítő Biztosítási Feltételek Szolgáltatói felelősségbiztosítási fedezet kiterjesztése idegen jármű rakodására"]
[null,{"$f":"IF(Díjszámítás!I91>0,\"X\",0)","v":0},"U52217/1 UNION-Business Class Különös Biztosítási Feltételek Gépjárműszerviz üzemeltetői felelősségbiztosítás"]
[null,{"$f":"IF(Díjszámítás!I90>0,\"X\",0)","v":0},"U52218/2 UNION-Business Class Különös Biztosítási Feltételek Oktatási, nevelési, gyermekellátási tevékenységet folytatók, ill. gyakorlati képzést szervezők felelősségbiztosítása"]
[null,{"$f":"IF(Díjszámítás!H49>0,\"X\",0)","v":0},"U52219/1 UNION-Business Class Kiegészítő Biztosítási Feltételek Üvegtörés biztosítás épület vagy ingóságbiztosításhoz"]
[null,{"$f":"IF(Díjszámítás!I79>0,\"X\",0)","v":0},"U52220/2 UNION-Business Class Különös Biztosítási Feltételek Munkáltatói Felelősségbiztosítás"]
[null,{"$f":"IF(Díjszámítás!I80>0,\"X\",0)","v":0},"U52221/1 UNION-Business Class Különös Biztosítási Feltételek Termékfelelősség-biztosítás"]
[null,{"$f":"IF(Díjszámítás!I81>0,\"X\",0)","v":0},"U52222 UNION-Business Class Különös Biztosítási Feltételek Szolgáltatói felelősségbiztosítás"]
[null,{"$f":"IF(Díjszámítás!I77>0,\"X\",0)","v":0},"U52223/6 UNION-Business Class Felelősségbiztosítások Szerződési Feltételei"]
[null,{"$f":"IF(Díjszámítás!H92>0,\"X\",0)","v":0},"U52224 UNION-Business Class Különös Biztosítási Feltételek Szolgáltatói Felelősségbiztosítási fedezet kiterjesztése az alvállalkozókra"]
[null,{"$f":"IF(Díjszámítás!H94>0,\"X\",0)","v":0},"U52225 UNION-Business Class Különös Biztosítási Feltételek Szolgáltatói Felelősségbiztosítási fedezet kiterjesztése építés-szerelési tevékenységre"]
[null,{"$f":"IF(Díjszámítás!H93>0,\"X\",0)","v":0},"U52226 UNION-Business Class Különös Biztosítási Feltételek Szolgáltatói Felelősségbiztosítási fedezet kiterjesztése a szolgáltatás tárgyában okozott károkra"]
[null,{"$f":"IF(Díjszámítás!H45>0,\"X\",0)","v":0},"UNION-Business Class biztosítás kockázati és limit táblázatok"]
[]
[null,"Kelt.:",{"$f":"Ajánlat1!E112","v":0},null,{"$f":"Dátum","v":"00:00:00"}]
[null,null,null,null,null,null,null,"szerződő aláírása"]
[]
[]
["6. oldal, összesen: 7"]
[]
[null,"Tudomásul veszem, hogy a Biztosító nem nyújt fedezetet, nem teljesít kárkifizetést, valamint nem nyújt szolgáltatást, amennyiben ezen fedezet nyújtásával, illetve kár kifizetésével a Biztosító sértené  az Egyesült Nemzetek Szervezetének határozata szerinti bármely szankcióit, rendelkezéseit, vagy rendeleteit,  valamint Magyarország, az Európai Unió, illetve az Egyesült Államok kereskedelmi, pénzügyi embargóit vagy gazdasági szankcióit, törvényeit vagy rendeleteit, (feltéve, hogy ezek nem sértik az biztosítóra alkalmazandó szabályozásokat vagy nemzeti jogszabályokat).\n\nTudomásul veszem, hogy nem terjed ki a biztosítás azokra a károkra, amelyek bármilyen (bakteriális, vírusos, stb.) kórokozói eredetű járványos megbetegedéssel, betegséggel, vagy fertőzéssel összefüggésben következnek be, és amelyek a kórokozó bármely fajtájától, mutációjától, illetve variánsától származnak."]
[null,"Kelt.:",{"$f":"Ajánlat1!E112","v":0},null,{"$f":"Dátum","v":"00:00:00"}]
[null,null,null,null,null,null,null,"szerződő aláírása"]
[]
[]
[]
[null,"Nyilatkozat a szokásostól eltérő szerződési gyakorlat elfogadásáról"]
[null,"Kijelentem, hogy tájékoztatást kaptam arra vonatkozóan, hogy az UNION-Business Class biztosítási feltételek alábbi rendelkezései lényegesen eltérnek a szokásos szerződési gyakorlattól:"]
[null,"- A biztosítási érdek megszűnéséhez fűződő jogkövetkezményeket alkalmazni kell arra az esetre is, ha az érdekmúlás kizárólag a biztosított vagyontárgy tulajdonjoga átszállásának következménye, és a vagyontárgy más jogcím alapján már korábban is az új tulajdonos birtokában volt (Általános Biztosítási Feltételek 6.4.3. pont)."]
[null,"- Amennyiben a szerződő, illetve a biztosított a biztosítási díjat az esedékességtől számított 60 napon belül nem egyenlíti ki, halasztást nem kapott, és a biztosító a díjat bírósági úton nem érvényesíti, a biztosító a kockázatot az esedékességtől számított 60 napig viseli, ez alatt az idő alatt a biztosított (szerződő) az elmulasztott időszakos díjat pótolhatja. Ha ez nem történik meg, a biztosítás a felek minden külön intézkedése nélkül a 60. nap elteltével megszűnik (Általános Biztosítási Feltételek 10.1. pont)."]
[null,"- Ha az esedékes díjnak csak egy részét fizették meg, a szerződés változatlan biztosítási összeggel, a befizetett díjjal arányos időtartamra marad fenn. A szerződés megszűnésének nem előfeltétele, hogy a biztosító írásban felhívja a szerződőt a befizetés kiegészítésére (Általános Biztosítási Feltételek 11. pont)."]
[null,"- Ahol a jelen feltételek alapján létrejött biztosítási szerződés limitet tartalmaz, a limit az ugyanazon biztosítási időszakban bekövetkezett biztosítási esemény miatt kifizetett összeggel csökken, a fedezet (limit) feltöltésére nincs lehetőség. (Általános Biztosítási Feltételek 20.1. pont)."]
[null,"- Egyebekben az adott biztosítási időszakra vonatkozó, a szerződő által meghatározott biztosítási összeg az ugyanazon biztosítási időszakban bekövetkezett biztosítási esemény miatt kifizetett összeggel nem csökken (Általános Biztosítási Feltételek 20.2. pont)."]
[null,"- A biztosítási szerződésekből eredő igények az esedékességtől számított egy éven belül évülnek el (Általános Biztosítási Feltételek 28. pont)."]
[]
[null,"Kijelentem, hogy az UNION-Business Class biztosítási feltételeknek a szokásos szerződési gyakorlattól eltérő rendelkezéseit elfogadom, azokat magamra nézve kötelezőnek ismerem el."]
[null,"Kelt.:",{"$f":"Ajánlat1!E112","v":0},null,{"$f":"Dátum","v":"00:00:00"}]
[]
[null,null,null,null,null,null,null,"szerződő aláírása"]
[]
[]
[]
[]
[]
[]
[null,"Szerződőként, illetve biztosítottként tudomásul veszem hogy:"]
[null,"-a szóbeli közlések vagy kikötések csak akkor érvényesek, ha azokat a biztosító illetékes szerve írásban igazolja,"]
[null,"-valótlan adatok közlése a biztosítás érvénytelenségét vonja maga után,"]
[null,"-a biztosító kötvénykiállításra és szolgáltatás teljesítésre jogosult szerve a vezérigazgatóság,"]
[null,"-a biztosító a kárrendezési tevékenységet kiszervezheti, ilyen esetben a kárrendezéshez szükséges adatok a Bit. 138.§. (1) bek. o) pontja értelmében átadhatók,"]
[null,"-az adatszolgáltatás önkéntes,"]
[null,"-a biztosító a tudomására jutott valamennyi adatot biztosítási titokként kezeli, és csak az ügyfél írásbeli beleegyezésével adja ki harmadik személynek. A titoktartási kötelezettség nem áll fenn a biztosítási tevékenységről szóló 2014. évi LXXXVIII. törvényben (Bit.) tételesen felsorolt esetekben, és az ott meghatározott szervek, szervezetek megkeresése, illetve ezen szervek, szervezetek részére történő átadás esetén,"]
[null,"-szerződőként, illetve biztosítottként hozzájárulok ahhoz, hogy a biztosítási szerződés megkötéséhez, módosításához, állományban tartásához, valamint a szolgáltatás teljesítéséhez szükséges adatokat, ideértve a különleges adatokat is a biztosító a Bit., valamint az adatvédelmi törvény rendelkezéseinek megfelelően kezelje, az adatokat számítógépes úton feldolgozza. Az adatkezelés célja csak a biztosítás megkötéséhez, módosításához, állományban tartásához, a biztosításból származó követelések megítéléséhez szükséges, vagy a Bit. által meghatározott egyéb cél lehet. "]
[null,"Szerződőként, illetve biztosítottként felhatalmazom azokat a biztosítókat, amelyek rám vonatkozóan azonos vagy összefüggő kockázatú biztosításokat kezelnek, hogy a kockázat elbírálásához, a szerződés kezeléséhez és a szolgáltatási igény elbírálásához szükséges adatokat a biztosító részére továbbítsák."]
[null,"Kelt.:",{"$f":"Ajánlat1!E112","v":0},null,{"$f":"Ajánlat1!G112","v":"00:00:00"}]
[null,null," ",null,null,null,null,"szerződő aláírása"]
[]
[]
[]
[null,"A gazdasági reklámtevékenységről szóló 2008.évi XLVIII.tv. (Gtv.) 6.§-ban foglaltak szerint a szerződő/biztosított hozzájárul ahhoz, hogy részére a biztosító közvetlen megkeresés módszerével, így különösen elektronikus levelezés vagy azzal egyenértékű más egyéni kommunikációs eszköz útján gazdasági reklámokat küldjön, ebből a célból a nevét, lakcímét, e-mail címét és mobilszámát nyilvántartsa. "]
[]
[]
[]
[]
[]
[]
[]
[null,"A biztosító az előző céllal az adatokat a Gtv. előírásainak megfelelően, a hozzájáruló nyilatkozat visszavonásáig tartja nyilván és indoklás nélkül, ingyenesen visszavonható a biztosító részére postai (1461 Budapest, Pf.131.) vagy elektronikus úton (e-mail: dm@unionbiztosito.hu) megküldött nyilatkozattal. Szerződő/biztosított kijelenti, hogy a jelen nyilatkozat önkéntes adatszolgáltatáson alapul, és az adatkezelés céljáról, tartalmáról szóló megfelelő tájékoztatást követően történt."]
[]
[]
[]
[]
[]
[]
[]
[null,"Kelt.:",{"$f":"Ajánlat1!E112","v":0},null,{"$f":"Ajánlat1!G112","v":"00:00:00"}]
[]
[null,null," "]
[null,null,null,null,null,null,null,"szerződő aláírása"]
[]
[]
[null,null,{"$f":"Ajánlat1!B116","v":"Verzió: 1.19"}]
[null,null,{"$f":"Ajánlat1!B117","v":"UNION-Business Class Érvényes: 2021.12.31.-ig "}]
[]
[]
[]
[]
[]
[]
[]
[]
[]
[]
[]
["7. oldal, összesen: 7"]

{"sheet":"Zálogkötelezetti nyilatkozat","index":14,"n_rows":75,"n_cols":9,"rows_kept":75,"cut":false,"hidden":true,"merged":[[54,7,54,8],[56,8,56,9],[61,2,61,9],[62,2,62,9],[47,4,47,5],[47,8,47,9],[48,4,48,5],[48,8,48,9],[51,2,51,3],[53,7,53,8],[33,2,33,9],[41,1,41,9],[44,5,44,9],[45,5,45,9],[46,5,46,9],[34,6,34,8],[25,1,25,9],[27,2,27,9],[28,2,28,9],[29,2,29,9],[32,4,32,9],[19,1,19,2],[19,3,19,9],[20,1,20,9],[24,1,24,9],[18,7,18,9],[18,1,18,4],[8,1,8,9],[11,1,11,9],[16,1,16,9],[17,1,17,9],[14,1,14,2],[1,1,1,9],[4,3,4,9],[5,3,5,9],[6,3,6,9],[7,4,7,5]]}
[]
[null,"ZÁLOGKÖTELEZETTI NYILATKOZAT"]
[]
[null,"Szerződő/Biztosított adatai"]
[null,"Név:",null,{"$f":"Ajánlat1!E16","v":0}]
[null,"Adószáma:",null,{"$f":"Ajánlat1!D18","v":0}]
[null,"Székhelye",null,{"$f":"CONCATENATE(Ajánlat1!B20,\" \",Ajánlat1!D20,\", \",Ajánlat1!G20,\" \",Ajánlat1!J20)","v":" ,  "}]
[null,"Ir.sz.",null,"helység",null,null,"utca",null,"házsz.em.ajtó"]
[null,"Hozzájárulok, hogy a Biztosító az itt megadott, biztosítási titoknak minősülő adataimat, a jelen nyilatkozatban megjelölt Zálogjogosult hitelintézetnek átadja."]
[]
[null,"Biztosított/Zálogkötelezett nyilatkozata"]
[null,"Alulírott Biztosított tájékoztatom az UNION Vienna Insurance Group Biztosító Zrt-t (továbbiakban: Biztosító), hogy a jelen nyomtatványon megjelölt kockázatviselési címen fellelhető vagyontárgyra, mint Zálogtárgyra vonatkozóan köztem – mint Zálogkötelezett – és a lent megjelölt hitelintézet – mint Zálogjogosult – között Zálogszerződés jött létre. Felhatalmazom a Biztosítót, hogy az itt hivatkozott Zálogtárgyra kötött biztosítási szerződésen a Zálogjogosultat megillető hitelbiztosítéki záradékot jegyezzen be."]
[null,"Tudomásul veszem, hogy a Biztosító:"]
[null,"- a biztosított vagyontárgyakat ért, káresemények által okozott értékcsökkenésekre esedékessé vált és"]
[null,null,null,"Ft-ot (Limitösszeg) meg nem haladó szolgáltatási összeget minden esetben közvetlenül a Biztosított"]
[null,"részére teljesíti."]
[null,"Felhatalmazom továbbá a Biztosítót, hogy:"]
[null,"a biztosított vagyontárgyakat ért káresemények által okozott értékcsökkenésekre esedékessé vált és a Limitösszeget meghaladó szolgáltatási összeg tekintetében – ideértve a biztosított vagyontárgyak megsemmisülését, vagy a teljes biztosítási összeg kimerülését eredményező káresemény bekövetkezése esetet is – a valós körülmények figyelembevételével megállapított és legfeljebb a biztosított vagyontárgyak biztosítási összegének mértékéig terjedő teljes szolgáltatási összeget, közvetlenül a(z) "]
[null,null,null,null,null,"(Bank) Székhelye:"]
[null,"Székhelye:"]
[null,"Zálogjogosult  által vezetett számlára való átutalással teljesítse."]
[]
[null,"Szerződő nyilatkozata"]
[null,"Alulírott Szerződő felhatalmazom a Biztosítót az alábbiakra:"]
[null,"- amennyiben a lentebb megjelölt biztosítási szerződés nem jön létre, úgy ennek tényéről a biztosítási ajánlat elutasításával egyidejűleg tájékoztathassa a Zálogjogosultat."]
[null,"- a biztosítási szerződésen a Zálogkötelezett jelen teljesítési utasítása alapján bejegyzett Zálogjogosultat megillető hitelbiztosítéki záradékot, annak külön hozzájárulása nélkül ne törölje,"]
[null,"a biztosítási szerződés:"]
[null,null,"aktuális díjrendezettségi státuszát a Zálogjogosult megkeresésére – külön eljárásban – esetileg kiadja."]
[null,null,"a biztosítási díj elmaradásáról az esedékességet követő 91 napon belül a Zálogjogosultat tájékoztassa."]
[null,null,"a biztosítási szerződés bármely okú megszűnéséről, a megszűnést követő 8 napon belül a Zálogjogosultat tájékoztassa."]
[]
[null,"Zálogtárgy adatai"]
[null,"Kockázatviselési cím:"]
[null,"HRSZ:"]
[null,"Hitelfedezet tárgya:"]
[null,"Biztosítási ajánlat/szerződés azonosítója:"]
[null,"Biztosítási szerződés tartama: ",null,null,null,null,null,"Díjfizetés gyakorisága:"]
[null,"Kockázatviselés kezdete:"]
[null,"Épületbiztosítás biztosítási összege:",null,null,null,null,null,null,"Ft"]
[null,"Gép, berendezés, felszerelés biztosítási összege:",null,null,null,null,null,null,"Ft"]
[null,"Készlet biztosítási összege:",null,null,null,null,null,null,"Ft"]
[null,"Hozzájárulok, hogy a Biztosító az itt megadott, biztosítási titoknak minősülő szerződési adatokat, a jelen nyilatkozatban megjelölt Zálogjogosult hitelintézetnek átadja."]
[]
[null,"Zálogjogosult adatai"]
[null,"Zálogjogosult hitelintézet neve:"]
[null,"Székhely:"]
[null,"Hitelszerződés azonosítója:"]
[null,"Hitelszerződés kezdete:",null,null,null,null,null,"Hitel típusa:"]
[null,"Hitelszerződés lejárata:",null,null,null,null,null,"Hitel összege:"]
[]
[]
[null,"Kelt:",{"$f":"Ajánlat1!E112","v":0},null,{"$f":"Dátum","v":"00:00:00"}]
[]
[null,null,null,null,null,null,null,"Szerződő/Biztosított aláírása"]
[]
[]
[]
[]
[]
[]
[]
[null,null,"a biztosítási díj elmaradásáról az esedékességet követő 30 napon belül a Zálogjogosultat tájékoztassa."]
[null,null,"a biztosítási díj elmaradásáról az esedékességet követő 90 napon belül a Zálogjogosultat tájékoztassa."]
[]
[]
[]
[]
[]
[null,null,"épület"]
[null,null,"gép, berendezés, felszerelés"]
[null,null,"készlet"]
[null,null,"épület, gép, berendezés, felszerelés"]
[null,null,"épület, gép, berendezés, felszerelés, készlet"]
[null,null,"épület, készlet"]
[null,null,"gép, berendezés, felszerelés, készlet"]

{"sheet":"Munka8","index":15,"n_rows":20,"n_cols":5,"rows_kept":20,"cut":false,"hidden":true,"merged":[[17,0,17,9],[5,0,5,9],[8,0,8,9],[11,0,11,9],[14,0,14,9]]}
[]
["Épület","Ingóság","Felelősség","Géptörés","Üveg"]
[{"$f":"Díjszámítás!M27","v":false},{"$f":"IF(Díjszámítás!M42<5,Díjszámítás!M42,Díjszámítás!M42-4)","v":-4},{"$f":"Díjszámítás!M77","v":false},{"$f":"Díjszámítás!H62+Díjszámítás!H70","v":0},{"$f":"Díjszámítás!H49","v":0}]
["Az Limit (ÉpLimit; IngóLimit; FelLimit) munkalapokat mindig csak az első példányhoz kell kinyomtatni."]
["Ha az Épület (A3 cella) 0, akkor nem kell kinyomtatni az Épület, és az ÉpLimit munkalapokat"]
["Ha az Épület (A3 cella) értéke 1-es, akkor ki kell kinyomtatni az Épület munkalapot, és az ÉpLimit munkap 1. Oldalát, ha a cella értéke 2-es, akkor az Épület munkalapot és az ÉpLimit munkalap 2. Oldalát, ha az érték 3-as, akkor az Épület munkalapot és az ÉpLimit munkap 3. oldalát."]
[]
["Ha az Ingóság (B3 cella) 0, akkor nem kell kinyomtatni az IngóLimit munkalapokat"]
["Ha az Ingóság (B3 cella) értéke 1-es, akkor ki kell kinyomtatni az Épület munkalapot, és az IngóLimit munkap 1. Oldalát, ha a cella értéke 2-es, akkor az Épület munkalapot és az IngóLimit munkalap 2. Oldalát, ha az érték 3-as, akkor az Épület munkalapot és az IngóLimit munkap 3. oldalát."]
[]
["Ha az Felelősség (C3 cella) 0, akkor nem kell kinyomtatni a FelLimit munkalapot"]
["Ha a Felelősség (C3 cella) értéke 1-es, akkor ki kell kinyomtatni a FelLimit munkap 1. Oldalát, ha a cella értéke 2-es, akkor a FelLimit munkalap 2. Oldalát, ha az érték 3-as, akkor a FelLimit munkap 3. oldalát."]
[]
["Ha a Géptörés (D3 cella) 0, akkor nem kell kinyomtatni a Géptörés-ELBER munkalapot"]
["Ha a Géptörés (D3 cella) értéke 1-es, akkor ki kell kinyomtatni a Géptörés-ELBER munkapot."]
[]
["Mindig ki kell nyomtatni az Ajánlat1, a Díjkalkuláció, az Épület, a Kockázatfelmérő és a Nyilatkozat munkalapokat."]
[]
["Ha az Üveg (E3 cella) 0, akkor nem kell kinyomtatni az ÜvegLimit munkalapot"]
["Ha az Üveg (E3 cella) értéke 1-es, akkor ki kell kinyomtatni az ÜvegLimit munkapot."]

{"sheet":"Társbiztosítotti nyilatkozat","index":16,"n_rows":43,"n_cols":14,"rows_kept":43,"cut":false,"hidden":true,"merged":[[41,9,41,12],[42,9,42,12],[38,1,38,3],[38,5,38,6],[26,6,26,9],[27,3,27,5],[28,3,28,5],[31,2,31,4],[31,7,31,9],[33,0,33,13],[23,2,23,5],[23,8,23,12],[0,0,0,13],[1,2,1,3],[12,0,12,13],[13,1,13,5],[14,0,14,2],[14,6,14,8],[16,0,16,3],[16,5,16,12],[19,0,19,13],[21,4,21,7],[22,8,22,9]]}
["NYILATKOZAT TÁRSBIZTOSÍTOTT BEJEGYZÉSÉHEZ"]
[null,"Értesítés a",null,null,"ajánlat- vagy kötvényszámú biztosítási szerződéshez kapcsolódó"]
[null,null,null,null,null,null,"változásról"]
[]
["Union Vienna Insurance Group Biztosító Zrt."]
["Vezérigazgatóság"]
[]
["Budapest"]
["Baross u. 1."]
[1082]
[]
[]
["1. A(z) …………………..(szerződő)…………….. cégszerű képviseletében ezúton kérem Önöket, hogy a ………………. kockázatviselési kezdettel ……………………kötvényszámon Önökkel megkötött, egyedi vagyonbiztosítási szerződés esetében a szolgáltatási összeg tekintetében a finanszírozás futamidejére a …………………………….(lízingcég neve) re ( lízingcég címe.), mint Társbiztosítottat bejegyezni szíveskedjenek."]
["1. A(z)",{"$f":"Ajánlat1!E16","v":0},null,null,null,null,"cégszerű képviseletében ezúton kérem Önöket, hogy a"]
[null,null,null,"kockázatviselési kezdettel",null,null,null,null,null,"kötvényszámon Önökkel megkötött,"]
["egyedi vagyonbiztosítási szerződés esetében a szolgáltatási összeg tekintetében a finanszírozás futamidejére a "]
[null,null,null,null,"-t címe:",null,null,null,null,null,null,null,null,","]
["mint Társbiztosítottat bejegyezni szíveskedjenek."]
[]
["2. Kérem, hogy jelen levelünk kézhezvételét követően a fent megjelölt biztosítási szerződésben meghatározott biztosítási események által a biztosított ………………………………………… vagyontárgyakban bekövetkezett káresemények esetén az önrészesedést meghaladó szolgáltatási összeget legfeljebb… …………………..Ft értékhatárig  közvetlenül a Társbiztosított …………………. banknál  vezetett ……………………………………………………………………………..számú  számlájára  átutalással teljesíteni szíveskedjenek."]
["2. Kérem, hogy jelen levelünk kézhezvételét követően a fent megjelölt biztosítási szerződésben meghatározott biztosítási"]
["események   által   a   biztosított\n                                           ",null,null,null,null,null,null,null,"vagyontárgyakban bekövetkezett káresemények "]
["esetén az önrészesedést meghaladó szolgáltatási összeget legfeljebb",null,null,null,null,null,null,null,null,null,"értékhatárig  közvetlenül a "]
["Társbiztosított ",null,null,null,null,null,"banknál  vezetett "]
["számú  számlájára  átutalással teljesíteni szíveskedjenek."]
[]
["3. A Társbiztosított részéről a kapcsolattartó személy: "]
["Hitelszerződés száma:"]
["Finanszírozás időtartama:"]
[]
["4. Vagyontárgy(ak) – vagyoncsoporton belül: "]
["megnevezés:",null,null,null,null,null,"gyáriszám:"]
[]
["5. Hozzájárulok ahhoz, hogy a fent megjelölt biztosítási szerződés részét képező, biztosítási titoknak "]
["minősülő adatainkat az UNION Biztosító Zrt. a társbiztosított részére megadja. "]
[]
[]
[]
["Kelt.: ",{"$f":"Ajánlat1!E112","v":0},null,null,",",{"$f":"Ajánlat1!G112","v":"00:00:00"}]
[]
[]
[]
[null,null,null,null,null,null,null,null,null,"szerződő"]

{"sheet":"Fedezeti limittábla","index":17,"n_rows":0,"n_cols":0,"rows_kept":0,"cut":false,"hidden":false,"merged":[]}